Workbook

Sheet PORTADA
N1: | | U1: =IF($R$21<1,1,"") -> 1 | V1: 2011-01-01 | W1: =V2-1 -> 2011-01-15
I2: Usuario: | N2: Simulador de Préstamos… Inserte los datos requeridos…. | U2: =IF($R$21<2,2,"") -> 2 | V2: 2011-01-16 | W2: 2011-01-31
N3: Tasa de Interes: | O3: 0.01 | Q3: Parcialidad | U3: =IF($R$21<3,3,"") -> 3 | V3: 2011-02-01 | W3: 2011-02-15
N4: No.de Periodos | O4: 4 | Q4: =-PMT(O3,O4,O6,,0) -> 256.2810939 | U4: =IF($R$21<4,4,"") -> 4 | V4: 2011-02-16 | W4: 2011-02-28
I5: Fecha de Trabajo | U5: =IF($R$21<5,5,"") -> 5 | V5: 2011-03-01 | W5: 2011-03-15
I6: =NOW() -> 2016-11-15T14:11:36.270 | N6: Importe del Préstamo: | O6: 1000 | U6: =IF($R$21<6,6,"") -> 6 | V6: 2011-03-16 | W6: 2011-03-31
U7: =IF($R$21<7,7,"") -> 7 | V7: 2011-04-01 | W7: 2011-04-15
C8: Selecciona La Quincena | N8: Interes Generado | O8: =(Q4*O4)-O6 -> 25.12437565 | U8: =IF($R$21<8,8,"") -> 8 | V8: 2011-04-16 | W8: 2011-04-30
U9: =IF($R$21<9,9,"") -> 9 | V9: 2011-05-01 | W9: 2011-05-15
D10: 1 | H10: Desde: | I10: =VLOOKUP(D$10,$U1:$W24,2,FALSE) -> 2011-01-01 | N10: Total a Pagar | O10: =O8+O6 -> 1025.124376 | U10: =IF($R$21<10,10,"") -> 10 | V10: 2011-05-16 | W10: 2011-05-31
U11: =IF($R$21<11,11,"") -> 11 | V11: 2011-06-01 | W11: 2009-06-15
B12: SUMAS POR CAPITULO | H12: Hasta | I12: =VLOOKUP(D$10,$U$1:$W24,3,FALSE) -> 2011-01-15 | N12: Nombre de Deudor: | O12: Juan Perez | U12: =IF($R$21<12,12,"") -> 12 | V12: 2011-06-16 | W12: 2009-06-30
B13: CAPITULO | D13: PERCEPCIONES | F13: DEDUCCIONES | H13: NETO A PAGAR | N13: Domicilio: | O13: Abasolo | U13: =IF($R$21<13,13,"") -> 13 | V13: 2011-07-01 | W13: 2009-07-15
B14: 1 | D14: =SUMIF(#REF!,$B14,#REF!) ->  | F14: =SUMIF(#REF!,$B14,#REF!)+SUMIF(#REF!,$B14,#REF!) ->  | H14: =D14-F14 ->  | N14: Telefono: | P14: Vencimiento: | U14: =IF($R$21<14,14,"") -> 14 | V14: 2011-07-16 | W14: =V15-1 -> 2011-07-31
B15: 2 | D15: =SUMIF(#REF!,$B15,#REF!) ->  | F15: =SUMIF(#REF!,$B15,#REF!)+SUMIF(#REF!,$B15,#REF!) ->  | U15: =IF($R$21<15,15,"") -> 15 | V15: 2011-08-01 | W15: 2011-08-15
B16: 3 | D16: =SUMIF(#REF!,$B16,#REF!) ->  | F16: =SUMIF(#REF!,$B16,#REF!)+SUMIF(#REF!,$B16,#REF!) ->  | U16: =IF($R$21<16,16,"") -> 16 | V16: 2011-08-16 | W16: 2011-08-31
B17: 4 | D17: =SUMIF(#REF!,$B17,#REF!) ->  | F17: =SUMIF(#REF!,$B17,#REF!)+SUMIF(#REF!,$B17,#REF!) ->  | U17: =IF($R$21<17,17,"") -> 17 | V17: 2011-09-01 | W17: 2011-09-15
B18: 5 | D18: =SUMIF(#REF!,$B18,#REF!) ->  | F18: =SUMIF(#REF!,$B18,#REF!)+SUMIF(#REF!,$B18,#REF!) ->  | U18: =IF($R$21<18,18,"") -> 18 | V18: 2011-09-16 | W18: 2011-09-30
B19: 11 | D19: =SUMIF(#REF!,$B19,#REF!) ->  | F19: =SUMIF(#REF!,$B19,#REF!)+SUMIF(#REF!,$B19,#REF!) ->  | U19: =IF($R$21<19,19,"") -> 19 | V19: 2011-10-01 | W19: 2011-10-14
U20: =IF($R$21<20,20,"") -> 20 | V20: 2011-10-15 | W20: 2011-10-31
B21: SUMAS | D21: =SUM(D14:D20) ->  | F21: =SUM(F14:F20) ->  | H21: =SUM(H14:H20) ->  | L21: =IF(R21=0,"Bienvenido al Sistema de Nominas","se han grabado con éxito la Nomina No.") -> Bienvenido al Sistema de Nominas | R21: =MAX(ACUMULADO!AD:AD) -> 0 | U21: =IF($R$21<21,21,"") -> 21 | V21: 2011-11-01 | W21: 2011-11-14
U22: =IF($R$21<22,22,"") -> 22 | V22: 2011-11-15 | W22: 2011-11-30
B23: PAGOS CON TARJETA | D23: =SUMIF(#REF!,"TARJETA",#REF!) ->  | F23: I.S.P.T. | H23: =#REF! ->  | K23: INSTRUCCIONES. | U23: =IF($R$21<23,23,"") -> 23 | V23: 2011-12-01 | W23: 2011-12-15
U24: =IF($R$21<24,24,"") -> 24 | V24: 2011-12-16 | W24: 2009-12-31
B25: PAGOS SIN TARJETA | D25: =SUMIF(#REF!,"SOBRE",#REF!) ->  | F25: SUB. AL EMPLEO | H25: =#REF! ->  | K25: * SI SE DESEA HACER MODIFICACIONES A ALGUN EMPLEADO, SOLO DEBE
F27: FONDO DE AHORRO | K27: HACERSE EN EL MODULO DE EMPLEADOS, YA QUE NI EN CAPTURA NI EN
B29: SUMAS CRUZADAS | D29: =D23+D25 ->  | H29: =H21-H23+H25-H27 ->  | K29: IMPRESIÓN SE PUEDEN HACER MODIFICACIONES.
K30: * EN EL MODULO DE CAPTURA, ES DONDE SE PUEDEN AFECTAR LOS IMPORTES
F31: DIFERENCIA | K31: DE PAGO, A CADA EMPLEADO,
F32: =D29-H29 -> 
K33: * EN EL MODULO DE IMPRESIÓN DE NOMINA ES SOLAMENTE LECTURA, POR
K35: LO QUE SE PODRAN IMPRIMIR CADA UNA DE LAS HOJAS EN LAS DOS PRIMERAS
K37: CELDAS, UTILIZANDO PARA ELLO LOS FILTROS.
K39: * SOLO EL MODULO DE CAPTURA, PREVEE, UN BOTON DE ACUMULAR, CADA
K40: UNA DE LAS NOMINAS QUE SE VAYAN ORIGINANDO.
K42: msfiscal@hotmail.com, catastro.tequila@hotmail.com MSN y Correo.

Sheet EMPLEADOS
M1: =SUBTOTAL(9,M3:M199) -> 0 | O1: =SUBTOTAL(9,O3:O200) -> 29830.1333
A2: No.empleado | B2: CAPITULO | C2: PARTIDA | D2: NOMBRE | E2: RFC | F2: CURP | G2: FECHA DE INGRESO | H2: CARGO | I2: DEPENDENCIA | J2: PAGO CON | K2: DIAS LABORADOS | M2: TIEMPO EXTRA (COMPENSACIONES) | N2: OTROS INGRESOS | O2: SUELDO POR DIA PROPUESTO | P2: FONDO DE AHORRO X DIA (PATRON) | Q2: APOYO EDUCACIONAL | R2: SUMA DE PERCEPCIONES | S2: Sueldo X Dia | T2: VERIFICACION
A3: 120 | B3: 1 | C3: 1 | D3: FREGOSO GOMEZ CARLOS | E3: FEGC520708 | F3: FEGC520708HJCRMR08 | H3: REGIDOR | I3: 1 | J3: TARJETA | K3: 15 | M3: 0 | N3: 0 | O3: =7714.8/30 -> 257.16 | P3: =TRUNC($O3*0.04,2) -> 10.28 | Q3: =TRUNC(O3*0.07,2) -> 18 | R3: =O3+P3+Q3 -> 285.44 | S3: 367.2 | T3: =VLOOKUP(A3,#REF!,22,FALSE)/15 ->  | U3: =T3-S3 -> 
D4: RUIZ JUAREZ MARIA RAQUEL | H4: REGIDOR | I4: 1 | J4: TARJETA | K4: 15 | M4: 0 | N4: 0 | O4: =7714.8/30 -> 257.16 | P4: =TRUNC($O4*0.04,2) -> 10.28 | Q4: =TRUNC(O4*0.07,2) -> 18 | R4: =O4+P4+Q4 -> 285.44 | S4: 367.2 | T4: =VLOOKUP(A4,#REF!,22,FALSE)/15 ->  | U4: =T4-S4 -> 
D5: PARRA VELASCO ANA ROSA | H5: REGIDOR | I5: 1 | J5: TARJETA | K5: 15 | M5: 0 | N5: 0 | O5: 257.16 | P5: 10.28 | Q5: 18 | R5: 285.44 | S5: 367.2 | T5: =VLOOKUP(A5,#REF!,22,FALSE)/15 -> 
D6: MARTINEZ NAVARRO FRANCISCO | H6: REGIDOR | I6: 1 | J6: TARJETA | K6: 15 | M6: 0 | N6: 0 | O6: 257.16 | P6: 10.28 | Q6: 18 | R6: 285.44 | S6: 367.2 | T6: =VLOOKUP(A6,#REF!,22,FALSE)/15 -> 
D7: SOTO HERNANDEZ RAMON | H7: REGIDOR | I7: 1 | J7: TARJETA | K7: 15 | M7: 0 | N7: 0 | O7: 257.16 | P7: 10.28 | Q7: 18 | R7: 285.44 | S7: 367.2 | T7: =VLOOKUP(A7,#REF!,22,FALSE)/15 -> 
D8: MEDINA FLORES CARMEN AIDE | H8: REGIDOR | I8: 1 | J8: TARJETA | K8: 15 | M8: 0 | N8: 0 | O8: 257.16 | P8: 10.28 | Q8: 18 | R8: 285.44 | S8: 367.2 | T8: =VLOOKUP(A8,#REF!,22,FALSE)/15 -> 
D9: BECERRA GONZALEZ ALFREDO | H9: REGIDOR | I9: 1 | J9: TARJETA | K9: 15 | M9: 0 | N9: 0 | O9: 257.16 | P9: 10.28 | Q9: 18 | R9: 285.44 | S9: 367.2 | T9: =VLOOKUP(A9,#REF!,22,FALSE)/15 -> 
D10: CHAVEZ JORDAN JUAN MANUEL | H10: REGIDOR | I10: 1 | J10: TARJETA | K10: 15 | M10: 0 | N10: 0 | O10: 257.16 | P10: 10.28 | Q10: 18 | R10: 285.44 | S10: 367.2 | T10: =VLOOKUP(A10,#REF!,22,FALSE)/15 -> 
D11: LOPEZ PARRA DANIEL | H11: REGIDOR | I11: 1 | J11: TARJETA | K11: 15 | M11: 0 | N11: 0 | O11: 257.16 | P11: 10.28 | Q11: 18 | R11: 285.44 | S11: 367.2 | T11: =VLOOKUP(A11,#REF!,22,FALSE)/15 -> 
A20: 1 | D20: FREGOSO JIMENEZ ESTEBAN | H20: REGIDOR | I20: 1 | J20: SOBRE | K20: 15 | M20: 0 | N20: 0 | O20: =10884.83/30 -> 362.8276667 | P20: =TRUNC($O20*0.04,2) -> 14.51 | Q20: 25.39 | R20: 402.7276667 | S20: 367.2 | T20: =VLOOKUP(A20,#REF!,22,FALSE)/15 ->  | U20: =T20-S20 -> 
A21: 2 | D21: FIGUEROA CARBAJAL MARIA | H21: REGIDOR | I21: 1 | J21: SOBRE | K21: 15 | M21: 0 | N21: 0 | O21: 362.8276667 | P21: 14.51 | Q21: 25.39 | R21: 402.7276667 | S21: 367.2 | T21: =VLOOKUP(A21,#REF!,22,FALSE)/15 -> 
A22: 3 | D22: HERNANDEZ AGUIRRE FRANCISCO | H22: REGIDOR | I22: 1 | J22: SOBRE | K22: 15 | M22: 0 | N22: 0 | O22: 362.8276667 | P22: 14.51 | Q22: 25.39 | R22: 402.7276667 | S22: 367.2 | T22: =VLOOKUP(A22,#REF!,22,FALSE)/15 -> 
A23: 4 | D23: OLMEDO ALVAREZ MARIA ARGELIA | H23: REGIDOR | I23: 1 | J23: SOBRE | K23: 15 | M23: 0 | N23: 0 | O23: 362.8276667 | P23: 14.51 | Q23: 25.39 | R23: 402.7276667 | S23: 367.2 | T23: =VLOOKUP(A23,#REF!,22,FALSE)/15 -> 
A24: 5 | D24: BAUTISTA MEZA JESUS | H24: REGIDOR | I24: 1 | J24: SOBRE | K24: 15 | M24: 0 | N24: 0 | O24: 362.8276667 | P24: 14.51 | Q24: 25.39 | R24: 402.7276667 | S24: 367.2 | T24: =VLOOKUP(A24,#REF!,22,FALSE)/15 -> 
A25: 6 | D25: BLANCO ARVIZU CESAR ROBERTO | H25: REGIDOR | I25: 1 | J25: SOBRE | K25: 15 | M25: 0 | N25: 0 | O25: 362.8276667 | P25: 14.51 | Q25: 25.39 | R25: 402.7276667 | S25: 367.2 | T25: =VLOOKUP(A25,#REF!,22,FALSE)/15 -> 
A26: 7 | D26: GUTIERREZ MARTINEZ MA DOLORES | H26: REGIDOR | I26: 1 | J26: SOBRE | K26: 15 | M26: 0 | N26: 0 | O26: 362.8276667 | P26: 14.51 | Q26: 25.39 | R26: 402.7276667 | S26: 367.2 | T26: =VLOOKUP(A26,#REF!,22,FALSE)/15 -> 
A27: 8 | D27: PAREDES LOZA RAMON | H27: REGIDOR | I27: 1 | J27: SOBRE | K27: 15 | M27: 0 | N27: 0 | O27: 362.8276667 | P27: 14.51 | Q27: 25.39 | R27: 402.7276667 | S27: 367.2 | T27: =VLOOKUP(A27,#REF!,22,FALSE)/15 -> 
A28: 9 | D28: CHAVEZ MONTENEGRO BENITO | H28: REGIDOR | I28: 1 | J28: SOBRE | K28: 15 | M28: 0 | N28: 0 | O28: 362.8276667 | P28: 14.51 | Q28: 25.39 | R28: 402.7276667 | S28: 153.522 | T28: =VLOOKUP(A28,#REF!,22,FALSE)/15 -> 
A29: 201 | D29: BARAJAS GUTIERREZ VERONICA | H29: SECRETARIA | I29: 1 | J29: TARJETA | K29: 15 | M29: 0 | N29: 0 | O29: =4550.844/30 -> 151.6948 | P29: 6.06 | Q29: 10.61 | R29: 168.3648 | S29: 821.7359993 | T29: =VLOOKUP(A29,#REF!,22,FALSE)/15 -> 
A30: 11 | D30: VELEZ FREGOSO LUIS MANUEL | H30: PRESIDENTE MUNICIPAL | I30: 2 | J30: TARJETA | K30: 15 | M30: 0 | N30: 0 | O30: =24358.621/30 -> 811.9540333 | P30: 32.47 | Q30: 56.83 | R30: 901.2540333 | S30: 200 | T30: =VLOOKUP(A30,#REF!,22,FALSE)/15 -> 
A31: 12 | D31: FREGOSO PARRA MARTHA | H31: SECRETARIA PARTICULAR | I31: 2 | J31: TARJETA | K31: 15 | M31: 0 | N31: 0 | O31: =5288.327/30 -> 176.2775667 | P31: 7.05 | Q31: 12.33 | R31: 195.6575667 | S31: 576.0072 | T31: =VLOOKUP(A31,#REF!,22,FALSE)/15 -> 
A32: 13 | D32: LOPEZ MELENDRES GERARDO | H32: SINDICO MUNICIPAL | I32: 3 | J32: SOBRE | K32: 15 | M32: 0 | N32: 0 | O32: =17074.636/30 -> 569.1545333 | P32: 22.76 | Q32: 39.84 | R32: 631.7545333 | S32: 176.4072 | T32: =VLOOKUP(A32,#REF!,22,FALSE)/15 -> 
A33: 14 | D33: RENTERIA MARTINEZ ELIZABETH | H33: SECRETARIA DE SINDICATURA | I33: 3 | J33: TARJETA | K33: 15 | M33: 0 | N33: 0 | O33: =4550.85/30 -> 151.695 | P33: 6.06 | Q33: =TRUNC(O33*0.07,2) -> 10.61 | R33: =O33+P33+Q33 -> 168.365 | S33: 176.4072 | T33: =VLOOKUP(A33,#REF!,22,FALSE)/15 ->  | U33: =T33-S33 -> 
A34: 15 | D34: REYES HERNANDEZ ADRIANA | H34: CONSERJE | I34: 3 | J34: SOBRE | K34: 15 | M34: 0 | N34: 0 | O34: =4550.844/30 -> 151.6948 | P34: 6.06 | Q34: 10.61 | R34: 168.3648 | S34: 415.8 | T34: =VLOOKUP(A34,#REF!,22,FALSE)/15 -> 
A35: 16 | D35: CASTELLANOS OCHOA SARA | H35: OFICIAL MAYOR | I35: 4 | J35: TARJETA | K35: 15 | M35: 0 | N35: 0 | O35: =12377.968/30 -> 412.5989333 | P35: 16.5 | Q35: 28.88 | R35: 457.9789333 | S35: 176.4072 | T35: =VLOOKUP(A35,#REF!,22,FALSE)/15 -> 
A36: 17 | D36: VENTURA PEREZ HERLINDA AURORA | H36: AUXILIAR ADMINISTRATIVO | I36: 4 | J36: TARJETA | K36: 15 | M36: 0 | N36: 0 | O36: =5231.907/30 -> 174.3969 | P36: 6.97 | Q36: =TRUNC(O36*0.07,2) -> 12.2 | R36: =O36+P36+Q36 -> 193.5669 | S36: 176.4072 | T36: =VLOOKUP(A36,#REF!,22,FALSE)/15 -> 
A37: 18 | D37: ESTRADA GOMEZ JUAN CARLOS | H37: CHOFER | I37: 4 | J37: SOBRE | K37: 15 | M37: 0 | N37: 0 | O37: =4598/30 -> 153.2666667 | P37: 6.13 | Q37: 10.72 | R37: 170.1166667 | S37: 396.0036 | T37: =VLOOKUP(A37,#REF!,22,FALSE)/15 -> 
A38: 19 | D38: HERNANDEZ MELENDEZ JOSE CRUZ | H38: DIRECTOR JURIDICO | I38: 5 | J38: SOBRE | K38: 15 | M38: 0 | N38: 0 | O38: =11738.71/30 -> 391.2903333 | P38: 15.65 | Q38: 27.39 | R38: 434.3303333 | S38: 216 | T38: =VLOOKUP(A38,#REF!,22,FALSE)/15 -> 
A39: 20 | D39: VENTURA PEREZ HECTOR ALFONSO | H39: JUEZ CALIFICADOR | I39: 5 | J39: TARJETA | K39: 15 | M39: 0 | N39: 0 | O39: =6402.783/30 -> 213.4261 | P39: 8.53 | Q39: =TRUNC(O39*0.07,2) -> 14.93 | R39: =O39+P39+Q39 -> 236.8861 | S39: 216 | T39: =VLOOKUP(A39,#REF!,22,FALSE)/15 -> 
A40: 202 | D40: ESPINOZA CARRILLO MARIO ALBERTO | H40: AUXILIAR DE JURIDICO | I40: 5 | J40: SOBRE | K40: 15 | M40: 0 | N40: 0 | O40: =6280.001/30 -> 209.3333667 | P40: 8.37 | Q40: 14.65 | R40: 232.3533667 | S40: 257.4072 | T40: =VLOOKUP(A40,#REF!,22,FALSE)/15 -> 
A41: 21 | D41: HERNANDEZ ENRIQUEZ ROSA GUADALUPE | E41: HEEG670312 | F41: HEER670312MJCRNS06 | H41: JEFE OFICIAL DE REGISTRO CIVIL | I41: 6 | J41: TARJETA | K41: 15 | M41: 0 | N41: 0 | O41: =7630.277/30 -> 254.3425667 | P41: 10.17 | Q41: 17.8 | R41: 282.3125667 | S41: 185.4468 | T41: =VLOOKUP(A41,#REF!,22,FALSE)/15 -> 
A42: 18 | D42: CABRALES CANDELARIO SANDRA | H42: OFICIAL AUX. DE REGISTRO CIVIL | I42: 6 | J42: TARJETA | K42: 15 | M42: 0 | N42: 0 | O42: =4550.844/30 -> 151.6948 | P42: 6.06 | Q42: 10.61 | R42: 168.3648 | S42: 153.522 | T42: =VLOOKUP(A42,#REF!,22,FALSE)/15 -> 
A43: 23 | D43: DOMINGUEZ JAVIER OSVALDO | E43: DOXJ861110 | H43: OFICIAL AUX. DE REGISTRO CIVIL | I43: 6 | J43: TARJETA | K43: 15 | M43: 0 | N43: 0 | O43: =4550.844/30 -> 151.6948 | P43: 6.06 | Q43: 10.61 | R43: 168.3648 | S43: 237.6 | T43: =VLOOKUP(A43,#REF!,22,FALSE)/15 -> 
A44: 24 | D44: MELCHOR VALENZUELA ABISAI | H44: DIRECTOR DE CULTURA Y TURISMO | I44: 7 | J44: TARJETA | K44: 15 | M44: 0 | N44: 0 | O44: =7043.028/30 -> 234.7676 | P44: 9.39 | Q44: 16.43 | R44: 260.5876 | S44: 166.32 | T44: =VLOOKUP(A44,#REF!,22,FALSE)/15 -> 
A45: 25 | D45: PARRA RON CARLOS ENRIQUE | E45: PARC480708 | F45: PARC480708HJCRNR08 | H45: CRONISTA | I45: 7 | J45: TARJETA | K45: 15 | M45: 0 | N45: 0 | O45: =4930.054/30 -> 164.3351333 | P45: 6.57 | Q45: 11.5 | R45: 182.4051333 | S45: 153.522 | T45: =VLOOKUP(A45,#REF!,22,FALSE)/15 -> 
A46: 26 | D46: HERNANDEZ LOPEZ SILVIA | E46: HELS611110 | F46: HELS611103MJCRPL00 | H46: SECRETARIA | I46: 7 | J46: TARJETA | K46: 15 | M46: 0 | N46: 0 | O46: =4550.844/30 -> 151.6948 | P46: 6.06 | Q46: 10.61 | R46: 168.3648 | S46: 79.2072 | T46: =VLOOKUP(A46,#REF!,22,FALSE)/15 -> 
A47: 27 | D47: GODINA ENRIQUEZ SILVIA | E47: SIEE630510 | F47: SIEE670512HJCRSF08 | H47: CONSERJE | I47: 7 | J47: TARJETA | K47: 15 | M47: 0 | N47: 0 | O47: =3608.416/30 -> 120.2805333 | P47: 4.81 | Q47: 8.41 | R47: 133.5005333 | S47: 153.52 | T47: =VLOOKUP(A47,#REF!,22,FALSE)/15 -> 
A48: 31 | D48: DIAZ PEREZ SAMUEL | E48: DIPS | H48: COMUNICACIÓN SOCIAL | I48: 8 | J48: TARJETA | K48: 15 | M48: 0 | N48: 0 | O48: =7043.028/30 -> 234.7676 | P48: =TRUNC($O48*0.04,2) -> 9.39 | Q48: 16.43 | R48: 260.5876 | S48: 237.6 | T48: =VLOOKUP(A48,#REF!,22,FALSE)/15 -> 
A49: 94 | D49: MARTINEZ MARTINEZ SALVADOR TAURINO JONATHAN | E49: MAMS900118 | H49: AUXILIAR ADMINISTRATIVO | I49: 23 | J49: TARJETA | K49: 15 | M49: 0 | N49: 0 | O49: =3448.772/30 -> 114.9590667 | P49: 4.59 | Q49: 8.04 | R49: 127.5890667 | S49: 153.522 | T49: =VLOOKUP(A48,#REF!,22,FALSE)/15 -> 
A50: 32 | D50: ULLOA MARTINEZ MARCELA GUADALUPE | E50: UOMM730612 | F50: UOMM730612MJCLRR02 | H50: SECRETARIA | I50: 8 | J50: TARJETA | K50: 15 | M50: 0 | N50: 0 | O50: =5530.14/30 -> 184.338 | P50: =TRUNC($O50*0.04,2) -> 7.37 | Q50: =TRUNC(O50*0.07,2) -> 12.9 | R50: =O50+P50+Q50 -> 204.608 | S50: 237.6 | T50: =VLOOKUP(A150,#REF!,22,FALSE)/15 -> 
A51: 32 | D51: RUBIO LOPEZ GUSTAVO | E51: RULG | H51: AUXILIAR ADMINISTRATIVO | I51: 23 | J51: SOBRE | K51: 15 | M51: 0 | N51: 0 | O51: =4740.12/30 -> 158.004 | P51: 6.32 | Q51: =TRUNC(O51*0.07,2) -> 11.06 | R51: =O51+P51+Q51 -> 175.384 | S51: 277.2036 | T51: =VLOOKUP(A49,#REF!,22,FALSE)/15 -> 
A52: 33 | D52: GUTIERREZ REYES CAROL | E52: GURC680410 | F52: GURC680410MJCTYR00 | H52: JEFE ADMINISTRADOR | I52: 9 | J52: TARJETA | K52: 15 | M52: 0 | N52: 0 | O52: =8217.196/30 -> 273.9065333 | P52: 10.95 | Q52: 19.17 | R52: 304.0265333 | S52: 156.816 | T52: =VLOOKUP(A51,#REF!,22,FALSE)/15 -> 
A53: 34 | D53: FREGOSO HURTADO ALEJANDRA | E53: FEHA831218 | F53: FEHA831218MJCRRL07 | H53: AUX. ADMINISTRATIVO | I53: 9 | J53: TARJETA | K53: 15 | M53: 0 | N53: 0 | O53: =4648.609/30 -> 154.9536333 | P53: 6.19 | Q53: 10.84 | R53: 171.9836333 | S53: 156.816 | T53: =VLOOKUP(A52,#REF!,22,FALSE)/15 -> 
A54: 35 | D54: LOPEZ MARTINEZ YVETTE AMALIA MARGARITA | E54: LOMY681017 | F54: LOMY681017MJCPRV08 | H54: AUX. ADMINISTRATIVO | I54: 9 | J54: TARJETA | K54: 15 | M54: 0 | N54: 0 | O54: =4648.609/30 -> 154.9536333 | P54: 6.19 | Q54: 10.84 | R54: 171.9836333 | S54: 174.24 | T54: =VLOOKUP(A53,#REF!,22,FALSE)/15 -> 
A55: 36 | D55: NABARRO DELGADILLO MANUEL | E55: NADM490419 | F55: NADM490419HJCBLN01 | H55: MENSAJERO | I55: 9 | J55: TARJETA | K55: 15 | M55: 0 | N55: 0 | O55: =5165.085/30 -> 172.1695 | P55: 6.88 | Q55: 12.05 | R55: 191.0995 | S55: 192.5316 | T55: =VLOOKUP(A54,#REF!,22,FALSE)/15 -> 
A56: 95 | D56: CISNEROS VAZQUEZ RAMIRO | E56: CIVR540430 | H56: RECOLECTOR | I56: 23 | J56: SOBRE | K56: 15 | M56: 0 | N56: 0 | O56: =3448.766/30 -> 114.9588667 | P56: 4.59 | Q56: =TRUNC(O56*0.07,2) -> 8.04 | R56: =O56+P56+Q56 -> 127.5888667 | S56: 192.5316 | T56: =VLOOKUP(A55,#REF!,22,FALSE)/15 -> 
A57: 221 | D57: BECERRA GONZALEZ MARISOL | E57: BEGM | H57: ENCARGADA DE DESARROLLO RURAL | I57: 8 | J57: SOBRE | K57: 15 | M57: 0 | N57: 0 | O57: =8217.196/30 -> 273.9065333 | P57: 10.95 | Q57: 19.17 | R57: 304.0265333 | S57: 82.8036 | T57: =VLOOKUP(A56,#REF!,22,FALSE)/15 -> 
A58: 37 | D58: ARREOLA SIERRA JAVIER | H58: DELEGADO OCONAHUA | I58: 10 | J58: SOBRE | K58: 15 | M58: 0 | N58: 0 | O58: =5707.236/30 -> 190.2412 | P58: 7.6 | Q58: 13.31 | R58: 211.1512 | S58: 100.8072 | T58: =VLOOKUP(A57,#REF!,22,FALSE)/15 -> 
A59: 38 | D59: BRAMBILA MELCHOR JOEL | H59: SECRETARIO DEL REGISTRO CIVIL | I59: 10 | J59: SOBRE | K59: 15 | M59: 0 | N59: 0 | O59: =2881.269/30 -> 96.0423 | P59: 3.84 | Q59: 6.72 | R59: 106.6023 | S59: 100.8072 | T59: =VLOOKUP(A58,#REF!,22,FALSE)/15 -> 
A60: 41 | D60: MELCHOR CASILLAS SANTIAGO | E60: MECS331205 | F60: MECS331205HJCLSN08 | H60: BOMBERO OCONAHUA | I60: 10 | J60: TARJETA | K60: 15 | M60: 0 | N60: 0 | O60: =2454.658/30 -> 81.82193333 | P60: 3.27 | Q60: 5.72 | R60: 90.81193333 | S60: 100.8072 | T60: =VLOOKUP(A59,#REF!,22,FALSE)/15 -> 
A61: 42 | D61: HERNANDEZ NARANJO VICTOR MANUEL | E61: HENV720810 | F61: HENV700810HJCRRC03 | H61: RECOLECTOR | I61: 10 | J61: TARJETA | K61: 15 | M61: 0 | N61: 0 | O61: =2988.251/30 -> 99.60836667 | P61: 3.98 | Q61: 6.97 | R61: 110.5583667 | S61: 82.8036 | T61: =VLOOKUP(A60,#REF!,22,FALSE)/15 -> 
A62: 43 | D62: TIZNADO CHAVEZ RAMON | E62: TICR | H62: RECOLECTOR | I62: 10 | J62: TARJETA | K62: 15 | M62: 0 | N62: 0 | O62: =2988.251/30 -> 99.60836667 | P62: 3.98 | Q62: 6.97 | R62: 110.5583667 | S62: 52.2072 | T62: =VLOOKUP(A61,#REF!,22,FALSE)/15 -> 
A63: 44 | D63: ORTIZ HERNANDEZ FRANCISCO JAVIER | E63: OIHF661005 | F63: OIHF661005HJCRRR01 | H63: RECOLECTOR | I63: 10 | J63: TARJETA | K63: 15 | M63: 0 | N63: 0 | O63: =2988.251/30 -> 99.60836667 | P63: 3.98 | Q63: 6.97 | R63: 110.5583667 | S63: 86.4 | T63: =VLOOKUP(A62,#REF!,22,FALSE)/15 -> 
A64: 45 | D64: HURTADO SANTIAGO ABEL | H64: GUARDARRASTRO | I64: 10 | J64: SOBRE | K64: 15 | M64: 0 | N64: 0 | O64: =2454.658/30 -> 81.82193333 | P64: 3.27 | Q64: 5.72 | R64: 90.81193333 | S64: 86.4 | T64: =VLOOKUP(A63,#REF!,22,FALSE)/15 -> 
A65: 46 | D65: ULLOA ALCANTAR MIGUEL | E65: UOAM380416 | F65: UOAM380416HNTLLG09 | H65: AUX. DE LIMPIEZA | I65: 10 | J65: TARJETA | K65: 15 | M65: 0 | N65: 0 | O65: =1547.452/30 -> 51.58173333 | P65: 2.06 | Q65: 3.61 | R65: 57.25173333 | S65: 52.2072 | T65: =VLOOKUP(A64,#REF!,22,FALSE)/15 -> 
A66: 47 | D66: DE LA ROSA MACIAS SALVADOR | E66: ROMS500801 | F66: ROMS500801HJCSCL00 | H66: FONTANERO | I66: 10 | J66: TARJETA | K66: 15 | M66: 0 | N66: 0 | O66: =2561.311/30 -> 85.37703333 | P66: 3.41 | Q66: 5.97 | R66: 94.75703333 | S66: 97.2 | T66: =VLOOKUP(A65,#REF!,22,FALSE)/15 -> 
A67: 48 | D67: SANTIAGO LOPEZ SABINO | E67: SALS481230 | F67: SALS481230HJCNPB00 | H67: FONTANERO | I67: 10 | J67: SOBRE | K67: 15 | M67: 0 | N67: 0 | O67: =2561.311/30 -> 85.37703333 | P67: 3.41 | Q67: 5.97 | R67: 94.75703333 | S67: 79.2072 | T67: =VLOOKUP(A66,#REF!,22,FALSE)/15 -> 
A68: 49 | D68: CERVANTES SANCHEZ GABRIEL | E68: CESG | H68: ENCARGADO DE CEMENTERIOS | I68: 10 | J68: SOBRE | K68: 15 | M68: 0 | N68: 0 | O68: =1547.452/30 -> 51.58173333 | P68: 2.06 | Q68: 3.61 | R68: 57.25173333 | S68: 97.2 | T68: =VLOOKUP(A67,#REF!,22,FALSE)/15 -> 
A69: 50 | D69: AGUILAR VILLA CECILIO | H69: AGENTE MUNICIPAL STA. ROSALIA | I69: 11 | J69: SOBRE | K69: 15 | M69: 0 | N69: 0 | O69: =2881.269/30 -> 96.0423 | P69: 3.84 | Q69: 6.72 | R69: 106.6023 | S69: 97.2 | T69: =VLOOKUP(A68,#REF!,22,FALSE)/15 -> 
A70: 51 | D70: MEDINA CORTES ALFREDO | E70: MECA | H70: AGENTE MUNICIPAL SAN RAFAEL | I70: 11 | J70: SOBRE | K70: 15 | M70: 0 | N70: 0 | O70: =2348.005/30 -> 78.26683333 | P70: 3.13 | Q70: 5.47 | R70: 86.86683333 | S70: 82.8036 | T70: =VLOOKUP(A69,#REF!,22,FALSE)/15 -> 
A71: 53 | D71: ESPARZA URIBE EFRAIN | E71: EAGE | H71: AGENTE MUNICIPAL DE PUERTA DE PERICOS | I71: 11 | J71: SOBRE | K71: 15 | M71: 0 | N71: 0 | O71: =2881.269/30 -> 96.0423 | P71: 3.84 | Q71: =TRUNC(O71*0.07,2) -> 6.72 | R71: =O71+P71+Q71 -> 106.6023 | S71: 82.8036 | T71: =VLOOKUP(A70,#REF!,22,FALSE)/15 -> 
A72: 54 | D72: TAPIA MORALES ROBERTO | E72: TAMR | H72: AGENTE MUNICIPAL LA MAZATA | I72: 11 | J72: SOBRE | K72: 15 | M72: 0 | N72: 0 | O72: =2881.269/30 -> 96.0423 | P72: 3.84 | Q72: 6.72 | R72: 106.6023 | S72: 133.2072 | T72: =VLOOKUP(A71,#REF!,22,FALSE)/15 -> 
A73: 55 | D73: AYON PEREZ FRANCISCO | E73: AOPF | H73: AGENTE MUNICIPAL LA QUEBRADA | I73: 11 | J73: SOBRE | K73: 15 | M73: 0 | N73: 0 | O73: =2454.658/30 -> 81.82193333 | P73: 3.27 | Q73: 5.72 | R73: 90.81193333 | S73: 108 | T73: =VLOOKUP(A72,#REF!,22,FALSE)/15 -> 
A74: 56 | D74: AGUAYO CORTES MIGUEL | H74: AGENTE MUNICIPAL LA QUEBRADA | I74: 11 | J74: SOBRE | K74: 15 | M74: 0 | N74: 0 | O74: =2454.658/30 -> 81.82193333 | P74: 3.27 | Q74: =TRUNC(O74*0.07,2) -> 5.72 | R74: =O74+P74+Q74 -> 90.81193333 | S74: 108 | T74: =VLOOKUP(A73,#REF!,22,FALSE)/15 -> 
A75: 57 | D75: GOMEZ HERNANDEZ VALENTIN | E75: GOHV780710 | F75: GOHV780710HJCMRL00 | H75: CHOFER RECOLECTOR | I75: 11 | J75: TARJETA | K75: 15 | M75: 0 | N75: 0 | O75: =3948.783/30 -> 131.6261 | P75: 5.26 | Q75: 9.21 | R75: 146.0961 | S75: 529.2 | T75: =VLOOKUP(A74,#REF!,22,FALSE)/15 -> 
A76: 58 | D76: HERNANDEZ PINEDA JUAN JOSE | E76: HEPJ581212 | F76: HEPJ571212HJCRNN00 | H76: BOMBERO STA. ROSALIA | I76: 11 | J76: TARJETA | K76: 15 | M76: 0 | N76: 0 | O76: =3201.556/30 -> 106.7185333 | P76: =TRUNC($O76*0.04,2) -> 4.26 | Q76: 7.47 | R76: 118.4485333 | S76: 216.66 | T76: =VLOOKUP(A75,#REF!,22,FALSE)/15 -> 
A77: 59 | D77: VENTURA URIBE MARIA DEL TRANSITO | E77: VEUT | H77: ASEO PUBLICO LA MAZATA | I77: 11 | J77: SOBRE | K77: 15 | M77: 0 | N77: 0 | O77: =2294.35/30 -> 76.47833333 | P77: =TRUNC($O77*0.04,2) -> 3.05 | Q77: =TRUNC(O77*0.07,2) -> 5.35 | R77: =O77+P77+Q77 -> 84.87833333 | S77: 216.66 | T77: =VLOOKUP(A159,#REF!,22,FALSE)/15 -> 
A78: 60 | D78: LOPEZ CUETO GILBERTO | H78: ENCARGADO DE HACIENDA PUBLICA | I78: 12 | J78: TARJETA | K78: 15 | M78: 0 | N78: 0 | O78: =16418.664/30 -> 547.2888 | P78: 21.89 | Q78: 38.31 | R78: 607.4888 | S78: 186.4836 | T78: =VLOOKUP(A160,#REF!,22,FALSE)/15 -> 
A79: 61 | D79: MARTINEZ PAREDES ANNA VERONICA | E79: MAPA820618 | F79: MAPA820618MJCRRN00 | H79: AUXILIAR CONTABLE | I79: 12 | J79: TARJETA | K79: 15 | M79: 0 | N79: 0 | O79: =6422.533/30 -> 214.0844333 | P79: 8.56 | Q79: 14.98 | R79: 237.6244333 | S79: 190.08 | T79: 284.2373333 | U79: 94.15733333
A80: 211 | D80: LOPEZ MELENDRES MA DE LOURDES | E80: LOML | H80: AUXILIAR CONTABLE | I80: 12 | J80: TARJETA | K80: 15 | M80: 0 | N80: 0 | O80: =6422.533/30 -> 214.0844333 | P80: 8.56 | Q80: =TRUNC(O80*0.07,2) -> 14.98 | R80: =O80+P80+Q80 -> 237.6244333 | S80: 174.2472 | T80: =VLOOKUP(A78,#REF!,22,FALSE)/15 -> 
A81: 64 | D81: HERNANDEZ CARRILLO ERIKA MARIA | E81: HECE790320 | F81: HECE790320MJCRRR09 | H81: SECRETARIA | I81: 13 | J81: TARJETA | K81: 15 | M81: 0 | N81: 0 | O81: =5527.836/30 -> 184.2612 | P81: 7.37 | Q81: 12.89 | R81: 204.5212 | S81: 283.1436 | T81: =VLOOKUP(A79,#REF!,22,FALSE)/15 -> 
A82: 66 | D82: CABRALES GONZALEZ JOSE MANUEL | E82: CAGM680912 | F82: CAGM680912HJCBNN06 | H82: RECAUDADOR DE PISO | I82: 13 | J82: TARJETA | K82: 15 | M82: 0 | N82: 0 | O82: =5165.085/30 -> 172.1695 | P82: 6.88 | Q82: 12.05 | R82: 191.0995 | S82: 283.1328 | T82: =VLOOKUP(A80,#REF!,22,FALSE)/15 -> 
A83: 67 | D83: PEREZ JAIME ARTURO | E83: PEJA600718 | F83: RORS770602HJCDML08 | H83: COORDINADOR DE EGRESOS | I83: 14 | J83: TARJETA | K83: 15 | M83: 0 | N83: 0 | O83: =8899.429/30 -> 296.6476333 | P83: 11.86 | Q83: 20.76 | R83: 329.2676333 | S83: 283.1436 | T83: =VLOOKUP(A81,#REF!,22,FALSE)/15 -> 
A84: 68 | D84: SANCHEZ JORGE AMADO | H84: DIRECTOR | I84: 15 | J84: TARJETA | K84: 15 | M84: 0 | N84: 0 | O84: =8392.646/30 -> 279.7548667 | P84: 11.19 | Q84: 19.58 | R84: 310.5248667 | S84: 198.0072 | T84: =VLOOKUP(A82,#REF!,22,FALSE)/15 ->  | U84: =T84-S84 -> 
A85: 69 | D85: LOCHEO SALAZAR MARTIN ARTURO | H85: DIRECTOR | I85: 16 | J85: TARJETA | K85: 15 | M85: 0 | N85: 0 | O85: =8393.304/30 -> 279.7768 | P85: 11.19 | Q85: 19.58 | R85: 310.5468 | S85: 153.52 | T85: =VLOOKUP(A83,#REF!,22,FALSE)/15 -> 
A86: 70 | D86: CAMARENA PEREZ BERTA ALICIA | E86: CAPB801105 | F86: CAPB801105MJCMRR06 | H86: SUB-DIRECTOR DE CATASTRO | I86: 16 | J86: TARJETA | K86: 15 | M86: 0 | N86: 0 | O86: =5872.482/30 -> 195.7494 | P86: 7.82 | Q86: =TRUNC(O86*0.07,2) -> 13.7 | R86: =O86+P86+Q86 -> 217.2694 | S86: 198.0072 | T86: =VLOOKUP(A84,#REF!,22,FALSE)/15 -> 
A87: 10 | D87: GONZALEZ MARTINEZ ERIKA DELFINA | H87: SECRETARIA | I87: 16 | J87: SOBRE | K87: 15 | M87: 0 | N87: 0 | O87: =4550.844/30 -> 151.6948 | P87: 6.06 | Q87: =TRUNC(O87*0.07,2) -> 10.61 | R87: =O87+P87+Q87 -> 168.3648 | S87: 198.0072 | T87: =VLOOKUP(A85,#REF!,22,FALSE)/15 -> 
A88: 203 | D88: ROBLES VENEGAS OSCAR | E88: ROVO | H88: SUB-DIRECTOR DE PREDIAL | I88: 16 | J88: TARJETA | K88: 15 | M88: 0 | N88: 0 | O88: =7184.24/30 -> 239.4746667 | P88: 9.57 | Q88: =TRUNC(O88*0.07,2) -> 16.76 | R88: =O88+P88+Q88 -> 265.8046667 | S88: 198.0072 | T88: =VLOOKUP(A86,#REF!,22,FALSE)/15 -> 
A89: 204 | D89: GOMEZ DIAZ OSCAR EDUARDO | E89: GOMG | H89: AUXILIAR | I89: 16 | J89: SOBRE | K89: 15 | M89: 0 | N89: 0 | O89: =4740.12/30 -> 158.004 | P89: 6.32 | Q89: 11.06 | R89: 175.384 | S89: 376.2072 | T89: =VLOOKUP(A84,#REF!,22,FALSE)/15 -> 
A90: 220 | D90: PRECIADO VAZQUEZ OMAR | E90: OAPV | H90: AUXILIAR | I90: 16 | J90: SOBRE | K90: 15 | M90: 0 | N90: 0 | O90: =4740.12/30 -> 158.004 | P90: 6.32 | Q90: 11.06 | R90: 175.384 | S90: 376.2072 | T90: =VLOOKUP(A85,#REF!,22,FALSE)/15 -> 
A91: 212 | D91: DOMINGUEZ FARIAS CUAUHTEMOC | E91: DOFC621104PA6 | H91: CONTRALOR | I91: 12 | J91: TARJETA | K91: 15 | M91: 0 | N91: 0 | O91: =8893.979/30 -> 296.4659667 | P91: 11.85 | Q91: 20.75 | R91: 329.0659667 | S91: 257.4072 | T91: =VLOOKUP(A89,#REF!,22,FALSE)/15 -> 
A92: 72 | D92: CARDENAS OCHOTECO RENE GERMAN | H92: DIRECTOR DE OBRAS PÚBLICAS | I92: 17 | J92: TARJETA | K92: 15 | M92: 0 | N92: 0 | O92: =11151.791/30 -> 371.7263667 | P92: 14.86 | Q92: 26.02 | R92: 412.6063667 | S92: 257.4072 | T92: =VLOOKUP(A90,#REF!,22,FALSE)/15 -> 
A93: 73 | D93: FLORES IÑIGUEZ RAYMUNDO | H93: SUB-DIRECTOR DESARROLLO URBANO | I93: 17 | J93: TARJETA | K93: 15 | M93: 0 | N93: 0 | O93: =6405.746/30 -> 213.5248667 | P93: 8.54 | Q93: 14.94 | R93: 237.0048667 | S93: 158.5548 | T93: =VLOOKUP(A90,#REF!,22,FALSE)/15 -> 
A94: 74 | D94: RENTERIA MENDEZ FRANCISCO | E94: REMF850814 | H94: AUXILIAR DE DIRECCIÓN | I94: 17 | J94: TARJETA | K94: 15 | M94: 0 | N94: 0 | O94: =6491.331/30 -> 216.3777 | P94: 8.65 | Q94: 15.14 | R94: 240.1677 | S94: 158.5548 | T94: =VLOOKUP(A91,#REF!,22,FALSE)/15 -> 
A95: 75 | D95: MARTINEZ CASTORENA IRENE CONCEPCION | E95: MACI840405 | F95: MACI840405MJCRSR08 | H95: ASISITENTE DE DIRECCIÓN | I95: 17 | J95: TARJETA | K95: 15 | M95: 0 | N95: 0 | O95: =7630.277/30 -> 254.3425667 | P95: 10.17 | Q95: 17.8 | R95: 282.3125667 | S95: 158.5548 | T95: =VLOOKUP(A92,#REF!,22,FALSE)/15 -> 
A96: 77 | D96: BERNAL CHAVEZ JOSE ROSARIO | E96: BECR460228 | F96: BECR460207HJCRHS07 | H96: CHOFER | I96: 17 | J96: TARJETA | K96: 15 | M96: 0 | N96: 0 | O96: =4699.961/30 -> 156.6653667 | P96: 6.26 | Q96: =TRUNC(O96*0.07,2) -> 10.96 | R96: =O96+P96+Q96 -> 173.8853667 | S96: 158.5548 | T96: =VLOOKUP(A93,#REF!,22,FALSE)/15 -> 
A97: 78 | D97: BAUTISTA RODARTE HUGO JOEL | E97: BARH | H97: MAESTRO DE OBRA | I97: 17 | J97: SOBRE | K97: 15 | M97: 0 | N97: 0 | O97: =8160.405/30 -> 272.0135 | P97: 10.88 | Q97: 19.04 | R97: 301.9335 | S97: 198.0072 | T97: =VLOOKUP(A93,#REF!,22,FALSE)/15 -> 
A98: 79 | D98: GOMEZ NAVARRO LIZBETH ALEJANDRA | E98: GONL | H98: SECRETARIA | I98: 17 | J98: SOBRE | K98: 15 | M98: 0 | N98: 0 | O98: =4550.844/30 -> 151.6948 | P98: 6.06 | Q98: 10.61 | R98: 168.3648 | S98: 137.3328 | T98: =VLOOKUP(A95,#REF!,22,FALSE)/15 -> 
A99: 204 | D99: NOLASCO VALLE ARTURO | E99: NOVA | H99: CHOFER | I99: 17 | J99: SOBRE | K99: 7 | M99: 0 | N99: 0 | O99: =4699.961/30 -> 156.6653667 | P99: 6.26 | Q99: 10.96 | R99: 173.8853667 | S99: 163.3068 | T99: =VLOOKUP(A97,#REF!,22,FALSE)/15 -> 
A100: 80 | D100: HERNANDEZ AGUIRRE JOSE MANUEL | E100: HEAM740507 | F100: HEAM740507HJCRGN04 | H100: OPERADOR DE MAQUINAS | I100: 18 | J100: TARJETA | K100: 15 | M100: 0 | N100: 0 | O100: =5869.519/30 -> 195.6506333 | P100: 7.82 | Q100: 13.69 | R100: 217.1606333 | S100: 136.7388 | T100: =VLOOKUP(A98,#REF!,22,FALSE)/15 -> 
A101: 82 | D101: GOMEZ ESTEVEZ JOSE DE JESUS | H101: ALMACENISTA | I101: 19 | J101: SOBRE | K101: 15 | M101: 0 | N101: 0 | O101: =4070.907/30 -> 135.6969 | P101: 5.42 | Q101: 9.49 | R101: 150.6069 | S101: 91.0872 | T101: =VLOOKUP(A98,#REF!,22,FALSE)/15 -> 
A102: 83 | D102: GONZALEZ VAZQUEZ J FRANCISCO | H102: ADMINISTRADOR | I102: 20 | J102: SOBRE | K102: 15 | M102: 0 | N102: 0 | O102: =4840.848/30 -> 161.3616 | P102: 6.45 | Q102: 11.29 | R102: 179.1016 | S102: 91.0872 | T102: =VLOOKUP(A99,#REF!,22,FALSE)/15 -> 
A103: 84 | D103: LOPEZ VILLEGAS JOSE DE JESUS | E103: LOVJ | H103: GUARDA RASTRO | I103: 21 | J103: TARJETA | K103: 15 | M103: 0 | N103: 0 | O103: =4053.461/30 -> 135.1153667 | P103: 5.4 | Q103: 9.45 | R103: 149.9653667 | S103: 116.3376 | T103: =VLOOKUP(A100,#REF!,22,FALSE)/15 -> 
A104: 85 | D104: GONZALEZ JARA J. REFUGIO JAVIER | E104: GOJR670808 | H104: VELADOR | I104: 22 | J104: TARJETA | K104: 15 | M104: 0 | N104: 0 | O104: =2700.223/30 -> 90.00743333 | P104: 3.6 | Q104: 6.3 | R104: 99.90743333 | S104: 116.3376 | T104: =VLOOKUP(A101,#REF!,22,FALSE)/15 -> 
A105: 86 | D105: MARTINEZ GONZALEZ JOSE DE JESUS | E105: MAGJ401015 | H105: VELADOR | I105: 22 | J105: TARJETA | K105: 15 | M105: 0 | N105: 0 | O105: =2700.223/30 -> 90.00743333 | P105: 3.6 | Q105: 6.3 | R105: 99.90743333 | S105: 116.3376 | T105: =VLOOKUP(A102,#REF!,22,FALSE)/15 -> 
A106: 87 | D106: HUERTA AGUILA BERNARDINO | E106: HUAB811011 | F106: HUAB810114HJCRGR01 | H106: RECOLECTOR | I106: 23 | J106: TARJETA | K106: 15 | M106: 0 | N106: 0 | O106: =3448.766/30 -> 114.9588667 | P106: 4.59 | Q106: 8.04 | R106: 127.5888667 | S106: 116.34 | T106: =VLOOKUP(A103,#REF!,22,FALSE)/15 -> 
A107: 88 | D107: GRACIA GOMEZ JAVIER | E107: GAGJ731114 | F107: GAGJ731114HJCRMV00 | H107: RECOLECTOR | I107: 23 | J107: TARJETA | K107: 15 | M107: 0 | N107: 0 | O107: =3448.766/30 -> 114.9588667 | P107: 4.59 | Q107: 8.04 | R107: 127.5888667 | S107: 116.3376 | T107: =VLOOKUP(A104,#REF!,22,FALSE)/15 -> 
A108: 89 | D108: CABRALES SALINAS FAUSTO | E108: CASF381219 | F108: CASF381219HJCBLS07 | H108: RECOLECTOR | I108: 23 | J108: TARJETA | K108: 15 | M108: 0 | N108: 0 | O108: =3448.766/30 -> 114.9588667 | P108: 4.59 | Q108: 8.04 | R108: 127.5888667 | S108: 158.5548 | T108: =VLOOKUP(A105,#REF!,22,FALSE)/15 -> 
A109: 90 | D109: FREGOZO ALVARADO ALFONSO | E109: FEAA650918 | F109: FEAA650818HJCRLL05 | H109: RECOLECTOR | I109: 23 | J109: TARJETA | K109: 15 | M109: 0 | N109: 0 | O109: =3448.766/30 -> 114.9588667 | P109: =TRUNC($O109*0.04,2) -> 4.59 | Q109: =TRUNC(O109*0.07,2) -> 8.04 | R109: =O109+P109+Q109 -> 127.5888667 | S109: 73.9152 | T109: =VLOOKUP(A104,#REF!,22,FALSE)/15 -> 
A110: 91 | D110: MARTINEZ VEJAR JUAN JOSE | E110: MAVJ710822 | F110: MAVJ710822HJCRJN04 | H110: CHOFER | I110: 23 | J110: TARJETA | K110: 15 | M110: 0 | N110: 0 | O110: =4553.807/30 -> 151.7935667 | P110: 6.07 | Q110: 10.62 | R110: 168.4835667 | S110: 375.54 | T110: 197.9233333 | U110: -177.6166667
A111: 92 | D111: MARTINEZ TORRES MIGUEL | E111: MATM450918 | F111: MATM451028HJCRRG08 | H111: CHOFER | I111: 23 | J111: TARJETA | K111: 15 | M111: 0 | N111: 0 | O111: =4699.961/30 -> 156.6653667 | P111: 6.26 | Q111: 10.96 | R111: 173.8853667 | S111: 107.0388 | T111: =VLOOKUP(A106,#REF!,22,FALSE)/15 -> 
A112: 97 | D112: MENDEZ GARCIA MIGUEL ANGEL | E112: MEGM | H112: AUX. DE LIMPIEZA GRAL. | I112: 24 | J112: SOBRE | K112: 15 | M112: 0 | N112: 0 | O112: =4699.961/30 -> 156.6653667 | P112: 6.26 | Q112: 10.96 | R112: 173.8853667 | S112: 107.04 | T112: =VLOOKUP(A108,#REF!,22,FALSE)/15 -> 
A113: 96 | D113: HUERTA CORTES RAMON | E113: HUCR450811 | F113: HUCR450831HJCRRM08 | H113: AUX. DE LIMPIEZA GRAL. (Jardinero) | I113: 24 | J113: TARJETA | K113: 15 | M113: 0 | N113: 0 | O113: =3172.918/30 -> 105.7639333 | P113: 4.23 | Q113: 7.4 | R113: 117.3939333 | S113: 92.3076 | T113: =VLOOKUP(A109,#REF!,22,FALSE)/15 -> 
A114: 102 | D114: SILVA PINTO J ASUNCIÓN | E114: SIPA400815. | F114: SIPA400815HJCLNS02 | H114: AUX. DE LIMPIEZA GRAL. (Jardinero) | I114: 24 | J114: SOBRE | K114: 15 | M114: 0 | N114: 0 | O114: =3172.918/30 -> 105.7639333 | P114: 4.23 | Q114: 7.4 | R114: 117.3939333 | S114: 140.4 | T114: =VLOOKUP(A110,#REF!,22,FALSE)/15 -> 
A115: 111 | D115: REGALADO BAÑUELOS FRANCISCO | E115: REBF441211 | F115: REBF441211HJCGXR05 | H115: BARRENDERO | I115: 24 | J115: TARJETA | K115: 15 | M115: 0 | N115: 0 | O115: =2736.103/30 -> 91.20343333 | P115: 3.64 | Q115: =TRUNC(O115*0.07,2) -> 6.38 | R115: =O115+P115+Q115 -> 101.2234333 | S115: 122.364 | T115: =VLOOKUP(A111,#REF!,22,FALSE)/15 -> 
A116: 112 | D116: AYALA RODRIGUEZ MIGUEL ANGEL | E116: AARM690504 | F116: AARM690504HJCYDG04 | H116: PODADOR | I116: 24 | J116: TARJETA | K116: 15 | M116: 0 | N116: 0 | O116: =4161.76/30 -> 138.7253333 | P116: 5.54 | Q116: 9.71 | R116: 153.9753333 | S116: 198.0072 | T116: =VLOOKUP(A112,#REF!,22,FALSE)/15 -> 
A117: 113 | D117: RUIZ MUÑOZ LUIS | H117: VIGILANTE | I117: 25 | J117: SOBRE | K117: 15 | M117: 0 | N117: 0 | O117: =3627.179/30 -> 120.9059667 | P117: 4.83 | Q117: 8.46 | R117: 134.1959667 | S117: 198.0072 | T117: =VLOOKUP(A113,#REF!,22,FALSE)/15 -> 
A118: 114 | D118: RUIZ HERNANDEZ CELESTINO | E118: RUHC540519 | F118: RUHC540519HJCZRL03 | H118: JEFE DE ALUMBRADO PUBLICO | I118: 26 | J118: TARJETA | K118: 15 | M118: 0 | N118: 0 | O118: =5869.519/30 -> 195.6506333 | P118: 7.82 | Q118: 13.69 | R118: 217.1606333 | S118: 198.0072 | T118: =VLOOKUP(A114,#REF!,22,FALSE)/15 -> 
A119: 117 | D119: ORENDAIN RINCON JOSE GUADALUPE | E119: OERG | H119: DIRECTOR DE DEPORTES | I119: 28 | J119: SOBRE | K119: 15 | M119: 0 | N119: 0 | O119: =5869.519/30 -> 195.6506333 | P119: 7.82 | Q119: =TRUNC(O119*0.07,2) -> 13.69 | R119: =O119+P119+Q119 -> 217.1606333 | S119: 209.8872 | T119: =VLOOKUP(A114,#REF!,22,FALSE)/15 -> 
A120: 118 | D120: BERNAL BRAMBILA IRMA GUADALUPE | E120: BEBI | H120: ENC DE TURISMO Y ECOLOGIA | I120: 28 | J120: TARJETA | K120: 15 | M120: 0 | N120: 0 | O120: =4081.112/30 -> 136.0370667 | P120: 5.44 | Q120: 9.52 | R120: 150.9970667 | S120: 240.7644 | T120: =VLOOKUP(A116,#REF!,22,FALSE)/15 -> 
A121: 119 | D121: MARTINEZ VALDIVIA FRANCISCO | E121: MAVF520525 | F121: MAVF520525HJCRLR02 | H121: MEDICO MUNICIPAL | I121: 29 | J121: TARJETA | K121: 15 | M121: 0 | N121: 0 | O121: =6221.737/30 -> 207.3912333 | P121: 8.29 | Q121: 14.51 | R121: 230.1912333 | S121: 121.7268 | T121: =VLOOKUP(A117,#REF!,22,FALSE)/15 -> 
A122: 121 | D122: BARAJAS GUTIERREZ MARIA DE JESUS | E122: BAGJ740307 | F122: BAGJ740307MJCRTS15 | H122: SECRETARIA | I122: 30 | J122: TARJETA | K122: 15 | M122: 0 | N122: 0 | O122: =3608.416/30 -> 120.2805333 | P122: =TRUNC($O122*0.04,2) -> 4.81 | Q122: =TRUNC(O122*0.07,2) -> 8.41 | R122: =O122+P122+Q122 -> 133.5005333 | S122: 121.7268 | T122: =VLOOKUP(A118,#REF!,22,FALSE)/15 -> 
A123: 65 | D123: HERNANDEZ GARCIA JAIME | E123: HEGJ | H123: INSPECTOR FISCAL | I123: 31 | J123: SOBRE | K123: 15 | M123: 0 | N123: 0 | O123: =5165.09/30 -> 172.1696667 | P123: 6.88 | Q123: =TRUNC(O123*0.07,2) -> 12.05 | R123: =O123+P123+Q123 -> 191.0996667 | S123: 190.08 | T123: =VLOOKUP(A118,#REF!,22,FALSE)/15 -> 
A124: 123 | D124: REYES HERNANDEZ MOISES | E124: REHM | H124: POLICIA EN LINEA | I124: 31 | J124: TARJETA | K124: 15 | M124: 0 | N124: 0 | O124: =5634.488/30 -> 187.8162667 | P124: 7.51 | Q124: =TRUNC(O124*0.07,2) -> 13.14 | R124: =O124+P124+Q124 -> 208.4662667 | S124: 190.08 | T124: =VLOOKUP(A119,#REF!,22,FALSE)/15 -> 
A125: 124 | D125: GIL RIVERA JOSE LUIS | E125: GIRL700926 | F125: GIRL700926HJCLVS01 | H125: POLICIA EN LINEA | I125: 31 | J125: SOBRE | K125: 7.5 | M125: 0 | N125: 0 | O125: 187.8162667 | P125: 7.51 | Q125: 13.14 | R125: 208.4662667 | S125: 190.08 | T125: =VLOOKUP(A120,#REF!,22,FALSE)/15 -> 
A126: 125 | D126: GOMEZ CHAVEZ BENIGNO | E126: GOCB550313 | F126: GOCB550313HJCMHN07 | H126: POLICIA EN LINEA | I126: 31 | J126: SOBRE | K126: 15 | M126: 0 | N126: 0 | O126: 187.8162667 | P126: 7.51 | Q126: 13.14 | R126: 208.4662667 | S126: 190.08 | T126: =VLOOKUP(A121,#REF!,22,FALSE)/15 -> 
A127: 126 | D127: ACOSTA GUTIERREZ JUAN ANTONIO | E127: AOGJ700101 | H127: POLICIA EN LINEA | I127: 31 | J127: SOBRE | K127: 15 | M127: 0 | N127: 0 | O127: 187.8162667 | P127: 7.51 | Q127: 13.14 | R127: 208.4662667 | S127: 190.08 | T127: =VLOOKUP(A122,#REF!,22,FALSE)/15 -> 
A128: 128 | D128: DE LA ROSA MACIAS PABLO | E128: ROMP450629 | H128: POLICIA EN LINEA | I128: 31 | J128: TARJETA | K128: 15 | M128: 0 | N128: 0 | O128: 187.8162667 | P128: 7.51 | Q128: =TRUNC(O128*0.07,2) -> 13.14 | R128: =O128+P128+Q128 -> 208.4662667 | S128: 190.08 | T128: =VLOOKUP(A123,#REF!,22,FALSE)/15 -> 
A129: 129 | D129: ORTIZ MARIN JOSE ANTONIO | E129: OIMJ | H129: POLICIA EN LINEA | I129: 31 | J129: TARJETA | K129: 15 | M129: 0 | N129: 0 | O129: 187.8162667 | P129: 7.51 | Q129: =TRUNC(O129*0.07,2) -> 13.14 | R129: =O129+P129+Q129 -> 208.4662667 | S129: 190.08 | T129: =VLOOKUP(A124,#REF!,22,FALSE)/15 -> 
A130: 131 | D130: ALDAZ RAMOS GABRIEL | E130: AARG | H130: POLICIA EN LINEA | I130: 31 | J130: SOBRE | K130: 15 | M130: 0 | N130: 0 | O130: 187.8162667 | P130: =TRUNC($O130*0.04,2) -> 7.51 | Q130: 13.14 | R130: 208.4662667 | S130: 190.08 | T130: =VLOOKUP(A125,#REF!,22,FALSE)/15 -> 
A131: 132 | D131: ROJAS SAUCEDO SALVADOR | E131: ROSS561027 | F131: ROSS561027HJCJCL02 | H131: POLICIA DE LINEA | I131: 31 | J131: TARJETA | K131: 15 | M131: 0 | N131: 0 | O131: 187.8162667 | P131: =TRUNC($O131*0.04,2) -> 7.51 | Q131: 13.14 | R131: 208.4662667 | S131: 190.08 | T131: =VLOOKUP(A126,#REF!,22,FALSE)/15 -> 
A132: 133 | D132: GALINDO CARRILLO NOE | E132: GACN | H132: POLICIA EN LINEA | I132: 31 | J132: TARJETA | K132: 15 | M132: 0 | N132: 0 | O132: 187.8162667 | P132: =TRUNC($O132*0.04,2) -> 7.51 | Q132: =TRUNC(O132*0.07,2) -> 13.14 | R132: =O132+P132+Q132 -> 208.4662667 | S132: 190.08 | T132: =VLOOKUP(A127,#REF!,22,FALSE)/15 -> 
A133: 134 | D133: NUÑEZ LUCIA JOSE ANTONIO | E133: NULA | H133: POLICIA EN LINEA | I133: 31 | J133: SOBRE | K133: 15 | M133: 0 | N133: 0 | O133: 187.8162667 | P133: =TRUNC($O133*0.04,2) -> 7.51 | Q133: 13.14 | R133: 208.4662667 | S133: 190.08 | T133: =VLOOKUP(A128,#REF!,22,FALSE)/15 -> 
A134: 135 | D134: PEREZ CORTES JUAN JOSE | E134: PECJ | H134: POLICIA DE LINEA | I134: 31 | J134: TARJETA | K134: 15 | M134: 0 | N134: 0 | O134: 187.8162667 | P134: 7.51 | Q134: 13.14 | R134: 208.4662667 | S134: 190.08 | T134: =VLOOKUP(A129,#REF!,22,FALSE)/15 -> 
A135: 136 | D135: RINCON ASCENCIO PATRICIA | E135: RIAP | H135: POLICIA DE LINEA | I135: 31 | J135: SOBRE | K135: 15 | M135: 0 | N135: 0 | O135: 187.8162667 | P135: 7.51 | Q135: 13.14 | R135: 208.4662667 | S135: 190.08 | T135: =VLOOKUP(A130,#REF!,22,FALSE)/15 -> 
A136: 138 | D136: FRANCO ARVIZU FERNANDO | E136: FAAF | H136: POLICIA DE LINEA | I136: 31 | J136: SOBRE | K136: 15 | M136: 0 | N136: 0 | O136: 187.8162667 | P136: 7.51 | Q136: 13.14 | R136: 208.4662667 | S136: 190.08 | T136: =VLOOKUP(A131,#REF!,22,FALSE)/15 -> 
A137: 139 | D137: DIAZ ROMERO J FELIX | E137: DIRF101208 | F137: DIRF401210HJCZML05 | H137: VELADOR | I137: 31 | J137: SOBRE | K137: 15 | M137: 0 | N137: 0 | O137: =2441.82/30 -> 81.394 | P137: 3.25 | Q137: =TRUNC(O137*0.07,2) -> 5.69 | R137: 90.334 | S137: 190.08 | T137: =VLOOKUP(A132,#REF!,22,FALSE)/15 -> 
A138: 141 | D138: ALVAREZ MARTINEZ JAVIER | E138: AAMJ750104 | H138: POLICIA DE LINEA | I138: 31 | J138: TARJETA | K138: 13 | M138: 0 | N138: 0 | O138: =5634.488/30 -> 187.8162667 | P138: 7.51 | Q138: 13.14 | R138: 208.4662667 | S138: 190.08 | T138: =VLOOKUP(A133,#REF!,22,FALSE)/15 -> 
A139: 142 | D139: HERNANDEZ RAMIREZ RUBEN | E139: HERR820117 | H139: POLICIA DE LINEA | I139: 31 | J139: TARJETA | K139: 15 | M139: 0 | N139: 0 | O139: 187.8162667 | P139: 7.51 | Q139: 13.14 | R139: 208.4662667 | S139: 190.08 | T139: =VLOOKUP(A134,#REF!,22,FALSE)/15 -> 
A140: 143 | D140: HURTADO GRAJEDA PORFIRIO | E140: HUGP500101 | H140: POLICIA DE LINEA | I140: 31 | J140: SOBRE | K140: 15 | M140: 0 | N140: 0 | O140: 187.8162667 | P140: 7.51 | Q140: =TRUNC(O140*0.07,2) -> 13.14 | R140: 208.4662667 | S140: 176.3999964 | T140: =VLOOKUP(A135,#REF!,22,FALSE)/15 -> 
A141: 145 | D141: GUTIERREZ RAMIREZ ISELA | E141: GURI770608 | F141: GURI770608MJCTMS04 | H141: PSICOLOGA | I141: 31 | J141: TARJETA | K141: 15 | M141: 0 | N141: 0 | O141: 187.8162667 | P141: 7.51 | Q141: 13.14 | R141: 208.4662667 | S141: 190.08 | T141: =VLOOKUP(A136,#REF!,22,FALSE)/15 -> 
A142: 146 | D142: TAVARES VAZQUEZ CORNELIO | E142: TAVC | H142: POLICIA DE LINEA | I142: 31 | J142: TARJETA | K142: 15 | M142: 0 | N142: 0 | O142: 187.8162667 | P142: 7.51 | Q142: 13.14 | R142: 208.4662667 | S142: 190.08 | T142: =VLOOKUP(A137,#REF!,22,FALSE)/15 -> 
A143: 147 | D143: MENDEZ SANDOVAL JUAN RAMON | E143: MESJ | H143: POLICIA DE LINEA | I143: 31 | J143: TARJETA | K143: 15 | M143: 0 | N143: 0 | O143: 187.8162667 | P143: 7.51 | Q143: 13.14 | R143: =O143+P143+Q143 -> 208.4662667 | S143: 210.1248 | T143: =VLOOKUP(A138,#REF!,22,FALSE)/15 -> 
A144: 148 | D144: MOYEDA BLANCO MARBY ILENIA | E144: MOBM | H144: AUX. ADMINISTRATIVO | I144: 31 | J144: TARJETA | K144: 15 | M144: 0 | N144: 0 | O144: =6228.649/30 -> 207.6216333 | P144: 8.3 | Q144: 14.53 | R144: 230.4516333 | S144: 190.08 | T144: =VLOOKUP(A139,#REF!,22,FALSE)/15 -> 
A145: 149 | D145: RUIZ GOMEZ ESTHELA | E145: RUGE | H145: POLICIA DE LINEA | I145: 31 | J145: TARJETA | K145: 15 | M145: 0 | N145: 0 | O145: =5634.488/30 -> 187.8162667 | P145: 7.51 | Q145: 13.14 | R145: 208.4662667 | S145: 190.08 | T145: =VLOOKUP(A140,#REF!,22,FALSE)/15 -> 
A146: 150 | D146: DE LA TORRE TOPETE JOSE MANUEL | E146: TOTM | H146: POLICIA DE LINEA | I146: 31 | J146: SOBRE | K146: 15 | M146: 0 | N146: 0 | O146: 187.8162667 | P146: 7.51 | Q146: =TRUNC(O146*0.07,2) -> 13.14 | R146: =O146+P146+Q146 -> 208.4662667 | S146: 190.08 | T146: =VLOOKUP(A141,#REF!,22,FALSE)/15 -> 
A147: 151 | D147: SERRATOS SANTIAGO JOAQUIN | E147: SESJ720816 | H147: POLICIA DE LINEA | I147: 31 | J147: TARJETA | K147: 15 | M147: 0 | N147: 0 | O147: 187.8162667 | P147: 7.51 | Q147: 13.14 | R147: 208.4662667 | S147: 190.08 | T147: =VLOOKUP(A142,#REF!,22,FALSE)/15 -> 
A148: 152 | D148: PEREZ ALVA FRANCISCO JAVIER | E148: PEAF | H148: POLICIA DE LINEA | I148: 31 | J148: SOBRE | K148: 15 | M148: 0 | N148: 0 | O148: 187.8162667 | P148: 7.51 | Q148: 13.14 | R148: 208.4662667 | S148: 190.08 | T148: =VLOOKUP(A143,#REF!,22,FALSE)/15 ->  | U148: =T148-S148 -> 
A149: 154 | D149: MENDEZ SANDOVAL JOSE ANTONIO | E149: MESA | H149: POLICIA DE LINEA | I149: 31 | J149: TARJETA | K149: 15 | M149: 0 | N149: 0 | O149: 187.8162667 | P149: 7.51 | Q149: =TRUNC(O149*0.07,2) -> 13.14 | R149: 208.4662667 | S149: 190.08 | T149: =VLOOKUP(A144,#REF!,22,FALSE)/15 -> 
A150: 155 | D150: CARRILLO MURILLO SALVADOR | E150: CAMS | H150: POLICIA DE LINEA | I150: 31 | J150: TARJETA | K150: 15 | M150: 0 | N150: 0 | O150: 187.8162667 | P150: =TRUNC($O150*0.04,2) -> 7.51 | Q150: 13.14 | R150: 208.4662667 | S150: 190.08 | T150: =VLOOKUP(A145,#REF!,22,FALSE)/15 -> 
A151: 156 | D151: PALACIOS ALCALA JOSE LUIS | E151: PAAL | H151: POLICIA DE LINEA | I151: 31 | J151: SOBRE | K151: 15 | M151: 0 | N151: 0 | O151: 187.8162667 | P151: 7.51 | Q151: =TRUNC(O151*0.07,2) -> 13.14 | R151: 208.4662667 | S151: 190.08 | T151: =VLOOKUP(A146,#REF!,22,FALSE)/15 -> 
A152: 157 | D152: GARCIA VALENCIA HECTOR MANUEL | E152: GAVH731206 | H152: POLICIA DE LINEA | I152: 31 | J152: SOBRE | K152: 15 | M152: 0 | N152: 0 | O152: 187.8162667 | P152: 7.51 | Q152: 13.14 | R152: 208.4662667 | S152: 190.08 | T152: =VLOOKUP(A147,#REF!,22,FALSE)/15 -> 
A153: 158 | D153: HERNANDEZ ARIAS SEBASTIAN | E153: HEAS | H153: POLICIA DE LINEA | I153: 31 | J153: SOBRE | K153: 15 | M153: 0 | N153: 0 | O153: 187.8162667 | P153: 7.51 | Q153: 13.14 | R153: =O153+P153+Q153 -> 208.4662667 | S153: 190.08 | T153: =VLOOKUP(A150,#REF!,22,FALSE)/15 -> 
A154: 207 | D154: FLORES VALENCIA ANTONIO | E154: FOVA | H154: POLICIA DE LINEA | I154: 31 | J154: SOBRE | K154: 13 | M154: 0 | N154: 0 | O154: 187.8162667 | P154: 7.51 | Q154: 13.14 | R154: =O154+P154+Q154 -> 208.4662667 | S154: 190.08 | T154: =VLOOKUP(A151,#REF!,22,FALSE)/15 -> 
A155: 208 | D155: REGALADO AQUINO JUAN | E155: REAJ | H155: POLICIA DE LINEA | I155: 31 | J155: TARJETA | K155: 15 | M155: 0 | N155: 0 | O155: 187.8162667 | P155: 7.51 | Q155: 13.14 | R155: =O155+P155+Q155 -> 208.4662667 | S155: 190.08 | T155: =VLOOKUP(A152,#REF!,22,FALSE)/15 -> 
A156: 209 | D156: SANDOVAL BAUTISTA EDGAR ULISES | E156: SABE | H156: POLICIA DE LINEA | I156: 31 | J156: TARJETA | K156: 15 | M156: 0 | N156: 0 | O156: 187.8162667 | P156: 7.51 | Q156: 13.14 | R156: =O156+P156+Q156 -> 208.4662667 | S156: 190.08 | T156: =VLOOKUP(#REF!,#REF!,22,FALSE)/15 -> 
A157: 210 | D157: LUCAS MUÑOZ JOSE | E157: LUMJ | H157: POLICIA DE LINEA | I157: 31 | J157: SOBRE | K157: 15 | M157: 0 | N157: 0 | O157: 187.8162667 | P157: 7.51 | Q157: 13.14 | R157: =O157+P157+Q157 -> 208.4662667 | S157: 190.08 | T157: =VLOOKUP(#REF!,#REF!,22,FALSE)/15 -> 
A158: 159 | D158: GARCIA SANTOS RICARDO | E158: GASR | H158: POLICIA DE LINEA | I158: 31 | J158: SOBRE | K158: 15 | M158: 0 | N158: 0 | O158: 187.8162667 | P158: 7.51 | Q158: 13.14 | R158: 208.4662667 | S158: 162 | T158: =VLOOKUP(A148,#REF!,22,FALSE)/15 -> 
A159: 160 | D159: GARCIA HERNANDEZ JAVIER | E159: GAHJ | H159: DIRECTOR DE PROTECCION CIVIL | I159: 32 | J159: TARJETA | K159: 15 | M159: 0 | N159: 0 | O159: =7680.969/30 -> 256.0323 | P159: =TRUNC($O159*0.04,2) -> 10.24 | Q159: 17.92 | R159: =O159+P159+Q159 -> 284.1923 | S159: 156.91 | T159: =VLOOKUP(A150,#REF!,22,FALSE)/15 -> 
A160: 162 | D160: SUAREZ GUEVARA ALEJANDRO | E160: SUGA | H160: CHOFER PROTECCION CIVIL | I160: 32 | J160: SOBRE | K160: 15 | M160: 0 | N160: 0 | O160: =5165.085/30 -> 172.1695 | P160: =TRUNC($O160*0.04,2) -> 6.88 | Q160: 12.05 | R160: =O160+P160+Q160 -> 191.0995 | S160: 156.91 | T160: =VLOOKUP(A151,#REF!,22,FALSE)/15 -> 
A161: 213 | D161: LEDEZMA MILIAN EMERITA | E161: LEME | H161: PARAMEDICO PROTECCION CIVIL | I161: 32 | J161: SOBRE | K161: 15 | M161: 0 | N161: 0 | O161: =4802.005/30 -> 160.0668333 | P161: 6.4 | Q161: 11.2 | R161: 177.6668333 | S161: 283.1436 | T161: =VLOOKUP(A149,#REF!,22,FALSE)/15 -> 
A162: 161 | D162: HERNANDEZ RANGEL JOSE DE JESUS | E162: ROMP450629 | H162: CHOFER PROTECCION CIVIL | I162: 32 | J162: SOBRE | K162: 15 | M162: 0 | N162: 0 | O162: =5165.085/30 -> 172.1695 | P162: 6.88 | Q162: 12.05 | R162: 191.0995 | S162: 153.522 | T162: =VLOOKUP(A161,#REF!,22,FALSE)/15 -> 

Sheet 2DA DE DICIEMBRE DEFINITIVA
T1: =SUBTOTAL(9,T9:T334) -> 0 | U1: 47765.06373 | V1: 2076040.94 | W1: 83040.63 | X1: 145321.58 | Y1: 0 | Z1: 228362.21 | AA1: 2076040.94 | AB1: 2304403.15 | AD1: =SUBTOTAL(9,AD9:AD334) -> 6198 | AE1: =SUBTOTAL(9,AE9:AE334) -> 0 | AF1: =SUBTOTAL(9,AF9:AF308) ->  | AG1: =SUBTOTAL(9,AG9:AG334) -> 141653.19 | AH1: =SUBTOTAL(9,AH9:AH334) -> 14319.2 | AI1: =SUBTOTAL(9,AI9:AI334) -> 2179871.16 | AK1: =SUBTOTAL(9,AK9:AK308) -> 0
V2: =TRUNC(U2*P2,2) -> 0 | W2: =TRUNC(U2*P2*0.04,2) -> 0 | X2: =TRUNC(U2*0.07*P2,2) -> 0 | Y2: =S2 -> 0 | Z2: =TRUNC(X2+W2+(IF(Y2>519,519,Y2))+IF(R2=0,0,R2*U2),2) -> 0 | AA2: =TRUNC((IF(R2=0,P2*U2,(P2-R2)*U2))+(IF(Y2<519,0,Y2-519)),2)+T2 -> 0 | AB2: =Z2+AA2 -> 0 | AC2: =W2 -> 0 | AF2: =IF(U2>0.01,(AA2-VLOOKUP(AA2,quincenal,1))*VLOOKUP(AA2,quincenal,3)+VLOOKUP(AA2,quincenal,2)-VLOOKUP(AA2,subquincenal,2),0) -> 0 | AG2: =TRUNC(IF(AF2>0.01,AF2,0),2) -> 0 | AH2: =TRUNC(IF(AF2<0.01,-AF2,0),2) -> 0 | AI2: =AB2-AD2-AE2-AG2+AH2-W2 -> 0 | AJ2: =PORTADA!$D$10 -> 1
A3: H. AYUNTAMIENTO DE ETZATLAN, JALISCO
B4: ADMINISTRACION 2015-2018
B5: NOMINA CORRESPONDIENTE A LA SEGUNDA QUINCENA DE DICIEMBRE DE 2015
D6: Etzatlán, Jalisco a 30 de Diciembre de 2015.
B7: CAPITULO | C7: PARTIDA | D7: NOMBRE | E7: RFC | F7: CURP | G7: FECHA DE INGRESO | H7: CARGO | P7: DIAS LABORADOS | Q7: PAGO CON | R7: DIAS CON INCAPACIDAD | S7: TIEMPO EXTRA | T7: OTROS INGRESOS | U7: SUELDO POR DIA PROPUESTO | V7: SUELDO BASE | W7: FONDO DE AHORRO | X7: APOYO EDUCACIONAL | Y7: TIEMPO EXTRA | Z7: SUB TOTAL EXENTO | AA7: SUB TOTAL GRAVADO | AB7: SUB TOTAL A PAGAR | AC7: FONDO DE AHORRO | AD7: PRESTAMOS | AE7: OTRAS DEDUCCIONES | AF7: CALCULO | AG7: I.S.R. | AH7: SUBSIDIO AL EMPLEO | AI7: TOTAL A PAGAR | AJ7: nomina | AK7: FIRMA DE RECIBIDO
D8: SALA DE REGIDORES
A9: 1 | B9: 1 | C9: 1 | D9: GOMEZ ALVARADO MA MAGDALENA | E9: FEGC520708 | F9: FEGC520708HJCRMR08 | G9: 2012-10-01 | H9: REGIDOR | P9: 15 | Q9: TARJETA | S9: 0 | T9: 0 | U9: =8023/15 -> 534.8666667 | V9: =TRUNC(U9*P9,2) -> 8023 | W9: =TRUNC(U9*P9*0.04,2) -> 320.92 | X9: =TRUNC(U9*0.07*P9,2) -> 561.61 | Y9: =S9 -> 0 | Z9: =TRUNC(X9+W9+(IF(Y9>519,519,Y9))+IF(R9=0,0,R9*U9),2) -> 882.53 | AA9: =TRUNC((IF(R9=0,P9*U9,(P9-R9)*U9))+(IF(Y9<519,0,Y9-519)),2)+T9 -> 8023 | AB9: =Z9+AA9 -> 8905.53 | AE9: 0 | AF9: =IF(U9>0.01,(AA9-VLOOKUP(AA9,quincenal,1))*VLOOKUP(AA9,quincenal,3)+VLOOKUP(AA9,quincenal,2)-VLOOKUP(AA9,subquincenal,2),0) -> 1166.523624 | AG9: =TRUNC(IF(AF9>0.01,AF9,0),2) -> 1166.52 | AH9: =TRUNC(IF(AF9<0.01,-AF9,0),2) -> 0 | AI9: =AB9-AD9-AE9-AG9+AH9 -> 7739.01 | AJ9: =PORTADA!$D$10 -> 1 | AL9: 1
D10: COVARRUBIAS VALENCIA JOSE | H10: REGIDOR | P10: 15 | Q10: TARJETA | S10: 0 | T10: 0 | U10: =8023/15 -> 534.8666667 | V10: =TRUNC(U10*P10,2) -> 8023 | W10: =TRUNC(U10*P10*0.04,2) -> 320.92 | X10: =TRUNC(U10*0.07*P10,2) -> 561.61 | Y10: =S10 -> 0 | Z10: =TRUNC(X10+W10+(IF(Y10>519,519,Y10))+IF(R10=0,0,R10*U10),2) -> 882.53 | AA10: =TRUNC((IF(R10=0,P10*U10,(P10-R10)*U10))+(IF(Y10<519,0,Y10-519)),2)+T10 -> 8023 | AB10: =Z10+AA10 -> 8905.53 | AE10: 0 | AF10: =IF(U10>0.01,(AA10-VLOOKUP(AA10,quincenal,1))*VLOOKUP(AA10,quincenal,3)+VLOOKUP(AA10,quincenal,2)-VLOOKUP(AA10,subquincenal,2),0) -> 1166.523624 | AG10: =TRUNC(IF(AF10>0.01,AF10,0),2) -> 1166.52 | AH10: =TRUNC(IF(AF10<0.01,-AF10,0),2) -> 0 | AI10: =AB10-AD10-AE10-AG10+AH10 -> 7739.01 | AL10: 2
A11: 3 | B11: 1 | C11: 1 | D11: BARAJAS DE LA TORRE ABIGAIL | G11: 2012-10-01 | H11: REGIDOR | P11: 15 | Q11: TARJETA | S11: 0 | T11: 0 | U11: 534.8666667 | V11: =TRUNC(U11*P11,2) -> 8023 | W11: =TRUNC(U11*P11*0.04,2) -> 320.92 | X11: =TRUNC(U11*0.07*P11,2) -> 561.61 | Y11: =S11 -> 0 | Z11: =TRUNC(X11+W11+(IF(Y11>519,519,Y11))+IF(R11=0,0,R11*U11),2) -> 882.53 | AA11: =TRUNC((IF(R11=0,P11*U11,(P11-R11)*U11))+(IF(Y11<519,0,Y11-519)),2)+T11 -> 8023 | AB11: =Z11+AA11 -> 8905.53 | AE11: 0 | AF11: =IF(U11>0.01,(AA11-VLOOKUP(AA11,quincenal,1))*VLOOKUP(AA11,quincenal,3)+VLOOKUP(AA11,quincenal,2)-VLOOKUP(AA11,subquincenal,2),0) -> 1166.523624 | AG11: 1166.52 | AH11: =TRUNC(IF(AF11<0.01,-AF11,0),2) -> 0 | AI11: =AB11-AD11-AE11-AG11+AH11 -> 7739.01 | AJ11: =PORTADA!$D$10 -> 1 | AL11: 3
A12: 4 | B12: 1 | C12: 1 | D12: MELCHOR NAVARRO OBED | G12: 2012-10-01 | H12: REGIDOR | P12: 15 | Q12: TARJETA | S12: 0 | T12: 0 | U12: 534.8666667 | V12: 8023 | W12: 320.92 | X12: 561.61 | Y12: 0 | Z12: 882.53 | AA12: 8023 | AB12: 8905.53 | AE12: 0 | AF12: 1166.523624 | AG12: 1166.52 | AH12: 0 | AI12: 7739.01 | AJ12: =PORTADA!$D$10 -> 1 | AL12: 4
A13: 5 | B13: 1 | C13: 1 | D13: GOMEZ RICO LUZ ELENA | G13: 2012-10-01 | H13: REGIDOR | P13: 15 | Q13: TARJETA | S13: 0 | T13: 0 | U13: 534.8666667 | V13: 8023 | W13: 320.92 | X13: 561.61 | Y13: 0 | Z13: 882.53 | AA13: 8023 | AB13: 8905.53 | AE13: 0 | AF13: 1166.523624 | AG13: 1166.52 | AH13: 0 | AI13: 7739.01 | AJ13: =PORTADA!$D$10 -> 1 | AL13: 5
A14: 6 | B14: 1 | C14: 1 | D14: GUTIERREZ GARCIA GERARDO | G14: 2012-10-01 | H14: REGIDOR | P14: 15 | Q14: TARJETA | S14: 0 | T14: 0 | U14: 534.8666667 | V14: 8023 | W14: 320.92 | X14: 561.61 | Y14: 0 | Z14: 882.53 | AA14: 8023 | AB14: 8905.53 | AE14: 0 | AF14: 1166.523624 | AG14: 1166.52 | AH14: 0 | AI14: 7739.01 | AJ14: =PORTADA!$D$10 -> 1 | AL14: 6
A15: 7 | B15: 1 | C15: 1 | D15: ROBLEDO ORTIZ EDGAR ANTONIO | G15: 2012-10-01 | H15: REGIDOR | P15: 15 | Q15: TARJETA | S15: 0 | T15: 0 | U15: 534.8666667 | V15: 8023 | W15: 320.92 | X15: 561.61 | Y15: 0 | Z15: 882.53 | AA15: 8023 | AB15: 8905.53 | AF15: 1166.523624 | AG15: 1166.52 | AH15: 0 | AI15: 7739.01 | AJ15: =PORTADA!$D$10 -> 1 | AL15: 7
A16: 8 | B16: 1 | C16: 1 | D16: SIERRA ROMERO DOLORES EDITH | G16: 2012-10-01 | H16: REGIDOR | P16: 15 | Q16: TARJETA | S16: 0 | T16: 0 | U16: 534.8666667 | V16: 8023 | W16: 320.92 | X16: 561.61 | Y16: 0 | Z16: 882.53 | AA16: 8023 | AB16: 8905.53 | AF16: 1166.523624 | AG16: 1166.52 | AH16: 0 | AI16: 7739.01 | AJ16: =PORTADA!$D$10 -> 1 | AL16: 8
A17: 9 | B17: 1 | C17: 1 | D17: VELEZ FREGOSO LUIS MANUEL | G17: 2012-10-01 | H17: REGIDOR | P17: 15 | Q17: TARJETA | S17: 0 | T17: 0 | U17: 534.8666667 | V17: 8023 | W17: 320.92 | X17: 561.61 | Y17: 0 | Z17: 882.53 | AA17: 8023 | AB17: 8905.53 | AD17: 0 | AF17: 1166.523624 | AG17: 1166.52 | AH17: 0 | AI17: 7739.01 | AJ17: =PORTADA!$D$10 -> 1 | AL17: 9
B18: 1 | C18: 1 | E18: BAGV780611 | F18: BAGV780611MJCRTR04 | H18: SECRETARIA SALA DE REGIDORES | P18: 0 | Q18: TARJETA | S18: 0 | T18: 0 | U18: 172.16 | V18: =TRUNC(U18*P18,2) -> 0 | W18: 0 | X18: 0 | Y18: 0 | Z18: 0 | AA18: 0 | AB18: 0 | AE18: 0 | AG18: 0 | AH18: 0 | AI18: 0 | AJ18: =PORTADA!$D$10 -> 1 | AL18: 2658.44
D19: SALA DE REGIDORES | V19: =SUM(V9:V18) -> 72207 | W19: =SUM(W9:W18) -> 2888.28 | X19: 5054.49 | Y19: 0 | Z19: 7942.77 | AA19: 72207 | AB19: 80149.77 | AC19: 0 | AD19: 0 | AE19: 0 | AF19: 10498.71262 | AG19: 10498.68 | AH19: 0 | AI19: 69651.09 | AJ19: 9 | AK19: 0
D21: PRESIDENCIA MUNICIPAL
D22: RON RAMOS EDUARDO | H22: PRESIDENTE MUNICIPAL | P22: 15 | Q22: TARJETA | S22: 0 | T22: 0 | U22: =14227/15 -> 948.4666667 | V22: =TRUNC(U22*P22,2) -> 14227 | W22: =TRUNC(U22*P22*0.04,2) -> 569.08 | X22: =TRUNC(U22*0.07*P22,2) -> 995.89 | Y22: =S22 -> 0 | Z22: =TRUNC(X22+W22+(IF(Y22>519,519,Y22))+IF(R22=0,0,R22*U22),2) -> 1564.97 | AA22: =TRUNC((IF(R22=0,P22*U22,(P22-R22)*U22))+(IF(Y22<519,0,Y22-519)),2)+T22 -> 14227 | AB22: =Z22+AA22 -> 15791.97 | AE22: 0 | AF22: =IF(U22>0.01,(AA22-VLOOKUP(AA22,quincenal,1))*VLOOKUP(AA22,quincenal,3)+VLOOKUP(AA22,quincenal,2)-VLOOKUP(AA22,subquincenal,2),0) -> 2577.502608 | AG22: =TRUNC(IF(AF22>0.01,AF22,0),2) -> 2577.5 | AH22: =TRUNC(IF(AF22<0.01,-AF22,0),2) -> 0 | AI22: =AB22-AD22-AE22-AG22+AH22 -> 13214.47 | AL22: 10
D23: BAROCIO FIGUEROA ANTONIO | E23: FEPM871023ND1 | F23: FEPM871023MJCRRR07 | H23: SECRETARIO PARTICULAR | P23: 15 | Q23: TARJETA | S23: 0 | T23: 0 | U23: 405.5341 | V23: =TRUNC(U23*P23,2) -> 6083.01 | W23: =TRUNC(U23*P23*0.04,2) -> 243.32 | X23: =TRUNC(U23*0.07*P23,2) -> 425.81 | Y23: =S23 -> 0 | Z23: =TRUNC(X23+W23+(IF(Y23>519,519,Y23))+IF(R23=0,0,R23*U23),2) -> 669.13 | AA23: =TRUNC((IF(R23=0,P23*U23,(P23-R23)*U23))+(IF(Y23<519,0,Y23-519)),2)+T23 -> 6083.01 | AB23: =Z23+AA23 -> 6752.14 | AE23: 0 | AF23: =IF(U23>0.01,(AA23-VLOOKUP(AA23,quincenal,1))*VLOOKUP(AA23,quincenal,3)+VLOOKUP(AA23,quincenal,2)-VLOOKUP(AA23,subquincenal,2),0) -> 752.14176 | AG23: =TRUNC(IF(AF23>0.01,AF23,0),2) -> 752.14 | AH23: =TRUNC(IF(AF23<0.01,-AF23,0),2) -> 0 | AI23: =AB23-AD23-AE23-AG23+AH23 -> 6000 | AL23: 11
D24: BECERRA GONZALEZ MARISOL | E24: FEPM871023ND1 | F24: FEPM871023MJCRRR07 | H24: SECRETARIA | P24: 15 | Q24: TARJETA | S24: 0 | T24: 0 | U24: 260.287 | V24: =TRUNC(U24*P24,2) -> 3904.3 | W24: =TRUNC(U24*P24*0.04,2) -> 156.17 | X24: =TRUNC(U24*0.07*P24,2) -> 273.3 | Y24: =S24 -> 0 | Z24: =TRUNC(X24+W24+(IF(Y24>519,519,Y24))+IF(R24=0,0,R24*U24),2) -> 429.47 | AA24: =TRUNC((IF(R24=0,P24*U24,(P24-R24)*U24))+(IF(Y24<519,0,Y24-519)),2)+T24 -> 3904.3 | AB24: =Z24+AA24 -> 4333.77 | AE24: 0 | AF24: =IF(U24>0.01,(AA24-VLOOKUP(AA24,quincenal,1))*VLOOKUP(AA24,quincenal,3)+VLOOKUP(AA24,quincenal,2)-VLOOKUP(AA24,subquincenal,2),0) -> 333.7764 | AG24: =TRUNC(IF(AF24>0.01,AF24,0),2) -> 333.77 | AH24: =TRUNC(IF(AF24<0.01,-AF24,0),2) -> 0 | AI24: =AB24-AD24-AE24-AG24+AH24 -> 4000 | AJ24: =PORTADA!$D$10 -> 1 | AL24: 12
A25: 11 | B25: 1 | C25: 2 | E25: FEPM871023ND1 | F25: FEPM871023MJCRRR07 | P25: 0 | Q25: TARJETA | S25: 0 | T25: 0 | U25: =3349/15 -> 223.2666667 | V25: =TRUNC(U25*P25,2) -> 0 | W25: =TRUNC(U25*P25*0.04,2) -> 0 | X25: =TRUNC(U25*0.07*P25,2) -> 0 | Y25: =S25 -> 0 | Z25: =TRUNC(X25+W25+(IF(Y25>519,519,Y25))+IF(R25=0,0,R25*U25),2) -> 0 | AA25: =TRUNC((IF(R25=0,P25*U25,(P25-R25)*U25))+(IF(Y25<519,0,Y25-519)),2)+T25 -> 0 | AB25: =Z25+AA25 -> 0 | AE25: 0 | AF25: =IF(U25>0.01,(AA25-VLOOKUP(AA25,quincenal,1))*VLOOKUP(AA25,quincenal,3)+VLOOKUP(AA25,quincenal,2)-VLOOKUP(AA25,subquincenal,2),0) ->  | AI25: =AB25-AD25-AE25-AG25+AH25 -> 0 | AJ25: =[2]PORTADA!$D$10 -> 1 | AL25: 13
D26: PRESIDENCIA MUNICIPAL | V26: =SUM(V22:V25) -> 24214.31 | W26: =SUM(W22:W25) -> 968.57 | X26: 1695 | Y26: 0 | Z26: 2663.57 | AA26: 24214.31 | AB26: 26877.88 | AC26: 0 | AD26: 0 | AE26: 0 | AG26: 3663.41 | AH26: 0 | AI26: 23214.47
D28: SECRETARIA GENERAL Y SINDICATURA
A29: 13 | B29: 1 | C29: 5 | D29: FREGOSO BARBOZA MARTIN DANIEL | H29: SINDICO MUNICIPAL | P29: 15 | Q29: TARJETA | S29: 0 | T29: 0 | U29: =10307/15 -> 687.1333333 | V29: =TRUNC(U29*P29,2) -> 10307 | W29: =TRUNC(U29*P29*0.04,2) -> 412.28 | X29: =TRUNC(U29*0.07*P29,2) -> 721.49 | Y29: =S29 -> 0 | Z29: =TRUNC(X29+W29+(IF(Y29>519,519,Y29))+IF(R29=0,0,R29*U29),2) -> 1133.77 | AA29: =TRUNC((IF(R29=0,P29*U29,(P29-R29)*U29))+(IF(Y29<519,0,Y29-519)),2)+T29 -> 10307 | AB29: =Z29+AA29 -> 11440.77 | AD29: 0 | AE29: 0 | AF29: =IF(U29>0.01,(AA29-VLOOKUP(AA29,quincenal,1))*VLOOKUP(AA29,quincenal,3)+VLOOKUP(AA29,quincenal,2)-VLOOKUP(AA29,subquincenal,2),0) -> 1655.518608 | AG29: =TRUNC(IF(AF29>0.01,AF29,0),2) -> 1655.51 | AH29: =TRUNC(IF(AF29<0.01,-AF29,0),2) -> 0 | AI29: =AB29-AD29-AE29-AG29+AH29 -> 9785.26 | AJ29: =PORTADA!$D$10 -> 1 | AL29: 14
A30: 14 | B30: 1 | C30: 1 | D30: MEDINA FLORES EVERARDO | G30: 2012-10-01 | H30: SECRETARIO GENERAL | P30: 15 | Q30: TARJETA | S30: 0 | T30: 0 | U30: 617.494 | V30: =TRUNC(U30*P30,2) -> 9262.41 | W30: =TRUNC(U30*P30*0.04,2) -> 370.49 | X30: =TRUNC(U30*0.07*P30,2) -> 648.36 | Y30: =S30 -> 0 | Z30: =TRUNC(X30+W30+(IF(Y30>519,519,Y30))+IF(R30=0,0,R30*U30),2) -> 1018.85 | AA30: =TRUNC((IF(R30=0,P30*U30,(P30-R30)*U30))+(IF(Y30<519,0,Y30-519)),2)+T30 -> 9262.41 | AB30: =Z30+AA30 -> 10281.26 | AE30: 0 | AF30: =IF(U30>0.01,(AA30-VLOOKUP(AA30,quincenal,1))*VLOOKUP(AA30,quincenal,3)+VLOOKUP(AA30,quincenal,2)-VLOOKUP(AA30,subquincenal,2),0) -> 1431.2616 | AG30: =TRUNC(IF(AF30>0.01,AF30,0),2) -> 1431.26 | AH30: =TRUNC(IF(AF30<0.01,-AF30,0),2) -> 0 | AI30: =AB30-AD30-AE30-AG30+AH30 -> 8850 | AL30: 15
A31: 15 | D31: GUTIERREZ SIORDIA LORENA | H31: SECRETARIA DE SECRETARIA GENERAL | P31: 15 | Q31: TARJETA | S31: 0 | T31: 0 | U31: 183.152 | V31: =TRUNC(U31*P31,2) -> 2747.28 | W31: =TRUNC(U31*P31*0.04,2) -> 109.89 | X31: =TRUNC(U31*0.07*P31,2) -> 192.3 | Y31: =S31 -> 0 | Z31: =TRUNC(X31+W31+(IF(Y31>519,519,Y31))+IF(R31=0,0,R31*U31),2) -> 302.19 | AA31: =TRUNC((IF(R31=0,P31*U31,(P31-R31)*U31))+(IF(Y31<519,0,Y31-519)),2)+T31 -> 2747.28 | AB31: =Z31+AA31 -> 3049.47 | AE31: 0 | AF31: =IF(U31>0.01,(AA31-VLOOKUP(AA31,quincenal,1))*VLOOKUP(AA31,quincenal,3)+VLOOKUP(AA31,quincenal,2)-VLOOKUP(AA31,subquincenal,2),0) -> 49.470976 | AG31: =TRUNC(IF(AF31>0.01,AF31,0),2) -> 49.47 | AH31: =TRUNC(IF(AF31<0.01,-AF31,0),2) -> 0 | AI31: =AB31-AD31-AE31-AG31+AH31 -> 3000 | AL31: 16
A32: 16 | D32: CARDENAS GUEVARA JORGE RAFAEL | H32: AUXILIAR ADMINISTRATIVO | P32: 15 | Q32: TARJETA | S32: 0 | T32: 0 | U32: 183.152 | V32: =TRUNC(U32*P32,2) -> 2747.28 | W32: =TRUNC(U32*P32*0.04,2) -> 109.89 | X32: =TRUNC(U32*0.07*P32,2) -> 192.3 | Y32: =S32 -> 0 | Z32: =TRUNC(X32+W32+(IF(Y32>519,519,Y32))+IF(R32=0,0,R32*U32),2) -> 302.19 | AA32: =TRUNC((IF(R32=0,P32*U32,(P32-R32)*U32))+(IF(Y32<519,0,Y32-519)),2)+T32 -> 2747.28 | AB32: =Z32+AA32 -> 3049.47 | AE32: 0 | AF32: =IF(U32>0.01,(AA32-VLOOKUP(AA32,quincenal,1))*VLOOKUP(AA32,quincenal,3)+VLOOKUP(AA32,quincenal,2)-VLOOKUP(AA32,subquincenal,2),0) -> 49.470976 | AG32: =TRUNC(IF(AF32>0.01,AF32,0),2) -> 49.47 | AH32: =TRUNC(IF(AF32<0.01,-AF32,0),2) -> 0 | AI32: =AB32-AD32-AE32-AG32+AH32 -> 3000 | AJ32: =PORTADA!$D$10 -> 1 | AL32: 17
D33: SECRETARIA GENERAL Y SINDICATURA | V33: =SUM(V29:V32) -> 25063.97 | W33: 1002.55 | X33: 1754.45 | Y33: 0 | Z33: 2757 | AA33: 25063.97 | AB33: 27820.97 | AC33: 0 | AD33: 0 | AE33: 0 | AF33: =SUM(AF29:AF32) -> 3185.72216 | AG33: 3185.71 | AH33: 0 | AI33: 24635.26
D35: OFICIALIA MAYOR ADMINISTRATIVA
D36: LEDESMA MORAN JOSE FEDERICO | H36: OFICIAL MAYOR | P36: 15 | Q36: TARJETA | S36: 0 | T36: 0 | U36: 491.062 | V36: =TRUNC(U36*P36,2) -> 7365.93 | W36: =TRUNC(U36*P36*0.04,2) -> 294.63 | X36: =TRUNC(U36*0.07*P36,2) -> 515.61 | Y36: =S36 -> 0 | Z36: =TRUNC(X36+W36+(IF(Y36>519,519,Y36))+IF(R36=0,0,R36*U36),2) -> 810.24 | AA36: =TRUNC((IF(R36=0,P36*U36,(P36-R36)*U36))+(IF(Y36<519,0,Y36-519)),2)+T36 -> 7365.93 | AB36: =Z36+AA36 -> 8176.17 | AE36: 0 | AF36: =IF(U36>0.01,(AA36-VLOOKUP(AA36,quincenal,1))*VLOOKUP(AA36,quincenal,3)+VLOOKUP(AA36,quincenal,2)-VLOOKUP(AA36,subquincenal,2),0) -> 1026.173472 | AG36: =TRUNC(IF(AF36>0.01,AF36,0),2) -> 1026.17 | AH36: =TRUNC(IF(AF36<0.01,-AF36,0),2) -> 0 | AI36: =AB36-AD36-AE36-AG36+AH36 -> 7150 | AL36: 18
D37: VENTURA PEREZ HERLINDA AURORA | E37: VEPH840722PR4 | F37: VEPH840722MJCNRR04 | H37: SECRETARIA | P37: 15 | Q37: TARJETA | S37: 0 | T37: 0 | U37: =3056/15 -> 203.7333333 | V37: =TRUNC(U37*P37,2) -> 3056 | W37: =TRUNC(U37*P37*0.04,2) -> 122.24 | X37: =TRUNC(U37*0.07*P37,2) -> 213.92 | Y37: 0 | Z37: =TRUNC(X37+W37+(IF(Y37>519,519,Y37))+IF(R37=0,0,R37*U37),2) -> 336.16 | AA37: =TRUNC((IF(R37=0,P37*U37,(P37-R37)*U37))+(IF(Y37<519,0,Y37-519)),2)+T37 -> 3056 | AB37: 3392.16 | AD37: 0 | AE37: 0 | AF37: =IF(U37>0.01,(AA37-VLOOKUP(AA37,quincenal,1))*VLOOKUP(AA37,quincenal,3)+VLOOKUP(AA37,quincenal,2)-VLOOKUP(AA37,subquincenal,2),0) -> 83.059712 | AG37: 83.05 | AH37: 0 | AI37: 3309.11 | AJ37: =[2]PORTADA!$D$10 -> 1 | AL37: 19
A38: 20 | D38: BARAJAS DE LA TORRE ANA MARIA | E38: GOTG850723 | H38: ATENCION CIUDADANA | P38: 15 | Q38: TARJETA | S38: 0 | T38: 0 | U38: 113.977 | V38: =TRUNC(U38*P38,2) -> 1709.65 | W38: =TRUNC(U38*P38*0.04,2) -> 68.38 | X38: =TRUNC(U38*0.07*P38,2) -> 119.67 | Y38: =S38 -> 0 | Z38: =TRUNC(X38+W38+(IF(Y38>519,519,Y38))+IF(R38=0,0,R38*U38),2) -> 188.05 | AA38: =TRUNC((IF(R38=0,P38*U38,(P38-R38)*U38))+(IF(Y38<519,0,Y38-519)),2)+T38 -> 1709.65 | AB38: =Z38+AA38 -> 1897.7 | AE38: 0 | AF38: =IF(U38>0.01,(AA38-VLOOKUP(AA38,quincenal,1))*VLOOKUP(AA38,quincenal,3)+VLOOKUP(AA38,quincenal,2)-VLOOKUP(AA38,subquincenal,2),0) -> -102.30024 | AG38: =TRUNC(IF(AF38>0.01,AF38,0),2) -> 0 | AH38: =TRUNC(IF(AF38<0.01,-AF38,0),2) -> 102.3 | AI38: =AB38-AD38-AE38-AG38+AH38 -> 2000 | AJ38: =PORTADA!$D$10 -> 1 | AL38: 20
A39: 22 | D39: HERNANDEZ SANCHEZ ROSA ELIZABETH | H39: CONSERJE | P39: 15 | Q39: TARJETA | S39: 0 | T39: 0 | U39: 113.977 | V39: =TRUNC(U39*P39,2) -> 1709.65 | W39: =TRUNC(U39*P39*0.04,2) -> 68.38 | X39: =TRUNC(U39*0.07*P39,2) -> 119.67 | Y39: =S39 -> 0 | Z39: =TRUNC(X39+W39+(IF(Y39>519,519,Y39))+IF(R39=0,0,R39*U39),2) -> 188.05 | AA39: =TRUNC((IF(R39=0,P39*U39,(P39-R39)*U39))+(IF(Y39<519,0,Y39-519)),2)+T39 -> 1709.65 | AB39: =Z39+AA39 -> 1897.7 | AE39: 0 | AF39: =IF(U39>0.01,(AA39-VLOOKUP(AA39,quincenal,1))*VLOOKUP(AA39,quincenal,3)+VLOOKUP(AA39,quincenal,2)-VLOOKUP(AA39,subquincenal,2),0) -> -102.30024 | AG39: =TRUNC(IF(AF39>0.01,AF39,0),2) -> 0 | AH39: =TRUNC(IF(AF39<0.01,-AF39,0),2) -> 102.3 | AI39: =AB39-AD39-AE39-AG39+AH39 -> 2000 | AJ39: =PORTADA!$D$10 -> 1 | AL39: 21
D40: OFICIALIA MAYOR ADMINISTRATIVA | V40: =SUM(V36:V39) -> 13841.23 | W40: 553.63 | X40: 968.87 | Y40: 0 | Z40: 1522.5 | AA40: 13841.23 | AB40: 15363.73 | AC40: 0 | AD40: 0 | AE40: 0 | AF40: 904.632704 | AG40: 1109.22 | AH40: 204.6 | AI40: 14459.11
D42: DEPARTAMENTO JURIDICO
A43: 23 | B43: 1 | C43: 7 | D43: FREGOSO MEDRANO CARLOS ALEJANDRO | H43: DIRECTOR JURIDICO | P43: 15 | Q43: TARJETA | S43: 0 | T43: 0 | U43: 665.835 | V43: =TRUNC(U43*P43,2) -> 9987.52 | W43: =TRUNC(U43*P43*0.04,2) -> 399.5 | X43: =TRUNC(U43*0.07*P43,2) -> 699.12 | Y43: =S43 -> 0 | Z43: =TRUNC(X43+W43+(IF(Y43>519,519,Y43))+IF(R43=0,0,R43*U43),2) -> 1098.62 | AA43: =TRUNC((IF(R43=0,P43*U43,(P43-R43)*U43))+(IF(Y43<519,0,Y43-519)),2)+T43 -> 9987.52 | AB43: =Z43+AA43 -> 11086.14 | AD43: 500 | AE43: 0 | AF43: =IF(U43>0.01,(AA43-VLOOKUP(AA43,quincenal,1))*VLOOKUP(AA43,quincenal,3)+VLOOKUP(AA43,quincenal,2)-VLOOKUP(AA43,subquincenal,2),0) -> 1586.145096 | AG43: =TRUNC(IF(AF43>0.01,AF43,0),2) -> 1586.14 | AH43: =TRUNC(IF(AF43<0.01,-AF43,0),2) -> 0 | AI43: =AB43-AD43-AE43-AG43+AH43 -> 9000 | AJ43: =[2]PORTADA!$D$10 -> 1 | AL43: 22
A44: 24 | D44: REYNAGA LOPEZ NAHSDHELLY ALEJANDRA | H44: AUXILIAR JURIDICO | P44: 15 | Q44: TARJETA | S44: 0 | T44: 0 | U44: =3896/15 -> 259.7333333 | V44: =TRUNC(U44*P44,2) -> 3896 | W44: =TRUNC(U44*P44*0.04,2) -> 155.84 | X44: =TRUNC(U44*0.07*P44,2) -> 272.72 | Y44: =S44 -> 0 | Z44: =TRUNC(X44+W44+(IF(Y44>519,519,Y44))+IF(R44=0,0,R44*U44),2) -> 428.56 | AA44: =TRUNC((IF(R44=0,P44*U44,(P44-R44)*U44))+(IF(Y44<519,0,Y44-519)),2)+T44 -> 3896 | AB44: =Z44+AA44 -> 4324.56 | AE44: 0 | AF44: =IF(U44>0.01,(AA44-VLOOKUP(AA44,quincenal,1))*VLOOKUP(AA44,quincenal,3)+VLOOKUP(AA44,quincenal,2)-VLOOKUP(AA44,subquincenal,2),0) -> 332.4484 | AG44: =TRUNC(IF(AF44>0.01,AF44,0),2) -> 332.44 | AH44: =TRUNC(IF(AF44<0.01,-AF44,0),2) -> 0 | AI44: =AB44-AD44-AE44-AG44+AH44 -> 3992.12 | AL44: 23
D45: CARRILLO MUÑOZ CESAR OMAR | E45: CARH770717 | F45: CARH770717HJCRDG01 | H45: JUEZ MUNICIPAL | P45: 15 | Q45: TARJETA | S45: 0 | T45: 0 | U45: =4612/15 -> 307.4666667 | V45: =TRUNC(U45*P45,2) -> 4612 | W45: =TRUNC(U45*P45*0.04,2) -> 184.48 | X45: =TRUNC(U45*0.07*P45,2) -> 322.84 | Y45: =S45 -> 0 | Z45: =TRUNC(X45+W45+(IF(Y45>519,519,Y45))+IF(R45=0,0,R45*U45),2) -> 507.32 | AA45: =TRUNC((IF(R45=0,P45*U45,(P45-R45)*U45))+(IF(Y45<519,0,Y45-519)),2)+T45 -> 4612 | AB45: =Z45+AA45 -> 5119.32 | AE45: 0 | AF45: =IF(U45>0.01,(AA45-VLOOKUP(AA45,quincenal,1))*VLOOKUP(AA45,quincenal,3)+VLOOKUP(AA45,quincenal,2)-VLOOKUP(AA45,subquincenal,2),0) -> 453.975888 | AG45: =TRUNC(IF(AF45>0.01,AF45,0),2) -> 453.97 | AH45: =TRUNC(IF(AF45<0.01,-AF45,0),2) -> 0 | AI45: =AB45-AD45-AE45-AG45+AH45 -> 4665.35 | AL45: 24
D46: DEPARTAMENTO JURIDICO | V46: =SUM(V43:V45) -> 18495.52 | W46: 739.82 | X46: 1294.68 | Y46: 0 | Z46: 2034.5 | AA46: 18495.52 | AB46: 20530.02 | AC46: 0 | AD46: 500 | AE46: 0 | AF46: 2372.569384 | AG46: 2372.55 | AH46: 0 | AI46: 17657.47
D48: UNIDAD DE TRANSPARENCIA
D49: ALDAZ VELEZ LORENZO MIGUEL | E49: HEEG670312 | F49: HEER670312MJCRNS06 | G49: 2007-01-08 | H49: DIRECTOR DE TRANSPARENCIA | P49: 15 | Q49: TARJETA | S49: 0 | T49: 0 | U49: 405.5341 | V49: =TRUNC(U49*P49,2) -> 6083.01 | W49: =TRUNC(U49*P49*0.04,2) -> 243.32 | X49: =TRUNC(U49*0.07*P49,2) -> 425.81 | Y49: =S49 -> 0 | Z49: =TRUNC(X49+W49+(IF(Y49>519,519,Y49))+IF(R49=0,0,R49*U49),2) -> 669.13 | AA49: =TRUNC((IF(R49=0,P49*U49,(P49-R49)*U49))+(IF(Y49<519,0,Y49-519)),2)+T49 -> 6083.01 | AB49: =Z49+AA49 -> 6752.14 | AE49: 0 | AF49: =IF(U49>0.01,(AA49-VLOOKUP(AA49,quincenal,1))*VLOOKUP(AA49,quincenal,3)+VLOOKUP(AA49,quincenal,2)-VLOOKUP(AA49,subquincenal,2),0) -> 752.14176 | AG49: =TRUNC(IF(AF49>0.01,AF49,0),2) -> 752.14 | AH49: =TRUNC(IF(AF49<0.01,-AF49,0),2) -> 0 | AI49: =AB49-AD49-AE49-AG49+AH49 -> 6000 | AJ49: =PORTADA!$D$10 -> 1 | AL49: 25
D50: MONTERO REYES HECTOR CARLOS | E50: PAGM780607 | F50: PAGM780607MJCLRR03 | H50: AUXILIAR DE TRANSPARENCIA | P50: 15 | Q50: TARJETA | S50: 0 | T50: 0 | U50: 217.7938 | V50: =TRUNC(U50*P50,2) -> 3266.9 | W50: =TRUNC(U50*P50*0.04,2) -> 130.67 | X50: =TRUNC(U50*0.07*P50,2) -> 228.68 | Y50: =S50 -> 0 | Z50: =TRUNC(X50+W50+(IF(Y50>519,519,Y50))+IF(R50=0,0,R50*U50),2) -> 359.35 | AA50: =TRUNC((IF(R50=0,P50*U50,(P50-R50)*U50))+(IF(Y50<519,0,Y50-519)),2)+T50 -> 3266.9 | AB50: =Z50+AA50 -> 3626.25 | AE50: 0 | AF50: =IF(U50>0.01,(AA50-VLOOKUP(AA50,quincenal,1))*VLOOKUP(AA50,quincenal,3)+VLOOKUP(AA50,quincenal,2)-VLOOKUP(AA50,subquincenal,2),0) -> 126.255632 | AG50: =TRUNC(IF(AF50>0.01,AF50,0),2) -> 126.25 | AH50: =TRUNC(IF(AF50<0.01,-AF50,0),2) -> 0 | AI50: =AB50-AD50-AE50-AG50+AH50 -> 3500 | AJ50: =PORTADA!$D$10 -> 1 | AL50: 26
D51: UNIDAD DE TRANSPARENCIA | V51: =SUM(V49:V50) -> 9349.91 | W51: =SUM(W49:W50) -> 373.99 | X51: 654.49 | Y51: 0 | Z51: 1028.48 | AA51: 9349.91 | AB51: 10378.39 | AC51: 0 | AD51: 0 | AE51: 0 | AF51: 878.397392 | AG51: 878.39 | AH51: 0 | AI51: 9500
D53: DIRECCION DE REGISTRO CIVIL
D54: NAVARRO HERNANDEZ ALMA SAGRARIO | E54: HEEG670312 | F54: HEER670312MJCRNS06 | G54: 2007-01-08 | H54: JEFE OFICIAL DE REGISTRO CIVIL | P54: 15 | Q54: TARJETA | S54: 0 | T54: 0 | U54: 183.152 | V54: =TRUNC(U54*P54,2) -> 2747.28 | W54: =TRUNC(U54*P54*0.04,2) -> 109.89 | X54: =TRUNC(U54*0.07*P54,2) -> 192.3 | Y54: =S54 -> 0 | Z54: =TRUNC(X54+W54+(IF(Y54>519,519,Y54))+IF(R54=0,0,R54*U54),2) -> 302.19 | AA54: =TRUNC((IF(R54=0,P54*U54,(P54-R54)*U54))+(IF(Y54<519,0,Y54-519)),2)+T54 -> 2747.28 | AB54: =Z54+AA54 -> 3049.47 | AE54: 0 | AF54: =IF(U54>0.01,(AA54-VLOOKUP(AA54,quincenal,1))*VLOOKUP(AA54,quincenal,3)+VLOOKUP(AA54,quincenal,2)-VLOOKUP(AA54,subquincenal,2),0) -> 49.470976 | AG54: =TRUNC(IF(AF54>0.01,AF54,0),2) -> 49.47 | AH54: =TRUNC(IF(AF54<0.01,-AF54,0),2) -> 0 | AI54: =AB54-AD54-AE54-AG54+AH54 -> 3000 | AJ54: =[2]PORTADA!$D$10 -> 1 | AL54: 27
D55: PLASCENCIA GARCIA MIREYA ESMERALDA | E55: PAGM780607 | F55: PAGM780607MJCLRR03 | H55: OFICIAL AUX. DE REGISTRO CIVIL | P55: 15 | Q55: TARJETA | S55: 0 | T55: 0 | U55: =2492/15 -> 166.1333333 | V55: =TRUNC(U55*P55,2) -> 2492 | W55: =TRUNC(U55*P55*0.04,2) -> 99.68 | X55: =TRUNC(U55*0.07*P55,2) -> 174.44 | Y55: =S55 -> 0 | Z55: =TRUNC(X55+W55+(IF(Y55>519,519,Y55))+IF(R55=0,0,R55*U55),2) -> 274.12 | AA55: =TRUNC((IF(R55=0,P55*U55,(P55-R55)*U55))+(IF(Y55<519,0,Y55-519)),2)+T55 -> 2492 | AB55: =Z55+AA55 -> 2766.12 | AE55: 0 | AF55: =IF(U55>0.01,(AA55-VLOOKUP(AA55,quincenal,1))*VLOOKUP(AA55,quincenal,3)+VLOOKUP(AA55,quincenal,2)-VLOOKUP(AA55,subquincenal,2),0) -> 6.696512 | AG55: =TRUNC(IF(AF55>0.01,AF55,0),2) -> 6.69 | AH55: =TRUNC(IF(AF55<0.01,-AF55,0),2) -> 0 | AI55: =AB55-AD55-AE55-AG55+AH55 -> 2759.43 | AJ55: =[2]PORTADA!$D$10 -> 1 | AL55: 28
D56: GONZALEZ MARTINEZ KARINA | H56: SECRETARIA EN REGISTRO CIVIL | P56: 15 | Q56: TARJETA | S56: 0 | T56: 0 | U56: 147.9015 | V56: =TRUNC(U56*P56,2) -> 2218.52 | W56: =TRUNC(U56*P56*0.04,2) -> 88.74 | X56: =TRUNC(U56*0.07*P56,2) -> 155.29 | Y56: =S56 -> 0 | Z56: =TRUNC(X56+W56+(IF(Y56>519,519,Y56))+IF(R56=0,0,R56*U56),2) -> 244.03 | AA56: =TRUNC((IF(R56=0,P56*U56,(P56-R56)*U56))+(IF(Y56<519,0,Y56-519)),2)+T56 -> 2218.52 | AB56: =Z56+AA56 -> 2462.55 | AF56: =IF(U56>0.01,(AA56-VLOOKUP(AA56,quincenal,1))*VLOOKUP(AA56,quincenal,3)+VLOOKUP(AA56,quincenal,2)-VLOOKUP(AA56,subquincenal,2),0) -> -37.458112 | AG56: =TRUNC(IF(AF56>0.01,AF56,0),2) -> 0 | AH56: =TRUNC(IF(AF56<0.01,-AF56,0),2) -> 37.45 | AI56: =AB56-AD56-AE56-AG56+AH56 -> 2500 | AL56: 29
A57: 28 | B57: 1 | C57: 14 | Q57: TARJETA | S57: 0 | T57: 0 | U57: 183.152 | V57: =TRUNC(U57*P57,2) -> 0 | W57: =TRUNC(U57*P57*0.04,2) -> 0 | X57: =TRUNC(U57*0.07*P57,2) -> 0 | Y57: =S57 -> 0 | Z57: =TRUNC(X57+W57+(IF(Y57>519,519,Y57))+IF(R57=0,0,R57*U57),2) -> 0 | AA57: =TRUNC((IF(R57=0,P57*U57,(P57-R57)*U57))+(IF(Y57<519,0,Y57-519)),2)+T57 -> 0 | AB57: =Z57+AA57 -> 0 | AE57: 0 | AF57: =IF(U57>0.01,(AA57-VLOOKUP(AA57,quincenal,1))*VLOOKUP(AA57,quincenal,3)+VLOOKUP(AA57,quincenal,2)-VLOOKUP(AA57,subquincenal,2),0) ->  | AJ57: =PORTADA!$D$10 -> 1 | AL57: 30
D58: DIRECCION DE REGISTRO CIVIL | V58: =SUM(V54:V57) -> 7457.8 | W58: =SUM(W54:W57) -> 298.31 | X58: 522.03 | Y58: 0 | Z58: 820.34 | AA58: 7457.8 | AB58: 8278.14 | AC58: 0 | AD58: 0 | AE58: 0 | AG58: 56.16 | AH58: 37.45 | AI58: 8259.43
D60: OFICIALIA MAYOR DE CULTURA
D61: GONZALEZ PEÑA LETICIA | E61: MAM620222 | H61: DIRECTOR DE CULTURA Y TURISMO | P61: 15 | Q61: TARJETA | S61: 0 | T61: 0 | U61: 331.436 | V61: =TRUNC(U61*P61,2) -> 4971.54 | W61: =TRUNC(U61*P61*0.04,2) -> 198.86 | X61: =TRUNC(U61*0.07*P61,2) -> 348 | Y61: =S61 -> 0 | Z61: =TRUNC(X61+W61+(IF(Y61>519,519,Y61))+IF(R61=0,0,R61*U61),2) -> 546.86 | AA61: =TRUNC((IF(R61=0,P61*U61,(P61-R61)*U61))+(IF(Y61<519,0,Y61-519)),2)+T61 -> 4971.54 | AB61: =Z61+AA61 -> 5518.4 | AE61: 0 | AF61: =IF(U61>0.01,(AA61-VLOOKUP(AA61,quincenal,1))*VLOOKUP(AA61,quincenal,3)+VLOOKUP(AA61,quincenal,2)-VLOOKUP(AA61,subquincenal,2),0) -> 518.405456 | AG61: =TRUNC(IF(AF61>0.01,AF61,0),2) -> 518.4 | AH61: =TRUNC(IF(AF61<0.01,-AF61,0),2) -> 0 | AI61: =AB61-AD61-AE61-AG61+AH61 -> 5000 | AJ61: =[3]PORTADA!$D$10 -> 1 | AL61: 31
D62: PARRA RON CARLOS ENRIQUE | E62: PARC480708 | F62: PARC480708HJCRNR08 | G62: 2004-01-01 | H62: CRONISTA | P62: 15 | Q62: TARJETA | S62: 0 | T62: 0 | U62: =3463/15 -> 230.8666667 | V62: 3463 | W62: 138.52 | X62: 242.41 | Y62: 0 | Z62: 380.93 | AA62: 3463 | AB62: 3843.93 | AE62: 0 | AF62: =IF(U62>0.01,(AA62-VLOOKUP(AA62,quincenal,1))*VLOOKUP(AA62,quincenal,3)+VLOOKUP(AA62,quincenal,2)-VLOOKUP(AA62,subquincenal,2),0) -> 147.591312 | AG62: 147.59 | AH62: 0 | AI62: 3696.34 | AJ62: =[2]PORTADA!$D$10 -> 1 | AL62: 32
D63: GARCIA GONZALEZ JAIRO ESAU | H63: AUXILIAR DE DIRECCION DE CULTURA Y TURISMO | P63: 15 | Q63: TARJETA | S63: 0 | T63: 0 | U63: 165.506 | V63: =TRUNC(U63*P63,2) -> 2482.59 | W63: =TRUNC(U63*P63*0.04,2) -> 99.3 | X63: =TRUNC(U63*0.07*P63,2) -> 173.78 | Y63: =S63 -> 0 | Z63: =TRUNC(X63+W63+(IF(Y63>519,519,Y63))+IF(R63=0,0,R63*U63),2) -> 273.08 | AA63: =TRUNC((IF(R63=0,P63*U63,(P63-R63)*U63))+(IF(Y63<519,0,Y63-519)),2)+T63 -> 2482.59 | AB63: =Z63+AA63 -> 2755.67 | AE63: 0 | AF63: =IF(U63>0.01,(AA63-VLOOKUP(AA63,quincenal,1))*VLOOKUP(AA63,quincenal,3)+VLOOKUP(AA63,quincenal,2)-VLOOKUP(AA63,subquincenal,2),0) -> 5.672704 | AG63: =TRUNC(IF(AF63>0.01,AF63,0),2) -> 5.67 | AH63: =TRUNC(IF(AF63<0.01,-AF63,0),2) -> 0 | AI63: =AB63-AD63-AE63-AG63+AH63 -> 2750
D64: GONZALEZ JUAREZ ALEJANDRA AMANDA | H64: SECRETARIA DE CASA DE LA CULTURA | P64: 15 | Q64: TARJETA | S64: 0 | T64: 0 | U64: 147.9015 | V64: =TRUNC(U64*P64,2) -> 2218.52 | W64: =TRUNC(U64*P64*0.04,2) -> 88.74 | X64: =TRUNC(U64*0.07*P64,2) -> 155.29 | Y64: =S64 -> 0 | Z64: =TRUNC(X64+W64+(IF(Y64>519,519,Y64))+IF(R64=0,0,R64*U64),2) -> 244.03 | AA64: =TRUNC((IF(R64=0,P64*U64,(P64-R64)*U64))+(IF(Y64<519,0,Y64-519)),2)+T64 -> 2218.52 | AB64: =Z64+AA64 -> 2462.55 | AF64: =IF(U64>0.01,(AA64-VLOOKUP(AA64,quincenal,1))*VLOOKUP(AA64,quincenal,3)+VLOOKUP(AA64,quincenal,2)-VLOOKUP(AA64,subquincenal,2),0) -> -37.458112 | AG64: 0 | AH64: 37.45 | AI64: =AB64-AD64-AE64-AG64+AH64 -> 2500 | AL64: 33
D65: GALLEGOS PEREZ DIEGO ARMANDO | H65: ENCARGADO DE LA CULTURA DEL AGUA | P65: 15 | Q65: TARJETA | S65: 0 | T65: 0 | U65: 172.831 | V65: =TRUNC(U65*P65,2) -> 2592.46 | W65: =TRUNC(U65*P65*0.04,2) -> 103.69 | X65: =TRUNC(U65*0.07*P65,2) -> 181.47 | Y65: =S65 -> 0 | Z65: =TRUNC(X65+W65+(IF(Y65>519,519,Y65))+IF(R65=0,0,R65*U65),2) -> 285.16 | AA65: =TRUNC((IF(R65=0,P65*U65,(P65-R65)*U65))+(IF(Y65<519,0,Y65-519)),2)+T65 -> 2592.46 | AB65: =Z65+AA65 -> 2877.62 | AF65: =IF(U65>0.01,(AA65-VLOOKUP(AA65,quincenal,1))*VLOOKUP(AA65,quincenal,3)+VLOOKUP(AA65,quincenal,2)-VLOOKUP(AA65,subquincenal,2),0) -> 17.62656 | AG65: =TRUNC(IF(AF65>0.01,AF65,0),2) -> 17.62 | AH65: =TRUNC(IF(AF65<0.01,-AF65,0),2) -> 0 | AI65: =AB65-AD65-AE65-AG65+AH65 -> 2860 | AL65: 34
D66: ESPARZA ZAVALZA INDALECIO | H66: MAESTRO DE MUSICA | P66: 15 | Q66: TARJETA | S66: 0 | T66: 0 | U66: 154.56 | V66: =TRUNC(U66*P66,2) -> 2318.4 | W66: =TRUNC(U66*P66*0.04,2) -> 92.73 | X66: =TRUNC(U66*0.07*P66,2) -> 162.28 | Y66: =S66 -> 0 | Z66: =TRUNC(X66+W66+(IF(Y66>519,519,Y66))+IF(R66=0,0,R66*U66),2) -> 255.01 | AA66: =TRUNC((IF(R66=0,P66*U66,(P66-R66)*U66))+(IF(Y66<519,0,Y66-519)),2)+T66 -> 2318.4 | AB66: =Z66+AA66 -> 2573.41 | AF66: =IF(U66>0.01,(AA66-VLOOKUP(AA66,quincenal,1))*VLOOKUP(AA66,quincenal,3)+VLOOKUP(AA66,quincenal,2)-VLOOKUP(AA66,subquincenal,2),0) -> -26.591168 | AG66: 0 | AH66: 26.59 | AI66: =AB66-AD66-AE66-AG66+AH66 -> 2600 | AL66: 35
D67: CARRILLO DIAZ ANTONIO SALVADOR | H67: INTENDENTE | P67: 15 | Q67: TARJETA | S67: 0 | T67: 0 | U67: 113.977 | V67: =TRUNC(U67*P67,2) -> 1709.65 | W67: =TRUNC(U67*P67*0.04,2) -> 68.38 | X67: =TRUNC(U67*0.07*P67,2) -> 119.67 | Y67: =S67 -> 0 | Z67: =TRUNC(X67+W67+(IF(Y67>519,519,Y67))+IF(R67=0,0,R67*U67),2) -> 188.05 | AA67: =TRUNC((IF(R67=0,P67*U67,(P67-R67)*U67))+(IF(Y67<519,0,Y67-519)),2)+T67 -> 1709.65 | AB67: =Z67+AA67 -> 1897.7 | AE67: 0 | AF67: =IF(U67>0.01,(AA67-VLOOKUP(AA67,quincenal,1))*VLOOKUP(AA67,quincenal,3)+VLOOKUP(AA67,quincenal,2)-VLOOKUP(AA67,subquincenal,2),0) -> -102.30024 | AG67: 0 | AH67: 102.3 | AI67: =AB67-AD67-AE67-AG67+AH67 -> 2000 | AL67: 36
D68: ARCINIEGA RODRIGUEZ ANTONIO | H68: ENCARGADO DE EQUIPO DE SONIDO | P68: 15 | Q68: TARJETA | S68: 0 | T68: 0 | U68: =4060/15 -> 270.6666667 | V68: 4060 | W68: 162.4 | X68: 284.2 | Y68: 0 | Z68: 446.6 | AA68: 4060 | AB68: 4506.6 | AE68: 0 | AF68: =IF(U68>0.01,(AA68-VLOOKUP(AA68,quincenal,1))*VLOOKUP(AA68,quincenal,3)+VLOOKUP(AA68,quincenal,2)-VLOOKUP(AA68,subquincenal,2),0) -> 358.6884 | AG68: 358.68 | AH68: 0 | AI68: 4147.92 | AJ68: =[2]PORTADA!$D$10 -> 1 | AL68: 37
D69: OFICIALIA MAYOR DE CULTURA | V69: =SUM(V61:V68) -> 23816.16 | W69: =SUM(W61:W68) -> 952.62 | X69: 1667.1 | Y69: 0 | Z69: 2619.72 | AA69: 23816.16 | AB69: 26435.88 | AC69: 0 | AD69: 0 | AE69: 0 | AF69: 881.634912 | AG69: 1047.96 | AH69: 166.34 | AI69: 25554.26
D71: DEPARTAMENTO DE PRENSA Y PUBLICIDAD
A72: 35 | B72: 1 | C72: 19 | D72: DIAZ PEREZ SAMUEL | H72: DIRECTOR DE PRENSA Y PUBLICIDAD | P72: 15 | Q72: TARJETA | S72: 0 | T72: 0 | U72: 405.5341 | V72: =TRUNC(U72*P72,2) -> 6083.01 | W72: =TRUNC(U72*P72*0.04,2) -> 243.32 | X72: =TRUNC(U72*0.07*P72,2) -> 425.81 | Y72: =S72 -> 0 | Z72: =TRUNC(X72+W72+(IF(Y72>519,519,Y72))+IF(R72=0,0,R72*U72),2) -> 669.13 | AA72: =TRUNC((IF(R72=0,P72*U72,(P72-R72)*U72))+(IF(Y72<519,0,Y72-519)),2)+T72 -> 6083.01 | AB72: =Z72+AA72 -> 6752.14 | AE72: 0 | AF72: =IF(U72>0.01,(AA72-VLOOKUP(AA72,quincenal,1))*VLOOKUP(AA72,quincenal,3)+VLOOKUP(AA72,quincenal,2)-VLOOKUP(AA72,subquincenal,2),0) -> 752.14176 | AG72: =TRUNC(IF(AF72>0.01,AF72,0),2) -> 752.14 | AH72: =TRUNC(IF(AF72<0.01,-AF72,0),2) -> 0 | AI72: =AB72-AD72-AE72-AG72+AH72 -> 6000 | AJ72: =PORTADA!$D$10 -> 1 | AL72: 38
A73: 36 | D73: GOMEZ SANTIAGO MARIA DOLORES | H73: SECRETARIA DE COMUNICACIÓN SOCIAL | P73: 15 | Q73: TARJETA | S73: 0 | T73: 0 | U73: 101.23 | V73: =TRUNC(U73*P73,2) -> 1518.45 | W73: =TRUNC(U73*P73*0.04,2) -> 60.73 | X73: =TRUNC(U73*0.07*P73,2) -> 106.29 | Y73: =S73 -> 0 | Z73: =TRUNC(X73+W73+(IF(Y73>519,519,Y73))+IF(R73=0,0,R73*U73),2) -> 167.02 | AA73: =TRUNC((IF(R73=0,P73*U73,(P73-R73)*U73))+(IF(Y73<519,0,Y73-519)),2)+T73 -> 1518.45 | AB73: =Z73+AA73 -> 1685.47 | AD73: 0 | AE73: 0 | AF73: =IF(U73>0.01,(AA73-VLOOKUP(AA73,quincenal,1))*VLOOKUP(AA73,quincenal,3)+VLOOKUP(AA73,quincenal,2)-VLOOKUP(AA73,subquincenal,2),0) -> -114.53704 | AG73: =TRUNC(IF(AF73>0.01,AF73,0),2) -> 0 | AH73: =TRUNC(IF(AF73<0.01,-AF73,0),2) -> 114.53 | AI73: =AB73-AD73-AE73-AG73+AH73 -> 1800 | AJ73: =PORTADA!$D$10 -> 1 | AL73: 39
D74: VAZQUEZ PEREZ LUIS ENRIQUE | H74: AUXILIAR DE COMUNICACIÓN SOCIAL (FOTOGRAFO Y VIDEO) | P74: 15 | Q74: TARJETA | S74: 0 | T74: 0 | U74: 183.152 | V74: =TRUNC(U74*P74,2) -> 2747.28 | W74: =TRUNC(U74*P74*0.04,2) -> 109.89 | X74: =TRUNC(U74*0.07*P74,2) -> 192.3 | Y74: =S74 -> 0 | Z74: =TRUNC(X74+W74+(IF(Y74>519,519,Y74))+IF(R74=0,0,R74*U74),2) -> 302.19 | AA74: =TRUNC((IF(R74=0,P74*U74,(P74-R74)*U74))+(IF(Y74<519,0,Y74-519)),2)+T74 -> 2747.28 | AB74: =Z74+AA74 -> 3049.47 | AE74: 0 | AF74: =IF(U74>0.01,(AA74-VLOOKUP(AA74,quincenal,1))*VLOOKUP(AA74,quincenal,3)+VLOOKUP(AA74,quincenal,2)-VLOOKUP(AA74,subquincenal,2),0) -> 49.470976 | AG74: =TRUNC(IF(AF74>0.01,AF74,0),2) -> 49.47 | AH74: =TRUNC(IF(AF74<0.01,-AF74,0),2) -> 0 | AI74: =AB74-AD74-AE74-AG74+AH74 -> 3000 | AL74: 40
D75: DEPARTAMENTO DE PRENSA Y PUBLICIDAD | V75: =SUM(V72:V74) -> 10348.74 | W75: =SUM(W72:W74) -> 413.94 | X75: 724.4 | Y75: 0 | Z75: 1138.34 | AA75: 10348.74 | AB75: 11487.08 | AC75: 0 | AD75: 0 | AE75: 0 | AF75: 687.075696 | AG75: 801.61 | AH75: 114.53 | AI75: 10800
D77: DIRECCION DE EDUCACION
A78: 37 | D78: MARISCAL MORALES ILIANA PATRICIA | H78: SUBDIRECTORA DE TALLERES DE CAPACITACION | P78: 15 | Q78: TARJETA | S78: 0 | T78: 0 | U78: 217.7938 | V78: =TRUNC(U78*P78,2) -> 3266.9 | W78: =TRUNC(U78*P78*0.04,2) -> 130.67 | X78: =TRUNC(U78*0.07*P78,2) -> 228.68 | Y78: =S78 -> 0 | Z78: =TRUNC(X78+W78+(IF(Y78>519,519,Y78))+IF(R78=0,0,R78*U78),2) -> 359.35 | AA78: =TRUNC((IF(R78=0,P78*U78,(P78-R78)*U78))+(IF(Y78<519,0,Y78-519)),2)+T78 -> 3266.9 | AB78: =Z78+AA78 -> 3626.25 | AE78: 0 | AF78: =IF(U78>0.01,(AA78-VLOOKUP(AA78,quincenal,1))*VLOOKUP(AA78,quincenal,3)+VLOOKUP(AA78,quincenal,2)-VLOOKUP(AA78,subquincenal,2),0) -> 126.255632 | AG78: =TRUNC(IF(AF78>0.01,AF78,0),2) -> 126.25 | AH78: =TRUNC(IF(AF78<0.01,-AF78,0),2) -> 0 | AI78: =AB78-AD78-AE78-AG78+AH78 -> 3500 | AL78: 41
D79: ESPERICUETA HERNANDEZ EFRAIN | H79: TALLERES DE CAPACITACION | P79: 11 | Q79: TARJETA | S79: 0 | T79: 0 | U79: 260.287 | V79: =TRUNC(U79*P79,2) -> 2863.15 | W79: =TRUNC(U79*P79*0.04,2) -> 114.52 | X79: =TRUNC(U79*0.07*P79,2) -> 200.42 | Y79: =S79 -> 0 | Z79: =TRUNC(X79+W79+(IF(Y79>519,519,Y79))+IF(R79=0,0,R79*U79),2) -> 314.94 | AA79: =TRUNC((IF(R79=0,P79*U79,(P79-R79)*U79))+(IF(Y79<519,0,Y79-519)),2)+T79 -> 2863.15 | AB79: =Z79+AA79 -> 3178.09 | AE79: 0 | AF79: =IF(U79>0.01,(AA79-VLOOKUP(AA79,quincenal,1))*VLOOKUP(AA79,quincenal,3)+VLOOKUP(AA79,quincenal,2)-VLOOKUP(AA79,subquincenal,2),0) -> 62.077632 | AG79: =TRUNC(IF(AF79>0.01,AF79,0),2) -> 62.07 | AH79: =TRUNC(IF(AF79<0.01,-AF79,0),2) -> 0 | AI79: =AB79-AD79-AE79-AG79+AH79 -> 3116.02 | AL79: 42
D80: MADRID ZAINES DELIA CAROLINA | H80: SECRETARIA DE DIRECTOR DE EDUCACION | P80: 15 | Q80: TARJETA | S80: 0 | T80: 0 | U80: 183.152 | V80: =TRUNC(U80*P80,2) -> 2747.28 | W80: =TRUNC(U80*P80*0.04,2) -> 109.89 | X80: =TRUNC(U80*0.07*P80,2) -> 192.3 | Y80: =S80 -> 0 | Z80: =TRUNC(X80+W80+(IF(Y80>519,519,Y80))+IF(R80=0,0,R80*U80),2) -> 302.19 | AA80: =TRUNC((IF(R80=0,P80*U80,(P80-R80)*U80))+(IF(Y80<519,0,Y80-519)),2)+T80 -> 2747.28 | AB80: =Z80+AA80 -> 3049.47 | AE80: 0 | AF80: =IF(U80>0.01,(AA80-VLOOKUP(AA80,quincenal,1))*VLOOKUP(AA80,quincenal,3)+VLOOKUP(AA80,quincenal,2)-VLOOKUP(AA80,subquincenal,2),0) -> 49.470976 | AG80: =TRUNC(IF(AF80>0.01,AF80,0),2) -> 49.47 | AH80: =TRUNC(IF(AF80<0.01,-AF80,0),2) -> 0 | AI80: =AB80-AD80-AE80-AG80+AH80 -> 3000 | AL80: 43
A81: 37 | D81: GAVILANES NAVARRO JOSE RICARDO | H81: CHIOFER CAMION ESTUDIANTES | P81: 15 | Q81: TARJETA | S81: 0 | T81: 0 | U81: 217.7938 | V81: =TRUNC(U81*P81,2) -> 3266.9 | W81: =TRUNC(U81*P81*0.04,2) -> 130.67 | X81: =TRUNC(U81*0.07*P81,2) -> 228.68 | Y81: =S81 -> 0 | Z81: =TRUNC(X81+W81+(IF(Y81>519,519,Y81))+IF(R81=0,0,R81*U81),2) -> 359.35 | AA81: =TRUNC((IF(R81=0,P81*U81,(P81-R81)*U81))+(IF(Y81<519,0,Y81-519)),2)+T81 -> 3266.9 | AB81: =Z81+AA81 -> 3626.25 | AE81: 0 | AF81: =IF(U81>0.01,(AA81-VLOOKUP(AA81,quincenal,1))*VLOOKUP(AA81,quincenal,3)+VLOOKUP(AA81,quincenal,2)-VLOOKUP(AA81,subquincenal,2),0) -> 126.255632 | AG81: =TRUNC(IF(AF81>0.01,AF81,0),2) -> 126.25 | AH81: =TRUNC(IF(AF81<0.01,-AF81,0),2) -> 0 | AI81: =AB81-AD81-AE81-AG81+AH81 -> 3500 | AJ81: =PORTADA!$D$10 -> 1 | AL81: 44
D82: DIRECCION DE EDUCACION | V82: =SUM(V78:V81) -> 12144.23 | W82: =SUM(W78:W81) -> 485.75 | X82: 850.08 | Y82: 0 | Z82: 1335.83 | AA82: 12144.23 | AB82: 13480.06 | AC82: 0 | AD82: 0 | AE82: 0 | AF82: 364.059872 | AG82: 364.04 | AH82: 0 | AI82: 13116.02
D84: DEPARTAMENTO DE PROMOCION Y DESARROLLO ECONOMICO
A85: 38 | D85: RODRIGUEZ ARQUIETA FAUSTO RAFAEL | H85: DIRECTOR | P85: 15 | Q85: TARJETA | S85: 0 | T85: 0 | U85: 479.9059 | V85: =TRUNC(U85*P85,2) -> 7198.58 | W85: =TRUNC(U85*P85*0.04,2) -> 287.94 | X85: =TRUNC(U85*0.07*P85,2) -> 503.9 | Y85: =S85 -> 0 | Z85: =TRUNC(X85+W85+(IF(Y85>519,519,Y85))+IF(R85=0,0,R85*U85),2) -> 791.84 | AA85: =TRUNC((IF(R85=0,P85*U85,(P85-R85)*U85))+(IF(Y85<519,0,Y85-519)),2)+T85 -> 7198.58 | AB85: =Z85+AA85 -> 7990.42 | AE85: 0 | AF85: =IF(U85>0.01,(AA85-VLOOKUP(AA85,quincenal,1))*VLOOKUP(AA85,quincenal,3)+VLOOKUP(AA85,quincenal,2)-VLOOKUP(AA85,subquincenal,2),0) -> 990.427512 | AG85: =TRUNC(IF(AF85>0.01,AF85,0),2) -> 990.42 | AH85: =TRUNC(IF(AF85<0.01,-AF85,0),2) -> 0 | AI85: =AB85-AD85-AE85-AG85+AH85 -> 7000 | AL85: 45
D86: HERNANDEZ ENRIQUEZ J. FILEMON | H86: DIRECTOR DE PROMOCION ECONOMICA | P86: 15 | Q86: TARJETA | S86: 0 | T86: 0 | U86: 442.72 | V86: 6640.8 | W86: 265.63 | X86: 464.85 | Y86: 0 | Z86: 730.48 | AA86: 6640.8 | AB86: 7371.28 | AE86: 0 | AF86: 871.285704 | AG86: 871.28 | AH86: =TRUNC(IF(AF86<0.01,-AF86,0),2) -> 0 | AI86: 6500 | AL86: 46
D87: PLASCENCIA GARCIA OSCARI | E87: PAGO721112 | F87: PAGO721112HJCLRS01 | H87: AUXILIAR ADMINISTRATIVO DE DESARROLLO RURAL | P87: 15 | Q87: TARJETA | S87: 0 | T87: 0 | U87: =3086/15 -> 205.7333333 | V87: 3086 | W87: 123.44 | X87: 216.02 | Y87: 0 | Z87: 339.46 | AA87: 3086 | AB87: 3425.46 | AE87: 0 | AF87: 106.573712 | AG87: 106.57 | AH87: =TRUNC(IF(AF87<0.01,-AF87,0),2) -> 0 | AI87: 3318.89 | AL87: 47
D88: MARTINEZ MARTINEZ SALVADOR TAURINO JONATHAN | E88: MAMS900118M80 | F88: MAMS900118HJCRRL02 | G88: 2007-01-01 | H88: AYUDANTE | P88: 15 | Q88: TARJETA | S88: 0 | T88: 0 | U88: =2788/15 -> 185.8666667 | V88: 2788 | W88: 111.52 | X88: 195.16 | Y88: 0 | Z88: 306.68 | AA88: 2788 | AB88: 3094.68 | AE88: 0 | AF88: 53.901312 | AG88: 53.9 | AH88: 0 | AI88: 3040.78 | AJ88: =[2]PORTADA!$D$10 -> 1 | AL88: 48
D89: ULLOA MARTINEZ MARCELA GUADALUPE | E89: UOMM730612 | F89: UOMM730612MJCLRR02 | G89: 1998-01-01 | H89: AUXILIAR ADMINISTRATIVO | P89: 15 | Q89: TARJETA | S89: 0 | T89: 0 | U89: =3261/15 -> 217.4 | V89: 3261 | W89: 130.44 | X89: 228.27 | Y89: 0 | Z89: 358.71 | AA89: 3261 | AB89: 3619.71 | AE89: 0 | AF89: 125.613712 | AG89: 125.61 | AH89: =TRUNC(IF(AF89<0.01,-AF89,0),2) -> 0 | AI89: 3494.1 | AJ89: =[2]PORTADA!$D$10 -> 1 | AL89: 49
E90: FEIA870704 | F90: FEIA870704MJCRXN02 | Q90: TARJETA | S90: 0 | T90: 0 | U90: =2658/15 -> 177.2 | Y90: 0 | Z90: 0 | AA90: 0 | AB90: 0 | AJ90: =[2]PORTADA!$D$10 -> 1 | AL90: 50
D91: DEPARTAMENTO DE PROMOCION Y DESARROLLO ECONOMICO | V91: =SUM(V85:V90) -> 22974.38 | W91: =SUM(W85:W90) -> 918.97 | X91: 1608.2 | Y91: 0 | Z91: 2527.17 | AA91: 22974.38 | AB91: 25501.55 | AC91: 0 | AD91: 0 | AE91: 0 | AG91: 2147.78 | AH91: 0 | AI91: 23353.77
D93: OFICINA DE ENLACE RELACIONES EXTERIORES
D94: GUTIERREZ REYES CAROL | E94: GURC680410 | F94: GURC680410MJCTYR00 | G94: 2001-01-02 | H94: JEFE ADMINISTRADOR | P94: 15 | Q94: TARJETA | S94: 0 | T94: 0 | U94: 370.2 | V94: =TRUNC(U94*P94,2) -> 5553 | W94: =TRUNC(U94*P94*0.04,2) -> 222.12 | X94: =TRUNC(U94*0.07*P94,2) -> 388.71 | Y94: =S94 -> 0 | Z94: =TRUNC(X94+W94+(IF(Y94>519,519,Y94))+IF(R94=0,0,R94*U94),2) -> 610.83 | AA94: =TRUNC((IF(R94=0,P94*U94,(P94-R94)*U94))+(IF(Y94<519,0,Y94-519)),2)+T94 -> 5553 | AB94: =Z94+AA94 -> 6163.83 | AE94: 0 | AF94: =IF(U94>0.01,(AA94-VLOOKUP(AA94,quincenal,1))*VLOOKUP(AA94,quincenal,3)+VLOOKUP(AA94,quincenal,2)-VLOOKUP(AA94,subquincenal,2),0) -> 638.931624 | AG94: =TRUNC(IF(AF94>0.01,AF94,0),2) -> 638.93 | AH94: =TRUNC(IF(AF94<0.01,-AF94,0),2) -> 0 | AI94: =AB94-AD94-AE94-AG94+AH94 -> 5524.9 | AJ94: =[2]PORTADA!$D$10 -> 1 | AL94: 51
D95: FREGOSO HURTADO ALEJANDRA | E95: FEHA831218 | F95: FEHA831218MJCRRL07 | G95: 2007-04-10 | H95: AUX. ADMINISTRATIVO | P95: 15 | Q95: TARJETA | S95: 0 | T95: 0 | U95: 211.816 | V95: =TRUNC(U95*P95,2) -> 3177.24 | W95: =TRUNC(U95*P95*0.04,2) -> 127.08 | X95: =TRUNC(U95*0.07*P95,2) -> 222.4 | Y95: =S95 -> 0 | Z95: =TRUNC(X95+W95+(IF(Y95>519,519,Y95))+IF(R95=0,0,R95*U95),2) -> 349.48 | AA95: =TRUNC((IF(R95=0,P95*U95,(P95-R95)*U95))+(IF(Y95<519,0,Y95-519)),2)+T95 -> 3177.24 | AB95: =Z95+AA95 -> 3526.72 | AE95: 0 | AF95: =IF(U95>0.01,(AA95-VLOOKUP(AA95,quincenal,1))*VLOOKUP(AA95,quincenal,3)+VLOOKUP(AA95,quincenal,2)-VLOOKUP(AA95,subquincenal,2),0) -> 116.500624 | AG95: =TRUNC(IF(AF95>0.01,AF95,0),2) -> 116.5 | AH95: =TRUNC(IF(AF95<0.01,-AF95,0),2) -> 0 | AI95: =AB95-AD95-AE95-AG95+AH95 -> 3410.22 | AJ95: =[2]PORTADA!$D$10 -> 1 | AL95: 52
D96: LOPEZ MARTINEZ YVETTE AMALIA MARGARITA | E96: LOMY681017 | F96: LOMY681017MJCPRV08 | G96: 2001-01-01 | H96: SUPERVISOR | P96: 15 | Q96: TARJETA | S96: 0 | T96: 0 | U96: 211.816 | V96: =TRUNC(U96*P96,2) -> 3177.24 | W96: =TRUNC(U96*P96*0.04,2) -> 127.08 | X96: =TRUNC(U96*0.07*P96,2) -> 222.4 | Y96: =S96 -> 0 | Z96: =TRUNC(X96+W96+(IF(Y96>519,519,Y96))+IF(R96=0,0,R96*U96),2) -> 349.48 | AA96: =TRUNC((IF(R96=0,P96*U96,(P96-R96)*U96))+(IF(Y96<519,0,Y96-519)),2)+T96 -> 3177.24 | AB96: =Z96+AA96 -> 3526.72 | AE96: 0 | AF96: =IF(U96>0.01,(AA96-VLOOKUP(AA96,quincenal,1))*VLOOKUP(AA96,quincenal,3)+VLOOKUP(AA96,quincenal,2)-VLOOKUP(AA96,subquincenal,2),0) -> 116.500624 | AG96: =TRUNC(IF(AF96>0.01,AF96,0),2) -> 116.5 | AH96: =TRUNC(IF(AF96<0.01,-AF96,0),2) -> 0 | AI96: =AB96-AD96-AE96-AG96+AH96 -> 3410.22 | AJ96: =[2]PORTADA!$D$10 -> 1 | AL96: 53
D97: ESTRADA GOMEZ JUAN CARLOS | E97: EAGJ510220NR1 | F97: EAGJ510220HJCSMN09 | H97: MENSAJERO | P97: 15 | Q97: TARJETA | S97: 0 | T97: 0 | U97: 216.7235 | V97: =TRUNC(U97*P97,2) -> 3250.85 | W97: =TRUNC(U97*P97*0.04,2) -> 130.03 | X97: =TRUNC(U97*0.07*P97,2) -> 227.55 | Y97: =S97 -> 0 | Z97: =TRUNC(X97+W97+(IF(Y97>519,519,Y97))+IF(R97=0,0,R97*U97),2) -> 357.58 | AA97: =TRUNC((IF(R97=0,P97*U97,(P97-R97)*U97))+(IF(Y97<519,0,Y97-519)),2)+T97 -> 3250.85 | AB97: =Z97+AA97 -> 3608.43 | AD97: 0 | AE97: 0 | AF97: =IF(U97>0.01,(AA97-VLOOKUP(AA97,quincenal,1))*VLOOKUP(AA97,quincenal,3)+VLOOKUP(AA97,quincenal,2)-VLOOKUP(AA97,subquincenal,2),0) -> 124.509392 | AG97: =TRUNC(IF(AF97>0.01,AF97,0),2) -> 124.5 | AH97: =TRUNC(IF(AF97<0.01,-AF97,0),2) -> 0 | AI97: =AB97-AD97-AE97-AG97+AH97 -> 3483.93 | AJ97: =[2]PORTADA!$D$10 -> 1 | AL97: 54
D98: OFICINA DE ENLACE RELACIONES EXTERIORES | V98: =SUM(V94:V97) -> 15158.33 | W98: 606.31 | X98: 1061.06 | Y98: 0 | Z98: 1667.37 | AA98: 15158.33 | AB98: 16825.7 | AC98: 0 | AD98: 0 | AE98: 0 | AF98: 996.442264 | AG98: 996.43 | AH98: 0 | AI98: 15829.27
D100: AGENCIAS MUNICIPALES
A101: 46 | B101: 2 | C101: 2 | D101: GOMEZ HERNANDEZ FRANCISCO JAVIER | H101: AGENTE MUNICIPAL STA. ROSALIA | P101: 15 | Q101: TARJETA | S101: 0 | T101: 0 | U101: 101.23 | V101: =TRUNC(U101*P101,2) -> 1518.45 | W101: =TRUNC(U101*P101*0.04,2) -> 60.73 | X101: =TRUNC(U101*0.07*P101,2) -> 106.29 | Y101: =S101 -> 0 | Z101: =TRUNC(X101+W101+(IF(Y101>519,519,Y101))+IF(R101=0,0,R101*U101),2) -> 167.02 | AA101: =TRUNC((IF(R101=0,P101*U101,(P101-R101)*U101))+(IF(Y101<519,0,Y101-519)),2)+T101 -> 1518.45 | AB101: =Z101+AA101 -> 1685.47 | AE101: 0 | AF101: =IF(U101>0.01,(AA101-VLOOKUP(AA101,quincenal,1))*VLOOKUP(AA101,quincenal,3)+VLOOKUP(AA101,quincenal,2)-VLOOKUP(AA101,subquincenal,2),0) -> -114.53704 | AG101: =TRUNC(IF(AF101>0.01,AF101,0),2) -> 0 | AH101: =TRUNC(IF(AF101<0.01,-AF101,0),2) -> 114.53 | AI101: =AB101-AD101-AE101-AG101+AH101 -> 1800 | AJ101: =PORTADA!$D$10 -> 1 | AL101: 55
A102: 47 | B102: 2 | C102: 2 | D102: BERNAL LOPEZ JUAN MANUEL | E102: PALR | H102: AGENTE MUNICIPAL SAN RAFAEL | P102: 15 | Q102: TARJETA | S102: 0 | T102: 0 | U102: 82.1097 | V102: 1231.64 | W102: 49.26 | X102: 86.21 | Y102: 0 | Z102: 135.47 | AA102: 1231.64 | AB102: 1367.11 | AE102: 0 | AF102: -132.89288 | AG102: =TRUNC(IF(AF102>0.01,AF102,0),2) -> 0 | AH102: =TRUNC(IF(AF102<0.01,-AF102,0),2) -> 132.89 | AI102: 1500 | AJ102: =PORTADA!$D$10 -> 1 | AL102: 56
A103: 48 | B103: 2 | C103: 2 | D103: GONZALEZ RUIZ JOSE ANGEL | E103: GORA710130M39 | F103: GORA710130HJCNZN08 | H103: AGENTE MUNICIPAL SAN SEBASTIAN | P103: 15 | Q103: TARJETA | S103: 0 | T103: 0 | U103: 75.7359 | V103: 1136.03 | W103: 45.44 | X103: 79.52 | Y103: 0 | Z103: 124.96 | AA103: 1136.03 | AB103: 1260.99 | AE103: 0 | AF103: -139.01192 | AG103: =TRUNC(IF(AF103>0.01,AF103,0),2) -> 0 | AH103: =TRUNC(IF(AF103<0.01,-AF103,0),2) -> 139.01 | AI103: 1400 | AJ103: =PORTADA!$D$10 -> 1 | AL103: 57
A104: 49 | B104: 2 | C104: 2 | D104: SIERRA LLAMAS JUAN JOSE | E104: SILJ660418 | F104: SILJ660418HJCRLN17 | H104: AGENTE MUNICIPAL DE PUERTA DE PERICOS | P104: 15 | Q104: TARJETA | S104: 0 | T104: 0 | U104: 88.4834 | V104: 1327.25 | W104: 53.09 | X104: 92.9 | Y104: 0 | Z104: 145.99 | AA104: 1327.25 | AB104: 1473.24 | AE104: 0 | AF104: -126.77384 | AG104: =TRUNC(IF(AF104>0.01,AF104,0),2) -> 0 | AH104: =TRUNC(IF(AF104<0.01,-AF104,0),2) -> 126.77 | AI104: 1600.01 | AJ104: =PORTADA!$D$10 -> 1 | AL104: 58
D105: NAVARRO AYON RAUL JAIME | H105: AGENTE MUNICIPAL DE LA MAZATA | P105: 15 | Q105: TARJETA | S105: 0 | T105: 0 | U105: 82.1097 | V105: =TRUNC(U105*P105,2) -> 1231.64 | W105: =TRUNC(U105*P105*0.04,2) -> 49.26 | X105: =TRUNC(U105*0.07*P105,2) -> 86.21 | Y105: =S105 -> 0 | Z105: =TRUNC(X105+W105+(IF(Y105>519,519,Y105))+IF(R105=0,0,R105*U105),2) -> 135.47 | AA105: =TRUNC((IF(R105=0,P105*U105,(P105-R105)*U105))+(IF(Y105<519,0,Y105-519)),2)+T105 -> 1231.64 | AB105: =Z105+AA105 -> 1367.11 | AE105: 0 | AF105: =IF(U105>0.01,(AA105-VLOOKUP(AA105,quincenal,1))*VLOOKUP(AA105,quincenal,3)+VLOOKUP(AA105,quincenal,2)-VLOOKUP(AA105,subquincenal,2),0) -> -132.89288 | AG105: 0 | AH105: 132.89 | AI105: =AB105-AD105-AE105-AG105+AH105 -> 1500 | AL105: 59
D106: PEREZ LLAMAS SAMUEL | H106: AGENTE MUNICIPAL DE LA QUEBRADA | P106: 15 | Q106: TARJETA | S106: 0 | T106: 0 | U106: 113.977 | V106: 1709.65 | W106: 68.38 | X106: 119.67 | Y106: 0 | Z106: 188.05 | AA106: 1709.65 | AB106: 1897.7 | AE106: 0 | AF106: -102.30024 | AG106: 0 | AH106: 102.3 | AI106: 2000 | AL106: 60
D107: MURILLO HERNANDEZ MARIANO | H107: AGENTE MUNICIPAL DE LA EMBOCADA | P107: 15 | Q107: TARJETA | S107: 0 | T107: 0 | U107: 95.6 | V107: 1434 | W107: 57.36 | X107: 100.38 | Y107: 0 | Z107: 157.74 | AA107: 1434 | AB107: 1591.74 | AE107: 0 | AF107: -119.94184 | AG107: 0 | AH107: 119.94 | AI107: 1711.68
A108: 54 | D108: SANCHEZ NAVARRO ARTURO | H108: ASEO LA MAZATA | P108: 15 | Q108: TARJETA | U108: 90.65 | V108: =TRUNC(U108*P108,2) -> 1359.75 | W108: =TRUNC(U108*P108*0.04,2) -> 54.39 | X108: =TRUNC(U108*0.07*P108,2) -> 95.18 | Y108: =S108 -> 0 | Z108: =TRUNC(X108+W108+(IF(Y108>519,519,Y108))+IF(R108=0,0,R108*U108),2) -> 149.57 | AA108: =TRUNC((IF(R108=0,P108*U108,(P108-R108)*U108))+(IF(Y108<519,0,Y108-519)),2)+T108 -> 1359.75 | AB108: =Z108+AA108 -> 1509.32 | AE108: 0 | AF108: =IF(U108>0.01,(AA108-VLOOKUP(AA108,quincenal,1))*VLOOKUP(AA108,quincenal,3)+VLOOKUP(AA108,quincenal,2)-VLOOKUP(AA108,subquincenal,2),0) -> -124.69384 | AG108: =TRUNC(IF(AF108>0.01,AF108,0),2) -> 0 | AH108: =TRUNC(IF(AF108<0.01,-AF108,0),2) -> 124.69 | AI108: =AB108-AD108-AE108-AG108+AH108 -> 1634.01 | AL108: 61
D109: LOPEZ SILVA CARLOS DAMIAN | E109: GOHV780710 | F109: GOHV780710HJCMRL00 | G109: 2007-02-01 | H109: CHOFER RECOLECTOR | P109: 15 | Q109: TARJETA | S109: 0 | T109: 0 | U109: =2530/15 -> 168.6666667 | V109: =TRUNC(U109*P109,2) -> 2530 | W109: =TRUNC(U109*P109*0.04,2) -> 101.2 | X109: =TRUNC(U109*0.07*P109,2) -> 177.1 | Y109: =S109 -> 0 | Z109: =TRUNC(X109+W109+(IF(Y109>519,519,Y109))+IF(R109=0,0,R109*U109),2) -> 278.3 | AA109: =TRUNC((IF(R109=0,P109*U109,(P109-R109)*U109))+(IF(Y109<519,0,Y109-519)),2)+T109 -> 2530 | AB109: =Z109+AA109 -> 2808.3 | AE109: 0 | AF109: =IF(U109>0.01,(AA109-VLOOKUP(AA109,quincenal,1))*VLOOKUP(AA109,quincenal,3)+VLOOKUP(AA109,quincenal,2)-VLOOKUP(AA109,subquincenal,2),0) -> 10.830912 | AG109: =TRUNC(IF(AF109>0.01,AF109,0),2) -> 10.83 | AH109: =TRUNC(IF(AF109<0.01,-AF109,0),2) -> 0 | AI109: =AB109-AD109-AE109-AG109+AH109 -> 2797.47 | AJ109: =[2]PORTADA!$D$10 -> 1 | AL109: 62
D110: AGENCIAS MUNICIPALES | V110: =SUM(V101:V109) -> 13478.41 | W110: 539.11 | X110: 943.46 | Y110: 0 | Z110: 1482.57 | AA110: 13478.41 | AB110: 14960.98 | AC110: 0 | AD110: 0 | AE110: 0 | AF110: -982.213568 | AG110: 10.83 | AH110: 993.02 | AI110: 15943.17
D112: ADMIN ISTRACION DE LA HACIENDA MUNICIPAL
A113: 56 | B113: 3 | C113: 1 | D113: CAMARENA GONZALEZ RUBIO MARIO | H113: ENCARGADO DE HACIENDA PUBLICA | P113: 15 | Q113: TARJETA | S113: 0 | T113: 0 | U113: =8355/15 -> 557 | V113: =TRUNC(U113*P113,2) -> 8355 | W113: =TRUNC(U113*P113*0.04,2) -> 334.2 | X113: =TRUNC(U113*0.07*P113,2) -> 584.85 | Y113: =S113 -> 0 | Z113: =TRUNC(X113+W113+(IF(Y113>519,519,Y113))+IF(R113=0,0,R113*U113),2) -> 919.05 | AA113: =TRUNC((IF(R113=0,P113*U113,(P113-R113)*U113))+(IF(Y113<519,0,Y113-519)),2)+T113 -> 8355 | AB113: =Z113+AA113 -> 9274.05 | AE113: 0 | AF113: =IF(U113>0.01,(AA113-VLOOKUP(AA113,quincenal,1))*VLOOKUP(AA113,quincenal,3)+VLOOKUP(AA113,quincenal,2)-VLOOKUP(AA113,subquincenal,2),0) -> 1237.438824 | AG113: =TRUNC(IF(AF113>0.01,AF113,0),2) -> 1237.43 | AH113: =TRUNC(IF(AF113<0.01,-AF113,0),2) -> 0 | AI113: =AB113-AD113-AE113-AG113+AH113 -> 8036.62 | AJ113: =PORTADA!$D$10 -> 1 | AL113: 63
D114: PEREZ JAIME ARTURO | E114: PEJA600718 | F114: PEXJ600718HJCRXM09 | G114: 2009-01-05 | H114: AUXILIAR CONTABLE | P114: 15 | Q114: TARJETA | S114: 0 | T114: 0 | U114: =5198/15 -> 346.5333333 | V114: =TRUNC(U114*P114,2) -> 5198 | W114: =TRUNC(U114*P114*0.04,2) -> 207.92 | X114: =TRUNC(U114*0.07*P114,2) -> 363.86 | Y114: =S114 -> 0 | Z114: =TRUNC(X114+W114+(IF(Y114>519,519,Y114))+IF(R114=0,0,R114*U114),2) -> 571.78 | AA114: =TRUNC((IF(R114=0,P114*U114,(P114-R114)*U114))+(IF(Y114<519,0,Y114-519)),2)+T114 -> 5198 | AB114: =Z114+AA114 -> 5769.78 | AE114: 0 | AF114: =IF(U114>0.01,(AA114-VLOOKUP(AA114,quincenal,1))*VLOOKUP(AA114,quincenal,3)+VLOOKUP(AA114,quincenal,2)-VLOOKUP(AA114,subquincenal,2),0) -> 563.103624 | AG114: =TRUNC(IF(AF114>0.01,AF114,0),2) -> 563.1 | AH114: =TRUNC(IF(AF114<0.01,-AF114,0),2) -> 0 | AI114: =AB114-AD114-AE114-AG114+AH114 -> 5206.68 | AL114: 64
D115: VALENZUELA PARRA PERLA PATRICIA | H115: SECRETARIA | P115: 15 | Q115: TARJETA | S115: 0 | T115: 0 | U115: 147.369 | V115: =TRUNC(U115*P115,2) -> 2210.53 | W115: =TRUNC(U115*P115*0.04,2) -> 88.42 | X115: =TRUNC(U115*0.07*P115,2) -> 154.73 | Y115: =S115 -> 0 | Z115: =TRUNC(X115+W115+(IF(Y115>519,519,Y115))+IF(R115=0,0,R115*U115),2) -> 243.15 | AA115: =TRUNC((IF(R115=0,P115*U115,(P115-R115)*U115))+(IF(Y115<519,0,Y115-519)),2)+T115 -> 2210.53 | AB115: =Z115+AA115 -> 2453.68 | AE115: 0 | AF115: =IF(U115>0.01,(AA115-VLOOKUP(AA115,quincenal,1))*VLOOKUP(AA115,quincenal,3)+VLOOKUP(AA115,quincenal,2)-VLOOKUP(AA115,subquincenal,2),0) -> -38.327424 | AG115: =TRUNC(IF(AF115>0.01,AF115,0),2) -> 0 | AH115: =TRUNC(IF(AF115<0.01,-AF115,0),2) -> 38.32 | AI115: =AB115-AD115-AE115-AG115+AH115 -> 2492
D116: ARQUIETA GONZALEZ IRENE MAGALI | H116: ENCARGADO DEL DEPTO DE ADQUISICIONES | P116: 15 | Q116: TARJETA | S116: 0 | T116: 0 | U116: 217.7938 | V116: =TRUNC(U116*P116,2) -> 3266.9 | W116: =TRUNC(U116*P116*0.04,2) -> 130.67 | X116: =TRUNC(U116*0.07*P116,2) -> 228.68 | Y116: =S116 -> 0 | Z116: =TRUNC(X116+W116+(IF(Y116>519,519,Y116))+IF(R116=0,0,R116*U116),2) -> 359.35 | AA116: =TRUNC((IF(R116=0,P116*U116,(P116-R116)*U116))+(IF(Y116<519,0,Y116-519)),2)+T116 -> 3266.9 | AB116: =Z116+AA116 -> 3626.25 | AE116: 0 | AF116: =IF(U116>0.01,(AA116-VLOOKUP(AA116,quincenal,1))*VLOOKUP(AA116,quincenal,3)+VLOOKUP(AA116,quincenal,2)-VLOOKUP(AA116,subquincenal,2),0) -> 126.255632 | AG116: =TRUNC(IF(AF116>0.01,AF116,0),2) -> 126.25 | AH116: =TRUNC(IF(AF116<0.01,-AF116,0),2) -> 0 | AI116: =AB116-AD116-AE116-AG116+AH116 -> 3500 | AJ116: =PORTADA!$D$10 -> 1 | AL116: 65
D117: GOMEZ ESQUIVEL JULIO ISRAEL | H117: CAPTURISTA EN TESORERIA | P117: 15 | Q117: TARJETA | S117: 0 | T117: 0 | U117: 147.9014 | V117: =TRUNC(U117*P117,2) -> 2218.52 | W117: =TRUNC(U117*P117*0.04,2) -> 88.74 | X117: =TRUNC(U117*0.07*P117,2) -> 155.29 | Y117: =S117 -> 0 | Z117: =TRUNC(X117+W117+(IF(Y117>519,519,Y117))+IF(R117=0,0,R117*U117),2) -> 244.03 | AA117: =TRUNC((IF(R117=0,P117*U117,(P117-R117)*U117))+(IF(Y117<519,0,Y117-519)),2)+T117 -> 2218.52 | AB117: =Z117+AA117 -> 2462.55 | AD117: 500 | AE117: 0 | AF117: =IF(U117>0.01,(AA117-VLOOKUP(AA117,quincenal,1))*VLOOKUP(AA117,quincenal,3)+VLOOKUP(AA117,quincenal,2)-VLOOKUP(AA117,subquincenal,2),0) -> -37.458112 | AG117: =TRUNC(IF(AF117>0.01,AF117,0),2) -> 0 | AH117: =TRUNC(IF(AF117<0.01,-AF117,0),2) -> 37.45 | AI117: =AB117-AD117-AE117-AG117+AH117 -> 2000 | AL117: 66
D118: MARTINEZ PAREDES ANNA VERONICA | E118: MAPA820618 | F118: MAPA820618MJCRRN00 | G118: 2007-01-31 | H118: AUXILIAR CONTABLE | P118: 15 | Q118: TARJETA | S118: 0 | T118: 0 | U118: =4693/15 -> 312.8666667 | V118: =TRUNC(U118*P118,2) -> 4693 | W118: =TRUNC(U118*P118*0.04,2) -> 187.72 | X118: =TRUNC(U118*0.07*P118,2) -> 328.51 | Y118: =S118 -> 0 | Z118: =TRUNC(X118+W118+(IF(Y118>519,519,Y118))+IF(R118=0,0,R118*U118),2) -> 516.23 | AA118: =TRUNC((IF(R118=0,P118*U118,(P118-R118)*U118))+(IF(Y118<519,0,Y118-519)),2)+T118 -> 4693 | AB118: =Z118+AA118 -> 5209.23 | AE118: 0 | AF118: =IF(U118>0.01,(AA118-VLOOKUP(AA118,quincenal,1))*VLOOKUP(AA118,quincenal,3)+VLOOKUP(AA118,quincenal,2)-VLOOKUP(AA118,subquincenal,2),0) -> 468.491088 | AG118: =TRUNC(IF(AF118>0.01,AF118,0),2) -> 468.49 | AH118: =TRUNC(IF(AF118<0.01,-AF118,0),2) -> 0 | AI118: =AB118-AD118-AE118-AG118+AH118 -> 4740.74 | AJ118: =[2]PORTADA!$D$10 -> 1 | AL118: 67
D119: ADMIN ISTRACION DE LA HACIENDA MUNICIPAL | V119: =SUM(V113:V118) -> 25941.95 | W119: =SUM(W113:W118) -> 1037.67 | X119: 1815.92 | Y119: 0 | Z119: 2853.59 | AA119: 25941.95 | AB119: 28795.54 | AC119: 0 | AD119: 500 | AE119: 0 | AF119: 2319.503632 | AG119: 2395.27 | AH119: 75.77 | AI119: 25976.04
D121: DEPARTAMENTO DE INGRESOS
A122: 61 | B122: 11 | C122: 17 | D122: ARIAS RAMOS MARIA DEL SOCORRO | E122: AIRS650514 | F122: AIRS650514MJCRMC06 | H122: CAJERA | P122: 15 | Q122: TARJETA | S122: 0 | T122: 0 | U122: =3228/15 -> 215.2 | V122: =TRUNC(U122*P122,2) -> 3228 | W122: =TRUNC(U122*P122*0.04,2) -> 129.12 | X122: =TRUNC(U122*0.07*P122,2) -> 225.96 | Y122: =S122 -> 0 | Z122: =TRUNC(X122+W122+(IF(Y122>519,519,Y122))+IF(R122=0,0,R122*U122),2) -> 355.08 | AA122: =TRUNC((IF(R122=0,P122*U122,(P122-R122)*U122))+(IF(Y122<519,0,Y122-519)),2)+T122 -> 3228 | AB122: =Z122+AA122 -> 3583.08 | AE122: 0 | AF122: =IF(U122>0.01,(AA122-VLOOKUP(AA122,quincenal,1))*VLOOKUP(AA122,quincenal,3)+VLOOKUP(AA122,quincenal,2)-VLOOKUP(AA122,subquincenal,2),0) -> 122.023312 | AG122: =TRUNC(IF(AF122>0.01,AF122,0),2) -> 122.02 | AH122: =TRUNC(IF(AF122<0.01,-AF122,0),2) -> 0 | AI122: =AB122-AD122-AE122-AG122+AH122 -> 3461.06 | AJ122: =[2]PORTADA!$D$10 -> 1 | AL122: 68
D123: CABRALES GONZALEZ JOSE MANUEL | E123: CAGM680912 | F123: CAGM680912HJCBNN06 | G123: 2007-01-01 | H123: RECAUDADOR DE PISO | P123: 15 | Q123: TARJETA | S123: 0 | T123: 0 | U123: =3016/15 -> 201.0666667 | V123: =TRUNC(U123*P123,2) -> 3016 | W123: =TRUNC(U123*P123*0.04,2) -> 120.64 | X123: =TRUNC(U123*0.07*P123,2) -> 211.12 | Y123: =S123 -> 0 | Z123: =TRUNC(X123+W123+(IF(Y123>519,519,Y123))+IF(R123=0,0,R123*U123),2) -> 331.76 | AA123: =TRUNC((IF(R123=0,P123*U123,(P123-R123)*U123))+(IF(Y123<519,0,Y123-519)),2)+T123 -> 3016 | AB123: =Z123+AA123 -> 3347.76 | AE123: 0 | AF123: =IF(U123>0.01,(AA123-VLOOKUP(AA123,quincenal,1))*VLOOKUP(AA123,quincenal,3)+VLOOKUP(AA123,quincenal,2)-VLOOKUP(AA123,subquincenal,2),0) -> 78.707712 | AG123: =TRUNC(IF(AF123>0.01,AF123,0),2) -> 78.7 | AH123: =TRUNC(IF(AF123<0.01,-AF123,0),2) -> 0 | AI123: =AB123-AD123-AE123-AG123+AH123 -> 3269.06 | AJ123: =[2]PORTADA!$D$10 -> 1 | AL123: 69
A124: LAURO | D124: BERNAL RUIZ LAURO | H124: NOTIFICADOR | P124: 15 | U124: 203.128 | V124: =TRUNC(U124*P124,2) -> 3046.92 | W124: =TRUNC(U124*P124*0.04,2) -> 121.87 | X124: =TRUNC(U124*0.07*P124,2) -> 213.28 | Y124: =S124 -> 0 | Z124: =TRUNC(X124+W124+(IF(Y124>519,519,Y124))+IF(R124=0,0,R124*U124),2) -> 335.15 | AA124: =TRUNC((IF(R124=0,P124*U124,(P124-R124)*U124))+(IF(Y124<519,0,Y124-519)),2)+T124 -> 3046.92 | AB124: =Z124+AA124 -> 3382.07 | AE124: 0 | AF124: =IF(U124>0.01,(AA124-VLOOKUP(AA124,quincenal,1))*VLOOKUP(AA124,quincenal,3)+VLOOKUP(AA124,quincenal,2)-VLOOKUP(AA124,subquincenal,2),0) -> 82.071808 | AG124: =TRUNC(IF(AF124>0.01,AF124,0),2) -> 82.07 | AH124: =TRUNC(IF(AF124<0.01,-AF124,0),2) -> 0 | AI124: =AB124-AD124-AE124-AG124+AH124 -> 3300 | AL124: 70
Q125: TARJETA | S125: 0 | T125: 0 | U125: 133.0974 | Y125: =S125 -> 0 | Z125: =TRUNC(X125+W125+(IF(Y125>519,519,Y125))+IF(R125=0,0,R125*U125),2) -> 0 | AA125: =TRUNC((IF(R125=0,P125*U125,(P125-R125)*U125))+(IF(Y125<519,0,Y125-519)),2)+T125 -> 0 | AB125: =Z125+AA125 -> 0 | AF125: =IF(U125>0.01,(AA125-VLOOKUP(AA125,quincenal,1))*VLOOKUP(AA125,quincenal,3)+VLOOKUP(AA125,quincenal,2)-VLOOKUP(AA125,subquincenal,2),0) -> 
D126: GONZALEZ ARQUIETA CESAR ARMANDO | E126: MAGG | H126: INSPECTOR TESORERIA | P126: 15 | Q126: TARJETA | S126: 0 | T126: 0 | U126: 147.9014 | V126: =TRUNC(U126*P126,2) -> 2218.52 | W126: =TRUNC(U126*P126*0.04,2) -> 88.74 | X126: =TRUNC(U126*0.07*P126,2) -> 155.29 | Y126: =S126 -> 0 | Z126: =TRUNC(X126+W126+(IF(Y126>519,519,Y126))+IF(R126=0,0,R126*U126),2) -> 244.03 | AA126: =TRUNC((IF(R126=0,P126*U126,(P126-R126)*U126))+(IF(Y126<519,0,Y126-519)),2)+T126 -> 2218.52 | AB126: =Z126+AA126 -> 2462.55 | AE126: 0 | AF126: =IF(U126>0.01,(AA126-VLOOKUP(AA126,quincenal,1))*VLOOKUP(AA126,quincenal,3)+VLOOKUP(AA126,quincenal,2)-VLOOKUP(AA126,subquincenal,2),0) -> -37.458112 | AG126: =TRUNC(IF(AF126>0.01,AF126,0),2) -> 0 | AH126: =TRUNC(IF(AF126<0.01,-AF126,0),2) -> 37.45 | AI126: =AB126-AD126-AE126-AG126+AH126 -> 2500 | AL126: 71
D127: DEPARTAMENTO DE INGRESOS | V127: =SUM(V122:V126) -> 11509.44 | W127: =SUM(W122:W126) -> 460.37 | X127: 805.65 | Y127: 0 | Z127: 1266.02 | AA127: 11509.44 | AB127: 12775.46 | AC127: 0 | AD127: 0 | AE127: 0 | AG127: 282.79 | AH127: 37.45 | AI127: 12530.12
D129: INSTITUTO DE LA MUJER
A130: 63 | B130: 3 | C130: 7 | D130: MEDINA FLORES MIRIAM CONCEPCION | E130: LEGJ | H130: ENCARGADA | P130: 15 | Q130: TARJETA | S130: 0 | T130: 0 | U130: 217.7938 | V130: =TRUNC(U130*P130,2) -> 3266.9 | W130: =TRUNC(U130*P130*0.04,2) -> 130.67 | X130: =TRUNC(U130*0.07*P130,2) -> 228.68 | Y130: =S130 -> 0 | Z130: =TRUNC(X130+W130+(IF(Y130>519,519,Y130))+IF(R130=0,0,R130*U130),2) -> 359.35 | AA130: =TRUNC((IF(R130=0,P130*U130,(P130-R130)*U130))+(IF(Y130<519,0,Y130-519)),2)+T130 -> 3266.9 | AB130: =Z130+AA130 -> 3626.25 | AE130: 0 | AF130: =IF(U130>0.01,(AA130-VLOOKUP(AA130,quincenal,1))*VLOOKUP(AA130,quincenal,3)+VLOOKUP(AA130,quincenal,2)-VLOOKUP(AA130,subquincenal,2),0) -> 126.255632 | AG130: =TRUNC(IF(AF130>0.01,AF130,0),2) -> 126.25 | AH130: =TRUNC(IF(AF130<0.01,-AF130,0),2) -> 0 | AI130: =AB130-AD130-AE130-AG130+AH130 -> 3500 | AJ130: =PORTADA!$D$10 -> 1 | AL130: 72
D131: DEPARTAMENTO DE EGRESOS | V131: =SUM(V130) -> 3266.9 | W131: 130.67 | X131: 228.68 | Y131: 0 | Z131: 359.35 | AA131: 3266.9 | AB131: 3626.25 | AC131: 0 | AD131: 0 | AE131: 0 | AF131: 126.255632 | AG131: 126.25 | AH131: 0 | AI131: 3500
D133: DEPARTAMENTO DE INFORMATICA
A134: 64 | B134: 3 | C134: 12 | D134: ILLAN ARIAS CESAR | E134: DIME | H134: DIRECTOR DE IDE NFORMATICA Y SISTEMAS | P134: 15 | Q134: TARJETA | S134: 0 | T134: 0 | U134: 260.287 | V134: =TRUNC(U134*P134,2) -> 3904.3 | W134: =TRUNC(U134*P134*0.04,2) -> 156.17 | X134: =TRUNC(U134*0.07*P134,2) -> 273.3 | Y134: =S134 -> 0 | Z134: =TRUNC(X134+W134+(IF(Y134>519,519,Y134))+IF(R134=0,0,R134*U134),2) -> 429.47 | AA134: =TRUNC((IF(R134=0,P134*U134,(P134-R134)*U134))+(IF(Y134<519,0,Y134-519)),2)+T134 -> 3904.3 | AB134: =Z134+AA134 -> 4333.77 | AE134: 0 | AF134: =IF(U134>0.01,(AA134-VLOOKUP(AA134,quincenal,1))*VLOOKUP(AA134,quincenal,3)+VLOOKUP(AA134,quincenal,2)-VLOOKUP(AA134,subquincenal,2),0) -> 333.7764 | AG134: =TRUNC(IF(AF134>0.01,AF134,0),2) -> 333.77 | AH134: =TRUNC(IF(AF134<0.01,-AF134,0),2) -> 0 | AI134: =AB134-AD134-AE134-AG134+AH134 -> 4000 | AJ134: =PORTADA!$D$10 -> 1 | AL134: 73
D135: BERNAL ESTRADA EDGAR FERNANDO | H135: AUXILIAR DEL DEPARTAMENTO DE NFORMATICA | P135: 15 | Q135: TARJETA | S135: 0 | T135: 0 | U135: 147.9015 | V135: =TRUNC(U135*P135,2) -> 2218.52 | W135: =TRUNC(U135*P135*0.04,2) -> 88.74 | X135: =TRUNC(U135*0.07*P135,2) -> 155.29 | Y135: =S135 -> 0 | Z135: =TRUNC(X135+W135+(IF(Y135>519,519,Y135))+IF(R135=0,0,R135*U135),2) -> 244.03 | AA135: =TRUNC((IF(R135=0,P135*U135,(P135-R135)*U135))+(IF(Y135<519,0,Y135-519)),2)+T135 -> 2218.52 | AB135: =Z135+AA135 -> 2462.55 | AF135: =IF(U135>0.01,(AA135-VLOOKUP(AA135,quincenal,1))*VLOOKUP(AA135,quincenal,3)+VLOOKUP(AA135,quincenal,2)-VLOOKUP(AA135,subquincenal,2),0) -> -37.458112 | AG135: =TRUNC(IF(AF135>0.01,AF135,0),2) -> 0 | AH135: =TRUNC(IF(AF135<0.01,-AF135,0),2) -> 37.45 | AI135: =AB135-AD135-AE135-AG135+AH135 -> 2500 | AJ135: =PORTADA!$D$10 -> 1 | AL135: 74
D136: DEPARTAMENTO DE COMPUTO E INFORMATICA | V136: =SUM(V134:V135) -> 6122.82 | W136: =SUM(W134:W135) -> 244.91 | X136: 428.59 | Y136: 0 | Z136: 673.5 | AA136: 6122.82 | AB136: 6796.32 | AC136: 0 | AD136: 0 | AE136: 0 | AF136: 296.318288 | AG136: 333.77 | AH136: 37.45 | AI136: 6500
D138: DEPARTAMENTO DE IMPUESTO PREDIAL Y CATASTRO
D139: ROBLES VENEGAS OSCAR HUMBERTO | H139: DIRECTOR | P139: 15 | Q139: TARJETA | S139: 0 | T139: 0 | U139: 405.5341 | V139: =TRUNC(U139*P139,2) -> 6083.01 | W139: =TRUNC(U139*P139*0.04,2) -> 243.32 | X139: =TRUNC(U139*0.07*P139,2) -> 425.81 | Y139: =S139 -> 0 | Z139: =TRUNC(X139+W139+(IF(Y139>519,519,Y139))+IF(R139=0,0,R139*U139),2) -> 669.13 | AA139: =TRUNC((IF(R139=0,P139*U139,(P139-R139)*U139))+(IF(Y139<519,0,Y139-519)),2)+T139 -> 6083.01 | AB139: =Z139+AA139 -> 6752.14 | AE139: 0 | AF139: =IF(U139>0.01,(AA139-VLOOKUP(AA139,quincenal,1))*VLOOKUP(AA139,quincenal,3)+VLOOKUP(AA139,quincenal,2)-VLOOKUP(AA139,subquincenal,2),0) -> 752.14176 | AG139: =TRUNC(IF(AF139>0.01,AF139,0),2) -> 752.14 | AH139: =TRUNC(IF(AF139<0.01,-AF139,0),2) -> 0 | AI139: =AB139-AD139-AE139-AG139+AH139 -> 6000 | AL139: 75
A140: 66 | B140: 3 | C140: 13 | D140: CASTELLANOS LOPEZ FRANCISCO JAVIER | E140: CAPB801105 | F140: CAPB801105MJCMRR06 | G140: 2007-01-01 | H140: SUB-DIRECTOR DE CATASTRO | P140: 15 | Q140: TARJETA | S140: 0 | T140: 0 | U140: 274.0419 | V140: =TRUNC(U140*P140,2) -> 4110.62 | W140: =TRUNC(U140*P140*0.04,2) -> 164.42 | X140: =TRUNC(U140*0.07*P140,2) -> 287.74 | Y140: =S140 -> 0 | Z140: =TRUNC(X140+W140+(IF(Y140>519,519,Y140))+IF(R140=0,0,R140*U140),2) -> 452.16 | AA140: =TRUNC((IF(R140=0,P140*U140,(P140-R140)*U140))+(IF(Y140<519,0,Y140-519)),2)+T140 -> 4110.62 | AB140: =Z140+AA140 -> 4562.78 | AE140: 0 | AF140: =IF(U140>0.01,(AA140-VLOOKUP(AA140,quincenal,1))*VLOOKUP(AA140,quincenal,3)+VLOOKUP(AA140,quincenal,2)-VLOOKUP(AA140,subquincenal,2),0) -> 366.7876 | AG140: =TRUNC(IF(AF140>0.01,AF140,0),2) -> 366.78 | AH140: =TRUNC(IF(AF140<0.01,-AF140,0),2) -> 0 | AI140: =AB140-AD140-AE140-AG140+AH140 -> 4196 | AJ140: =PORTADA!$D$10 -> 1 | AL140: 76
A141: 63 | B141: 3 | C141: 13 | E141: GOME840310 | F141: GOME840310MJCNRR06 | G141: 2009-01-01 | H141: SECRETARIA | P141: 0 | Q141: TARJETA | S141: 0 | T141: 0 | U141: 170.38 | V141: 0 | W141: 0 | X141: 0 | Y141: 0 | Z141: 0 | AA141: 0 | AB141: 0 | AD141: 0 | AE141: 0 | AI141: 0 | AJ141: =PORTADA!$D$10 -> 1
A142: 67 | D142: GARCIA LOPEZ MARIA ESMERALDA | E142: HEBC | H142: SECRETARIA EN CATASTRO | P142: 15 | Q142: TARJETA | S142: 0 | T142: 0 | U142: 147.369 | V142: 2210.53 | W142: 88.42 | X142: 154.73 | Y142: 0 | Z142: 243.15 | AA142: 2210.53 | AB142: 2453.68 | AF142: =IF(U142>0.01,(AA142-VLOOKUP(AA142,quincenal,1))*VLOOKUP(AA142,quincenal,3)+VLOOKUP(AA142,quincenal,2)-VLOOKUP(AA142,subquincenal,2),0) -> -38.327424 | AG142: =TRUNC(IF(AF142>0.01,AF142,0),2) -> 0 | AH142: =TRUNC(IF(AF142<0.01,-AF142,0),2) -> 38.32 | AI142: 2492 | AL142: 77
D143: ORTEGA CRUZ ERIKA NARSEDALIA | H143: SECRETARIA EN CATASTRO | P143: 15 | Q143: TARJETA | S143: 0 | T143: 0 | U143: 147.369 | V143: =TRUNC(U143*P143,2) -> 2210.53 | W143: =TRUNC(U143*P143*0.04,2) -> 88.42 | X143: =TRUNC(U143*0.07*P143,2) -> 154.73 | Y143: =S143 -> 0 | Z143: =TRUNC(X143+W143+(IF(Y143>519,519,Y143))+IF(R143=0,0,R143*U143),2) -> 243.15 | AA143: =TRUNC((IF(R143=0,P143*U143,(P143-R143)*U143))+(IF(Y143<519,0,Y143-519)),2)+T143 -> 2210.53 | AB143: =Z143+AA143 -> 2453.68 | AE143: 0 | AF143: =IF(U143>0.01,(AA143-VLOOKUP(AA143,quincenal,1))*VLOOKUP(AA143,quincenal,3)+VLOOKUP(AA143,quincenal,2)-VLOOKUP(AA143,subquincenal,2),0) -> -38.327424 | AG143: =TRUNC(IF(AF143>0.01,AF143,0),2) -> 0 | AH143: =TRUNC(IF(AF143<0.01,-AF143,0),2) -> 38.32 | AI143: =AB143-AD143-AE143-AG143+AH143 -> 2492 | AL143: 78
D144: DEPARTAMENTO DE IMPUESTO PREDIAL Y CATASTRO | V144: =SUM(V139:V143) -> 14614.69 | W144: 584.58 | X144: 1023.01 | Y144: 0 | Z144: 1607.59 | AA144: 14614.69 | AB144: 16222.28 | AC144: 0 | AD144: 0 | AE144: 0 | AF144: 1042.274512 | AG144: 1118.92 | AH144: 76.64 | AI144: 15180
D146: ADMINISTRACION DE LOS SERVICIOS PUBLICOS MUNICIPALES
A147: 69 | D147: MARISCAL MORALES JESUS RICARDO | E147: HEAM740507 | F147: HEAM740507HJCRGN04 | G147: 2008-05-01 | H147: DIRECTOR DE SERVICIOS ´PÚBLICOS MUNICIPALES | P147: 15 | Q147: TARJETA | S147: 0 | T147: 0 | U147: 491.062 | V147: =TRUNC(U147*P147,2) -> 7365.93 | W147: =TRUNC(U147*P147*0.04,2) -> 294.63 | X147: =TRUNC(U147*0.07*P147,2) -> 515.61 | Y147: =S147 -> 0 | Z147: =TRUNC(X147+W147+(IF(Y147>519,519,Y147))+IF(R147=0,0,R147*U147),2) -> 810.24 | AA147: =TRUNC((IF(R147=0,P147*U147,(P147-R147)*U147))+(IF(Y147<519,0,Y147-519)),2)+T147 -> 7365.93 | AB147: =Z147+AA147 -> 8176.17 | AE147: 0 | AF147: =IF(U147>0.01,(AA147-VLOOKUP(AA147,quincenal,1))*VLOOKUP(AA147,quincenal,3)+VLOOKUP(AA147,quincenal,2)-VLOOKUP(AA147,subquincenal,2),0) -> 1026.173472 | AG147: =TRUNC(IF(AF147>0.01,AF147,0),2) -> 1026.17 | AH147: =TRUNC(IF(AF147<0.01,-AF147,0),2) -> 0 | AI147: =AB147-AD147-AE147-AG147+AH147 -> 7150 | AJ147: =PORTADA!$D$10 -> 1 | AL147: 79
A148: 70 | D148: CERVANTES VELAZCO ISAIAS | E148: IAOR | H148: ENCARGADO DE MANTENIMIENTO A VEHICULOS | P148: 15 | Q148: TARJETA | S148: 0 | T148: 0 | U148: 295.625 | V148: =TRUNC(U148*P148,2) -> 4434.37 | W148: =TRUNC(U148*P148*0.04,2) -> 177.37 | X148: =TRUNC(U148*0.07*P148,2) -> 310.4 | Y148: =S148 -> 0 | Z148: =TRUNC(X148+W148+(IF(Y148>519,519,Y148))+IF(R148=0,0,R148*U148),2) -> 487.77 | AA148: =TRUNC((IF(R148=0,P148*U148,(P148-R148)*U148))+(IF(Y148<519,0,Y148-519)),2)+T148 -> 4434.37 | AB148: =Z148+AA148 -> 4922.14 | AE148: 0 | AF148: =IF(U148>0.01,(AA148-VLOOKUP(AA148,quincenal,1))*VLOOKUP(AA148,quincenal,3)+VLOOKUP(AA148,quincenal,2)-VLOOKUP(AA148,subquincenal,2),0) -> 422.144592 | AG148: =TRUNC(IF(AF148>0.01,AF148,0),2) -> 422.14 | AH148: =TRUNC(IF(AF148<0.01,-AF148,0),2) -> 0 | AI148: =AB148-AD148-AE148-AG148+AH148 -> 4500 | AL148: 80
D149: HERNANDEZ AGUIRRE JOSE MANUEL | H149: OPERADOR DE MAQUINARIA | P149: 15 | U149: 228.53 | V149: =TRUNC(U149*P149,2) -> 3427.95 | W149: =TRUNC(U149*P149*0.04,2) -> 137.11 | X149: =TRUNC(U149*0.07*P149,2) -> 239.95 | Y149: =S149 -> 0 | Z149: =TRUNC(X149+W149+(IF(Y149>519,519,Y149))+IF(R149=0,0,R149*U149),2) -> 377.06 | AA149: =TRUNC((IF(R149=0,P149*U149,(P149-R149)*U149))+(IF(Y149<519,0,Y149-519)),2)+T149 -> 3427.95 | AB149: =Z149+AA149 -> 3805.01 | AE149: 0 | AF149: =IF(U149>0.01,(AA149-VLOOKUP(AA149,quincenal,1))*VLOOKUP(AA149,quincenal,3)+VLOOKUP(AA149,quincenal,2)-VLOOKUP(AA149,subquincenal,2),0) -> 143.777872 | AG149: =TRUNC(IF(AF149>0.01,AF149,0),2) -> 143.77 | AH149: =TRUNC(IF(AF149<0.01,-AF149,0),2) -> 0 | AI149: =AB149-AD149-AE149-AG149+AH149 -> 3661.24 | AL149: 81
A150: 80 | D150: JUAREZ FLORES HUGO | H150: CHOFER | P150: 15 | Q150: TARJETA | S150: 0 | T150: 0 | U150: 183.152 | V150: =TRUNC(U150*P150,2) -> 2747.28 | W150: =TRUNC(U150*P150*0.04,2) -> 109.89 | X150: =TRUNC(U150*0.07*P150,2) -> 192.3 | Y150: =S150 -> 0 | Z150: =TRUNC(X150+W150+(IF(Y150>519,519,Y150))+IF(R150=0,0,R150*U150),2) -> 302.19 | AA150: =TRUNC((IF(R150=0,P150*U150,(P150-R150)*U150))+(IF(Y150<519,0,Y150-519)),2)+T150 -> 2747.28 | AB150: =Z150+AA150 -> 3049.47 | AE150: 0 | AF150: =IF(U150>0.01,(AA150-VLOOKUP(AA150,quincenal,1))*VLOOKUP(AA150,quincenal,3)+VLOOKUP(AA150,quincenal,2)-VLOOKUP(AA150,subquincenal,2),0) -> 49.470976 | AG150: =TRUNC(IF(AF150>0.01,AF150,0),2) -> 49.47 | AH150: =TRUNC(IF(AF150<0.01,-AF150,0),2) -> 0 | AI150: =AB150-AD150-AE150-AG150+AH150 -> 3000 | AL150: 82
D151: GARCIA MARTINEZ FRANCISCO RIGOBERTO | H151: AUX ILIAR DE LIMPIEZA PLAZA DE TOROS | P151: 15 | Q151: TARJETA | U151: 147.9015 | V151: 2218.52 | W151: 88.74 | X151: 155.29 | Y151: 0 | Z151: 244.03 | AA151: 2218.52 | AB151: 2462.55 | AE151: 0 | AF151: -37.458112 | AG151: =TRUNC(IF(AF151>0.01,AF151,0),2) -> 0 | AH151: =TRUNC(IF(AF151<0.01,-AF151,0),2) -> 37.45 | AI151: 2500 | AL151: 84
D152: DOMINGUEZ HECTOR FREDDI | E152: BECR460228 | F152: BECR460207HJCRHS07 | G152: 2004-01-01 | H152: CHOFER | P152: 15 | Q152: TARJETA | S152: 0 | T152: 0 | U152: 217.7938 | V152: 3266.9 | W152: 130.67 | X152: 228.68 | Y152: 0 | Z152: 359.35 | AA152: 3266.9 | AB152: 3626.25 | AE152: 0 | AF152: 126.255632 | AG152: =TRUNC(IF(AF152>0.01,AF152,0),2) -> 126.25 | AH152: =TRUNC(IF(AF152<0.01,-AF152,0),2) -> 0 | AI152: 3500 | AL152: 85
D153: DELGADO PACHECO RICARDO | H153: AYUDANTE | P153: 15 | Q153: TARJETA | S153: 0 | T153: 0 | U153: 183.152 | V153: 2747.28 | W153: 109.89 | X153: 192.3 | Y153: 0 | Z153: 302.19 | AA153: 2747.28 | AB153: 3049.47 | AE153: 0 | AF153: 49.470976 | AG153: =TRUNC(IF(AF153>0.01,AF153,0),2) -> 49.47 | AH153: =TRUNC(IF(AF153<0.01,-AF153,0),2) -> 0 | AI153: 3000 | AL153: 86
D154: JUAREZ JIMENEZ ALFREDO | E154: BECR460228 | F154: BECR460207HJCRHS07 | G154: 2004-01-01 | H154: CHOFER | P154: 15 | Q154: TARJETA | S154: 0 | T154: 0 | U154: 147.9015 | V154: 2218.52 | W154: 88.74 | X154: 155.29 | Y154: 0 | Z154: 244.03 | AA154: 2218.52 | AB154: 2462.55 | AF154: -37.458112 | AG154: =TRUNC(IF(AF154>0.01,AF154,0),2) -> 0 | AH154: =TRUNC(IF(AF154<0.01,-AF154,0),2) -> 37.45 | AI154: 2500 | AL154: 87
D155: MOJARRO BERUMEN ENRIQUE | H155: EMPEDRADOR | P155: 15 | Q155: TARJETA | S155: 0 | T155: 0 | U155: =2866/15 -> 191.0666667 | V155: =TRUNC(U155*P155,2) -> 2866 | W155: =TRUNC(U155*P155*0.04,2) -> 114.64 | X155: =TRUNC(U155*0.07*P155,2) -> 200.62 | Y155: =S155 -> 0 | Z155: =TRUNC(X155+W155+(IF(Y155>519,519,Y155))+IF(R155=0,0,R155*U155),2) -> 315.26 | AA155: =TRUNC((IF(R155=0,P155*U155,(P155-R155)*U155))+(IF(Y155<519,0,Y155-519)),2)+T155 -> 2866 | AB155: =Z155+AA155 -> 3181.26 | AF155: =IF(U155>0.01,(AA155-VLOOKUP(AA155,quincenal,1))*VLOOKUP(AA155,quincenal,3)+VLOOKUP(AA155,quincenal,2)-VLOOKUP(AA155,subquincenal,2),0) -> 62.387712 | AG155: =TRUNC(IF(AF155>0.01,AF155,0),2) -> 62.38 | AH155: =TRUNC(IF(AF155<0.01,-AF155,0),2) -> 0 | AI155: =AB155-AD155-AE155-AG155+AH155 -> 3118.88 | AL155: 88
D156: FERREL ALCANTAR EDMUNDO | H156: EMPEDRADOR | P156: 15 | Q156: TARJETA | S156: 0 | T156: 0 | U156: =2866/15 -> 191.0666667 | V156: 2866 | W156: 114.64 | X156: 200.62 | Y156: 0 | Z156: 315.26 | AA156: 2866 | AB156: 3181.26 | AF156: 62.387712 | AG156: 62.38 | AH156: 0 | AI156: 3118.88 | AL156: 89
D157: NAVARRO GUTIERREZ MOISES EDMUNDO | H157: AYUDANTE | P157: 15 | Q157: TARJETA | S157: 0 | T157: 0 | U157: =2222/15 -> 148.1333333 | V157: 2222 | W157: 88.88 | X157: 155.54 | Y157: 0 | Z157: 244.42 | AA157: 2222 | AB157: 2466.42 | AF157: =IF(U157>0.01,(AA157-VLOOKUP(AA157,quincenal,1))*VLOOKUP(AA157,quincenal,3)+VLOOKUP(AA157,quincenal,2)-VLOOKUP(AA157,subquincenal,2),0) -> -37.079488 | AG157: 0 | AH157: 37.07 | AI157: 2503.49 | AL157: 90
D158: GALLEGOS RIVAS ADRIAN | H158: AYUDANTE | P158: 14 | Q158: TARJETA | S158: 0 | T158: 0 | U158: =2222/15 -> 148.1333333 | V158: 2073.86 | W158: 82.95 | X158: 145.17 | Y158: 0 | Z158: 228.12 | AA158: 2073.86 | AB158: 2301.98 | AF158: -66.9908 | AG158: 0 | AH158: 66.99 | AI158: 2368.97 | AL158: 91
D159: RAMIREZ GARCIA J. JESUS | H159: AYUDANTE | P159: 15 | Q159: TARJETA | S159: 0 | T159: 0 | U159: =2222/15 -> 148.1333333 | V159: 2222 | W159: 88.88 | X159: 155.54 | Y159: 0 | Z159: 244.42 | AA159: 2222 | AB159: 2466.42 | AF159: -37.079488 | AG159: 0 | AH159: 37.07 | AI159: 2503.49 | AL159: 92
D160: ORENDAIN BERNAL ROBERTO | H160: AYUDANTE | P160: 15 | Q160: TARJETA | S160: 0 | T160: 0 | U160: =2222/15 -> 148.1333333 | V160: 2222 | W160: 88.88 | X160: 155.54 | Y160: 0 | Z160: 244.42 | AA160: 2222 | AB160: 2466.42 | AF160: -37.079488 | AG160: 0 | AH160: 37.07 | AI160: 2503.49 | AL160: 93
D161: ACEVEDO OCHOA J. GUADALUPE | H161: ALMACENISTA | P161: 15 | Q161: TARJETA | S161: 0 | T161: 0 | U161: 183.152 | V161: =TRUNC(U161*P161,2) -> 2747.28 | W161: =TRUNC(U161*P161*0.04,2) -> 109.89 | X161: =TRUNC(U161*0.07*P161,2) -> 192.3 | Y161: =S161 -> 0 | Z161: =TRUNC(X161+W161+(IF(Y161>519,519,Y161))+IF(R161=0,0,R161*U161),2) -> 302.19 | AA161: =TRUNC((IF(R161=0,P161*U161,(P161-R161)*U161))+(IF(Y161<519,0,Y161-519)),2)+T161 -> 2747.28 | AB161: =Z161+AA161 -> 3049.47 | AE161: 0 | AF161: =IF(U161>0.01,(AA161-VLOOKUP(AA161,quincenal,1))*VLOOKUP(AA161,quincenal,3)+VLOOKUP(AA161,quincenal,2)-VLOOKUP(AA161,subquincenal,2),0) -> 49.470976 | AG161: =TRUNC(IF(AF161>0.01,AF161,0),2) -> 49.47 | AH161: =TRUNC(IF(AF161<0.01,-AF161,0),2) -> 0 | AI161: =AB161-AD161-AE161-AG161+AH161 -> 3000 | AL161: 94
Q162: TARJETA | S162: 0 | T162: 0 | U162: =1989/15 -> 132.6 | V162: =TRUNC(U162*P162,2) -> 0 | W162: =TRUNC(U162*P162*0.04,2) -> 0 | X162: =TRUNC(U162*0.07*P162,2) -> 0 | Y162: =S162 -> 0 | Z162: =TRUNC(X162+W162+(IF(Y162>519,519,Y162))+IF(R162=0,0,R162*U162),2) -> 0 | AA162: =TRUNC((IF(R162=0,P162*U162,(P162-R162)*U162))+(IF(Y162<519,0,Y162-519)),2)+T162 -> 0 | AB162: =Z162+AA162 -> 0 | AF162: =IF(U162>0.01,(AA162-VLOOKUP(AA162,quincenal,1))*VLOOKUP(AA162,quincenal,3)+VLOOKUP(AA162,quincenal,2)-VLOOKUP(AA162,subquincenal,2),0) ->  | AI162: =AB162-AD162-AE162-AG162+AH162 -> 0 | AL162: 95
D163: ARQUIETA VADILLO ARTURO | E163: AUVA551030FJ0 | F163: AUVA551030HJCRDR15 | H163: PINTOR GENERAL | P163: 15 | Q163: SOBRE | S163: 0 | T163: 0 | U163: =4527/15 -> 301.8 | V163: 4527 | W163: 181.08 | X163: 316.89 | Y163: =S163 -> 0 | Z163: 497.97 | AA163: 4527 | AB163: =Z163+AA163 -> 5024.97 | AD163: 500 | AF163: =IF(U163>0.01,(AA163-VLOOKUP(AA163,quincenal,1))*VLOOKUP(AA163,quincenal,3)+VLOOKUP(AA163,quincenal,2)-VLOOKUP(AA163,subquincenal,2),0) -> 438.743888 | AG163: =TRUNC(IF(AF163>0.01,AF163,0),2) -> 438.74 | AH163: =TRUNC(IF(AF163<0.01,-AF163,0),2) -> 0 | AI163: =AB163-AD163-AE163-AG163+AH163 -> 4086.23 | AL163: 96
D164: ADMINISTRACION DE LOS SERVICIOS PUBLICOS MUNICIPALES | V164: =SUM(V147:V163) -> 50172.89 | W164: =SUM(W147:W163) -> 2006.88 | X164: 3512.04 | Y164: 0 | Z164: 5518.92 | AA164: 50172.89 | AB164: 55691.81 | AC164: 0 | AD164: 500 | AE164: 0 | AG164: 2430.24 | AH164: 253.1 | AI164: 53014.67
D165: DIRECCION GENERAL DE OBRAS PUBLICAS
A166: 83 | B166: 4 | C166: 1 | D166: DAVALOS SALCEDO MIGUEL CARLOS | H166: DIRECTOR DE OBRAS PÚBLICAS | P166: 15 | Q166: TARJETA | S166: 0 | T166: 0 | U166: 479.9059 | V166: =TRUNC(U166*P166,2) -> 7198.58 | W166: =TRUNC(U166*P166*0.04,2) -> 287.94 | X166: =TRUNC(U166*0.07*P166,2) -> 503.9 | Y166: =S166 -> 0 | Z166: =TRUNC(X166+W166+(IF(Y166>519,519,Y166))+IF(R166=0,0,R166*U166),2) -> 791.84 | AA166: =TRUNC((IF(R166=0,P166*U166,(P166-R166)*U166))+(IF(Y166<519,0,Y166-519)),2)+T166 -> 7198.58 | AB166: =Z166+AA166 -> 7990.42 | AE166: 0 | AF166: =IF(U166>0.01,(AA166-VLOOKUP(AA166,quincenal,1))*VLOOKUP(AA166,quincenal,3)+VLOOKUP(AA166,quincenal,2)-VLOOKUP(AA166,subquincenal,2),0) -> 990.427512 | AG166: =TRUNC(IF(AF166>0.01,AF166,0),2) -> 990.42 | AH166: =TRUNC(IF(AF166<0.01,-AF166,0),2) -> 0 | AI166: =AB166-AD166-AE166-AG166+AH166 -> 7000 | AJ166: =PORTADA!$D$10 -> 1 | AL166: 97
D167: GUTIERREZ MARTINEZ JORGE | H167: SUB DIRECTOR DE OBRAS PÚBLICAS | P167: 15 | Q167: TARJETA | S167: 0 | T167: 0 | U167: 331.436 | V167: =TRUNC(U167*P167,2) -> 4971.54 | W167: =TRUNC(U167*P167*0.04,2) -> 198.86 | X167: =TRUNC(U167*0.07*P167,2) -> 348 | Y167: =S167 -> 0 | Z167: =TRUNC(X167+W167+(IF(Y167>519,519,Y167))+IF(R167=0,0,R167*U167),2) -> 546.86 | AA167: =TRUNC((IF(R167=0,P167*U167,(P167-R167)*U167))+(IF(Y167<519,0,Y167-519)),2)+T167 -> 4971.54 | AB167: =Z167+AA167 -> 5518.4 | AE167: 0 | AF167: =IF(U167>0.01,(AA167-VLOOKUP(AA167,quincenal,1))*VLOOKUP(AA167,quincenal,3)+VLOOKUP(AA167,quincenal,2)-VLOOKUP(AA167,subquincenal,2),0) -> 518.405456 | AG167: =TRUNC(IF(AF167>0.01,AF167,0),2) -> 518.4 | AH167: =TRUNC(IF(AF167<0.01,-AF167,0),2) -> 0 | AI167: =AB167-AD167-AE167-AG167+AH167 -> 5000 | AL167: 98
D168: FLORES IÑIGUEZ JUAN RAYMUNDO | E168: FOIJ8508313Z1 | F168: FOIJ850831HJCLXN07 | G168: 2007-01-01 | H168: SUB-DIRECTOR DESARROLLO URBANO | P168: 15 | Q168: TARJETA | S168: 0 | T168: 0 | U168: =3741/15 -> 249.4 | V168: 3741 | W168: 149.64 | X168: 261.87 | Y168: 0 | Z168: 411.51 | AA168: 3741 | AB168: 4152.51 | AE168: 0 | AF168: =IF(U168>0.01,(AA168-VLOOKUP(AA168,quincenal,1))*VLOOKUP(AA168,quincenal,3)+VLOOKUP(AA168,quincenal,2)-VLOOKUP(AA168,subquincenal,2),0) -> 307.6484 | AG168: 307.64 | AH168: 0 | AI168: 3844.87 | AJ168: =[2]PORTADA!$D$10 -> 1 | AL168: 99
D169: RENTERIA MENDEZ FRANCISCO | E169: REMF850816I26 | F169: REMF850816HJCNNR00 | G169: 2008-03-05 | H169: AUXILIAR DE DIRECCIÓN | P169: 15 | Q169: TARJETA | S169: 0 | T169: 0 | U169: =4385/15 -> 292.3333333 | V169: 4385 | W169: 175.4 | X169: 306.95 | Y169: 0 | Z169: 482.35 | AA169: 4385 | AB169: 4867.35 | AE169: 0 | AF169: 413.297488 | AG169: 413.29 | AH169: 0 | AI169: 4454.06 | AJ169: =[2]PORTADA!$D$10 -> 1 | AL169: 100
U170: =2411.14/15 -> 160.7426667 | Y170: =S170 -> 0 | Z170: =TRUNC(X170+W170+(IF(Y170>519,519,Y170))+IF(R170=0,0,R170*U170),2) -> 0 | AA170: =TRUNC((IF(R170=0,P170*U170,(P170-R170)*U170))+(IF(Y170<519,0,Y170-519)),2)+T170 -> 0 | AB170: =Z170+AA170 -> 0 | AF170: =IF(U170>0.01,(AA170-VLOOKUP(AA170,quincenal,1))*VLOOKUP(AA170,quincenal,3)+VLOOKUP(AA170,quincenal,2)-VLOOKUP(AA170,subquincenal,2),0) ->  | AI170: =AB170-AD170-AE170-AG170+AH170 -> 0 | AL170: 101
D171: NOLASCO VALLE ARTURO | E171: NOVA | H171: CHOFER | P171: 15 | Q171: TARJETA | S171: 0 | T171: 0 | U171: =2866/15 -> 191.0666667 | V171: 2866 | W171: 114.64 | X171: 200.62 | Y171: 0 | Z171: 315.26 | AA171: 2866 | AB171: 3181.26 | AD171: 0 | AE171: 0 | AF171: =IF(U171>0.01,(AA171-VLOOKUP(AA171,quincenal,1))*VLOOKUP(AA171,quincenal,3)+VLOOKUP(AA171,quincenal,2)-VLOOKUP(AA171,subquincenal,2),0) -> 62.387712 | AG171: 62.38 | AH171: 0 | AI171: 3118.88 | AJ171: =[2]PORTADA!$D$10 -> 1 | AL171: 102
D172: =D165 -> DIRECCION GENERAL DE OBRAS PUBLICAS | V172: =SUM(V166:V171) -> 23162.12 | W172: =SUM(W166:W171) -> 926.48 | X172: 1621.34 | Y172: 0 | Z172: 2547.82 | AA172: 23162.12 | AB172: 25709.94 | AC172: 0 | AD172: 0 | AE172: 0 | AG172: 2292.13 | AH172: 0 | AI172: 23417.81
D174: DEPARTAMENTO DE CEMENTERIOS
D175: ILLAN RUIZ FERNANDO | E175: RIOA520619 | F175: RIOA520619HJCVRD05 | H175: ADMINISTRADOR DE CEMENTERIOS | P175: 15 | Q175: TARJETA | S175: 0 | T175: 0 | U175: 217.7938 | V175: =TRUNC(U175*P175,2) -> 3266.9 | W175: =TRUNC(U175*P175*0.04,2) -> 130.67 | X175: =TRUNC(U175*0.07*P175,2) -> 228.68 | Y175: =S175 -> 0 | Z175: =TRUNC(X175+W175+(IF(Y175>519,519,Y175))+IF(R175=0,0,R175*U175),2) -> 359.35 | AA175: =TRUNC((IF(R175=0,P175*U175,(P175-R175)*U175))+(IF(Y175<519,0,Y175-519)),2)+T175 -> 3266.9 | AB175: =Z175+AA175 -> 3626.25 | AE175: 0 | AF175: =IF(U175>0.01,(AA175-VLOOKUP(AA175,quincenal,1))*VLOOKUP(AA175,quincenal,3)+VLOOKUP(AA175,quincenal,2)-VLOOKUP(AA175,subquincenal,2),0) -> 126.255632 | AG175: =TRUNC(IF(AF175>0.01,AF175,0),2) -> 126.25 | AH175: =TRUNC(IF(AF175<0.01,-AF175,0),2) -> 0 | AI175: =AB175-AD175-AE175-AG175+AH175 -> 3500 | AL175: 103
D176: MURILLO SUAREZ HECTOR | E176: RIOA520619 | F176: RIOA520619HJCVRD05 | H176: AYUDANTE DE CEMENTERIOS | P176: 15 | Q176: TARJETA | S176: 0 | T176: 0 | U176: 113.977 | V176: =TRUNC(U176*P176,2) -> 1709.65 | W176: =TRUNC(U176*P176*0.04,2) -> 68.38 | X176: =TRUNC(U176*0.07*P176,2) -> 119.67 | Y176: =S176 -> 0 | Z176: =TRUNC(X176+W176+(IF(Y176>519,519,Y176))+IF(R176=0,0,R176*U176),2) -> 188.05 | AA176: =TRUNC((IF(R176=0,P176*U176,(P176-R176)*U176))+(IF(Y176<519,0,Y176-519)),2)+T176 -> 1709.65 | AB176: =Z176+AA176 -> 1897.7 | AE176: 0 | AF176: =IF(U176>0.01,(AA176-VLOOKUP(AA176,quincenal,1))*VLOOKUP(AA176,quincenal,3)+VLOOKUP(AA176,quincenal,2)-VLOOKUP(AA176,subquincenal,2),0) -> -102.30024 | AG176: 0 | AH176: =TRUNC(IF(AF176<0.01,-AF176,0),2) -> 102.3 | AI176: =AB176-AD176-AE176-AG176+AH176 -> 2000 | AL176: 104
D177: HERNANDEZ BAILON JUAN ALFREDO | P177: 15 | Q177: TARJETA | S177: 0 | T177: 0 | U177: 113.977 | V177: =TRUNC(U177*P177,2) -> 1709.65 | W177: =TRUNC(U177*P177*0.04,2) -> 68.38 | X177: =TRUNC(U177*0.07*P177,2) -> 119.67 | Y177: =S177 -> 0 | Z177: =TRUNC(X177+W177+(IF(Y177>519,519,Y177))+IF(R177=0,0,R177*U177),2) -> 188.05 | AA177: =TRUNC((IF(R177=0,P177*U177,(P177-R177)*U177))+(IF(Y177<519,0,Y177-519)),2)+T177 -> 1709.65 | AB177: =Z177+AA177 -> 1897.7 | AE177: 0 | AF177: =IF(U177>0.01,(AA177-VLOOKUP(AA177,quincenal,1))*VLOOKUP(AA177,quincenal,3)+VLOOKUP(AA177,quincenal,2)-VLOOKUP(AA177,subquincenal,2),0) -> -102.30024 | AG177: 0 | AH177: =TRUNC(IF(AF177<0.01,-AF177,0),2) -> 102.3 | AI177: =AB177-AD177-AE177-AG177+AH177 -> 2000 | AL177: 105
A178: 91 | B178: 5 | C178: 2 | D178: FAJARDO LOPEZ JORGE ANTONIO | E178: RIOA520619 | F178: RIOA520619HJCVRD05 | H178: ADMINISTRADOR DE CEMENTERIOS | P178: 15 | Q178: TARJETA | S178: 0 | T178: 0 | U178: 113.977 | V178: =TRUNC(U178*P178,2) -> 1709.65 | W178: =TRUNC(U178*P178*0.04,2) -> 68.38 | X178: =TRUNC(U178*0.07*P178,2) -> 119.67 | Y178: =S178 -> 0 | Z178: =TRUNC(X178+W178+(IF(Y178>519,519,Y178))+IF(R178=0,0,R178*U178),2) -> 188.05 | AA178: =TRUNC((IF(R178=0,P178*U178,(P178-R178)*U178))+(IF(Y178<519,0,Y178-519)),2)+T178 -> 1709.65 | AB178: =Z178+AA178 -> 1897.7 | AE178: 0 | AF178: =IF(U178>0.01,(AA178-VLOOKUP(AA178,quincenal,1))*VLOOKUP(AA178,quincenal,3)+VLOOKUP(AA178,quincenal,2)-VLOOKUP(AA178,subquincenal,2),0) -> -102.30024 | AG178: 0 | AH178: =TRUNC(IF(AF178<0.01,-AF178,0),2) -> 102.3 | AI178: =AB178-AD178-AE178-AG178+AH178 -> 2000 | AJ178: =PORTADA!$D$10 -> 1 | AL178: 106
D179: DEPARTAMENTO DE CEMENTERIOS | V179: =SUM(V175:V178) -> 8395.85 | W179: 335.81 | X179: 587.69 | Y179: 0 | Z179: 923.5 | AA179: 8395.85 | AB179: 9319.35 | AC179: 0 | AD179: 0 | AE179: 0 | AF179: -180.645088 | AG179: 126.25 | AH179: 306.9 | AI179: 9500
D181: DEPARTAMENTO DE RASTRO
D182: LOPEZ VILLEGAS J. JESUS | E182: LOVJ470602UN7 | F182: LOVJ470602HJCPLS07 | H182: GUARDA RASTRO | P182: 15 | Q182: TARJETA | S182: 0 | T182: 0 | U182: =2367/15 -> 157.8 | V182: =TRUNC(U182*P182,2) -> 2367 | W182: =TRUNC(U182*P182*0.04,2) -> 94.68 | X182: =TRUNC(U182*0.07*P182,2) -> 165.69 | Y182: =S182 -> 0 | Z182: =TRUNC(X182+W182+(IF(Y182>519,519,Y182))+IF(R182=0,0,R182*U182),2) -> 260.37 | AA182: =TRUNC((IF(R182=0,P182*U182,(P182-R182)*U182))+(IF(Y182<519,0,Y182-519)),2)+T182 -> 2367 | AB182: =Z182+AA182 -> 2627.37 | AE182: 0 | AF182: =IF(U182>0.01,(AA182-VLOOKUP(AA182,quincenal,1))*VLOOKUP(AA182,quincenal,3)+VLOOKUP(AA182,quincenal,2)-VLOOKUP(AA182,subquincenal,2),0) -> -6.903488 | AG182: =TRUNC(IF(AF182>0.01,AF182,0),2) -> 0 | AH182: =TRUNC(IF(AF182<0.01,-AF182,0),2) -> 6.9 | AI182: =AB182-AD182-AE182-AG182+AH182 -> 2634.27 | AJ182: =[2]PORTADA!$D$10 -> 1 | AL182: 107
D183: FREGOSO BARBOZA CARLOS RAFAEL | E183: PARR | H183: VETERINARIO | P183: 15 | Q183: TARJETA | S183: 0 | T183: 0 | U183: =3669/15 -> 244.6 | V183: =TRUNC(U183*P183,2) -> 3669 | W183: =TRUNC(U183*P183*0.04,2) -> 146.76 | X183: =TRUNC(U183*0.07*P183,2) -> 256.83 | Y183: =S183 -> 0 | Z183: =TRUNC(X183+W183+(IF(Y183>519,519,Y183))+IF(R183=0,0,R183*U183),2) -> 403.59 | AA183: =TRUNC((IF(R183=0,P183*U183,(P183-R183)*U183))+(IF(Y183<519,0,Y183-519)),2)+T183 -> 3669 | AB183: =Z183+AA183 -> 4072.59 | AE183: 0 | AF183: =IF(U183>0.01,(AA183-VLOOKUP(AA183,quincenal,1))*VLOOKUP(AA183,quincenal,3)+VLOOKUP(AA183,quincenal,2)-VLOOKUP(AA183,subquincenal,2),0) -> 296.1284 | AG183: =TRUNC(IF(AF183>0.01,AF183,0),2) -> 296.12 | AH183: =TRUNC(IF(AF183<0.01,-AF183,0),2) -> 0 | AI183: =AB183-AD183-AE183-AG183+AH183 -> 3776.47 | AJ183: =[2]PORTADA!$D$10 -> 1 | AL183: 108
D184: MARTINEZ TORRES JUSTINO | E184: MATJ | H184: AUXILIAR DE MENTENIMIENTO | P184: 15 | Q184: TARJETA | S184: 0 | T184: 0 | U184: =1591/15 -> 106.0666667 | V184: =TRUNC(U184*P184,2) -> 1591 | W184: =TRUNC(U184*P184*0.04,2) -> 63.64 | X184: =TRUNC(U184*0.07*P184,2) -> 111.37 | Y184: =S184 -> 0 | Z184: =TRUNC(X184+W184+(IF(Y184>519,519,Y184))+IF(R184=0,0,R184*U184),2) -> 175.01 | AA184: =TRUNC((IF(R184=0,P184*U184,(P184-R184)*U184))+(IF(Y184<519,0,Y184-519)),2)+T184 -> 1591 | AB184: =Z184+AA184 -> 1766.01 | AE184: 0 | AF184: =IF(U184>0.01,(AA184-VLOOKUP(AA184,quincenal,1))*VLOOKUP(AA184,quincenal,3)+VLOOKUP(AA184,quincenal,2)-VLOOKUP(AA184,subquincenal,2),0) -> -109.89384 | AG184: =TRUNC(IF(AF184>0.01,AF184,0),2) -> 0 | AH184: =TRUNC(IF(AF184<0.01,-AF184,0),2) -> 109.89 | AI184: =AB184-AD184-AE184-AG184+AH184 -> 1875.9 | AL184: 109
D185: DEPARTAMENTO DE RASTRO | V185: =SUM(V182:V184) -> 7627 | W185: =SUM(W182:W184) -> 305.08 | X185: 533.89 | Y185: 0 | Z185: 838.97 | AA185: 7627 | AB185: 8465.97 | AC185: 0 | AD185: 0 | AE185: 0 | AF185: 179.331072 | AG185: 296.12 | AH185: 116.79 | AI185: 8286.64 | AJ185: 2 | AK185: 0
D188: DEPARTAMENTO DE ASEO PUBLICO
A189: 97 | B189: 5 | C189: 7 | D189: NAVARRO HERNANDEZ SOSTENES | E189: HUAB811011 | F189: HUAB810114HJCRGR01 | G189: 2007-02-01 | H189: SUPERVISOR DE ASEO PUBLICO | P189: 15 | Q189: TARJETA | S189: 0 | T189: 0 | U189: 196.469 | V189: =TRUNC(U189*P189,2) -> 2947.03 | W189: =TRUNC(U189*P189*0.04,2) -> 117.88 | X189: =TRUNC(U189*0.07*P189,2) -> 206.29 | Y189: =S189 -> 0 | Z189: =TRUNC(X189+W189+(IF(Y189>519,519,Y189))+IF(R189=0,0,R189*U189),2) -> 324.17 | AA189: =TRUNC((IF(R189=0,P189*U189,(P189-R189)*U189))+(IF(Y189<519,0,Y189-519)),2)+T189 -> 2947.03 | AB189: =Z189+AA189 -> 3271.2 | AE189: 0 | AF189: =IF(U189>0.01,(AA189-VLOOKUP(AA189,quincenal,1))*VLOOKUP(AA189,quincenal,3)+VLOOKUP(AA189,quincenal,2)-VLOOKUP(AA189,subquincenal,2),0) -> 71.203776 | AG189: =TRUNC(IF(AF189>0.01,AF189,0),2) -> 71.2 | AH189: =TRUNC(IF(AF189<0.01,-AF189,0),2) -> 0 | AI189: =AB189-AD189-AE189-AG189+AH189 -> 3200 | AJ189: =PORTADA!$D$10 -> 1 | AL189: 112
D190: HUERTA AGUILA BERNARDINO | E190: HUAB811011 | F190: HUAB810114HJCRGR01 | G190: 2007-02-01 | H190: RECOLECTOR ASEO PUBLICO | P190: 15 | Q190: TARJETA | S190: 0 | T190: 0 | U190: =2222/15 -> 148.1333333 | V190: 2222 | W190: 88.88 | X190: 155.54 | Y190: 0 | Z190: 244.42 | AA190: 2222 | AB190: 2466.42 | AE190: 0 | AF190: =IF(U190>0.01,(AA190-VLOOKUP(AA190,quincenal,1))*VLOOKUP(AA190,quincenal,3)+VLOOKUP(AA190,quincenal,2)-VLOOKUP(AA190,subquincenal,2),0) -> -37.079488 | AG190: 0 | AH190: 37.07 | AI190: 2503.49 | AJ190: =[2]PORTADA!$D$10 -> 1 | AL190: 113
D191: GRACIA GOMEZ JAVIER | E191: GAGJ731114 | F191: GAGJ731114HJCRMV00 | G191: 2004-01-01 | H191: RECOLECTOR ASEO PUBLICO | P191: 14 | Q191: TARJETA | S191: 0 | T191: 0 | U191: =2222/15 -> 148.1333333 | V191: 2073.86 | W191: 82.95 | X191: 145.17 | Y191: 0 | Z191: 228.12 | AA191: 2073.86 | AB191: 2301.98 | AE191: 0 | AF191: -66.9908 | AG191: 0 | AH191: 66.99 | AI191: 2368.97 | AJ191: =[2]PORTADA!$D$10 -> 1 | AL191: 114
D192: FREGOZO ALVARADO ALFONSO | E192: FEAA650918 | F192: FEAA650818HJCRLL05 | G192: 2003-01-01 | H192: RECOLECTOR ASEO PUBLICO | P192: 15 | Q192: TARJETA | S192: 0 | T192: 0 | U192: 148.1333333 | V192: 2222 | W192: 88.88 | X192: 155.54 | Y192: 0 | Z192: 244.42 | AA192: 2222 | AB192: 2466.42 | AE192: 0 | AF192: -37.079488 | AG192: 0 | AH192: 37.07 | AI192: 2503.49 | AJ192: =[2]PORTADA!$D$10 -> 1 | AL192: 115
D193: TELLEZ GOMEZ VICENTE | H193: RECOLECTOR ASEO PUBLICO | P193: 15 | Q193: TARJETA | S193: 0 | T193: 0 | U193: 148.1333333 | V193: 2222 | W193: 88.88 | X193: 155.54 | Y193: =S193 -> 0 | Z193: 244.42 | AA193: 2222 | AB193: =Z193+AA193 -> 2466.42 | AD193: 0 | AE193: 0 | AF193: =IF(U193>0.01,(AA193-VLOOKUP(AA193,quincenal,1))*VLOOKUP(AA193,quincenal,3)+VLOOKUP(AA193,quincenal,2)-VLOOKUP(AA193,subquincenal,2),0) -> -37.079488 | AG193: 0 | AH193: =TRUNC(IF(AF193<0.01,-AF193,0),2) -> 37.07 | AI193: =AB193-AD193-AE193-AG193+AH193 -> 2503.49 | AL193: 116
D194: MARTINEZ VEJAR JUAN JOSE | E194: MAVJ710822 | F194: MAVJ710822HJCRJN04 | G194: 2004-01-01 | H194: CHOFER ASEO PUBLICO | P194: 15 | Q194: TARJETA | S194: 0 | T194: 0 | U194: =2659/15 -> 177.2666667 | V194: 2659 | W194: 106.36 | X194: 186.13 | Y194: =S194 -> 0 | Z194: 292.49 | AA194: 2659 | AB194: =Z194+AA194 -> 2951.49 | AE194: 0 | AF194: =IF(U194>0.01,(AA194-VLOOKUP(AA194,quincenal,1))*VLOOKUP(AA194,quincenal,3)+VLOOKUP(AA194,quincenal,2)-VLOOKUP(AA194,subquincenal,2),0) -> 39.866112 | AG194: 39.86 | AH194: =TRUNC(IF(AF194<0.01,-AF194,0),2) -> 0 | AI194: =AB194-AD194-AE194-AG194+AH194 -> 2911.63 | AJ194: =[2]PORTADA!$D$10 -> 1 | AL194: 117
D195: HERNANDEZ RICO JUAN JOSE | E195: MATM450918 | F195: MATM451028HJCRRG08 | G195: 2004-01-01 | H195: CHOFER ASEO PUBLICO | P195: 15 | Q195: TARJETA | S195: 0 | T195: 0 | U195: =2745/15 -> 183 | V195: 2745 | W195: 109.8 | X195: 192.15 | Y195: 0 | Z195: 301.95 | AA195: 2745 | AB195: 3046.95 | AE195: 0 | AF195: 49.222912 | AG195: =TRUNC(IF(AF195>0.01,AF195,0),2) -> 49.22 | AH195: =TRUNC(IF(AF195<0.01,-AF195,0),2) -> 0 | AI195: 2997.73 | AJ195: =[2]PORTADA!$D$10 -> 1 | AL195: 118
D196: RICO ARCE VICTOR | E196: BECR460228 | F196: BECR460207HJCRHS07 | G196: 2004-01-01 | H196: CHOFER ASEO PUBLICO | P196: 15 | Q196: TARJETA | S196: 0 | T196: 0 | U196: =2745/15 -> 183 | V196: 2745 | W196: 109.8 | X196: 192.15 | Y196: 0 | Z196: 301.95 | AA196: 2745 | AB196: 3046.95 | AE196: 0 | AF196: 49.222912 | AG196: =TRUNC(IF(AF196>0.01,AF196,0),2) -> 49.22 | AH196: =TRUNC(IF(AF196<0.01,-AF196,0),2) -> 0 | AI196: 2997.73 | AL196: 119
D197: MENDEZ GARCIA MIGUEL ANGEL | E197: MEGM851109 | F197: MEGM851109HJCNRG03 | G197: 2009-01-16 | H197: AUX. DE LIMPIEZA GRAL. | P197: 14 | Q197: TARJETA | S197: 0 | T197: 0 | U197: =2745/15 -> 183 | V197: 2562 | W197: 102.48 | X197: 179.34 | Y197: 0 | Z197: 281.82 | AA197: 2562 | AB197: 2843.82 | AE197: 0 | AF197: 14.312512 | AG197: 14.31 | AH197: 0 | AI197: 2829.51 | AJ197: =[2]PORTADA!$D$10 -> 1 | AL197: 120
D198: CISNEROS VAZQUEZ RAMIRO | E198: CIVR540430 | F198: CIVR540430HJCSZM04 | G198: 2007-01-01 | H198: RECOLECTOR ASEO PUBLICO | P198: 15 | Q198: TARJETA | S198: 0 | T198: 0 | U198: =2222/15 -> 148.1333333 | V198: 2222 | W198: 88.88 | X198: 155.54 | Y198: 0 | Z198: 244.42 | AA198: 2222 | AB198: 2466.42 | AE198: 0 | AF198: -37.079488 | AG198: 0 | AH198: 37.07 | AI198: 2503.49 | AJ198: =[2]PORTADA!$D$10 -> 1 | AL198: 121
D199: DEPARTAMENTO DE ASEO PUBLICO | V199: =SUM(V189:V198) -> 24619.89 | W199: =SUM(W189:W198) -> 984.79 | X199: 1723.39 | Y199: 0 | Z199: 2708.18 | AA199: 24619.89 | AB199: 27328.07 | AC199: 0 | AD199: 0 | AE199: 0 | AF199: 8.519472 | AG199: 223.81 | AH199: 215.27 | AI199: 27319.53
D201: DEPARTAMENTO DE PARQUES Y JARDINES
A202: 107 | B202: 5 | C202: 8 | D202: NAVARRO HUERTA ISIDRO | E202: HUCR450811 | F202: HUCR450831HJCRRM08 | G202: 2004-01-01 | H202: SUPERVISOR DE PARQUES Y JARDINES | P202: 15 | Q202: TARJETA | S202: 0 | T202: 0 | U202: 196.469 | V202: =TRUNC(U202*P202,2) -> 2947.03 | W202: =TRUNC(U202*P202*0.04,2) -> 117.88 | X202: =TRUNC(U202*0.07*P202,2) -> 206.29 | Y202: =S202 -> 0 | Z202: =TRUNC(X202+W202+(IF(Y202>519,519,Y202))+IF(R202=0,0,R202*U202),2) -> 324.17 | AA202: =TRUNC((IF(R202=0,P202*U202,(P202-R202)*U202))+(IF(Y202<519,0,Y202-519)),2)+T202 -> 2947.03 | AB202: =Z202+AA202 -> 3271.2 | AE202: 0 | AF202: =IF(U202>0.01,(AA202-VLOOKUP(AA202,quincenal,1))*VLOOKUP(AA202,quincenal,3)+VLOOKUP(AA202,quincenal,2)-VLOOKUP(AA202,subquincenal,2),0) -> 71.203776 | AG202: =TRUNC(IF(AF202>0.01,AF202,0),2) -> 71.2 | AH202: =TRUNC(IF(AF202<0.01,-AF202,0),2) -> 0 | AI202: =AB202-AD202-AE202-AG202+AH202 -> 3200 | AJ202: =PORTADA!$D$10 -> 1 | AL202: 122
D203: HUERTA CORTES RAMON | E203: HUCR450811 | F203: HUCR450831HJCRRM08 | G203: 2004-01-01 | H203: JARDINERO | P203: 15 | Q203: TARJETA | S203: 0 | T203: 0 | U203: =2307/15 -> 153.8 | V203: 2307 | W203: 92.28 | X203: 161.49 | Y203: 0 | Z203: 253.77 | AA203: 2307 | AB203: 2560.77 | AE203: 0 | AF203: =IF(U203>0.01,(AA203-VLOOKUP(AA203,quincenal,1))*VLOOKUP(AA203,quincenal,3)+VLOOKUP(AA203,quincenal,2)-VLOOKUP(AA203,subquincenal,2),0) -> -27.831488 | AG203: 0 | AH203: 27.83 | AI203: 2588.6 | AJ203: =[2]PORTADA!$D$10 -> 1 | AL203: 123
D204: SILVA PINTO J ASUNCIÓN | E204: SIPA400815 | F204: SIPA400815HJCLNS02 | G204: 2004-01-01 | H204: JARDINERO | P204: 15 | Q204: TARJETA | S204: 0 | T204: 0 | U204: =2222/15 -> 148.1333333 | V204: 2222 | W204: 88.88 | X204: 155.54 | Y204: 0 | Z204: 244.42 | AA204: 2222 | AB204: 2466.42 | AE204: 0 | AF204: -37.079488 | AG204: 0 | AH204: 37.07 | AI204: 2503.49 | AJ204: =[2]PORTADA!$D$10 -> 1 | AL204: 124
D205: MILLAN GARCIA J. JESUS | H205: JARDINERO | P205: 15 | Q205: TARJETA | S205: 0 | T205: 0 | U205: =2222/15 -> 148.1333333 | V205: 2222 | W205: 88.88 | X205: 155.54 | Y205: 0 | Z205: 244.42 | AA205: 2222 | AB205: 2466.42 | AE205: 0 | AF205: -37.079488 | AG205: 0 | AH205: 37.07 | AI205: 2503.49 | AL205: 125
D206: MARTINEZ CRUZ JUAN | H206: JARDINERO | P206: 15 | Q206: TARJETA | S206: 0 | T206: 0 | U206: 148.1333333 | V206: 2222 | W206: 88.88 | X206: 155.54 | Y206: 0 | Z206: 244.42 | AA206: 2222 | AB206: 2466.42 | AD206: 0 | AE206: 0 | AF206: -37.079488 | AG206: 0 | AH206: 37.07 | AI206: 2503.49 | AL206: 126
D207: ACOSTA MURILLO JOAQUIN | H207: JARDINERO | P207: 15 | Q207: TARJETA | S207: 0 | T207: 0 | U207: 148.1333333 | V207: 2222 | W207: 88.88 | X207: 155.54 | Y207: 0 | Z207: 244.42 | AA207: 2222 | AB207: 2466.42 | AE207: 0 | AF207: -37.079488 | AG207: 0 | AH207: 37.07 | AI207: 2503.49 | AL207: 127
D208: REGALADO BAÑUELOS FRANCISCO | E208: REBF441211 | F208: REBF441211HJCGXR05 | G208: 2005-01-01 | H208: BARRENDERO | P208: 15 | Q208: TARJETA | S208: 0 | T208: 0 | U208: 148.1333333 | V208: 2222 | W208: 88.88 | X208: 155.54 | Y208: 0 | Z208: 244.42 | AA208: 2222 | AB208: 2466.42 | AE208: 0 | AF208: -37.079488 | AG208: =TRUNC(IF(AF208>0.01,AF208,0),2) -> 0 | AH208: 37.07 | AI208: 2503.49 | AJ208: =[2]PORTADA!$D$10 -> 1 | AL208: 128
D209: RUIZ MUÑOZ LUIS | E209: RUML530529GL7 | F209: RUML530529HJCZXS03 | G209: 2006-01-01 | H209: VIGILANTE | P209: 15 | Q209: TARJETA | S209: 0 | T209: 0 | U209: =2118/15 -> 141.2 | V209: 2118 | W209: 84.72 | X209: 148.26 | Y209: =S209 -> 0 | Z209: 232.98 | AA209: 2118 | AB209: =Z209+AA209 -> 2350.98 | AD209: 0 | AE209: 0 | AF209: =IF(U209>0.01,(AA209-VLOOKUP(AA209,quincenal,1))*VLOOKUP(AA209,quincenal,3)+VLOOKUP(AA209,quincenal,2)-VLOOKUP(AA209,subquincenal,2),0) -> -62.344688 | AG209: =TRUNC(IF(AF209>0.01,AF209,0),2) -> 0 | AH209: =TRUNC(IF(AF209<0.01,-AF209,0),2) -> 62.34 | AI209: =AB209-AD209-AE209-AG209+AH209 -> 2413.32 | AL209: 129
D210: AYALA RODRIGUEZ MIGUEL ANGEL | E210: AARM690504 | F210: AARM690504HJCYDG04 | G210: 2004-01-01 | H210: PODADOR | P210: 15 | Q210: TARJETA | S210: 0 | T210: 0 | U210: =2758/15 -> 183.8666667 | V210: 2758 | W210: 110.32 | X210: 193.06 | Y210: 0 | Z210: 303.38 | AA210: 2758 | AB210: 3061.38 | AE210: 0 | AF210: 50.637312 | AG210: =TRUNC(IF(AF210>0.01,AF210,0),2) -> 50.63 | AH210: 0 | AI210: 3010.75 | AJ210: =[2]PORTADA!$D$10 -> 1 | AL210: 130
D211: GARCIA NAVARRO VICENTE | H211: PODADOR | P211: 15 | Q211: TARJETA | S211: 0 | T211: 0 | U211: 183.152 | V211: =TRUNC(U211*P211,2) -> 2747.28 | W211: =TRUNC(U211*P211*0.04,2) -> 109.89 | X211: =TRUNC(U211*0.07*P211,2) -> 192.3 | Y211: =S211 -> 0 | Z211: =TRUNC(X211+W211+(IF(Y211>519,519,Y211))+IF(R211=0,0,R211*U211),2) -> 302.19 | AA211: =TRUNC((IF(R211=0,P211*U211,(P211-R211)*U211))+(IF(Y211<519,0,Y211-519)),2)+T211 -> 2747.28 | AB211: =Z211+AA211 -> 3049.47 | AE211: 0 | AF211: =IF(U211>0.01,(AA211-VLOOKUP(AA211,quincenal,1))*VLOOKUP(AA211,quincenal,3)+VLOOKUP(AA211,quincenal,2)-VLOOKUP(AA211,subquincenal,2),0) -> 49.470976 | AG211: =TRUNC(IF(AF211>0.01,AF211,0),2) -> 49.47 | AH211: =TRUNC(IF(AF211<0.01,-AF211,0),2) -> 0 | AI211: =AB211-AD211-AE211-AG211+AH211 -> 3000
D212: VERTEDERO MUNICIPAL | V212: =SUM(V202:V210) -> 21240.03 | W212: =SUM(W202:W210) -> 849.6 | X212: 1486.8 | Y212: 0 | Z212: 2336.4 | AA212: 21240.03 | AB212: 23576.43 | AC212: 0 | AD212: 0 | AE212: 0 | AF212: -153.732528 | AG212: 121.83 | AH212: 275.52 | AI212: =SUM(AI202:AI211) -> 26730.12
D214: DEPARTAMENTO DE ALUMBRADO PUBLICO
D215: RUIZ HERNANDEZ CELESTINO | E215: RUHC540519 | F215: RUHC540519HJCZRL03 | G215: 2004-01-01 | H215: JEFE DE ALUMBRADO PUBLICO | P215: 15 | Q215: TARJETA | S215: 0 | T215: 0 | U215: =3428/15 -> 228.5333333 | V215: =TRUNC(U215*P215,2) -> 3428 | W215: =TRUNC(U215*P215*0.04,2) -> 137.12 | X215: =TRUNC(U215*0.07*P215,2) -> 239.96 | Y215: =S215 -> 0 | Z215: =TRUNC(X215+W215+(IF(Y215>519,519,Y215))+IF(R215=0,0,R215*U215),2) -> 377.08 | AA215: =TRUNC((IF(R215=0,P215*U215,(P215-R215)*U215))+(IF(Y215<519,0,Y215-519)),2)+T215 -> 3428 | AB215: =Z215+AA215 -> 3805.08 | AE215: 0 | AF215: =IF(U215>0.01,(AA215-VLOOKUP(AA215,quincenal,1))*VLOOKUP(AA215,quincenal,3)+VLOOKUP(AA215,quincenal,2)-VLOOKUP(AA215,subquincenal,2),0) -> 143.783312 | AG215: =TRUNC(IF(AF215>0.01,AF215,0),2) -> 143.78 | AH215: =TRUNC(IF(AF215<0.01,-AF215,0),2) -> 0 | AI215: =AB215-AD215-AE215-AG215+AH215 -> 3661.3 | AJ215: =[2]PORTADA!$D$10 -> 1 | AL215: 131
D216: LARES RODRIGUEZ JOSE ANGEL | H216: ENCARGADO DE ALUMBRADO PUBLICO | P216: 15 | Q216: TARJETA | S216: 0 | T216: 0 | U216: 217.7938 | V216: =TRUNC(U216*P216,2) -> 3266.9 | W216: =TRUNC(U216*P216*0.04,2) -> 130.67 | X216: =TRUNC(U216*0.07*P216,2) -> 228.68 | Y216: =S216 -> 0 | Z216: =TRUNC(X216+W216+(IF(Y216>519,519,Y216))+IF(R216=0,0,R216*U216),2) -> 359.35 | AA216: =TRUNC((IF(R216=0,P216*U216,(P216-R216)*U216))+(IF(Y216<519,0,Y216-519)),2)+T216 -> 3266.9 | AB216: =Z216+AA216 -> 3626.25 | AE216: 0 | AF216: =IF(U216>0.01,(AA216-VLOOKUP(AA216,quincenal,1))*VLOOKUP(AA216,quincenal,3)+VLOOKUP(AA216,quincenal,2)-VLOOKUP(AA216,subquincenal,2),0) -> 126.255632 | AG216: =TRUNC(IF(AF216>0.01,AF216,0),2) -> 126.25 | AH216: =TRUNC(IF(AF216<0.01,-AF216,0),2) -> 0 | AI216: =AB216-AD216-AE216-AG216+AH216 -> 3500 | AL216: 132
D217: HERNANDEZ ALCARAZ ALVARO | H217: AUXILIARDE ALUMBRADO PUBLICO | P217: 15 | Q217: TARJETA | S217: 0 | T217: 0 | U217: 217.7938 | V217: =TRUNC(U217*P217,2) -> 3266.9 | W217: =TRUNC(U217*P217*0.04,2) -> 130.67 | X217: =TRUNC(U217*0.07*P217,2) -> 228.68 | Y217: =S217 -> 0 | Z217: =TRUNC(X217+W217+(IF(Y217>519,519,Y217))+IF(R217=0,0,R217*U217),2) -> 359.35 | AA217: =TRUNC((IF(R217=0,P217*U217,(P217-R217)*U217))+(IF(Y217<519,0,Y217-519)),2)+T217 -> 3266.9 | AB217: =Z217+AA217 -> 3626.25 | AE217: 0 | AF217: =IF(U217>0.01,(AA217-VLOOKUP(AA217,quincenal,1))*VLOOKUP(AA217,quincenal,3)+VLOOKUP(AA217,quincenal,2)-VLOOKUP(AA217,subquincenal,2),0) -> 126.255632 | AG217: =TRUNC(IF(AF217>0.01,AF217,0),2) -> 126.25 | AH217: =TRUNC(IF(AF217<0.01,-AF217,0),2) -> 0 | AI217: =AB217-AD217-AE217-AG217+AH217 -> 3500 | AL217: 133
D218: ROJAS HUERTA CARLOS ALFREDO | H218: AUXILIARDE ALUMBRADO PUBLICO | P218: 15 | Q218: TARJETA | S218: 0 | T218: 0 | U218: =2222/15 -> 148.1333333 | V218: =TRUNC(U218*P218,2) -> 2222 | W218: =TRUNC(U218*P218*0.04,2) -> 88.88 | X218: =TRUNC(U218*0.07*P218,2) -> 155.54 | Y218: =S218 -> 0 | Z218: =TRUNC(X218+W218+(IF(Y218>519,519,Y218))+IF(R218=0,0,R218*U218),2) -> 244.42 | AA218: =TRUNC((IF(R218=0,P218*U218,(P218-R218)*U218))+(IF(Y218<519,0,Y218-519)),2)+T218 -> 2222 | AB218: =Z218+AA218 -> 2466.42 | AE218: 0 | AF218: =IF(U218>0.01,(AA218-VLOOKUP(AA218,quincenal,1))*VLOOKUP(AA218,quincenal,3)+VLOOKUP(AA218,quincenal,2)-VLOOKUP(AA218,subquincenal,2),0) -> -37.079488 | AG218: =TRUNC(IF(AF218>0.01,AF218,0),2) -> 0 | AH218: =TRUNC(IF(AF218<0.01,-AF218,0),2) -> 37.07 | AI218: =AB218-AD218-AE218-AG218+AH218 -> 2503.49 | AL218: 134
D219: DEPARTAMENTO DE ALUMBRADO PUBLICO | V219: =SUM(V215:V218) -> 12183.8 | W219: =SUM(W215:W218) -> 487.34 | X219: 852.86 | Y219: 0 | Z219: 1340.2 | AA219: 12183.8 | AB219: 13524 | AC219: 0 | AD219: 0 | AE219: 0 | AF219: 359.215088 | AG219: 396.28 | AH219: 37.07 | AI219: 13164.79
D222: DEPARTAMENTO DE DEPORTES
A223: 120 | B223: 5 | C223: 14 | D223: ACOSTA GONZALEZ MIGUEL | H223: ENCARGADO DE LA UNIDAD DEPORTIVA | P223: 15 | Q223: TARJETA | S223: 0 | T223: 0 | U223: 147.9014 | V223: =TRUNC(U223*P223,2) -> 2218.52 | W223: =TRUNC(U223*P223*0.04,2) -> 88.74 | X223: =TRUNC(U223*0.07*P223,2) -> 155.29 | Y223: =S223 -> 0 | Z223: =TRUNC(X223+W223+(IF(Y223>519,519,Y223))+IF(R223=0,0,R223*U223),2) -> 244.03 | AA223: =TRUNC((IF(R223=0,P223*U223,(P223-R223)*U223))+(IF(Y223<519,0,Y223-519)),2)+T223 -> 2218.52 | AB223: =Z223+AA223 -> 2462.55 | AE223: 0 | AF223: =IF(U223>0.01,(AA223-VLOOKUP(AA223,quincenal,1))*VLOOKUP(AA223,quincenal,3)+VLOOKUP(AA223,quincenal,2)-VLOOKUP(AA223,subquincenal,2),0) -> -37.458112 | AG223: =TRUNC(IF(AF223>0.01,AF223,0),2) -> 0 | AH223: =TRUNC(IF(AF223<0.01,-AF223,0),2) -> 37.45 | AI223: =AB223-AD223-AE223-AG223+AH223 -> 2500 | AL223: 135
A224: 121 | D224: GONZALEZ FLORES RAMON | H224: AUXILIAR DE MANTENIMIENTO DE LA UNIDAD DEPORTIVA | P224: 15 | Q224: TARJETA | S224: 0 | T224: 0 | U224: 113.977 | V224: 1709.65 | W224: 68.38 | X224: 119.67 | Y224: 0 | Z224: 188.05 | AA224: 1709.65 | AB224: 1897.7 | AE224: 0 | AF224: -102.30024 | AG224: 0 | AH224: 102.3 | AI224: 2000 | AL224: 136
D225: RODRIGUEZ ARQUIETA DANIEL ORLANDO | H225: JARDINERO EN LA UNIDAD DEPORTIVA | P225: 15 | Q225: TARJETA | S225: 0 | T225: 0 | U225: 113.977 | V225: =TRUNC(U225*P225,2) -> 1709.65 | W225: =TRUNC(U225*P225*0.04,2) -> 68.38 | X225: =TRUNC(U225*0.07*P225,2) -> 119.67 | Y225: =S225 -> 0 | Z225: =TRUNC(X225+W225+(IF(Y225>519,519,Y225))+IF(R225=0,0,R225*U225),2) -> 188.05 | AA225: =TRUNC((IF(R225=0,P225*U225,(P225-R225)*U225))+(IF(Y225<519,0,Y225-519)),2)+T225 -> 1709.65 | AB225: =Z225+AA225 -> 1897.7 | AE225: 0 | AF225: =IF(U225>0.01,(AA225-VLOOKUP(AA225,quincenal,1))*VLOOKUP(AA225,quincenal,3)+VLOOKUP(AA225,quincenal,2)-VLOOKUP(AA225,subquincenal,2),0) -> -102.30024 | AG225: 0 | AH225: =TRUNC(IF(AF225<0.01,-AF225,0),2) -> 102.3 | AI225: =AB225-AD225-AE225-AG225+AH225 -> 2000 | AL225: 137
D226: MORA SANCHEZ EUSTACIO | H226: JARDINERO EN LA UNIDAD DEPORTIVA | P226: 15 | Q226: TARJETA | S226: 0 | T226: 0 | U226: 113.977 | V226: 1709.65 | W226: 68.38 | X226: 119.67 | Y226: 0 | Z226: 188.05 | AA226: 1709.65 | AB226: 1897.7 | AE226: 0 | AF226: -102.30024 | AG226: 0 | AH226: 102.3 | AI226: 2000 | AL226: 138
... 155 more rows

Sheet ACUMULADO
A1: No.empleado | B1: CAPITULO | C1: PARTIDA | D1: NOMBRE | E1: RFC | F1: CURP | G1: FECHA DE INGRESO | H1: CARGO | I1: DEPENDENCIA | J1: PAGO CON | K1: DIAS LABORADOS | L1: DIAS CON INCAPACIDAD | M1: HORAS EXTRAS | N1: DESPENSA EN EFECTIVO | O1: SUELDO POR DIA ACTUAL | P1: SUELDO POR DIA PROPUESTO | Q1: FONDO DE AHORRO | R1: APOYO EDUCACIONAL | S1: TIEMPO EXTRA | T1: SUB TOTAL EXENTO | U1: SUB TOTAL GRAVADO | V1: SUB TOTAL A PAGAR | W1: FONDO DE AHORRO | X1: PRESTAMOS | Y1: OTRAS DEDUCCIONES | Z1: CALCULO | AA1: I.S.R. | AB1: SUBSIDIO AL EMPLEO | AC1: TOTAL A PAGAR | AD1: nomina | AE1: observaciones

Sheet Tablas 2015
A1: TARIFA MENSUAL ISR | E1: TARIFA QUINCENAL ISR | I1: TARIFA SEMANAL ISR | M1: 0.01 | N1: 496.07 | O1: 0 | P1: 1.92
A2: 2015 | E2: 2015 | I2: 2015 | M2: 496.08 | N2: 4210.41 | O2: 9.52 | P2: 6.4
A3: Lim. Inferior | B3: Cuota Fija | C3: % | E3: Lim. Inferior | F3: Cuota Fija | G3: % | I3: Lim. Inferior | J3: Cuota Fija | K3: % | M3: 4210.42 | N3: 7399.42 | O3: 247.24 | P3: 10.88
A4: 0.01 | B4: 0 | C4: 0.0192 | E4: 0.01 | F4: 0 | G4: 0.0192 | I4: 0.01 | J4: 0 | K4: 0.0192 | M4: 7399.43 | N4: 8601.5 | O4: 594.21 | P4: 16
A5: 496.08 | B5: 9.52 | C5: 0.064 | E5: 244.81 | F5: 4.65 | G5: 0.064 | I5: 114.25 | J5: 2.17 | K5: 0.064 | M5: 8601.51 | N5: 10298.35 | O5: 786.54 | P5: 17.92
A6: 4210.42 | B6: 247.24 | C6: 0.1088 | E6: 2077.51 | F6: 121.95 | G6: 0.1088 | I6: 969.51 | J6: 56.91 | K6: 0.1088 | M6: 10298.36 | N6: 20770.29 | O6: 1090.61 | P6: 21.36
A7: 7399.43 | B7: 594.21 | C7: 0.16 | E7: 3651.01 | F7: 293.25 | G7: 0.16 | I7: 1703.81 | J7: 136.85 | K7: 0.16 | M7: 20770.3 | N7: 32736.83 | O7: 3327.42 | P7: 23.52
A8: 8601.51 | B8: 786.54 | C8: 0.1792 | E8: 4244.11 | F8: 388.05 | G8: 0.1792 | I8: 1980.59 | J8: 181.09 | K8: 0.1792 | M8: 32736.84 | N8: 62500 | O8: 6141.95 | P8: 30
A9: 10298.36 | B9: 1090.61 | C9: 0.2136 | E9: 5081.41 | F9: 538.2 | G9: 0.2136 | I9: 2371.33 | J9: 251.16 | K9: 0.2136 | M9: 62500.01 | N9: 83333.33 | O9: 15070.9 | P9: 32
A10: 20770.3 | B10: 3327.42 | C10: 0.2352 | E10: 10248.46 | F10: 1641.75 | G10: 0.2352 | I10: 4782.62 | J10: 766.15 | K10: 0.2352 | M10: 83333.34 | N10: 250000 | O10: 21737.57 | P10: 34
A11: 32736.84 | B11: 6141.95 | C11: 0.3 | E11: 16153.06 | F11: 3030.6 | G11: 0.3 | I11: 7538.1 | J11: 1414.28 | K11: 0.3 | M11: 250000.01 | N11: En adelante | O11: 78404.23 | P11: 35
A12: 62500.01 | B12: 15070.9 | C12: 0.32 | E12: 30838.81 | F12: 7436.25 | G12: 0.32 | I12: 14391.45 | J12: 3470.25 | K12: 0.32
A13: 83333.34 | B13: 21737.57 | C13: 0.34 | E13: 41118.46 | F13: 10725.75 | G13: 0.34 | I13: 19188.62 | J13: 5005.35 | K13: 0.34
A14: 250000.01 | B14: 78404.23 | C14: 0.35 | E14: 123355.21 | F14: 38686.35 | G14: 0.35 | I14: 57565.77 | J14: 18053.63 | K14: 0.35
A19: SUBSIDIO PARA EL EMPLEO | E19: SUBSIDIO PARA EL EMPLEO | I19: SUBSIDIO PARA EL EMPLEO
A20: =+A2 -> 2015 | E20: =+E2 -> 2015 | I20: =+I2 -> 2015 | L20: 0.01 | M20: 1768.96 | N20: 407.02
A21: Para | B21: SE | E21: Para | F21: SE | I21: Para | J21: SE | L21: 1768.97 | M21: 2653.38 | N21: 406.83
A22: Ingresos | B22: Mensual | E22: Ingresos | F22: Quincenal | I22: Ingresos | J22: Semanal | L22: 2653.39 | M22: 3472.84 | N22: 406.62
A23: 0.01 | B23: 407.02 | E23: 0.01 | F23: 200.85 | I23: 0.01 | J23: 93.73 | L23: 3472.85 | M23: 3537.87 | N23: 392.77
A24: 1768.97 | B24: 406.83 | E24: 872.86 | F24: 200.7 | I24: 407.34 | J24: 93.66 | L24: 3537.88 | M24: 4446.15 | N24: 382.46
A25: 2653.39 | B25: 406.62 | E25: 1309.21 | F25: 200.7 | I25: 610.97 | J25: 93.66 | L25: 4446.16 | M25: 4717.18 | N25: 354.23
A26: 3472.85 | B26: 392.77 | E26: 1713.61 | F26: 193.8 | I26: 799.69 | J26: 90.44 | L26: 4717.19 | M26: 5335.42 | N26: 324.87
A27: 3537.88 | B27: 382.46 | E27: 1745.71 | F27: 188.7 | I27: 814.67 | J27: 88.06 | L27: 5335.43 | M27: 6224.67 | N27: 294.63
A28: 4446.16 | B28: 354.23 | E28: 2193.76 | F28: 174.75 | I28: 1023.76 | J28: 81.55 | L28: 6224.68 | M28: 7113.9 | N28: 253.54
A29: 4717.19 | B29: 324.87 | E29: 2327.56 | F29: 160.35 | I29: 1086.2 | J29: 74.83 | L29: 7113.91 | M29: 7382.33 | N29: 217.61
A30: 5335.43 | B30: 294.63 | E30: 2632.66 | F30: 145.35 | I30: 1228.58 | J30: 67.83 | L30: 7382.34 | M30: En adelante | N30: 0
A31: 6224.68 | B31: 253.54 | E31: 3071.41 | F31: 125.1 | I31: 1433.33 | J31: 58.38
A32: 7113.91 | B32: 217.61 | E32: 3510.16 | F32: 107.4 | I32: 1638.08 | J32: 50.12
A33: 7382.34 | B33: 0 | E33: 3642.61 | F33: 0 | I33: 1699.89 | J33: 0
A37: CAPITULO | B37: PARTIDA | C37: CONCEC | E37: DEPENDENCIA
A38: 1 | B38: 1 | C38: 1 | D38: SALA DE REGIDORES
A39: 1 | B39: 2 | C39: 2 | D39: PRESIDENCIA MUNICIPAL
A40: 1 | B40: 5 | C40: 3 | D40: SECRETARIA GENERAL Y SINDICATURA
A41: 1 | B41: 6 | C41: 4 | D41: OFICIALIA MAYOR
A42: 1 | B42: 7 | C42: 5 | D42: DEPARTAMENTO JURIDICO
A43: 1 | B43: 14 | C43: 6 | D43: REGISTRO CIVIL
A44: 1 | B44: 16 | C44: 7 | D44: OFICIALIA MAYOR DE CULTURA
A45: 1 | B45: 19 | C45: 8 | D45: PARTICIPACION CIUDADANA
A46: 1 | B46: 23 | C46: 9 | D46: RELACIONES EXTERIORES
A47: 2 | B47: 1 | C47: 10 | D47: DELEGACIONES
A48: 2 | B48: 2 | C48: 11 | D48: AGENCIAS
A49: 3 | B49: 1 | C49: 12 | D49: HACIENDA MUNICIPAL
A50: 3 | B50: 3 | C50: 13 | D50: DEPTO. DE INGRESOS
A51: 3 | B51: 7 | C51: 14 | D51: DEPTO. DE EGRESOS
A52: 3 | B52: 12 | C52: 15 | D52: DEPTO. DE INFORMATICA
A53: 3 | B53: 13 | C53: 16 | D53: DEPTO. DE IMPUESTO PREDIAL Y CATASTRO
A54: 4 | B54: 1 | C54: 17 | D54: DIRECCION GENERAL DE OBRAS PUBLICAS
A55: 4 | B55: 3 | C55: 18 | D55: DEPTO. DE SERVICIOS PUBLICOS
A56: 4 | B56: 4 | C56: 19 | D56: DEPTO. DE CONSTRUCCION
A57: 5 | B57: 2 | C57: 20 | D57: DEPTO. DE CEMENTERIOS
A58: 5 | B58: 3 | C58: 21 | D58: DEPTO. RASTRO
A59: 5 | B59: 5 | C59: 22 | D59: DEPTO. MERCADOS
A60: 5 | B60: 7 | C60: 23 | D60: DEPTO. DE ASEO PUBLICO
A61: 5 | B61: 8 | C61: 24 | D61: DEPTO. DE PARQUES Y JARDINES
A62: 5 | B62: 9 | C62: 25 | D62: VERTEDERO
A63: 5 | B63: 10 | C63: 26 | D63: DEPTO. DE ALUMBRADO PUBLICO
A64: 5 | B64: 11 | C64: 27 | D64: DEPTO. DE AGUA DRENAJE Y ALCANTARILLADO
A65: 5 | B65: 14 | C65: 28 | D65: DIR. DE TURISMO Y DEPORTES
A66: 5 | B66: 15 | C66: 29 | D66: SERVICIO MEDICO
A67: 5 | B67: 26 | C67: 30 | D67: INSPECCION AGRICOLA Y GANADERA
A68: 11 | B68: 17 | C68: 31 | D68: SEGURIDAD PUBLICA
A69: 11 | B69: 18 | C69: 32 | D69: PROTECCION CIVIL

Sheet Hoja1

Sheet finiquito
M1: =SUBTOTAL(9,M9:M275) -> 0 | N1: 34262.69817 | O1: 1386197.39 | P1: 55447.79 | Q1: 97033.71 | W1: =SUBTOTAL(9,W9:W275) -> 0 | X1: =SUBTOTAL(9,X9:X275) -> 0 | Y1: =SUBTOTAL(9,Y9:Y272) ->  | Z1: =SUBTOTAL(9,Z9:Z275) -> 102511.26 | AA1: =SUBTOTAL(9,AA9:AA275) -> 11905.07 | AB1: =SUBTOTAL(9,AB9:AB275) -> 1448072.7 | AD1: =SUBTOTAL(9,AD9:AD272) -> 0
O2: =TRUNC(N2*I2,2) -> 0 | P2: =TRUNC(N2*I2*0.04,2) -> 0 | Q2: =TRUNC(N2*0.07*I2,2) -> 0 | R2: =L2 -> 0 | S2: =TRUNC(Q2+P2+(IF(R2>519,519,R2))+IF(K2=0,0,K2*N2),2) -> 0 | T2: =TRUNC((IF(K2=0,I2*N2,(I2-K2)*N2))+(IF(R2<519,0,R2-519)),2)+M2 -> 0 | U2: =S2+T2 -> 0 | V2: =P2 -> 0 | Y2: =IF(N2>0.01,(T2-VLOOKUP(T2,quincenal,1))*VLOOKUP(T2,quincenal,3)+VLOOKUP(T2,quincenal,2)-VLOOKUP(T2,subquincenal,2),0) -> 0 | Z2: =TRUNC(IF(Y2>0.01,Y2,0),2) -> 0 | AA2: =TRUNC(IF(Y2<0.01,-Y2,0),2) -> 0 | AB2: =U2-W2-X2-Z2+AA2-P2 -> 0 | AC2: =PORTADA!$D$10 -> 1
A3: H. AYUNTAMIENTO DE ETZATLAN, JALISCO
B4: ADMINISTRACION 2012-2015
B5: NOMINA CORRESPONDIENTE A LA SEGUNDA QUINCENA DE MAYO DE 2015
D6: Etzatlán, Jalisco a 30 de Mayo de 2015.
B7: CAPITULO | C7: PARTIDA | D7: NOMBRE | E7: RFC | F7: CURP | G7: FECHA DE INGRESO | H7: CARGO | I7: DIAS LABORADOS | J7: PAGO CON | K7: DIAS CON INCAPACIDAD | L7: TIEMPO EXTRA | M7: OTROS INGRESOS | N7: SUELDO POR DIA PROPUESTO | O7: SUELDO BASE | P7: FONDO DE AHORRO | Q7: APOYO EDUCACIONAL | R7: TIEMPO EXTRA | S7: SUB TOTAL EXENTO | T7: SUB TOTAL GRAVADO | U7: SUB TOTAL A PAGAR | V7: FONDO DE AHORRO | W7: PRESTAMOS | X7: OTRAS DEDUCCIONES | Y7: CALCULO | Z7: I.S.R. | AA7: SUBSIDIO AL EMPLEO | AB7: TOTAL A PAGAR | AC7: nomina | AD7: FIRMA DE RECIBIDO
D8: SALA DE REGIDORES
A9: 1 | B9: 1 | C9: 1 | D9: FREGOSO GOMEZ CARLOS | E9: FEGC520708 | F9: FEGC520708HJCRMR08 | G9: 2012-10-01 | H9: REGIDOR | I9: 15 | J9: TARJETA | L9: 0 | M9: 0 | N9: =8023/15 -> 534.8666667 | O9: =TRUNC(N9*I9,2) -> 8023 | P9: =TRUNC(N9*I9*0.04,2) -> 320.92 | Q9: =TRUNC(N9*0.07*I9,2) -> 561.61 | R9: =L9 -> 0 | S9: =TRUNC(Q9+P9+(IF(R9>519,519,R9))+IF(K9=0,0,K9*N9),2) -> 882.53 | T9: =TRUNC((IF(K9=0,I9*N9,(I9-K9)*N9))+(IF(R9<519,0,R9-519)),2)+M9 -> 8023 | U9: =S9+T9 -> 8905.53 | X9: 0 | Y9: =IF(N9>0.01,(T9-VLOOKUP(T9,quincenal,1))*VLOOKUP(T9,quincenal,3)+VLOOKUP(T9,quincenal,2)-VLOOKUP(T9,subquincenal,2),0) -> 1166.523624 | Z9: =TRUNC(IF(Y9>0.01,Y9,0),2) -> 1166.52 | AA9: =TRUNC(IF(Y9<0.01,-Y9,0),2) -> 0 | AB9: =U9-W9-X9-Z9+AA9 -> 7739.01 | AC9: =PORTADA!$D$10 -> 1
D10: HERNANDEZ ENRIQUEZ J. FILEMON | H10: REGIDOR | I10: 15 | J10: TARJETA | L10: 0 | M10: 0 | N10: =8023/15 -> 534.8666667 | O10: =TRUNC(N10*I10,2) -> 8023 | P10: =TRUNC(N10*I10*0.04,2) -> 320.92 | Q10: =TRUNC(N10*0.07*I10,2) -> 561.61 | R10: =L10 -> 0 | S10: =TRUNC(Q10+P10+(IF(R10>519,519,R10))+IF(K10=0,0,K10*N10),2) -> 882.53 | T10: =TRUNC((IF(K10=0,I10*N10,(I10-K10)*N10))+(IF(R10<519,0,R10-519)),2)+M10 -> 8023 | U10: =S10+T10 -> 8905.53 | X10: 0 | Y10: =IF(N10>0.01,(T10-VLOOKUP(T10,quincenal,1))*VLOOKUP(T10,quincenal,3)+VLOOKUP(T10,quincenal,2)-VLOOKUP(T10,subquincenal,2),0) -> 1166.523624 | Z10: 1166.52 | AA10: =TRUNC(IF(Y10<0.01,-Y10,0),2) -> 0 | AB10: =U10-W10-X10-Z10+AA10 -> 7739.01
A11: 3 | B11: 1 | C11: 1 | D11: PARRA VELASCO ANA ROSA | G11: 2012-10-01 | H11: REGIDOR | I11: 15 | J11: TARJETA | L11: 0 | M11: 0 | N11: 534.8666667 | O11: 8023 | P11: 320.92 | Q11: 561.61 | R11: 0 | S11: 882.53 | T11: 8023 | U11: 8905.53 | X11: 0 | Y11: 1166.523624 | Z11: 1166.52 | AA11: 0 | AB11: 7739.01 | AC11: =PORTADA!$D$10 -> 1
A12: 4 | B12: 1 | C12: 1 | D12: MARTINEZ NAVARRO FRANCISCO | G12: 2012-10-01 | H12: REGIDOR | I12: 15 | J12: TARJETA | L12: 0 | M12: 0 | N12: 534.8666667 | O12: 8023 | P12: 320.92 | Q12: 561.61 | R12: 0 | S12: 882.53 | T12: 8023 | U12: 8905.53 | X12: 0 | Y12: 1166.523624 | Z12: 1166.52 | AA12: 0 | AB12: 7739.01 | AC12: =PORTADA!$D$10 -> 1
A13: 5 | B13: 1 | C13: 1 | D13: SOTO HERNANDEZ RAMON | G13: 2012-10-01 | H13: REGIDOR | I13: 15 | J13: TARJETA | L13: 0 | M13: 0 | N13: 534.8666667 | O13: 8023 | P13: 320.92 | Q13: 561.61 | R13: 0 | S13: 882.53 | T13: 8023 | U13: 8905.53 | X13: 0 | Y13: 1166.523624 | Z13: 1166.52 | AA13: 0 | AB13: 7739.01 | AC13: =PORTADA!$D$10 -> 1
A14: 6 | B14: 1 | C14: 1 | D14: MEDINA FLORES CARMEN AIDE | G14: 2012-10-01 | H14: REGIDOR | I14: 15 | J14: TARJETA | L14: 0 | M14: 0 | N14: 534.8666667 | O14: 8023 | P14: 320.92 | Q14: 561.61 | R14: 0 | S14: 882.53 | T14: 8023 | U14: 8905.53 | X14: 0 | Y14: 1166.523624 | Z14: 1166.52 | AA14: 0 | AB14: 7739.01 | AC14: =PORTADA!$D$10 -> 1
A15: 7 | B15: 1 | C15: 1 | D15: BECERRA GONZALEZ ALFREDO | G15: 2012-10-01 | H15: REGIDOR | I15: 15 | J15: TARJETA | L15: 0 | M15: 0 | N15: 534.8666667 | O15: 8023 | P15: 320.92 | Q15: 561.61 | R15: 0 | S15: 882.53 | T15: 8023 | U15: 8905.53 | Y15: 1166.523624 | Z15: 1166.52 | AA15: 0 | AB15: 7739.01 | AC15: =PORTADA!$D$10 -> 1
A16: 8 | B16: 1 | C16: 1 | D16: CHAVEZ JORDAN JUAN MANUEL | G16: 2012-10-01 | H16: REGIDOR | I16: 15 | J16: TARJETA | L16: 0 | M16: 0 | N16: 534.8666667 | O16: 8023 | P16: 320.92 | Q16: 561.61 | R16: 0 | S16: 882.53 | T16: 8023 | U16: 8905.53 | Y16: 1166.523624 | Z16: 1166.52 | AA16: 0 | AB16: 7739.01 | AC16: =PORTADA!$D$10 -> 1
A17: 9 | B17: 1 | C17: 1 | D17: LOPEZ PARRA DANIEL | G17: 2012-10-01 | H17: REGIDOR | I17: 15 | J17: TARJETA | L17: 0 | M17: 0 | N17: 534.8666667 | O17: 8023 | P17: 320.92 | Q17: 561.61 | R17: 0 | S17: 882.53 | T17: 8023 | U17: 8905.53 | W17: 0 | Y17: 1166.523624 | Z17: 1166.52 | AA17: 0 | AB17: 7739.01 | AC17: =PORTADA!$D$10 -> 1
B18: 1 | C18: 1 | E18: BAGV780611 | F18: BAGV780611MJCRTR04 | H18: SECRETARIA SALA DE REGIDORES | I18: 0 | J18: TARJETA | L18: 0 | M18: 0 | N18: 172.16 | O18: =TRUNC(N18*I18,2) -> 0 | P18: 0 | Q18: 0 | R18: 0 | S18: 0 | T18: 0 | U18: 0 | X18: 0 | Z18: 0 | AA18: 0 | AB18: 0 | AC18: =PORTADA!$D$10 -> 1 | AE18: 2658.44
D19: SALA DE REGIDORES | O19: =SUM(O9:O18) -> 72207 | P19: =SUM(P9:P18) -> 2888.28 | Q19: 5054.49 | R19: 0 | S19: 7942.77 | T19: 72207 | U19: 80149.77 | V19: 0 | W19: 0 | X19: 0 | Y19: 10498.71262 | Z19: 10498.68 | AA19: 0 | AB19: 69651.09
D21: PRESIDENCIA MUNICIPAL
D22: RUIZ JUAREZ MARIA RAQUEL | H22: PRESIDENTE MUNICIPAL INTERINO | I22: 15 | J22: TARJETA | L22: 0 | M22: 0 | N22: =14227/15 -> 948.4666667 | O22: =TRUNC(N22*I22,2) -> 14227 | P22: =TRUNC(N22*I22*0.04,2) -> 569.08 | Q22: =TRUNC(N22*0.07*I22,2) -> 995.89 | R22: =L22 -> 0 | S22: =TRUNC(Q22+P22+(IF(R22>519,519,R22))+IF(K22=0,0,K22*N22),2) -> 1564.97 | T22: =TRUNC((IF(K22=0,I22*N22,(I22-K22)*N22))+(IF(R22<519,0,R22-519)),2)+M22 -> 14227 | U22: =S22+T22 -> 15791.97 | X22: 0 | Y22: =IF(N22>0.01,(T22-VLOOKUP(T22,quincenal,1))*VLOOKUP(T22,quincenal,3)+VLOOKUP(T22,quincenal,2)-VLOOKUP(T22,subquincenal,2),0) -> 2577.502608 | Z22: =TRUNC(IF(Y22>0.01,Y22,0),2) -> 2577.5 | AA22: =TRUNC(IF(Y22<0.01,-Y22,0),2) -> 0 | AB22: =U22-W22-X22-Z22+AA22 -> 13214.47
A23: 11 | B23: 1 | C23: 2 | D23: FREGOSO PARRA MARTHA | E23: FEPM871023ND1 | F23: FEPM871023MJCRRR07 | H23: SECRETARIA PARTICULAR | I23: 15 | J23: TARJETA | L23: 0 | M23: 0 | N23: =3349/15 -> 223.2666667 | O23: =TRUNC(N23*I23,2) -> 3349 | P23: =TRUNC(N23*I23*0.04,2) -> 133.96 | Q23: =TRUNC(N23*0.07*I23,2) -> 234.43 | R23: =L23 -> 0 | S23: =TRUNC(Q23+P23+(IF(R23>519,519,R23))+IF(K23=0,0,K23*N23),2) -> 368.39 | T23: =TRUNC((IF(K23=0,I23*N23,(I23-K23)*N23))+(IF(R23<519,0,R23-519)),2)+M23 -> 3349 | U23: =S23+T23 -> 3717.39 | X23: 0 | Y23: =IF(N23>0.01,(T23-VLOOKUP(T23,quincenal,1))*VLOOKUP(T23,quincenal,3)+VLOOKUP(T23,quincenal,2)-VLOOKUP(T23,subquincenal,2),0) -> 135.188112 | Z23: =TRUNC(IF(Y23>0.01,Y23,0),2) -> 135.18 | AA23: =TRUNC(IF(Y23<0.01,-Y23,0),2) -> 0 | AB23: =U23-W23-X23-Z23+AA23 -> 3582.21 | AC23: =PORTADA!$D$10 -> 1
D24: PRESIDENCIA MUNICIPAL | O24: =SUM(O22:O23) -> 17576 | P24: 703.04 | Q24: 1230.32 | R24: 0 | S24: 1933.36 | T24: 17576 | U24: 19509.36 | V24: 0 | W24: 0 | X24: 0 | Y24: 2712.69072 | Z24: 2712.68 | AA24: 0 | AB24: 16796.68
D26: SECRETARIA GENERAL Y SINDICATURA
A27: 13 | B27: 1 | C27: 5 | D27: TOPETE DUEÑAS SANDRA MARGARITA | H27: SINDICO MUNICIPAL | I27: 15 | J27: TARJETA | L27: 0 | M27: 0 | N27: =10307/15 -> 687.1333333 | O27: =TRUNC(N27*I27,2) -> 10307 | P27: =TRUNC(N27*I27*0.04,2) -> 412.28 | Q27: =TRUNC(N27*0.07*I27,2) -> 721.49 | R27: =L27 -> 0 | S27: =TRUNC(Q27+P27+(IF(R27>519,519,R27))+IF(K27=0,0,K27*N27),2) -> 1133.77 | T27: =TRUNC((IF(K27=0,I27*N27,(I27-K27)*N27))+(IF(R27<519,0,R27-519)),2)+M27 -> 10307 | U27: =S27+T27 -> 11440.77 | W27: 0 | X27: 0 | Y27: =IF(N27>0.01,(T27-VLOOKUP(T27,quincenal,1))*VLOOKUP(T27,quincenal,3)+VLOOKUP(T27,quincenal,2)-VLOOKUP(T27,subquincenal,2),0) -> 1655.518608 | Z27: =TRUNC(IF(Y27>0.01,Y27,0),2) -> 1655.51 | AA27: =TRUNC(IF(Y27<0.01,-Y27,0),2) -> 0 | AB27: =U27-W27-X27-Z27+AA27 -> 9785.26 | AC27: =PORTADA!$D$10 -> 1
A28: 14 | B28: 1 | C28: 1 | D28: MENDEZ NAVARRO JOSE FLORENTINO | G28: 2012-10-01 | H28: SECRETARIO GENERAL | I28: 15 | J28: TARJETA | L28: 0 | M28: 0 | N28: =10307/15 -> 687.1333333 | O28: =TRUNC(N28*I28,2) -> 10307 | P28: =TRUNC(N28*I28*0.04,2) -> 412.28 | Q28: =TRUNC(N28*0.07*I28,2) -> 721.49 | R28: =L28 -> 0 | S28: =TRUNC(Q28+P28+(IF(R28>519,519,R28))+IF(K28=0,0,K28*N28),2) -> 1133.77 | T28: =TRUNC((IF(K28=0,I28*N28,(I28-K28)*N28))+(IF(R28<519,0,R28-519)),2)+M28 -> 10307 | U28: =S28+T28 -> 11440.77 | X28: 0 | Y28: =IF(N28>0.01,(T28-VLOOKUP(T28,quincenal,1))*VLOOKUP(T28,quincenal,3)+VLOOKUP(T28,quincenal,2)-VLOOKUP(T28,subquincenal,2),0) -> 1655.518608 | Z28: =TRUNC(IF(Y28>0.01,Y28,0),2) -> 1655.51 | AA28: =TRUNC(IF(Y28<0.01,-Y28,0),2) -> 0 | AB28: =U28-W28-X28-Z28+AA28 -> 9785.26
A29: 15 | D29: GONZALEZ BALCASAR JESUS | H29: SECRETARIO | I29: 15 | J29: TARJETA | L29: 0 | M29: 0 | N29: =3086/15 -> 205.7333333 | O29: =TRUNC(N29*I29,2) -> 3086 | P29: =TRUNC(N29*I29*0.04,2) -> 123.44 | Q29: =TRUNC(N29*0.07*I29,2) -> 216.02 | R29: =L29 -> 0 | S29: =TRUNC(Q29+P29+(IF(R29>519,519,R29))+IF(K29=0,0,K29*N29),2) -> 339.46 | T29: =TRUNC((IF(K29=0,I29*N29,(I29-K29)*N29))+(IF(R29<519,0,R29-519)),2)+M29 -> 3086 | U29: =S29+T29 -> 3425.46 | X29: 0 | Y29: =IF(N29>0.01,(T29-VLOOKUP(T29,quincenal,1))*VLOOKUP(T29,quincenal,3)+VLOOKUP(T29,quincenal,2)-VLOOKUP(T29,subquincenal,2),0) -> 106.573712 | Z29: =TRUNC(IF(Y29>0.01,Y29,0),2) -> 106.57 | AA29: =TRUNC(IF(Y29<0.01,-Y29,0),2) -> 0 | AB29: =U29-W29-X29-Z29+AA29 -> 3318.89
A30: 16 | D30: SUAREZ MENDEZ FRANCISCO ALEJANDRO | H30: AUXILIAR ADMINISTRATIVO | I30: 15 | J30: TARJETA | L30: 0 | M30: 0 | N30: =3397/15 -> 226.4666667 | O30: =TRUNC(N30*I30,2) -> 3397 | P30: =TRUNC(N30*I30*0.04,2) -> 135.88 | Q30: =TRUNC(N30*0.07*I30,2) -> 237.79 | R30: =L30 -> 0 | S30: =TRUNC(Q30+P30+(IF(R30>519,519,R30))+IF(K30=0,0,K30*N30),2) -> 373.67 | T30: =TRUNC((IF(K30=0,I30*N30,(I30-K30)*N30))+(IF(R30<519,0,R30-519)),2)+M30 -> 3397 | U30: =S30+T30 -> 3770.67 | X30: 0 | Y30: =IF(N30>0.01,(T30-VLOOKUP(T30,quincenal,1))*VLOOKUP(T30,quincenal,3)+VLOOKUP(T30,quincenal,2)-VLOOKUP(T30,subquincenal,2),0) -> 140.410512 | Z30: =TRUNC(IF(Y30>0.01,Y30,0),2) -> 140.41 | AA30: =TRUNC(IF(Y30<0.01,-Y30,0),2) -> 0 | AB30: =U30-W30-X30-Z30+AA30 -> 3630.26 | AC30: =PORTADA!$D$10 -> 1
D31: SECRETARIA GENERAL Y SINDICATURA | O31: =SUM(O27:O30) -> 27097 | P31: 1083.88 | Q31: 1896.79 | R31: 0 | S31: 2980.67 | T31: 27097 | U31: 30077.67 | V31: 0 | W31: 0 | X31: 0 | Y31: =SUM(Y27:Y30) -> 3558.02144 | Z31: 3558 | AA31: 0 | AB31: 26519.67
D33: OFICIALIA MAYOR ADMINISTRATIVA
D34: CHAVEZ GOMEZ DAVID | H34: OFICIAL MAYOR INTERINO | I34: 15 | J34: TARJETA | L34: 0 | M34: 0 | N34: =7229/15 -> 481.9333333 | O34: =TRUNC(N34*I34,2) -> 7229 | P34: =TRUNC(N34*I34*0.04,2) -> 289.16 | Q34: =TRUNC(N34*0.07*I34,2) -> 506.03 | R34: =L34 -> 0 | S34: =TRUNC(Q34+P34+(IF(R34>519,519,R34))+IF(K34=0,0,K34*N34),2) -> 795.19 | T34: =TRUNC((IF(K34=0,I34*N34,(I34-K34)*N34))+(IF(R34<519,0,R34-519)),2)+M34 -> 7229 | U34: =S34+T34 -> 8024.19 | X34: 0 | Y34: =IF(N34>0.01,(T34-VLOOKUP(T34,quincenal,1))*VLOOKUP(T34,quincenal,3)+VLOOKUP(T34,quincenal,2)-VLOOKUP(T34,subquincenal,2),0) -> 996.925224 | Z34: =TRUNC(IF(Y34>0.01,Y34,0),2) -> 996.92 | AA34: =TRUNC(IF(Y34<0.01,-Y34,0),2) -> 0 | AB34: =U34-W34-X34-Z34+AA34 -> 7027.27
A35: 18 | B35: 1 | C35: 6 | D35: VENTURA PEREZ HERLINDA AURORA | E35: VEPH840722PR4 | F35: VEPH840722MJCNRR04 | H35: SECRETARIA | I35: 15 | J35: TARJETA | L35: 0 | M35: 0 | N35: =3056/15 -> 203.7333333 | O35: 3056 | P35: 122.24 | Q35: 213.92 | R35: 0 | S35: 336.16 | T35: 3056 | U35: 3392.16 | W35: 0 | X35: 0 | Y35: 83.059712 | Z35: 83.05 | AA35: 0 | AB35: 3309.11 | AC35: =PORTADA!$D$10 -> 1
A36: 19 | D36: ENRIQUEZ VALENCIA NARCISO | H36: ENCARGADO DEL DEPTO DE COMPRAS | I36: 15 | J36: TARJETA | L36: 0 | M36: 0 | N36: =4385/15 -> 292.3333333 | O36: 4385 | P36: 175.4 | Q36: 306.95 | R36: 0 | S36: 482.35 | T36: 4385 | U36: 4867.35 | W36: 0 | X36: 0 | Y36: 413.297488 | Z36: 413.29 | AA36: 0 | AB36: 4454.06 | AC36: =PORTADA!$D$10 -> 1
A37: 20 | D37: GOMEZ TAMAYO MARIA GUADALUPE YANETH | E37: GOTG850723 | H37: SECRATARIA DEL DEPTO DE COMPRAS | I37: 15 | J37: TARJETA | L37: 0 | M37: 0 | N37: =2492/15 -> 166.1333333 | O37: 2492 | P37: 99.68 | Q37: 174.44 | R37: 0 | S37: 274.12 | T37: 2492 | U37: 2766.12 | W37: 0 | X37: 0 | Y37: 6.696512 | Z37: 6.69 | AA37: 0 | AB37: 2759.43 | AC37: =PORTADA!$D$10 -> 1
A38: 21 | B38: 1 | C38: 6 | D38: BARBOZA FONSECA BENJAMIN | H38: CHOFER | I38: 15 | J38: TARJETA | L38: 0 | M38: 0 | N38: =3117/15 -> 207.8 | O38: 3117 | P38: 124.68 | Q38: 218.19 | R38: 0 | S38: 342.87 | T38: 3117 | U38: 3459.87 | W38: 0 | Y38: 109.946512 | Z38: 109.94 | AA38: 0 | AB38: 3349.93 | AC38: =PORTADA!$D$10 -> 1
A39: 22 | D39: CARO GONZALEZ ANA ROSA | H39: CONSERJE | I39: 15 | J39: SOBRE | L39: 0 | M39: 0 | N39: =1491/15 -> 99.4 | O39: 1491 | P39: 59.64 | Q39: 104.37 | R39: 0 | S39: 164.01 | T39: 1491 | U39: 1655.01 | W39: 0 | X39: 0 | Y39: -116.29384 | Z39: 0 | AA39: 116.29 | AB39: 1771.3 | AC39: =PORTADA!$D$10 -> 1
D40: OFICIALIA MAYOR ADMINISTRATIVA | O40: =SUM(O34:O39) -> 21770 | P40: 870.8 | Q40: 1523.9 | R40: 0 | S40: 2394.7 | T40: 21770 | U40: 24164.7 | V40: 0 | W40: 0 | X40: 0 | Y40: 1493.631608 | Z40: 1609.89 | AA40: 116.29 | AB40: 22671.1
D42: DEPARTAMENTO JURIDICO
A43: 23 | B43: 1 | C43: 7 | D43: DOMINGUEZ MORA JOSE RAFAEL | H43: DIRECTOR JURIDICO | I43: 15 | J43: TARJETA | L43: 0 | M43: 0 | N43: =6348/15 -> 423.2 | O43: =TRUNC(N43*I43,2) -> 6348 | P43: =TRUNC(N43*I43*0.04,2) -> 253.92 | Q43: =TRUNC(N43*0.07*I43,2) -> 444.36 | R43: =L43 -> 0 | S43: =TRUNC(Q43+P43+(IF(R43>519,519,R43))+IF(K43=0,0,K43*N43),2) -> 698.28 | T43: =TRUNC((IF(K43=0,I43*N43,(I43-K43)*N43))+(IF(R43<519,0,R43-519)),2)+M43 -> 6348 | U43: =S43+T43 -> 7046.28 | X43: 0 | Y43: =IF(N43>0.01,(T43-VLOOKUP(T43,quincenal,1))*VLOOKUP(T43,quincenal,3)+VLOOKUP(T43,quincenal,2)-VLOOKUP(T43,subquincenal,2),0) -> 808.743624 | Z43: =TRUNC(IF(Y43>0.01,Y43,0),2) -> 808.74 | AA43: =TRUNC(IF(Y43<0.01,-Y43,0),2) -> 0 | AB43: =U43-W43-X43-Z43+AA43 -> 6237.54 | AC43: =PORTADA!$D$10 -> 1
A44: 24 | D44: REYNAGA LOPEZ NAHSDHELLY ALEJANDRA | H44: AUXILIAR JURIDICO | I44: 15 | J44: TARJETA | L44: 0 | M44: 0 | N44: =3896/15 -> 259.7333333 | O44: =TRUNC(N44*I44,2) -> 3896 | P44: =TRUNC(N44*I44*0.04,2) -> 155.84 | Q44: =TRUNC(N44*0.07*I44,2) -> 272.72 | R44: =L44 -> 0 | S44: =TRUNC(Q44+P44+(IF(R44>519,519,R44))+IF(K44=0,0,K44*N44),2) -> 428.56 | T44: =TRUNC((IF(K44=0,I44*N44,(I44-K44)*N44))+(IF(R44<519,0,R44-519)),2)+M44 -> 3896 | U44: =S44+T44 -> 4324.56 | X44: 0 | Y44: =IF(N44>0.01,(T44-VLOOKUP(T44,quincenal,1))*VLOOKUP(T44,quincenal,3)+VLOOKUP(T44,quincenal,2)-VLOOKUP(T44,subquincenal,2),0) -> 332.4484 | Z44: =TRUNC(IF(Y44>0.01,Y44,0),2) -> 332.44 | AA44: =TRUNC(IF(Y44<0.01,-Y44,0),2) -> 0 | AB44: =U44-W44-X44-Z44+AA44 -> 3992.12
A45: 25 | B45: 1 | C45: 7 | D45: GONZALEZ ROMERO JESUS ALFONSO | E45: CARH770717 | F45: CARH770717HJCRDG01 | H45: JUEZ CALIFICADOR | I45: 15 | J45: TARJETA | L45: 0 | M45: 0 | N45: =4612/15 -> 307.4666667 | O45: =TRUNC(N45*I45,2) -> 4612 | P45: =TRUNC(N45*I45*0.04,2) -> 184.48 | Q45: =TRUNC(N45*0.07*I45,2) -> 322.84 | R45: =L45 -> 0 | S45: =TRUNC(Q45+P45+(IF(R45>519,519,R45))+IF(K45=0,0,K45*N45),2) -> 507.32 | T45: =TRUNC((IF(K45=0,I45*N45,(I45-K45)*N45))+(IF(R45<519,0,R45-519)),2)+M45 -> 4612 | U45: =S45+T45 -> 5119.32 | X45: 0 | Y45: =IF(N45>0.01,(T45-VLOOKUP(T45,quincenal,1))*VLOOKUP(T45,quincenal,3)+VLOOKUP(T45,quincenal,2)-VLOOKUP(T45,subquincenal,2),0) -> 453.975888 | Z45: =TRUNC(IF(Y45>0.01,Y45,0),2) -> 453.97 | AA45: =TRUNC(IF(Y45<0.01,-Y45,0),2) -> 0 | AB45: =U45-W45-X45-Z45+AA45 -> 4665.35 | AC45: =PORTADA!$D$10 -> 1
D46: DEPARTAMENTO JURIDICO | O46: =SUM(O43:O45) -> 14856 | P46: =SUM(P43:P45) -> 594.24 | Q46: 1039.92 | R46: 0 | S46: 1634.16 | T46: 14856 | U46: 16490.16 | V46: 0 | W46: 0 | X46: 0 | Y46: 1595.167912 | Z46: 1595.15 | AA46: 0 | AB46: 14895.01
D48: DIRECCION DE REGISTRO CIVIL
A49: 26 | B49: 1 | C49: 14 | D49: HERNANDEZ ENRIQUEZ ROSA GUADALUPE | E49: HEEG670312 | F49: HEER670312MJCRNS06 | G49: 2007-01-08 | H49: JEFE OFICIAL DE REGISTRO CIVIL | I49: 15 | J49: TARJETA | L49: 0 | M49: 0 | N49: =4459/15 -> 297.2666667 | O49: =TRUNC(N49*I49,2) -> 4459 | P49: =TRUNC(N49*I49*0.04,2) -> 178.36 | Q49: =TRUNC(N49*0.07*I49,2) -> 312.13 | R49: =L49 -> 0 | S49: =TRUNC(Q49+P49+(IF(R49>519,519,R49))+IF(K49=0,0,K49*N49),2) -> 490.49 | T49: =TRUNC((IF(K49=0,I49*N49,(I49-K49)*N49))+(IF(R49<519,0,R49-519)),2)+M49 -> 4459 | U49: =S49+T49 -> 4949.49 | X49: 0 | Y49: =IF(N49>0.01,(T49-VLOOKUP(T49,quincenal,1))*VLOOKUP(T49,quincenal,3)+VLOOKUP(T49,quincenal,2)-VLOOKUP(T49,subquincenal,2),0) -> 426.558288 | Z49: =TRUNC(IF(Y49>0.01,Y49,0),2) -> 426.55 | AA49: =TRUNC(IF(Y49<0.01,-Y49,0),2) -> 0 | AB49: =U49-W49-X49-Z49+AA49 -> 4522.94 | AC49: =PORTADA!$D$10 -> 1
A50: 27 | B50: 1 | C50: 6 | D50: PLASCENCIA GARCIA MIREYA ESMERALDA | E50: PAGM780607 | F50: PAGM780607MJCLRR03 | H50: OFICIAL AUX. DE REGISTRO CIVIL | I50: 15 | J50: TARJETA | L50: 0 | M50: 0 | N50: =2492/15 -> 166.1333333 | O50: =TRUNC(N50*I50,2) -> 2492 | P50: =TRUNC(N50*I50*0.04,2) -> 99.68 | Q50: =TRUNC(N50*0.07*I50,2) -> 174.44 | R50: =L50 -> 0 | S50: =TRUNC(Q50+P50+(IF(R50>519,519,R50))+IF(K50=0,0,K50*N50),2) -> 274.12 | T50: =TRUNC((IF(K50=0,I50*N50,(I50-K50)*N50))+(IF(R50<519,0,R50-519)),2)+M50 -> 2492 | U50: =S50+T50 -> 2766.12 | X50: 0 | Y50: =IF(N50>0.01,(T50-VLOOKUP(T50,quincenal,1))*VLOOKUP(T50,quincenal,3)+VLOOKUP(T50,quincenal,2)-VLOOKUP(T50,subquincenal,2),0) -> 6.696512 | Z50: =TRUNC(IF(Y50>0.01,Y50,0),2) -> 6.69 | AA50: =TRUNC(IF(Y50<0.01,-Y50,0),2) -> 0 | AB50: =U50-W50-X50-Z50+AA50 -> 2759.43 | AC50: =PORTADA!$D$10 -> 1
A51: 28 | B51: 1 | C51: 14 | H51: OFICIAL AUX. DE REGISTRO CIVIL | I51: 0 | J51: TARJETA | L51: 0 | M51: 0 | N51: =2556/15 -> 170.4 | O51: =TRUNC(N51*I51,2) -> 0 | P51: =TRUNC(N51*I51*0.04,2) -> 0 | Q51: =TRUNC(N51*0.07*I51,2) -> 0 | R51: =L51 -> 0 | S51: =TRUNC(Q51+P51+(IF(R51>519,519,R51))+IF(K51=0,0,K51*N51),2) -> 0 | T51: =TRUNC((IF(K51=0,I51*N51,(I51-K51)*N51))+(IF(R51<519,0,R51-519)),2)+M51 -> 0 | U51: =S51+T51 -> 0 | X51: 0 | Y51: =IF(N51>0.01,(T51-VLOOKUP(T51,quincenal,1))*VLOOKUP(T51,quincenal,3)+VLOOKUP(T51,quincenal,2)-VLOOKUP(T51,subquincenal,2),0) ->  | AB51: =U51-W51-X51-Z51+AA51 -> 0 | AC51: =PORTADA!$D$10 -> 1
D52: DIRECCION DE REGISTRO CIVIL | O52: =SUM(O49:O51) -> 6951 | P52: =SUM(P49:P51) -> 278.04 | Q52: 486.57 | R52: 0 | S52: 764.61 | T52: 6951 | U52: 7715.61 | V52: 0 | W52: 0 | X52: 0 | Z52: 433.24 | AA52: 0 | AB52: 7282.37
D54: OFICIALIA MAYOR DE CULTURA
A55: 30 | B55: 1 | C55: 16 | D55: PARRA RON CARLOS ENRIQUE | E55: PARC480708 | F55: PARC480708HJCRNR08 | G55: 2004-01-01 | H55: CRONISTA | I55: 15 | J55: TARJETA | L55: 0 | M55: 0 | N55: =3463/15 -> 230.8666667 | O55: =TRUNC(N55*I55,2) -> 3463 | P55: =TRUNC(N55*I55*0.04,2) -> 138.52 | Q55: =TRUNC(N55*0.07*I55,2) -> 242.41 | R55: =L55 -> 0 | S55: =TRUNC(Q55+P55+(IF(R55>519,519,R55))+IF(K55=0,0,K55*N55),2) -> 380.93 | T55: =TRUNC((IF(K55=0,I55*N55,(I55-K55)*N55))+(IF(R55<519,0,R55-519)),2)+M55 -> 3463 | U55: =S55+T55 -> 3843.93 | X55: 0 | Y55: =IF(N55>0.01,(T55-VLOOKUP(T55,quincenal,1))*VLOOKUP(T55,quincenal,3)+VLOOKUP(T55,quincenal,2)-VLOOKUP(T55,subquincenal,2),0) -> 147.591312 | Z55: =TRUNC(IF(Y55>0.01,Y55,0),2) -> 147.59 | AA55: =TRUNC(IF(Y55<0.01,-Y55,0),2) -> 0 | AB55: =U55-W55-X55-Z55+AA55 -> 3696.34 | AC55: =PORTADA!$D$10 -> 1
A56: 31 | D56: GOMEZ TOVAR MIREYA LIZBETH | H56: AUXILIAR DE DIRECCION DE CULTURA Y TURISMO | I56: 15 | J56: TARJETA | N56: =2658/15 -> 177.2 | O56: 2658 | P56: 106.32 | Q56: 186.06 | R56: 0 | S56: 292.38 | T56: 2658 | U56: 2950.38 | X56: 0 | Y56: 39.757312 | Z56: 39.75 | AA56: 0 | AB56: 2910.63
A57: 32 | B57: 1 | C57: 16 | D57: HERNANDEZ SEGURA DELIA | H57: SECRETARIA | I57: 15 | J57: TARJETA | L57: 0 | M57: 0 | N57: =2658/15 -> 177.2 | O57: 2658 | P57: 106.32 | Q57: 186.06 | R57: 0 | S57: 292.38 | T57: 2658 | U57: 2950.38 | X57: 0 | Y57: 39.757312 | Z57: 39.75 | AA57: 0 | AB57: 2910.63 | AC57: =PORTADA!$D$10 -> 1
A58: 33 | B58: 1 | C58: 16 | D58: ARCINIEGA RODRIGUEZ ANTONIO | H58: ENCARGADO DE EQUIPO DE SONIDO | I58: 15 | J58: TARJETA | L58: 0 | M58: 0 | N58: =4060/15 -> 270.6666667 | O58: 4060 | P58: 162.4 | Q58: 284.2 | R58: 0 | S58: 446.6 | T58: 4060 | U58: 4506.6 | X58: 0 | Y58: 358.6884 | Z58: 358.68 | AA58: 0 | AB58: 4147.92 | AC58: =PORTADA!$D$10 -> 1
A59: 34 | B59: 1 | C59: 16 | D59: MARTINEZ CRUZ REYNALDA | H59: CONSERJE | I59: 15 | J59: TARJETA | L59: 0 | M59: 0 | N59: =2106/15 -> 140.4 | O59: 2106 | P59: 84.24 | Q59: 147.42 | R59: 0 | S59: 231.66 | T59: 2106 | U59: 2337.66 | X59: 0 | Y59: -63.650288 | Z59: 0 | AA59: 63.65 | AB59: 2401.31 | AC59: =PORTADA!$D$10 -> 1
D60: OFICIALIA MAYOR DE CULTURA | O60: =SUM(O55:O59) -> 14945 | P60: 597.8 | Q60: 1046.15 | R60: 0 | S60: 1643.95 | T60: 14945 | U60: 16588.95 | V60: 0 | W60: 0 | X60: 0 | Y60: 522.144048 | Z60: 585.77 | AA60: 63.65 | AB60: 16066.83
D62: DEPARTAMENTO DE PRENSA Y PUBLICIDAD
A63: 35 | B63: 1 | C63: 19 | D63: MEZA ROMERO FAUSTO | H63: DIRECTOR DE PRENSA Y PUBLICIDAD | I63: 15 | J63: TARJETA | L63: 0 | M63: 0 | N63: =4612/15 -> 307.4666667 | O63: =TRUNC(N63*I63,2) -> 4612 | P63: =TRUNC(N63*I63*0.04,2) -> 184.48 | Q63: =TRUNC(N63*0.07*I63,2) -> 322.84 | R63: =L63 -> 0 | S63: =TRUNC(Q63+P63+(IF(R63>519,519,R63))+IF(K63=0,0,K63*N63),2) -> 507.32 | T63: =TRUNC((IF(K63=0,I63*N63,(I63-K63)*N63))+(IF(R63<519,0,R63-519)),2)+M63 -> 4612 | U63: =S63+T63 -> 5119.32 | W63: 0 | X63: 0 | Y63: =IF(N63>0.01,(T63-VLOOKUP(T63,quincenal,1))*VLOOKUP(T63,quincenal,3)+VLOOKUP(T63,quincenal,2)-VLOOKUP(T63,subquincenal,2),0) -> 453.975888 | Z63: =TRUNC(IF(Y63>0.01,Y63,0),2) -> 453.97 | AA63: 0 | AB63: =U63-W63-X63-Z63+AA63 -> 4665.35 | AC63: =PORTADA!$D$10 -> 1
A64: 36 | D64: SIORDIA HERMOSILLO EDER ALBERTO | H64: AUXILIAR PRENSA Y PUBLICIDAD | I64: 15 | J64: TARJETA | L64: 0 | M64: 0 | N64: =2788/15 -> 185.8666667 | O64: =TRUNC(N64*I64,2) -> 2788 | P64: =TRUNC(N64*I64*0.04,2) -> 111.52 | Q64: =TRUNC(N64*0.07*I64,2) -> 195.16 | R64: =L64 -> 0 | S64: =TRUNC(Q64+P64+(IF(R64>519,519,R64))+IF(K64=0,0,K64*N64),2) -> 306.68 | T64: =TRUNC((IF(K64=0,I64*N64,(I64-K64)*N64))+(IF(R64<519,0,R64-519)),2)+M64 -> 2788 | U64: =S64+T64 -> 3094.68 | W64: 0 | X64: 0 | Y64: =IF(N64>0.01,(T64-VLOOKUP(T64,quincenal,1))*VLOOKUP(T64,quincenal,3)+VLOOKUP(T64,quincenal,2)-VLOOKUP(T64,subquincenal,2),0) -> 53.901312 | Z64: =TRUNC(IF(Y64>0.01,Y64,0),2) -> 53.9 | AA64: 0 | AB64: =U64-W64-X64-Z64+AA64 -> 3040.78 | AC64: =PORTADA!$D$10 -> 1
D65: DEPARTAMENTO DE PRENSA Y PUBLICIDAD | O65: =SUM(O63:O64) -> 7400 | P65: =SUM(P63:P64) -> 296 | Q65: 518 | R65: 0 | S65: 814 | T65: 7400 | U65: 8214 | V65: 0 | W65: 0 | X65: 0 | Y65: 507.8772 | Z65: 507.87 | AA65: 0 | AB65: 7706.13
D67: DIRECCION DE EDUCACION
A68: 37 | D68: FREGOSO VARGAS VIDALIA CECILIA | H68: DIRECTOR DE EDUCACION | I68: 15 | J68: TARJETA | L68: 0 | M68: 0 | N68: =5316/15 -> 354.4 | O68: =TRUNC(N68*I68,2) -> 5316 | P68: =TRUNC(N68*I68*0.04,2) -> 212.64 | Q68: =TRUNC(N68*0.07*I68,2) -> 372.12 | R68: =L68 -> 0 | S68: =TRUNC(Q68+P68+(IF(R68>519,519,R68))+IF(K68=0,0,K68*N68),2) -> 584.76 | T68: =TRUNC((IF(K68=0,I68*N68,(I68-K68)*N68))+(IF(R68<519,0,R68-519)),2)+M68 -> 5316 | U68: =S68+T68 -> 5900.76 | X68: 0 | Y68: =IF(N68>0.01,(T68-VLOOKUP(T68,quincenal,1))*VLOOKUP(T68,quincenal,3)+VLOOKUP(T68,quincenal,2)-VLOOKUP(T68,subquincenal,2),0) -> 588.308424 | Z68: =TRUNC(IF(Y68>0.01,Y68,0),2) -> 588.3 | AA68: =TRUNC(IF(Y68<0.01,-Y68,0),2) -> 0 | AB68: =U68-W68-X68-Z68+AA68 -> 5312.46 | AC68: =PORTADA!$D$10 -> 1
D69: DIRECCION DE EDUCACION | O69: =SUM(O68) -> 5316 | P69: =SUM(P68) -> 212.64 | Q69: 372.12 | R69: 0 | S69: 584.76 | T69: 5316 | U69: 5900.76 | V69: 0 | W69: 0 | X69: 0 | Y69: 588.308424 | Z69: 588.3 | AA69: 0 | AB69: 5312.46
D71: DEPARTAMENTO DE PROMOCION Y DESARROLLO ECONOMICO
A72: 38 | D72: ESTRADA SANTIAGO ANTONIO | H72: DIRECTOR | I72: 15 | J72: TARJETA | L72: 0 | M72: 0 | N72: =5316/15 -> 354.4 | O72: =TRUNC(N72*I72,2) -> 5316 | P72: =TRUNC(N72*I72*0.04,2) -> 212.64 | Q72: =TRUNC(N72*0.07*I72,2) -> 372.12 | R72: =L72 -> 0 | S72: =TRUNC(Q72+P72+(IF(R72>519,519,R72))+IF(K72=0,0,K72*N72),2) -> 584.76 | T72: =TRUNC((IF(K72=0,I72*N72,(I72-K72)*N72))+(IF(R72<519,0,R72-519)),2)+M72 -> 5316 | U72: =S72+T72 -> 5900.76 | X72: 0 | Y72: =IF(N72>0.01,(T72-VLOOKUP(T72,quincenal,1))*VLOOKUP(T72,quincenal,3)+VLOOKUP(T72,quincenal,2)-VLOOKUP(T72,subquincenal,2),0) -> 588.308424 | Z72: =TRUNC(IF(Y72>0.01,Y72,0),2) -> 588.3 | AA72: =TRUNC(IF(Y72<0.01,-Y72,0),2) -> 0 | AB72: =U72-W72-X72-Z72+AA72 -> 5312.46
A73: 39 | B73: 1 | C73: 6 | D73: MARTINEZ MARTINEZ SALVADOR TAURINO JONATHAN | E73: MAMS900118M80 | F73: MAMS900118HJCRRL02 | G73: 2007-01-01 | H73: AYUDANTE | I73: 15 | J73: TARJETA | L73: 0 | M73: 0 | N73: =2788/15 -> 185.8666667 | O73: =TRUNC(N73*I73,2) -> 2788 | P73: =TRUNC(N73*I73*0.04,2) -> 111.52 | Q73: =TRUNC(N73*0.07*I73,2) -> 195.16 | R73: =L73 -> 0 | S73: =TRUNC(Q73+P73+(IF(R73>519,519,R73))+IF(K73=0,0,K73*N73),2) -> 306.68 | T73: =TRUNC((IF(K73=0,I73*N73,(I73-K73)*N73))+(IF(R73<519,0,R73-519)),2)+M73 -> 2788 | U73: =S73+T73 -> 3094.68 | X73: 0 | Y73: =IF(N73>0.01,(T73-VLOOKUP(T73,quincenal,1))*VLOOKUP(T73,quincenal,3)+VLOOKUP(T73,quincenal,2)-VLOOKUP(T73,subquincenal,2),0) -> 53.901312 | Z73: =TRUNC(IF(Y73>0.01,Y73,0),2) -> 53.9 | AA73: 0 | AB73: =U73-W73-X73-Z73+AA73 -> 3040.78 | AC73: =PORTADA!$D$10 -> 1
A74: 40 | B74: 1 | C74: 19 | D74: ULLOA MARTINEZ MARCELA GUADALUPE | E74: UOMM730612 | F74: UOMM730612MJCLRR02 | G74: 1998-01-01 | H74: AUXILIAR ADMINISTRATIVO | I74: 15 | J74: TARJETA | L74: 0 | M74: 0 | N74: =3261/15 -> 217.4 | O74: =TRUNC(N74*I74,2) -> 3261 | P74: =TRUNC(N74*I74*0.04,2) -> 130.44 | Q74: =TRUNC(N74*0.07*I74,2) -> 228.27 | R74: =L74 -> 0 | S74: =TRUNC(Q74+P74+(IF(R74>519,519,R74))+IF(K74=0,0,K74*N74),2) -> 358.71 | T74: =TRUNC((IF(K74=0,I74*N74,(I74-K74)*N74))+(IF(R74<519,0,R74-519)),2)+M74 -> 3261 | U74: =S74+T74 -> 3619.71 | X74: 0 | Y74: =IF(N74>0.01,(T74-VLOOKUP(T74,quincenal,1))*VLOOKUP(T74,quincenal,3)+VLOOKUP(T74,quincenal,2)-VLOOKUP(T74,subquincenal,2),0) -> 125.613712 | Z74: =TRUNC(IF(Y74>0.01,Y74,0),2) -> 125.61 | AA74: =TRUNC(IF(Y74<0.01,-Y74,0),2) -> 0 | AB74: =U74-W74-X74-Z74+AA74 -> 3494.1 | AC74: =PORTADA!$D$10 -> 1
A75: 41 | B75: 1 | C75: 19 | D75: GONZALEZ MARTINEZ ERIKA DELFINA | E75: FEIA870704 | F75: FEIA870704MJCRXN02 | H75: SECRETARIA | I75: 15 | J75: TARJETA | L75: 0 | M75: 0 | N75: =2658/15 -> 177.2 | O75: =TRUNC(N75*I75,2) -> 2658 | P75: =TRUNC(N75*I75*0.04,2) -> 106.32 | Q75: =TRUNC(N75*0.07*I75,2) -> 186.06 | R75: =L75 -> 0 | S75: =TRUNC(Q75+P75+(IF(R75>519,519,R75))+IF(K75=0,0,K75*N75),2) -> 292.38 | T75: =TRUNC((IF(K75=0,I75*N75,(I75-K75)*N75))+(IF(R75<519,0,R75-519)),2)+M75 -> 2658 | U75: =S75+T75 -> 2950.38 | W75: 0 | X75: 0 | Y75: =IF(N75>0.01,(T75-VLOOKUP(T75,quincenal,1))*VLOOKUP(T75,quincenal,3)+VLOOKUP(T75,quincenal,2)-VLOOKUP(T75,subquincenal,2),0) -> 39.757312 | Z75: =TRUNC(IF(Y75>0.01,Y75,0),2) -> 39.75 | AA75: =TRUNC(IF(Y75<0.01,-Y75,0),2) -> 0 | AB75: =U75-W75-X75-Z75+AA75 -> 2910.63 | AC75: =PORTADA!$D$10 -> 1
D76: DEPARTAMENTO DE PROMOCION Y DESARROLLO ECONOMICO | O76: =SUM(O72:O75) -> 14023 | P76: =SUM(P72:P75) -> 560.92 | Q76: 981.61 | R76: 0 | S76: 1542.53 | T76: 14023 | U76: 15565.53 | V76: 0 | W76: 0 | X76: 0 | Y76: 807.58076 | Z76: 807.56 | AA76: 0 | AB76: 14757.97
D78: OFICINA DE ENLACE RELACIONES EXTERIORES
A79: 42 | B79: 1 | C79: 23 | D79: GUTIERREZ REYES CAROL | E79: GURC680410 | F79: GURC680410MJCTYR00 | G79: 2001-01-02 | H79: JEFE ADMINISTRADOR | I79: 15 | J79: TARJETA | L79: 0 | M79: 0 | N79: 370.2 | O79: =TRUNC(N79*I79,2) -> 5553 | P79: =TRUNC(N79*I79*0.04,2) -> 222.12 | Q79: =TRUNC(N79*0.07*I79,2) -> 388.71 | R79: =L79 -> 0 | S79: =TRUNC(Q79+P79+(IF(R79>519,519,R79))+IF(K79=0,0,K79*N79),2) -> 610.83 | T79: =TRUNC((IF(K79=0,I79*N79,(I79-K79)*N79))+(IF(R79<519,0,R79-519)),2)+M79 -> 5553 | U79: =S79+T79 -> 6163.83 | X79: 0 | Y79: =IF(N79>0.01,(T79-VLOOKUP(T79,quincenal,1))*VLOOKUP(T79,quincenal,3)+VLOOKUP(T79,quincenal,2)-VLOOKUP(T79,subquincenal,2),0) -> 638.931624 | Z79: =TRUNC(IF(Y79>0.01,Y79,0),2) -> 638.93 | AA79: =TRUNC(IF(Y79<0.01,-Y79,0),2) -> 0 | AB79: =U79-W79-X79-Z79+AA79 -> 5524.9 | AC79: =PORTADA!$D$10 -> 1
A80: 42 | B80: 1 | C80: 23 | D80: FREGOSO HURTADO ALEJANDRA | E80: FEHA831218 | F80: FEHA831218MJCRRL07 | G80: 2007-04-10 | H80: AUX. ADMINISTRATIVO | I80: 15 | J80: TARJETA | L80: 0 | M80: 0 | N80: 211.816 | O80: =TRUNC(N80*I80,2) -> 3177.24 | P80: =TRUNC(N80*I80*0.04,2) -> 127.08 | Q80: =TRUNC(N80*0.07*I80,2) -> 222.4 | R80: =L80 -> 0 | S80: =TRUNC(Q80+P80+(IF(R80>519,519,R80))+IF(K80=0,0,K80*N80),2) -> 349.48 | T80: =TRUNC((IF(K80=0,I80*N80,(I80-K80)*N80))+(IF(R80<519,0,R80-519)),2)+M80 -> 3177.24 | U80: =S80+T80 -> 3526.72 | X80: 0 | Y80: =IF(N80>0.01,(T80-VLOOKUP(T80,quincenal,1))*VLOOKUP(T80,quincenal,3)+VLOOKUP(T80,quincenal,2)-VLOOKUP(T80,subquincenal,2),0) -> 116.500624 | Z80: =TRUNC(IF(Y80>0.01,Y80,0),2) -> 116.5 | AA80: =TRUNC(IF(Y80<0.01,-Y80,0),2) -> 0 | AB80: =U80-W80-X80-Z80+AA80 -> 3410.22 | AC80: =PORTADA!$D$10 -> 1
A81: 44 | B81: 1 | C81: 23 | D81: LOPEZ MARTINEZ YVETTE AMALIA MARGARITA | E81: LOMY681017 | F81: LOMY681017MJCPRV08 | G81: 2001-01-01 | H81: SUPERVISOR | I81: 15 | J81: TARJETA | L81: 0 | M81: 0 | N81: 211.816 | O81: =TRUNC(N81*I81,2) -> 3177.24 | P81: =TRUNC(N81*I81*0.04,2) -> 127.08 | Q81: =TRUNC(N81*0.07*I81,2) -> 222.4 | R81: =L81 -> 0 | S81: =TRUNC(Q81+P81+(IF(R81>519,519,R81))+IF(K81=0,0,K81*N81),2) -> 349.48 | T81: =TRUNC((IF(K81=0,I81*N81,(I81-K81)*N81))+(IF(R81<519,0,R81-519)),2)+M81 -> 3177.24 | U81: =S81+T81 -> 3526.72 | X81: 0 | Y81: =IF(N81>0.01,(T81-VLOOKUP(T81,quincenal,1))*VLOOKUP(T81,quincenal,3)+VLOOKUP(T81,quincenal,2)-VLOOKUP(T81,subquincenal,2),0) -> 116.500624 | Z81: =TRUNC(IF(Y81>0.01,Y81,0),2) -> 116.5 | AA81: =TRUNC(IF(Y81<0.01,-Y81,0),2) -> 0 | AB81: =U81-W81-X81-Z81+AA81 -> 3410.22 | AC81: =PORTADA!$D$10 -> 1
A82: 45 | B82: 1 | C82: 23 | D82: ESTRADA GOMEZ JUAN CARLOS | E82: EAGJ510220NR1 | F82: EAGJ510220HJCSMN09 | H82: MENSAJERO | I82: 15 | J82: TARJETA | L82: 0 | M82: 0 | N82: 216.7235 | O82: =TRUNC(N82*I82,2) -> 3250.85 | P82: =TRUNC(N82*I82*0.04,2) -> 130.03 | Q82: =TRUNC(N82*0.07*I82,2) -> 227.55 | R82: =L82 -> 0 | S82: =TRUNC(Q82+P82+(IF(R82>519,519,R82))+IF(K82=0,0,K82*N82),2) -> 357.58 | T82: =TRUNC((IF(K82=0,I82*N82,(I82-K82)*N82))+(IF(R82<519,0,R82-519)),2)+M82 -> 3250.85 | U82: =S82+T82 -> 3608.43 | W82: 0 | X82: 0 | Y82: =IF(N82>0.01,(T82-VLOOKUP(T82,quincenal,1))*VLOOKUP(T82,quincenal,3)+VLOOKUP(T82,quincenal,2)-VLOOKUP(T82,subquincenal,2),0) -> 124.509392 | Z82: =TRUNC(IF(Y82>0.01,Y82,0),2) -> 124.5 | AA82: =TRUNC(IF(Y82<0.01,-Y82,0),2) -> 0 | AB82: =U82-W82-X82-Z82+AA82 -> 3483.93 | AC82: =PORTADA!$D$10 -> 1
D83: OFICINA DE ENLACE RELACIONES EXTERIORES | O83: =SUM(O79:O82) -> 15158.33 | P83: =SUM(P79:P82) -> 606.31 | Q83: 1061.06 | R83: 0 | S83: 1667.37 | T83: 15158.33 | U83: 16825.7 | V83: 0 | W83: 0 | X83: 0 | Y83: 996.442264 | Z83: 996.43 | AA83: 0 | AB83: 15829.27
D85: AGENCIAS MUNICIPALES
A86: 46 | B86: 2 | C86: 2 | D86: AGUILAR DIAS JOSE DE JESUS | H86: AGENTE MUNICIPAL STA. ROSALIA | I86: 15 | J86: TARJETA | L86: 0 | M86: 0 | N86: =1993/15 -> 132.8666667 | O86: =TRUNC(N86*I86,2) -> 1993 | P86: =TRUNC(N86*I86*0.04,2) -> 79.72 | Q86: =TRUNC(N86*0.07*I86,2) -> 139.51 | R86: =L86 -> 0 | S86: =TRUNC(Q86+P86+(IF(R86>519,519,R86))+IF(K86=0,0,K86*N86),2) -> 219.23 | T86: =TRUNC((IF(K86=0,I86*N86,(I86-K86)*N86))+(IF(R86<519,0,R86-519)),2)+M86 -> 1993 | U86: =S86+T86 -> 2212.23 | X86: 0 | Y86: =IF(N86>0.01,(T86-VLOOKUP(T86,quincenal,1))*VLOOKUP(T86,quincenal,3)+VLOOKUP(T86,quincenal,2)-VLOOKUP(T86,subquincenal,2),0) -> -72.16584 | Z86: =TRUNC(IF(Y86>0.01,Y86,0),2) -> 0 | AA86: =TRUNC(IF(Y86<0.01,-Y86,0),2) -> 72.16 | AB86: =U86-W86-X86-Z86+AA86 -> 2284.39 | AC86: =PORTADA!$D$10 -> 1 | AE86: 1778.88
A87: 47 | B87: 2 | C87: 2 | D87: PARRA LOPEZ RAUL | E87: PALR | H87: AGENTE MUNICIPAL SAN RAFAEL | I87: 15 | J87: TARJETA | L87: 0 | M87: 0 | N87: =1371/15 -> 91.4 | O87: 1371 | P87: 54.84 | Q87: 95.97 | R87: 0 | S87: 150.81 | T87: 1371 | U87: 1521.81 | X87: 0 | Y87: -123.97384 | Z87: 0 | AA87: 123.97 | AB87: 1645.78 | AC87: =PORTADA!$D$10 -> 1 | AE87: 1488.82
A88: 48 | B88: 2 | C88: 2 | D88: GONZALEZ RUIZ MANUEL | E88: GORA710130M39 | F88: GORA710130HJCNZN08 | H88: AGENTE MUNICIPAL SAN SEBASTIAN | I88: 15 | J88: TARJETA | L88: 0 | M88: 0 | N88: =1371/15 -> 91.4 | O88: 1371 | P88: 54.84 | Q88: 95.97 | R88: 0 | S88: 150.81 | T88: 1371 | U88: 1521.81 | X88: 0 | Y88: -123.97384 | Z88: 0 | AA88: 123.97 | AB88: 1645.78 | AC88: =PORTADA!$D$10 -> 1 | AE88: 1488.82
A89: 49 | B89: 2 | C89: 2 | D89: SIERRA LLAMAS JUAN JOSE | E89: SILJ660418 | F89: SILJ660418HJCRLN17 | H89: AGENTE MUNICIPAL DE PUERTA DE PERICOS | I89: 15 | J89: TARJETA | L89: 0 | M89: 0 | N89: =1683/15 -> 112.2 | O89: 1683 | P89: 67.32 | Q89: 117.81 | R89: 0 | S89: 185.13 | T89: 1683 | U89: 1868.13 | X89: 0 | Y89: -104.00584 | Z89: 0 | AA89: 104 | AB89: 1972.13 | AC89: =PORTADA!$D$10 -> 1 | AE89: 1778.88
A90: 50 | B90: 2 | C90: 2 | D90: ROBLES GONZALEZ RENE | E90: ROGR520511 | F90: ROGR520511HJCBNN08 | H90: AGENTE MUNICIPAL LA MAZATA | I90: 15 | J90: TARJETA | L90: 0 | M90: 0 | N90: =1683/15 -> 112.2 | O90: 1683 | P90: 67.32 | Q90: 117.81 | R90: 0 | S90: 185.13 | T90: 1683 | U90: 1868.13 | X90: 0 | Y90: -104.00584 | Z90: 0 | AA90: 104 | AB90: 1972.13 | AC90: =PORTADA!$D$10 -> 1 | AE90: 1778.88
A91: 51 | B91: 2 | C91: 2 | D91: PEREZ ESPARZA MATEO | E91: PEEM720720 | F91: PEEM720720HJCRST02 | H91: AGENTE MUNICIPAL LA QUEBRADA | I91: 15 | J91: TARJETA | L91: 0 | M91: 0 | N91: =1434/15 -> 95.6 | O91: 1434 | P91: 57.36 | Q91: 100.38 | R91: 0 | S91: 157.74 | T91: 1434 | U91: 1591.74 | X91: 0 | Y91: -119.94184 | Z91: 0 | AA91: 119.94 | AB91: 1711.68 | AC91: =PORTADA!$D$10 -> 1 | AE91: 567.88
A92: 52 | B92: 2 | C92: 2 | D92: AGUAYO CORTES MIGUEL | E92: AUCM770311 | F92: AUCM770311HJCGRG09 | H92: AGENTE MUNICIPAL LA EMBOCADA | I92: 15 | J92: TARJETA | L92: 0 | M92: 0 | N92: =1434/15 -> 95.6 | O92: 1434 | P92: 57.36 | Q92: 100.38 | R92: 0 | S92: 157.74 | T92: 1434 | U92: 1591.74 | X92: 0 | Y92: -119.94184 | Z92: 0 | AA92: 119.94 | AB92: 1711.68 | AC92: =PORTADA!$D$10 -> 1 | AE92: 1546.83
A93: 53 | D93: RAMOS QUIRARTE J. CARMEN | E93: AUCM770311 | F93: AUCM770311HJCGRG09 | H93: AGENTE MUNICIPAL LAS EJIMENEZ | I93: 15 | J93: TARJETA | L93: 0 | M93: 0 | N93: =1032/15 -> 68.8 | O93: =TRUNC(N93*I93,2) -> 1032 | P93: =TRUNC(N93*I93*0.04,2) -> 41.28 | Q93: =TRUNC(N93*0.07*I93,2) -> 72.24 | R93: =L93 -> 0 | S93: =TRUNC(Q93+P93+(IF(R93>519,519,R93))+IF(K93=0,0,K93*N93),2) -> 113.52 | T93: =TRUNC((IF(K93=0,I93*N93,(I93-K93)*N93))+(IF(R93<519,0,R93-519)),2)+M93 -> 1032 | U93: =S93+T93 -> 1145.52 | X93: 0 | Y93: =IF(N93>0.01,(T93-VLOOKUP(T93,quincenal,1))*VLOOKUP(T93,quincenal,3)+VLOOKUP(T93,quincenal,2)-VLOOKUP(T93,subquincenal,2),0) -> -145.66984 | Z93: =TRUNC(IF(Y93>0.01,Y93,0),2) -> 0 | AA93: =TRUNC(IF(Y93<0.01,-Y93,0),2) -> 145.66 | AB93: =U93-W93-X93-Z93+AA93 -> 1291.18
A94: 54 | D94: CASILLAS VALENZUELA MARCO ANTONIO | H94: ASEO LA MAZATA | I94: 15 | J94: TARJETA | N94: =1286/15 -> 85.73333333 | O94: =TRUNC(N94*I94,2) -> 1286 | P94: =TRUNC(N94*I94*0.04,2) -> 51.44 | Q94: =TRUNC(N94*0.07*I94,2) -> 90.02 | R94: =L94 -> 0 | S94: =TRUNC(Q94+P94+(IF(R94>519,519,R94))+IF(K94=0,0,K94*N94),2) -> 141.46 | T94: =TRUNC((IF(K94=0,I94*N94,(I94-K94)*N94))+(IF(R94<519,0,R94-519)),2)+M94 -> 1286 | U94: =S94+T94 -> 1427.46 | X94: 0 | Y94: =IF(N94>0.01,(T94-VLOOKUP(T94,quincenal,1))*VLOOKUP(T94,quincenal,3)+VLOOKUP(T94,quincenal,2)-VLOOKUP(T94,subquincenal,2),0) -> -129.41384 | Z94: =TRUNC(IF(Y94>0.01,Y94,0),2) -> 0 | AA94: =TRUNC(IF(Y94<0.01,-Y94,0),2) -> 129.41 | AB94: =U94-W94-X94-Z94+AA94 -> 1556.87
A95: 55 | B95: 2 | C95: 2 | D95: LOPEZ SILVA CARLOS DAMIAN | E95: GOHV780710 | F95: GOHV780710HJCMRL00 | G95: 2007-02-01 | H95: CHOFER RECOLECTOR | I95: 15 | J95: TARJETA | L95: 0 | M95: 0 | N95: =2530/15 -> 168.6666667 | O95: =TRUNC(N95*I95,2) -> 2530 | P95: =TRUNC(N95*I95*0.04,2) -> 101.2 | Q95: =TRUNC(N95*0.07*I95,2) -> 177.1 | R95: =L95 -> 0 | S95: =TRUNC(Q95+P95+(IF(R95>519,519,R95))+IF(K95=0,0,K95*N95),2) -> 278.3 | T95: =TRUNC((IF(K95=0,I95*N95,(I95-K95)*N95))+(IF(R95<519,0,R95-519)),2)+M95 -> 2530 | U95: =S95+T95 -> 2808.3 | X95: 0 | Y95: =IF(N95>0.01,(T95-VLOOKUP(T95,quincenal,1))*VLOOKUP(T95,quincenal,3)+VLOOKUP(T95,quincenal,2)-VLOOKUP(T95,subquincenal,2),0) -> 10.830912 | Z95: =TRUNC(IF(Y95>0.01,Y95,0),2) -> 10.83 | AA95: =TRUNC(IF(Y95<0.01,-Y95,0),2) -> 0 | AB95: =U95-W95-X95-Z95+AA95 -> 2797.47 | AC95: =PORTADA!$D$10 -> 1 | AE95: 0
D96: AGENCIAS MUNICIPALES | O96: =SUM(O86:O95) -> 15817 | P96: =SUM(P86:P95) -> 632.68 | Q96: 1107.19 | R96: 0 | S96: 1739.87 | T96: 15817 | U96: 17556.87 | V96: 0 | W96: 0 | X96: 0 | Y96: -1032.261648 | Z96: 10.83 | AA96: 1043.05 | AB96: 18589.09
D98: ADMIN ISTRACION DE LA HACIENDA MUNICIPAL
A99: 56 | B99: 3 | C99: 1 | D99: DE LEON GARCIA JUAN ANTONIO | H99: ENCARGADO DE HACIENDA PUBLICA | I99: 15 | J99: TARJETA | L99: 0 | M99: 0 | N99: =8355/15 -> 557 | O99: =TRUNC(N99*I99,2) -> 8355 | P99: =TRUNC(N99*I99*0.04,2) -> 334.2 | Q99: =TRUNC(N99*0.07*I99,2) -> 584.85 | R99: =L99 -> 0 | S99: =TRUNC(Q99+P99+(IF(R99>519,519,R99))+IF(K99=0,0,K99*N99),2) -> 919.05 | T99: =TRUNC((IF(K99=0,I99*N99,(I99-K99)*N99))+(IF(R99<519,0,R99-519)),2)+M99 -> 8355 | U99: =S99+T99 -> 9274.05 | X99: 0 | Y99: =IF(N99>0.01,(T99-VLOOKUP(T99,quincenal,1))*VLOOKUP(T99,quincenal,3)+VLOOKUP(T99,quincenal,2)-VLOOKUP(T99,subquincenal,2),0) -> 1237.438824 | Z99: =TRUNC(IF(Y99>0.01,Y99,0),2) -> 1237.43 | AA99: =TRUNC(IF(Y99<0.01,-Y99,0),2) -> 0 | AB99: =U99-W99-X99-Z99+AA99 -> 8036.62 | AC99: =PORTADA!$D$10 -> 1
A100: 57 | B100: 3 | C100: 1 | D100: MARTINEZ PAREDES ANNA VERONICA | E100: MAPA820618 | F100: MAPA820618MJCRRN00 | G100: 2007-01-31 | H100: AUXILIAR CONTABLE | I100: 15 | J100: TARJETA | L100: 0 | M100: 0 | N100: =4693/15 -> 312.8666667 | O100: =TRUNC(N100*I100,2) -> 4693 | P100: =TRUNC(N100*I100*0.04,2) -> 187.72 | Q100: =TRUNC(N100*0.07*I100,2) -> 328.51 | R100: =L100 -> 0 | S100: =TRUNC(Q100+P100+(IF(R100>519,519,R100))+IF(K100=0,0,K100*N100),2) -> 516.23 | T100: =TRUNC((IF(K100=0,I100*N100,(I100-K100)*N100))+(IF(R100<519,0,R100-519)),2)+M100 -> 4693 | U100: =S100+T100 -> 5209.23 | X100: 0 | Y100: =IF(N100>0.01,(T100-VLOOKUP(T100,quincenal,1))*VLOOKUP(T100,quincenal,3)+VLOOKUP(T100,quincenal,2)-VLOOKUP(T100,subquincenal,2),0) -> 468.491088 | Z100: =TRUNC(IF(Y100>0.01,Y100,0),2) -> 468.49 | AA100: =TRUNC(IF(Y100<0.01,-Y100,0),2) -> 0 | AB100: =U100-W100-X100-Z100+AA100 -> 4740.74 | AC100: =PORTADA!$D$10 -> 1
A101: 58 | B101: 3 | C101: 1 | D101: PEREZ JAIME ARTURO | E101: PEJA600718 | F101: PEXJ600718HJCRXM09 | G101: 2009-01-05 | H101: AUXILIAR CONTABLE | I101: 15 | J101: TARJETA | L101: 0 | M101: 0 | N101: =5198/15 -> 346.5333333 | O101: =TRUNC(N101*I101,2) -> 5198 | P101: =TRUNC(N101*I101*0.04,2) -> 207.92 | Q101: =TRUNC(N101*0.07*I101,2) -> 363.86 | R101: =L101 -> 0 | S101: =TRUNC(Q101+P101+(IF(R101>519,519,R101))+IF(K101=0,0,K101*N101),2) -> 571.78 | T101: =TRUNC((IF(K101=0,I101*N101,(I101-K101)*N101))+(IF(R101<519,0,R101-519)),2)+M101 -> 5198 | U101: =S101+T101 -> 5769.78 | X101: 0 | Y101: =IF(N101>0.01,(T101-VLOOKUP(T101,quincenal,1))*VLOOKUP(T101,quincenal,3)+VLOOKUP(T101,quincenal,2)-VLOOKUP(T101,subquincenal,2),0) -> 563.103624 | Z101: =TRUNC(IF(Y101>0.01,Y101,0),2) -> 563.1 | AA101: =TRUNC(IF(Y101<0.01,-Y101,0),2) -> 0 | AB101: =U101-W101-X101-Z101+AA101 -> 5206.68
A102: 59 | B102: 3 | C102: 1 | D102: RUIZ GUZMAN JESUS MANUEL | E102: RUGJ | H102: AUXI. DE PRESUPUESTO | I102: 15 | J102: TARJETA | L102: 0 | M102: 0 | N102: =3397/15 -> 226.4666667 | O102: =TRUNC(N102*I102,2) -> 3397 | P102: =TRUNC(N102*I102*0.04,2) -> 135.88 | Q102: =TRUNC(N102*0.07*I102,2) -> 237.79 | R102: =L102 -> 0 | S102: =TRUNC(Q102+P102+(IF(R102>519,519,R102))+IF(K102=0,0,K102*N102),2) -> 373.67 | T102: =TRUNC((IF(K102=0,I102*N102,(I102-K102)*N102))+(IF(R102<519,0,R102-519)),2)+M102 -> 3397 | U102: =S102+T102 -> 3770.67 | X102: 0 | Y102: =IF(N102>0.01,(T102-VLOOKUP(T102,quincenal,1))*VLOOKUP(T102,quincenal,3)+VLOOKUP(T102,quincenal,2)-VLOOKUP(T102,subquincenal,2),0) -> 140.410512 | Z102: =TRUNC(IF(Y102>0.01,Y102,0),2) -> 140.41 | AA102: =TRUNC(IF(Y102<0.01,-Y102,0),2) -> 0 | AB102: =U102-W102-X102-Z102+AA102 -> 3630.26 | AC102: =PORTADA!$D$10 -> 1
D103: ADMIN ISTRACION DE LA HACIENDA MUNICIPAL | O103: =SUM(O99:O102) -> 21643 | P103: =SUM(P99:P102) -> 865.72 | Q103: 1515.01 | R103: 0 | S103: 2380.73 | T103: 21643 | U103: 24023.73 | V103: 0 | W103: 0 | X103: 0 | Y103: 2409.444048 | Z103: 2409.43 | AA103: 0 | AB103: 21614.3
D105: DEPARTAMENTO DE INGRESOS
A106: 60 | B106: 3 | C106: 3 | D106: ARIAS RAMOS MARIA DEL SOCORRO | E106: AIRS650514 | F106: AIRS650514MJCRMC06 | H106: CAJERA | I106: 15 | J106: TARJETA | L106: 0 | M106: 0 | N106: =3228/15 -> 215.2 | O106: =TRUNC(N106*I106,2) -> 3228 | P106: =TRUNC(N106*I106*0.04,2) -> 129.12 | Q106: =TRUNC(N106*0.07*I106,2) -> 225.96 | R106: =L106 -> 0 | S106: =TRUNC(Q106+P106+(IF(R106>519,519,R106))+IF(K106=0,0,K106*N106),2) -> 355.08 | T106: =TRUNC((IF(K106=0,I106*N106,(I106-K106)*N106))+(IF(R106<519,0,R106-519)),2)+M106 -> 3228 | U106: =S106+T106 -> 3583.08 | X106: 0 | Y106: =IF(N106>0.01,(T106-VLOOKUP(T106,quincenal,1))*VLOOKUP(T106,quincenal,3)+VLOOKUP(T106,quincenal,2)-VLOOKUP(T106,subquincenal,2),0) -> 122.023312 | Z106: =TRUNC(IF(Y106>0.01,Y106,0),2) -> 122.02 | AA106: =TRUNC(IF(Y106<0.01,-Y106,0),2) -> 0 | AB106: =U106-W106-X106-Z106+AA106 -> 3461.06 | AC106: =PORTADA!$D$10 -> 1
A107: 61 | B107: 11 | C107: 17 | D107: MARTINEZ GOMEZ GALDINO | E107: MAGG | H107: INSPECTOR FISCAL | I107: 15 | J107: TARJETA | L107: 0 | M107: 0 | N107: =2624/15 -> 174.9333333 | O107: =TRUNC(N107*I107,2) -> 2624 | P107: =TRUNC(N107*I107*0.04,2) -> 104.96 | Q107: =TRUNC(N107*0.07*I107,2) -> 183.68 | R107: =L107 -> 0 | S107: =TRUNC(Q107+P107+(IF(R107>519,519,R107))+IF(K107=0,0,K107*N107),2) -> 288.64 | T107: =TRUNC((IF(K107=0,I107*N107,(I107-K107)*N107))+(IF(R107<519,0,R107-519)),2)+M107 -> 2624 | U107: =S107+T107 -> 2912.64 | X107: 0 | Y107: =IF(N107>0.01,(T107-VLOOKUP(T107,quincenal,1))*VLOOKUP(T107,quincenal,3)+VLOOKUP(T107,quincenal,2)-VLOOKUP(T107,subquincenal,2),0) -> 21.058112 | Z107: =TRUNC(IF(Y107>0.01,Y107,0),2) -> 21.05 | AA107: =TRUNC(IF(Y107<0.01,-Y107,0),2) -> 0 | AB107: =U107-W107-X107-Z107+AA107 -> 2891.59 | AC107: =PORTADA!$D$10 -> 1
A108: 62 | B108: 3 | C108: 3 | D108: CABRALES GONZALEZ JOSE MANUEL | E108: CAGM680912 | F108: CAGM680912HJCBNN06 | G108: 2007-01-01 | H108: RECAUDADOR DE PISO | I108: 15 | J108: TARJETA | L108: 0 | M108: 0 | N108: =3016/15 -> 201.0666667 | O108: =TRUNC(N108*I108,2) -> 3016 | P108: =TRUNC(N108*I108*0.04,2) -> 120.64 | Q108: =TRUNC(N108*0.07*I108,2) -> 211.12 | R108: =L108 -> 0 | S108: =TRUNC(Q108+P108+(IF(R108>519,519,R108))+IF(K108=0,0,K108*N108),2) -> 331.76 | T108: =TRUNC((IF(K108=0,I108*N108,(I108-K108)*N108))+(IF(R108<519,0,R108-519)),2)+M108 -> 3016 | U108: =S108+T108 -> 3347.76 | X108: 0 | Y108: =IF(N108>0.01,(T108-VLOOKUP(T108,quincenal,1))*VLOOKUP(T108,quincenal,3)+VLOOKUP(T108,quincenal,2)-VLOOKUP(T108,subquincenal,2),0) -> 78.707712 | Z108: =TRUNC(IF(Y108>0.01,Y108,0),2) -> 78.7 | AA108: =TRUNC(IF(Y108<0.01,-Y108,0),2) -> 0 | AB108: =U108-W108-X108-Z108+AA108 -> 3269.06 | AC108: =PORTADA!$D$10 -> 1
D109: DEPARTAMENTO DE INGRESOS | O109: =SUM(O106:O108) -> 8868 | P109: =SUM(P106:P108) -> 354.72 | Q109: 620.76 | R109: 0 | S109: 975.48 | T109: 8868 | U109: 9843.48 | V109: 0 | W109: 0 | X109: 0 | Y109: 221.789136 | Z109: 221.77 | AA109: 0 | AB109: 9621.71
D111: DEPARTAMENTO DE EGRESOS
A112: 63 | B112: 3 | C112: 7 | E112: LEGJ | H112: COORDINADOR DE EGRESOS | I112: 0 | J112: TARJETA | L112: 0 | M112: 0 | N112: =5198/15 -> 346.5333333 | O112: =TRUNC(N112*I112,2) -> 0 | P112: =TRUNC(N112*I112*0.04,2) -> 0 | Q112: =TRUNC(N112*0.07*I112,2) -> 0 | R112: =L112 -> 0 | S112: =TRUNC(Q112+P112+(IF(R112>519,519,R112))+IF(K112=0,0,K112*N112),2) -> 0 | T112: =TRUNC((IF(K112=0,I112*N112,(I112-K112)*N112))+(IF(R112<519,0,R112-519)),2)+M112 -> 0 | U112: =S112+T112 -> 0 | X112: 0 | Y112: =IF(N112>0.01,(T112-VLOOKUP(T112,quincenal,1))*VLOOKUP(T112,quincenal,3)+VLOOKUP(T112,quincenal,2)-VLOOKUP(T112,subquincenal,2),0) ->  | AB112: =U112-W112-X112-Z112+AA112 -> 0 | AC112: =PORTADA!$D$10 -> 1
D113: DEPARTAMENTO DE EGRESOS | O113: =SUM(O112) -> 0 | P113: 0 | Q113: 0 | R113: 0 | S113: 0 | T113: 0 | U113: 0 | V113: 0 | W113: 0 | X113: 0 | Z113: 0 | AA113: 0 | AB113: 0
D115: DEPARTAMENTO DE INFORMATICA
A116: 64 | B116: 3 | C116: 12 | D116: DIAZ MONTES EDGAR ALEXANDRO | E116: DIME | H116: DIRECTOR DE IL DEPARTAMENTO DE NFORMATICA | I116: 15 | J116: TARJETA | L116: 0 | M116: 0 | N116: =5198/15 -> 346.5333333 | O116: =TRUNC(N116*I116,2) -> 5198 | P116: =TRUNC(N116*I116*0.04,2) -> 207.92 | Q116: =TRUNC(N116*0.07*I116,2) -> 363.86 | R116: =L116 -> 0 | S116: =TRUNC(Q116+P116+(IF(R116>519,519,R116))+IF(K116=0,0,K116*N116),2) -> 571.78 | T116: =TRUNC((IF(K116=0,I116*N116,(I116-K116)*N116))+(IF(R116<519,0,R116-519)),2)+M116 -> 5198 | U116: =S116+T116 -> 5769.78 | X116: 0 | Y116: =IF(N116>0.01,(T116-VLOOKUP(T116,quincenal,1))*VLOOKUP(T116,quincenal,3)+VLOOKUP(T116,quincenal,2)-VLOOKUP(T116,subquincenal,2),0) -> 563.103624 | Z116: =TRUNC(IF(Y116>0.01,Y116,0),2) -> 563.1 | AA116: =TRUNC(IF(Y116<0.01,-Y116,0),2) -> 0 | AB116: =U116-W116-X116-Z116+AA116 -> 5206.68 | AC116: =PORTADA!$D$10 -> 1
D117: AUXILIAR | H117: AUXILIAR DEL DEPARTAMENTO DE NFORMATICA | I117: 0 | L117: 0 | M117: 0 | N117: 137.42 | O117: =TRUNC(N117*I117,2) -> 0 | P117: =TRUNC(N117*I117*0.04,2) -> 0 | Q117: =TRUNC(N117*0.07*I117,2) -> 0 | R117: =L117 -> 0 | S117: =TRUNC(Q117+P117+(IF(R117>519,519,R117))+IF(K117=0,0,K117*N117),2) -> 0 | T117: =TRUNC((IF(K117=0,I117*N117,(I117-K117)*N117))+(IF(R117<519,0,R117-519)),2)+M117 -> 0 | U117: =S117+T117 -> 0 | Y117: =IF(N117>0.01,(T117-VLOOKUP(T117,quincenal,1))*VLOOKUP(T117,quincenal,3)+VLOOKUP(T117,quincenal,2)-VLOOKUP(T117,subquincenal,2),0) ->  | Z117: 0 | AA117: 0 | AB117: =U117-W117-X117-Z117+AA117 -> 0 | AC117: =PORTADA!$D$10 -> 1
D118: DEPARTAMENTO DE COMPUTO E INFORMATICA | O118: =SUM(O116) -> 5198 | P118: 207.92 | Q118: 363.86 | R118: 0 | S118: 571.78 | T118: 5198 | U118: 5769.78 | V118: 0 | W118: 0 | X118: 0 | Y118: 563.103624 | Z118: 563.1 | AA118: 0 | AB118: 5206.68
D120: DEPARTAMENTO DE IMPUESTO PREDIAL Y CATASTRO
D121: BLANCO ARVIZU CESAR ROBERTO | H121: DIRECTOR INTERINO | I121: 15 | J121: TARJETA | L121: 0 | M121: 0 | N121: =5968/15 -> 397.8666667 | O121: =TRUNC(N121*I121,2) -> 5968 | P121: =TRUNC(N121*I121*0.04,2) -> 238.72 | Q121: =TRUNC(N121*0.07*I121,2) -> 417.76 | R121: =L121 -> 0 | S121: =TRUNC(Q121+P121+(IF(R121>519,519,R121))+IF(K121=0,0,K121*N121),2) -> 656.48 | T121: =TRUNC((IF(K121=0,I121*N121,(I121-K121)*N121))+(IF(R121<519,0,R121-519)),2)+M121 -> 5968 | U121: =S121+T121 -> 6624.48 | X121: 0 | Y121: =IF(N121>0.01,(T121-VLOOKUP(T121,quincenal,1))*VLOOKUP(T121,quincenal,3)+VLOOKUP(T121,quincenal,2)-VLOOKUP(T121,subquincenal,2),0) -> 727.575624 | Z121: =TRUNC(IF(Y121>0.01,Y121,0),2) -> 727.57 | AA121: =TRUNC(IF(Y121<0.01,-Y121,0),2) -> 0 | AB121: =U121-W121-X121-Z121+AA121 -> 5896.91
A122: 66 | B122: 3 | C122: 13 | D122: CAMARENA PEREZ BERTA ALICIA | E122: CAPB801105 | F122: CAPB801105MJCMRR06 | G122: 2007-01-01 | H122: SUB-DIRECTOR DE CATASTRO | I122: 15 | J122: TARJETA | L122: 0 | M122: 0 | N122: =4196/15 -> 279.7333333 | O122: 4196 | P122: 167.84 | Q122: 293.72 | R122: 0 | S122: 461.56 | T122: 4196 | U122: 4657.56 | X122: 0 | Y122: 380.4484 | Z122: =TRUNC(IF(Y122>0.01,Y122,0),2) -> 380.44 | AA122: =TRUNC(IF(Y122<0.01,-Y122,0),2) -> 0 | AB122: 4277.12 | AC122: =PORTADA!$D$10 -> 1
A123: 63 | B123: 3 | C123: 13 | E123: GOME840310 | F123: GOME840310MJCNRR06 | G123: 2009-01-01 | H123: SECRETARIA | I123: 0 | J123: TARJETA | L123: 0 | M123: 0 | N123: 170.38 | O123: 0 | P123: 0 | Q123: 0 | R123: 0 | S123: 0 | T123: 0 | U123: 0 | W123: 0 | X123: 0 | AB123: 0 | AC123: =PORTADA!$D$10 -> 1
A124: 67 | D124: HERNANDEZ BERNAL CESAR ALEJANDRO | E124: HEBC | H124: SUB-DIRECTOR DE PREDIAL | I124: 15 | J124: TARJETA | L124: 0 | M124: 0 | N124: =4196/15 -> 279.7333333 | O124: 4196 | P124: 167.84 | Q124: 293.72 | R124: 0 | S124: 461.56 | T124: 4196 | U124: 4657.56 | X124: 0 | Y124: 380.4484 | Z124: =TRUNC(IF(Y124>0.01,Y124,0),2) -> 380.44 | AA124: =TRUNC(IF(Y124<0.01,-Y124,0),2) -> 0 | AB124: 4277.12
A125: 68 | B125: 3 | C125: 13 | E125: MUPM | H125: AUXILIAR | I125: 0 | J125: TARJETA | L125: 0 | M125: 0 | N125: =2492/15 -> 166.1333333 | O125: 0 | P125: 0 | Q125: 0 | R125: 0 | S125: 0 | T125: 0 | U125: 0 | W125: 0 | X125: 0 | Z125: 0 | AA125: 0 | AB125: 0 | AC125: =PORTADA!$D$10 -> 1
D126: DEPARTAMENTO DE IMPUESTO PREDIAL Y CATASTRO | O126: =SUM(O121:O125) -> 14360 | P126: 574.4 | Q126: 1005.2 | R126: 0 | S126: 1579.6 | T126: 14360 | U126: 15939.6 | V126: 0 | W126: 0 | X126: 0 | Z126: 1488.45 | AA126: 0 | AB126: 14451.15
D128: ADMINISTRACION DE LOS SERVICIOS PUBLICOS MUNICIPALES
A129: 69 | D129: CORTEZ GODOY EUSEBIO | E129: HEAM740507 | F129: HEAM740507HJCRGN04 | G129: 2008-05-01 | H129: OPERADOR DE MAQUINAS | I129: 15 | J129: TARJETA | L129: 0 | M129: 0 | N129: =3428/15 -> 228.5333333 | O129: =TRUNC(N129*I129,2) -> 3428 | P129: =TRUNC(N129*I129*0.04,2) -> 137.12 | Q129: =TRUNC(N129*0.07*I129,2) -> 239.96 | R129: =L129 -> 0 | S129: =TRUNC(Q129+P129+(IF(R129>519,519,R129))+IF(K129=0,0,K129*N129),2) -> 377.08 | T129: =TRUNC((IF(K129=0,I129*N129,(I129-K129)*N129))+(IF(R129<519,0,R129-519)),2)+M129 -> 3428 | U129: =S129+T129 -> 3805.08 | Y129: =IF(N129>0.01,(T129-VLOOKUP(T129,quincenal,1))*VLOOKUP(T129,quincenal,3)+VLOOKUP(T129,quincenal,2)-VLOOKUP(T129,subquincenal,2),0) -> 143.783312 | Z129: =TRUNC(IF(Y129>0.01,Y129,0),2) -> 143.78 | AA129: =TRUNC(IF(Y129<0.01,-Y129,0),2) -> 0 | AB129: =U129-W129-X129-Z129+AA129 -> 3661.3 | AC129: =PORTADA!$D$10 -> 1
A130: 68 | D130: VACANTE (OPERADOR DE MAQUINARIA) | H130: OPERADOR DE MAQUINAS | I130: 0 | L130: 0 | M130: 0 | N130: 219.75 | O130: =TRUNC(N130*I130,2) -> 0 | P130: =TRUNC(N130*I130*0.04,2) -> 0 | Q130: =TRUNC(N130*0.07*I130,2) -> 0 | R130: =L130 -> 0 | S130: =TRUNC(Q130+P130+(IF(R130>519,519,R130))+IF(K130=0,0,K130*N130),2) -> 0 | T130: =TRUNC((IF(K130=0,I130*N130,(I130-K130)*N130))+(IF(R130<519,0,R130-519)),2)+M130 -> 0 | U130: =S130+T130 -> 0 | Z130: 0 | AA130: 0 | AB130: =U130-W130-X130-Z130+AA130 -> 0 | AC130: =PORTADA!$D$10 -> 1
A131: 70 | D131: ILLAN OCAMPO RUBEN | E131: IAOR | H131: ENCARGADO DE MANTENIMIENTO A VEHICULOS | I131: 15 | J131: TARJETA | L131: 0 | M131: 0 | N131: =4385/15 -> 292.3333333 | O131: 4385 | P131: 175.4 | Q131: 306.95 | R131: 0 | S131: 482.35 | T131: 4385 | U131: 4867.35 | X131: 0 | Y131: 413.297488 | Z131: 413.29 | AA131: 0 | AB131: 4454.06
A132: 70 | E132: FEGC520708TD3 | F132: FEGC520708HJCRMR08 | J132: TARJETA | L132: 0 | M132: 0 | N132: 152.41 | R132: 0 | S132: 0 | T132: 0 | U132: 0 | AB132: 0
A133: 71 | D133: MOJARRO BERUMEN ENRIQUE | H133: EMPEDRADOR | I133: 15 | J133: TARJETA | L133: 0 | M133: 0 | N133: =2866/15 -> 191.0666667 | O133: 2866 | P133: 114.64 | Q133: 200.62 | R133: 0 | S133: 315.26 | T133: 2866 | U133: 3181.26 | Y133: 62.387712 | Z133: 62.38 | AA133: 0 | AB133: 3118.88
A134: 72 | D134: FERREL ALCANTAR EDMUNDO | H134: EMPEDRADOR | I134: 15 | J134: TARJETA | L134: 0 | M134: 0 | N134: =2866/15 -> 191.0666667 | O134: 2866 | P134: 114.64 | Q134: 200.62 | R134: 0 | S134: 315.26 | T134: 2866 | U134: 3181.26 | Y134: 62.387712 | Z134: 62.38 | AA134: 0 | AB134: 3118.88
A135: 73 | H135: AUXILIAR GENERAL | I135: 0 | J135: TARJETA | L135: 0 | M135: 0 | N135: =2601/15 -> 173.4 | O135: 0 | P135: 0 | Q135: 0 | R135: 0 | S135: 0 | T135: 0 | U135: 0 | W135: 0 | AB135: 0
A136: 74 | D136: NAVARRO GUTIERREZ MOISES EDMUNDO | H136: AYUDANTE | I136: 14 | J136: TARJETA | L136: 0 | M136: 0 | N136: =2222/15 -> 148.1333333 | O136: 2073.86 | P136: 82.95 | Q136: 145.17 | R136: 0 | S136: 228.12 | T136: 2073.86 | U136: 2301.98 | Y136: -66.9908 | Z136: 0 | AA136: 66.99 | AB136: 2368.97
A137: 75 | D137: GALLEGOS RIVAS ADRIAN | H137: AYUDANTE | I137: 15 | J137: TARJETA | L137: 0 | M137: 0 | N137: =2222/15 -> 148.1333333 | O137: 2222 | P137: 88.88 | Q137: 155.54 | R137: 0 | S137: 244.42 | T137: 2222 | U137: 2466.42 | Y137: -37.079488 | Z137: 0 | AA137: 37.07 | AB137: 2503.49
A138: 76 | D138: RAMIREZ GARCIA J. JESUS | H138: AYUDANTE | I138: 15 | J138: TARJETA | L138: 0 | M138: 0 | N138: =2222/15 -> 148.1333333 | O138: 2222 | P138: 88.88 | Q138: 155.54 | R138: 0 | S138: 244.42 | T138: 2222 | U138: 2466.42 | Y138: -37.079488 | Z138: 0 | AA138: 37.07 | AB138: 2503.49
A139: 77 | D139: ORENDAIN BERNAL ROBERTO | H139: AYUDANTE | I139: 15 | J139: TARJETA | L139: 0 | M139: 0 | N139: =2222/15 -> 148.1333333 | O139: 2222 | P139: 88.88 | Q139: 155.54 | R139: 0 | S139: 244.42 | T139: 2222 | U139: 2466.42 | Y139: -37.079488 | Z139: 0 | AA139: 37.07 | AB139: 2503.49
A140: 78 | D140: OFICIAL | H140: OFICIAL | I140: 0 | J140: SOBRE | L140: 0 | M140: 0 | N140: 183.76 | O140: 0 | P140: 0 | Q140: 0 | R140: 0 | S140: 0 | T140: 0 | U140: 0 | Z140: 0 | AA140: 0 | AB140: 0
A141: 79 | D141: CHOFER | H141: CHOFER | I141: 0 | J141: SOBRE | L141: 0 | M141: 0 | N141: 219.75 | O141: 0 | P141: 0 | Q141: 0 | R141: 0 | S141: 0 | T141: 0 | U141: 0 | Z141: 0 | AA141: 0 | AB141: 0
A142: 78 | D142: GARCIA CISNEROS ARTURO | H142: ALMACENISTA | I142: 15 | J142: TARJETA | L142: 0 | M142: 0 | N142: =1989/15 -> 132.6 | O142: 1989 | P142: 79.56 | Q142: 139.23 | R142: 0 | S142: 218.79 | T142: 1989 | U142: 2207.79 | Y142: -72.42184 | Z142: 0 | AA142: 72.42 | AB142: 2280.21
A143: 79 | D143: BAILON FLORES ANSELMO | H143: AYUDANTE | I143: 15 | J143: TARJETA | L143: 0 | M143: 0 | N143: =1989/15 -> 132.6 | O143: 1989 | P143: 79.56 | Q143: 139.23 | R143: 0 | S143: 218.79 | T143: 1989 | U143: 2207.79 | Y143: -72.42184 | Z143: 0 | AA143: 72.42 | AB143: 2280.21
A144: 80 | D144: DAMIAN MARTINEZ FRANCISCO | H144: AYUDANTE | I144: 15 | J144: TARJETA | L144: 0 | M144: 0 | N144: =1989/15 -> 132.6 | O144: 1989 | P144: 79.56 | Q144: 139.23 | R144: 0 | S144: 218.79 | T144: 1989 | U144: 2207.79 | Y144: -72.42184 | Z144: 0 | AA144: 72.42 | AB144: 2280.21
A145: 81 | D145: GONZALEZ AZPEITIA ALVARO | H145: AYUDANTE | I145: 15 | J145: TARJETA | L145: 0 | M145: 0 | N145: =1989/15 -> 132.6 | O145: =TRUNC(N145*I145,2) -> 1989 | P145: =TRUNC(N145*I145*0.04,2) -> 79.56 | Q145: =TRUNC(N145*0.07*I145,2) -> 139.23 | R145: =L145 -> 0 | S145: =TRUNC(Q145+P145+(IF(R145>519,519,R145))+IF(K145=0,0,K145*N145),2) -> 218.79 | T145: =TRUNC((IF(K145=0,I145*N145,(I145-K145)*N145))+(IF(R145<519,0,R145-519)),2)+M145 -> 1989 | U145: =S145+T145 -> 2207.79 | Y145: =IF(N145>0.01,(T145-VLOOKUP(T145,quincenal,1))*VLOOKUP(T145,quincenal,3)+VLOOKUP(T145,quincenal,2)-VLOOKUP(T145,subquincenal,2),0) -> -72.42184 | Z145: =TRUNC(IF(Y145>0.01,Y145,0),2) -> 0 | AA145: =TRUNC(IF(Y145<0.01,-Y145,0),2) -> 72.42 | AB145: =U145-W145-X145-Z145+AA145 -> 2280.21
A146: 82 | D146: ARQUIETA VADILLO ARTURO | E146: AUVA551030FJ0 | F146: AUVA551030HJCRDR15 | H146: PINTOR GENERAL | I146: 15 | J146: SOBRE | L146: 0 | M146: 0 | N146: =4527/15 -> 301.8 | O146: =TRUNC(N146*I146,2) -> 4527 | P146: =TRUNC(N146*I146*0.04,2) -> 181.08 | Q146: =TRUNC(N146*0.07*I146,2) -> 316.89 | R146: =L146 -> 0 | S146: =TRUNC(Q146+P146+(IF(R146>519,519,R146))+IF(K146=0,0,K146*N146),2) -> 497.97 | T146: =TRUNC((IF(K146=0,I146*N146,(I146-K146)*N146))+(IF(R146<519,0,R146-519)),2)+M146 -> 4527 | U146: =S146+T146 -> 5024.97 | Y146: =IF(N146>0.01,(T146-VLOOKUP(T146,quincenal,1))*VLOOKUP(T146,quincenal,3)+VLOOKUP(T146,quincenal,2)-VLOOKUP(T146,subquincenal,2),0) -> 438.743888 | Z146: 438.74 | AA146: 0 | AB146: =U146-W146-X146-Z146+AA146 -> 4586.23
D147: ADMINISTRACION DE LOS SERVICIOS PUBLICOS MUNICIPALES | O147: =SUM(O129:O146) -> 34767.86 | P147: =SUM(P129:P146) -> 1390.71 | Q147: 2433.75 | R147: 0 | S147: 3824.46 | T147: 34767.86 | U147: 38592.32 | V147: 0 | W147: 0 | X147: 0 | Y147: 652.683488 | Z147: 1120.57 | AA147: 467.88 | AB147: 37939.63
D148: DIRECCION GENERAL DE OBRAS PUBLICAS
A149: 83 | B149: 4 | C149: 1 | D149: CASTELLANOS CORREA HIGINIO ERNESTO | H149: DIRECTOR DE OBRAS PÚBLICAS | I149: 15 | J149: TARJETA | L149: 0 | M149: 0 | N149: =6513/15 -> 434.2 | O149: =TRUNC(N149*I149,2) -> 6513 | P149: =TRUNC(N149*I149*0.04,2) -> 260.52 | Q149: =TRUNC(N149*0.07*I149,2) -> 455.91 | R149: =L149 -> 0 | S149: =TRUNC(Q149+P149+(IF(R149>519,519,R149))+IF(K149=0,0,K149*N149),2) -> 716.43 | T149: =TRUNC((IF(K149=0,I149*N149,(I149-K149)*N149))+(IF(R149<519,0,R149-519)),2)+M149 -> 6513 | U149: =S149+T149 -> 7229.43 | W149: 0 | X149: 0 | Y149: =IF(N149>0.01,(T149-VLOOKUP(T149,quincenal,1))*VLOOKUP(T149,quincenal,3)+VLOOKUP(T149,quincenal,2)-VLOOKUP(T149,subquincenal,2),0) -> 843.987624 | Z149: =TRUNC(IF(Y149>0.01,Y149,0),2) -> 843.98 | AA149: =TRUNC(IF(Y149<0.01,-Y149,0),2) -> 0 | AB149: =U149-W149-X149-Z149+AA149 -> 6385.45 | AC149: =PORTADA!$D$10 -> 1
A150: 84 | B150: 4 | C150: 1 | D150: FLORES IÑIGUEZ JUAN RAYMUNDO | E150: FOIJ8508313Z1 | F150: FOIJ850831HJCLXN07 | G150: 2007-01-01 | H150: SUB-DIRECTOR DESARROLLO URBANO | I150: 15 | J150: TARJETA | L150: 0 | M150: 0 | N150: =3741/15 -> 249.4 | O150: 3741 | P150: 149.64 | Q150: 261.87 | R150: 0 | S150: 411.51 | T150: 3741 | U150: 4152.51 | X150: 0 | Y150: 307.6484 | Z150: 307.64 | AA150: 0 | AB150: 3844.87 | AC150: =PORTADA!$D$10 -> 1
A151: 85 | B151: 4 | C151: 1 | D151: RENTERIA MENDEZ FRANCISCO | E151: REMF850816I26 | F151: REMF850816HJCNNR00 | G151: 2008-03-05 | H151: AUXILIAR DE DIRECCIÓN | I151: 15 | J151: TARJETA | L151: 0 | M151: 0 | N151: =4385/15 -> 292.3333333 | O151: 4385 | P151: 175.4 | Q151: 306.95 | R151: 0 | S151: 482.35 | T151: 4385 | U151: 4867.35 | X151: 0 | Y151: 413.297488 | Z151: 413.29 | AA151: 0 | AB151: 4454.06 | AC151: =PORTADA!$D$10 -> 1
A152: 86 | B152: 4 | C152: 1 | D152: FREGOSO MARTINEZ ISMAEL | E152: FEMI | H152: MAESTRO DE OBRA | I152: 15 | J152: TARJETA | L152: 0 | M152: 0 | N152: =3669/15 -> 244.6 | O152: 3669 | P152: 146.76 | Q152: 256.83 | R152: 0 | S152: 403.59 | T152: 3669 | U152: 4072.59 | X152: 0 | Y152: 296.1284 | Z152: 296.12 | AA152: 0 | AB152: 3776.47 | AC152: =PORTADA!$D$10 -> 1
A153: 88 | D153: RENTERIA LOPEZ JUAN CARLOS | H153: AUXILIAR DESARROLLO URBANO | I153: 15 | J153: TARJETA | L153: 0 | M153: 0 | N153: =2411.14/15 -> 160.7426667 | O153: =TRUNC(N153*I153,2) -> 2411.14 | P153: =TRUNC(N153*I153*0.04,2) -> 96.44 | Q153: =TRUNC(N153*0.07*I153,2) -> 168.77 | R153: =L153 -> 0 | S153: =TRUNC(Q153+P153+(IF(R153>519,519,R153))+IF(K153=0,0,K153*N153),2) -> 265.21 | T153: =TRUNC((IF(K153=0,I153*N153,(I153-K153)*N153))+(IF(R153<519,0,R153-519)),2)+M153 -> 2411.14 | U153: =S153+T153 -> 2676.35 | X153: 0 | Y153: =IF(N153>0.01,(T153-VLOOKUP(T153,quincenal,1))*VLOOKUP(T153,quincenal,3)+VLOOKUP(T153,quincenal,2)-VLOOKUP(T153,subquincenal,2),0) -> -2.101056 | Z153: =TRUNC(IF(Y153>0.01,Y153,0),2) -> 0 | AA153: =TRUNC(IF(Y153<0.01,-Y153,0),2) -> 2.1 | AB153: =U153-W153-X153-Z153+AA153 -> 2678.45 | AC153: =PORTADA!$D$10 -> 1
A154: 89 | B154: 4 | C154: 1 | D154: NOLASCO VALLE ARTURO | E154: NOVA | H154: CHOFER | I154: 15 | J154: TARJETA | L154: 0 | M154: 0 | N154: =2866/15 -> 191.0666667 | O154: 2866 | P154: 114.64 | Q154: 200.62 | R154: 0 | S154: 315.26 | T154: 2866 | U154: 3181.26 | W154: 0 | X154: 0 | Y154: 62.387712 | Z154: 62.38 | AA154: 0 | AB154: 3118.88 | AC154: =PORTADA!$D$10 -> 1
A155: 90 | B155: 4 | C155: 1 | E155: NADM490419 | F155: NADM490419HJCBLN01 | G155: 2007-01-01 | I155: 0 | J155: TARJETA | L155: 0 | M155: 0 | N155: =3016/15 -> 201.0666667 | O155: =TRUNC(N155*I155,2) -> 0 | P155: =TRUNC(N155*I155*0.04,2) -> 0 | Q155: =TRUNC(N155*0.07*I155,2) -> 0 | R155: =L155 -> 0 | S155: =TRUNC(Q155+P155+(IF(R155>519,519,R155))+IF(K155=0,0,K155*N155),2) -> 0 | T155: =TRUNC((IF(K155=0,I155*N155,(I155-K155)*N155))+(IF(R155<519,0,R155-519)),2)+M155 -> 0 | U155: =S155+T155 -> 0 | W155: 0 | X155: 0 | Y155: =IF(N155>0.01,(T155-VLOOKUP(T155,quincenal,1))*VLOOKUP(T155,quincenal,3)+VLOOKUP(T155,quincenal,2)-VLOOKUP(T155,subquincenal,2),0) ->  | Z155: 0 | AA155: 0 | AB155: =U155-W155-X155-Z155+AA155 -> 0 | AC155: =PORTADA!$D$10 -> 1
D156: =D148 -> DIRECCION GENERAL DE OBRAS PUBLICAS | O156: =SUM(O149:O155) -> 23585.14 | P156: =SUM(P149:P155) -> 943.4 | Q156: 1650.95 | R156: 0 | S156: 2594.35 | T156: 23585.14 | U156: 26179.49 | V156: 0 | W156: 0 | X156: 0 | Z156: 1923.41 | AA156: 2.1 | AB156: 24258.18
D158: DEPARTAMENTO DE CEMENTERIOS
A159: 91 | B159: 5 | C159: 2 | D159: RIVERA ORENDAIN ADALBERTO | E159: RIOA520619 | F159: RIOA520619HJCVRD05 | H159: ADMINISTRADOR DE CEMENTERIOS | I159: 15 | J159: TARJETA | L159: 0 | M159: 0 | N159: =2827/15 -> 188.4666667 | O159: =TRUNC(N159*I159,2) -> 2827 | P159: =TRUNC(N159*I159*0.04,2) -> 113.08 | Q159: =TRUNC(N159*0.07*I159,2) -> 197.89 | R159: =L159 -> 0 | S159: =TRUNC(Q159+P159+(IF(R159>519,519,R159))+IF(K159=0,0,K159*N159),2) -> 310.97 | T159: =TRUNC((IF(K159=0,I159*N159,(I159-K159)*N159))+(IF(R159<519,0,R159-519)),2)+M159 -> 2827 | U159: =S159+T159 -> 3137.97 | X159: 0 | Y159: =IF(N159>0.01,(T159-VLOOKUP(T159,quincenal,1))*VLOOKUP(T159,quincenal,3)+VLOOKUP(T159,quincenal,2)-VLOOKUP(T159,subquincenal,2),0) -> 58.144512 | Z159: =TRUNC(IF(Y159>0.01,Y159,0),2) -> 58.14 | AA159: =TRUNC(IF(Y159<0.01,-Y159,0),2) -> 0 | AB159: =U159-W159-X159-Z159+AA159 -> 3079.83 | AC159: =PORTADA!$D$10 -> 1
A160: 94 | D160: PROPONER O CAPTURAR | H160: AYUDANTE DEL DEPARTAMENTO DE CEMENTERIOS | I160: 0 | L160: 0 | M160: 0 | N160: 137.42 | O160: =TRUNC(N160*I160,2) -> 0 | P160: =TRUNC(N160*I160*0.04,2) -> 0 | Q160: =TRUNC(N160*0.07*I160,2) -> 0 | R160: =L160 -> 0 | S160: =TRUNC(Q160+P160+(IF(R160>519,519,R160))+IF(K160=0,0,K160*N160),2) -> 0 | T160: =TRUNC((IF(K160=0,I160*N160,(I160-K160)*N160))+(IF(R160<519,0,R160-519)),2)+M160 -> 0 | U160: =S160+T160 -> 0 | Z160: 0 | AA160: 0 | AB160: =U160-W160-X160-Z160+AA160 -> 0 | AC160: =PORTADA!$D$10 -> 1
A161: 95 | D161: PROPONER O CAPTURAR | H161: AYUDANTE DEL DEPARTAMENTO DE CEMENTERIOS | I161: 0 | L161: 0 | M161: 0 | N161: 137.42 | O161: =TRUNC(N161*I161,2) -> 0 | P161: =TRUNC(N161*I161*0.04,2) -> 0 | Q161: =TRUNC(N161*0.07*I161,2) -> 0 | R161: =L161 -> 0 | S161: =TRUNC(Q161+P161+(IF(R161>519,519,R161))+IF(K161=0,0,K161*N161),2) -> 0 | T161: =TRUNC((IF(K161=0,I161*N161,(I161-K161)*N161))+(IF(R161<519,0,R161-519)),2)+M161 -> 0 | U161: =S161+T161 -> 0 | Z161: 0 | AA161: 0 | AB161: =U161-W161-X161-Z161+AA161 -> 0 | AC161: =PORTADA!$D$10 -> 1
D162: DEPARTAMENTO DE CEMENTERIOS | O162: =SUM(O159:O161) -> 2827 | P162: =SUM(P159:P161) -> 113.08 | Q162: 197.89 | R162: 0 | S162: 310.97 | T162: 2827 | U162: 3137.97 | V162: 0 | W162: 0 | X162: 0 | Y162: 58.144512 | Z162: 58.14 | AA162: 0 | AB162: 3079.83
D164: DEPARTAMENTO DE RASTRO
A165: 92 | B165: 5 | C165: 3 | D165: LOPEZ VILLEGAS J. JESUS | E165: LOVJ470602UN7 | F165: LOVJ470602HJCPLS07 | H165: GUARDA RASTRO | I165: 15 | J165: TARJETA | L165: 0 | M165: 0 | N165: =2367/15 -> 157.8 | O165: =TRUNC(N165*I165,2) -> 2367 | P165: =TRUNC(N165*I165*0.04,2) -> 94.68 | Q165: =TRUNC(N165*0.07*I165,2) -> 165.69 | R165: =L165 -> 0 | S165: =TRUNC(Q165+P165+(IF(R165>519,519,R165))+IF(K165=0,0,K165*N165),2) -> 260.37 | T165: =TRUNC((IF(K165=0,I165*N165,(I165-K165)*N165))+(IF(R165<519,0,R165-519)),2)+M165 -> 2367 | U165: =S165+T165 -> 2627.37 | X165: 0 | Y165: =IF(N165>0.01,(T165-VLOOKUP(T165,quincenal,1))*VLOOKUP(T165,quincenal,3)+VLOOKUP(T165,quincenal,2)-VLOOKUP(T165,subquincenal,2),0) -> -6.903488 | Z165: =TRUNC(IF(Y165>0.01,Y165,0),2) -> 0 | AA165: =TRUNC(IF(Y165<0.01,-Y165,0),2) -> 6.9 | AB165: =U165-W165-X165-Z165+AA165 -> 2634.27 | AC165: =PORTADA!$D$10 -> 1
A166: 93 | B166: 5 | C166: 26 | D166: RAUL PARRA ROSAS | E166: PARR | H166: VETERINARIO | I166: 15 | J166: TARJETA | L166: 0 | M166: 0 | N166: =3669/15 -> 244.6 | O166: =TRUNC(N166*I166,2) -> 3669 | P166: =TRUNC(N166*I166*0.04,2) -> 146.76 | Q166: =TRUNC(N166*0.07*I166,2) -> 256.83 | R166: =L166 -> 0 | S166: =TRUNC(Q166+P166+(IF(R166>519,519,R166))+IF(K166=0,0,K166*N166),2) -> 403.59 | T166: =TRUNC((IF(K166=0,I166*N166,(I166-K166)*N166))+(IF(R166<519,0,R166-519)),2)+M166 -> 3669 | U166: =S166+T166 -> 4072.59 | X166: 0 | Y166: =IF(N166>0.01,(T166-VLOOKUP(T166,quincenal,1))*VLOOKUP(T166,quincenal,3)+VLOOKUP(T166,quincenal,2)-VLOOKUP(T166,subquincenal,2),0) -> 296.1284 | Z166: =TRUNC(IF(Y166>0.01,Y166,0),2) -> 296.12 | AA166: =TRUNC(IF(Y166<0.01,-Y166,0),2) -> 0 | AB166: =U166-W166-X166-Z166+AA166 -> 3776.47 | AC166: =PORTADA!$D$10 -> 1
A167: 94 | D167: MARTINEZ TORRES JUSTINO | E167: MATJ | H167: AUXILIAR DE MENTENIMIENTO | I167: 15 | J167: TARJETA | L167: 0 | M167: 0 | N167: =1591/15 -> 106.0666667 | O167: =TRUNC(N167*I167,2) -> 1591 | P167: =TRUNC(N167*I167*0.04,2) -> 63.64 | Q167: =TRUNC(N167*0.07*I167,2) -> 111.37 | R167: =L167 -> 0 | S167: =TRUNC(Q167+P167+(IF(R167>519,519,R167))+IF(K167=0,0,K167*N167),2) -> 175.01 | T167: =TRUNC((IF(K167=0,I167*N167,(I167-K167)*N167))+(IF(R167<519,0,R167-519)),2)+M167 -> 1591 | U167: =S167+T167 -> 1766.01 | X167: 0 | Y167: =IF(N167>0.01,(T167-VLOOKUP(T167,quincenal,1))*VLOOKUP(T167,quincenal,3)+VLOOKUP(T167,quincenal,2)-VLOOKUP(T167,subquincenal,2),0) -> -109.89384 | Z167: =TRUNC(IF(Y167>0.01,Y167,0),2) -> 0 | AA167: =TRUNC(IF(Y167<0.01,-Y167,0),2) -> 109.89 | AB167: =U167-W167-X167-Z167+AA167 -> 1875.9
D168: DEPARTAMENTO DE RASTRO | O168: =SUM(O165:O167) -> 7627 | P168: =SUM(P165:P167) -> 305.08 | Q168: 533.89 | R168: 0 | S168: 838.97 | T168: 7627 | U168: 8465.97 | V168: 0 | W168: 0 | X168: 0 | Y168: 179.331072 | Z168: 296.12 | AA168: 116.79 | AB168: 8286.64
D170: DEPARTAMENTO DE MERCADOS
A171: 95 | B171: 5 | C171: 5 | D171: GONZALEZ JARA J. REFUGIO JAVIER | E171: GOJR670808 | F171: GOJR670808HJCNRF13 | G171: 2007-03-17 | H171: VELADOR DEPTO DE MERCADOS | I171: 15 | J171: TARJETA | L171: 0 | M171: 0 | N171: =1577/15 -> 105.1333333 | O171: =TRUNC(N171*I171,2) -> 1577 | P171: =TRUNC(N171*I171*0.04,2) -> 63.08 | Q171: =TRUNC(N171*0.07*I171,2) -> 110.39 | R171: =L171 -> 0 | S171: =TRUNC(Q171+P171+(IF(R171>519,519,R171))+IF(K171=0,0,K171*N171),2) -> 173.47 | T171: =TRUNC((IF(K171=0,I171*N171,(I171-K171)*N171))+(IF(R171<519,0,R171-519)),2)+M171 -> 1577 | U171: =S171+T171 -> 1750.47 | X171: 0 | Y171: =IF(N171>0.01,(T171-VLOOKUP(T171,quincenal,1))*VLOOKUP(T171,quincenal,3)+VLOOKUP(T171,quincenal,2)-VLOOKUP(T171,subquincenal,2),0) -> -110.78984 | Z171: =TRUNC(IF(Y171>0.01,Y171,0),2) -> 0 | AA171: =TRUNC(IF(Y171<0.01,-Y171,0),2) -> 110.78 | AB171: =U171-W171-X171-Z171+AA171 -> 1861.25 | AC171: =PORTADA!$D$10 -> 1
A172: 96 | B172: 5 | C172: 5 | D172: MARTINEZ GONZALEZ JOSE DE JESUS | E172: MAGJ401015 | F172: MAGJ401015HJCRNC00 | G172: 2004-01-01 | H172: VELADOR DEPTO DE MERCADOS | I172: 15 | J172: TARJETA | L172: 0 | M172: 0 | N172: =1577/15 -> 105.1333333 | O172: =TRUNC(N172*I172,2) -> 1577 | P172: =TRUNC(N172*I172*0.04,2) -> 63.08 | Q172: =TRUNC(N172*0.07*I172,2) -> 110.39 | R172: =L172 -> 0 | S172: =TRUNC(Q172+P172+(IF(R172>519,519,R172))+IF(K172=0,0,K172*N172),2) -> 173.47 | T172: =TRUNC((IF(K172=0,I172*N172,(I172-K172)*N172))+(IF(R172<519,0,R172-519)),2)+M172 -> 1577 | U172: =S172+T172 -> 1750.47 | X172: 0 | Y172: =IF(N172>0.01,(T172-VLOOKUP(T172,quincenal,1))*VLOOKUP(T172,quincenal,3)+VLOOKUP(T172,quincenal,2)-VLOOKUP(T172,subquincenal,2),0) -> -110.78984 | Z172: =TRUNC(IF(Y172>0.01,Y172,0),2) -> 0 | AA172: =TRUNC(IF(Y172<0.01,-Y172,0),2) -> 110.78 | AB172: =U172-W172-X172-Z172+AA172 -> 1861.25 | AC172: =PORTADA!$D$10 -> 1
D173: DEPARTAMENTO DE MERCADOS | O173: =SUM(O171:O172) -> 3154 | P173: =SUM(P171:P172) -> 126.16 | Q173: 220.78 | R173: 0 | S173: 346.94 | T173: 3154 | U173: 3500.94 | V173: 0 | W173: 0 | X173: 0 | Y173: -221.57968 | Z173: 0 | AA173: 221.56 | AB173: 3722.5
D175: DEPARTAMENTO DE ASEO PUBLICO
A176: 97 | B176: 5 | C176: 7 | D176: HUERTA AGUILA BERNARDINO | E176: HUAB811011 | F176: HUAB810114HJCRGR01 | G176: 2007-02-01 | H176: RECOLECTOR ASEO PUBLICO | I176: 15 | J176: TARJETA | L176: 0 | M176: 0 | N176: =2222/15 -> 148.1333333 | O176: =TRUNC(N176*I176,2) -> 2222 | P176: =TRUNC(N176*I176*0.04,2) -> 88.88 | Q176: =TRUNC(N176*0.07*I176,2) -> 155.54 | R176: =L176 -> 0 | S176: =TRUNC(Q176+P176+(IF(R176>519,519,R176))+IF(K176=0,0,K176*N176),2) -> 244.42 | T176: =TRUNC((IF(K176=0,I176*N176,(I176-K176)*N176))+(IF(R176<519,0,R176-519)),2)+M176 -> 2222 | U176: =S176+T176 -> 2466.42 | X176: 0 | Y176: =IF(N176>0.01,(T176-VLOOKUP(T176,quincenal,1))*VLOOKUP(T176,quincenal,3)+VLOOKUP(T176,quincenal,2)-VLOOKUP(T176,subquincenal,2),0) -> -37.079488 | Z176: =TRUNC(IF(Y176>0.01,Y176,0),2) -> 0 | AA176: =TRUNC(IF(Y176<0.01,-Y176,0),2) -> 37.07 | AB176: =U176-W176-X176-Z176+AA176 -> 2503.49 | AC176: =PORTADA!$D$10 -> 1
A177: 98 | B177: 5 | C177: 7 | D177: GRACIA GOMEZ JAVIER | E177: GAGJ731114 | F177: GAGJ731114HJCRMV00 | G177: 2004-01-01 | H177: RECOLECTOR ASEO PUBLICO | I177: 15 | J177: TARJETA | L177: 0 | M177: 0 | N177: =2222/15 -> 148.1333333 | O177: 2222 | P177: 88.88 | Q177: 155.54 | R177: 0 | S177: 244.42 | T177: 2222 | U177: 2466.42 | X177: 0 | Y177: -37.079488 | Z177: 0 | AA177: 37.07 | AB177: 2503.49 | AC177: =PORTADA!$D$10 -> 1
A178: 99 | B178: 5 | C178: 7 | D178: FREGOZO ALVARADO ALFONSO | E178: FEAA650918 | F178: FEAA650818HJCRLL05 | G178: 2003-01-01 | H178: RECOLECTOR ASEO PUBLICO | I178: 15 | J178: TARJETA | L178: 0 | M178: 0 | N178: 148.1333333 | O178: 2222 | P178: 88.88 | Q178: 155.54 | R178: 0 | S178: 244.42 | T178: 2222 | U178: 2466.42 | X178: 0 | Y178: -37.079488 | Z178: 0 | AA178: 37.07 | AB178: 2503.49 | AC178: =PORTADA!$D$10 -> 1
A179: 100 | D179: TELLEZ GOMEZ VICENTE | H179: RECOLECTOR ASEO PUBLICO | I179: 15 | J179: TARJETA | L179: 0 | M179: 0 | N179: 148.1333333 | O179: =TRUNC(N179*I179,2) -> 2222 | P179: =TRUNC(N179*I179*0.04,2) -> 88.88 | Q179: =TRUNC(N179*0.07*I179,2) -> 155.54 | R179: =L179 -> 0 | S179: =TRUNC(Q179+P179+(IF(R179>519,519,R179))+IF(K179=0,0,K179*N179),2) -> 244.42 | T179: =TRUNC((IF(K179=0,I179*N179,(I179-K179)*N179))+(IF(R179<519,0,R179-519)),2)+M179 -> 2222 | U179: =S179+T179 -> 2466.42 | W179: 0 | X179: 0 | Y179: =IF(N179>0.01,(T179-VLOOKUP(T179,quincenal,1))*VLOOKUP(T179,quincenal,3)+VLOOKUP(T179,quincenal,2)-VLOOKUP(T179,subquincenal,2),0) -> -37.079488 | Z179: 0 | AA179: =TRUNC(IF(Y179<0.01,-Y179,0),2) -> 37.07 | AB179: =U179-W179-X179-Z179+AA179 -> 2503.49 | AE179: 2269.54
A180: 101 | B180: 5 | C180: 7 | D180: MARTINEZ VEJAR JUAN JOSE | E180: MAVJ710822 | F180: MAVJ710822HJCRJN04 | G180: 2004-01-01 | H180: CHOFER ASEO PUBLICO | I180: 15 | J180: TARJETA | L180: 0 | M180: 0 | N180: =2659/15 -> 177.2666667 | O180: =TRUNC(N180*I180,2) -> 2659 | P180: =TRUNC(N180*I180*0.04,2) -> 106.36 | Q180: =TRUNC(N180*0.07*I180,2) -> 186.13 | R180: =L180 -> 0 | S180: =TRUNC(Q180+P180+(IF(R180>519,519,R180))+IF(K180=0,0,K180*N180),2) -> 292.49 | T180: =TRUNC((IF(K180=0,I180*N180,(I180-K180)*N180))+(IF(R180<519,0,R180-519)),2)+M180 -> 2659 | U180: =S180+T180 -> 2951.49 | X180: 0 | Y180: =IF(N180>0.01,(T180-VLOOKUP(T180,quincenal,1))*VLOOKUP(T180,quincenal,3)+VLOOKUP(T180,quincenal,2)-VLOOKUP(T180,subquincenal,2),0) -> 39.866112 | Z180: 39.86 | AA180: =TRUNC(IF(Y180<0.01,-Y180,0),2) -> 0 | AB180: =U180-W180-X180-Z180+AA180 -> 2911.63 | AC180: =PORTADA!$D$10 -> 1
A181: 102 | B181: 5 | C181: 7 | D181: HERNANDEZ RICO JUAN JOSE | E181: MATM450918 | F181: MATM451028HJCRRG08 | G181: 2004-01-01 | H181: CHOFER ASEO PUBLICO | I181: 15 | J181: TARJETA | L181: 0 | M181: 0 | N181: =2745/15 -> 183 | O181: 2745 | P181: 109.8 | Q181: 192.15 | R181: 0 | S181: 301.95 | T181: 2745 | U181: 3046.95 | X181: 0 | Y181: 49.222912 | Z181: =TRUNC(IF(Y181>0.01,Y181,0),2) -> 49.22 | AA181: =TRUNC(IF(Y181<0.01,-Y181,0),2) -> 0 | AB181: 2997.73 | AC181: =PORTADA!$D$10 -> 1
A182: 103 | B182: 4 | C182: 1 | D182: DOMINGUEZ HECTOR FREDDI | E182: BECR460228 | F182: BECR460207HJCRHS07 | G182: 2004-01-01 | H182: CHOFER ASEO PUBLICO | I182: 15 | J182: TARJETA | L182: 0 | M182: 0 | N182: =2745/15 -> 183 | O182: 2745 | P182: 109.8 | Q182: 192.15 | R182: 0 | S182: 301.95 | T182: 2745 | U182: 3046.95 | X182: 0 | Y182: 49.222912 | Z182: =TRUNC(IF(Y182>0.01,Y182,0),2) -> 49.22 | AA182: =TRUNC(IF(Y182<0.01,-Y182,0),2) -> 0 | AB182: 2997.73
A183: 104 | B183: 5 | C183: 8 | D183: MENDEZ GARCIA MIGUEL ANGEL | E183: MEGM851109 | F183: MEGM851109HJCNRG03 | G183: 2009-01-16 | H183: AUX. DE LIMPIEZA GRAL. | I183: 15 | J183: TARJETA | L183: 0 | M183: 0 | N183: =2745/15 -> 183 | O183: 2745 | P183: 109.8 | Q183: 192.15 | R183: 0 | S183: 301.95 | T183: 2745 | U183: 3046.95 | X183: 0 | Y183: 49.222912 | Z183: 49.22 | AA183: 0 | AB183: 2997.73 | AC183: =PORTADA!$D$10 -> 1 | AE183: 2711.33
A184: 105 | D184: VILLALOBOS OCEGUEDA MIGUEL | H184: RECOLECTOR ASEO PUBLICO | I184: 15 | J184: TARJETA | L184: 0 | M184: 0 | N184: =2222/15 -> 148.1333333 | O184: =TRUNC(N184*I184,2) -> 2222 | P184: =TRUNC(N184*I184*0.04,2) -> 88.88 | Q184: =TRUNC(N184*0.07*I184,2) -> 155.54 | R184: =L184 -> 0 | S184: =TRUNC(Q184+P184+(IF(R184>519,519,R184))+IF(K184=0,0,K184*N184),2) -> 244.42 | T184: =TRUNC((IF(K184=0,I184*N184,(I184-K184)*N184))+(IF(R184<519,0,R184-519)),2)+M184 -> 2222 | U184: =S184+T184 -> 2466.42 | X184: 0 | Y184: =IF(N184>0.01,(T184-VLOOKUP(T184,quincenal,1))*VLOOKUP(T184,quincenal,3)+VLOOKUP(T184,quincenal,2)-VLOOKUP(T184,subquincenal,2),0) -> -37.079488 | Z184: =TRUNC(IF(Y184>0.01,Y184,0),2) -> 0 | AA184: =TRUNC(IF(Y184<0.01,-Y184,0),2) -> 37.07 | AB184: =U184-W184-X184-Z184+AA184 -> 2503.49
A185: 106 | B185: 1 | C185: 6 | D185: CISNEROS VAZQUEZ RAMIRO | E185: CIVR540430 | F185: CIVR540430HJCSZM04 | G185: 2007-01-01 | H185: RECOLECTOR ASEO PUBLICO | I185: 15 | J185: TARJETA | L185: 0 | M185: 0 | N185: =2222/15 -> 148.1333333 | O185: 2222 | P185: 88.88 | Q185: 155.54 | R185: 0 | S185: 244.42 | T185: 2222 | U185: 2466.42 | X185: 0 | Y185: -37.079488 | Z185: 0 | AA185: 37.07 | AB185: 2503.49 | AC185: =PORTADA!$D$10 -> 1 | AE185: 2269.54
D186: DEPARTAMENTO DE ASEO PUBLICO | O186: =SUM(O176:O185) -> 24226 | P186: =SUM(P176:P185) -> 969.04 | Q186: 1695.82 | R186: 0 | S186: 2664.86 | T186: 24226 | U186: 26890.86 | V186: 0 | W186: 0 | X186: 0 | Y186: -34.94208 | Z186: 187.52 | AA186: 222.42 | AB186: 26925.76
D188: DEPARTAMENTO DE PARQUES Y JARDINES
A189: 107 | B189: 5 | C189: 8 | D189: HUERTA CORTES RAMON | E189: HUCR450811 | F189: HUCR450831HJCRRM08 | G189: 2004-01-01 | H189: JARDINERO | I189: 15 | J189: TARJETA | L189: 0 | M189: 0 | N189: =2307/15 -> 153.8 | O189: =TRUNC(N189*I189,2) -> 2307 | P189: =TRUNC(N189*I189*0.04,2) -> 92.28 | Q189: =TRUNC(N189*0.07*I189,2) -> 161.49 | R189: =L189 -> 0 | S189: =TRUNC(Q189+P189+(IF(R189>519,519,R189))+IF(K189=0,0,K189*N189),2) -> 253.77 | T189: =TRUNC((IF(K189=0,I189*N189,(I189-K189)*N189))+(IF(R189<519,0,R189-519)),2)+M189 -> 2307 | U189: =S189+T189 -> 2560.77 | X189: 0 | Y189: =IF(N189>0.01,(T189-VLOOKUP(T189,quincenal,1))*VLOOKUP(T189,quincenal,3)+VLOOKUP(T189,quincenal,2)-VLOOKUP(T189,subquincenal,2),0) -> -27.831488 | Z189: =TRUNC(IF(Y189>0.01,Y189,0),2) -> 0 | AA189: =TRUNC(IF(Y189<0.01,-Y189,0),2) -> 27.83 | AB189: =U189-W189-X189-Z189+AA189 -> 2588.6 | AC189: =PORTADA!$D$10 -> 1
A190: 108 | B190: 5 | C190: 8 | D190: SILVA PINTO J ASUNCIÓN | E190: SIPA400815 | F190: SIPA400815HJCLNS02 | G190: 2004-01-01 | H190: JARDINERO | I190: 15 | J190: TARJETA | L190: 0 | M190: 0 | N190: =2222/15 -> 148.1333333 | O190: 2222 | P190: 88.88 | Q190: 155.54 | R190: 0 | S190: 244.42 | T190: 2222 | U190: 2466.42 | X190: 0 | Y190: -37.079488 | Z190: 0 | AA190: 37.07 | AB190: 2503.49 | AC190: =PORTADA!$D$10 -> 1 | AE190: 2269.54
A191: 109 | D191: MILLAN GARCIA J. JESUS | H191: JARDINERO | I191: 15 | J191: TARJETA | L191: 0 | M191: 0 | N191: =2222/15 -> 148.1333333 | O191: 2222 | P191: 88.88 | Q191: 155.54 | R191: 0 | S191: 244.42 | T191: 2222 | U191: 2466.42 | X191: 0 | Y191: -37.079488 | Z191: 0 | AA191: 37.07 | AB191: 2503.49
A192: 110 | D192: BERNAL PRECIADO JUAN JOSE | H192: JARDINERO | I192: 15 | J192: TARJETA | L192: 0 | M192: 0 | N192: 148.1333333 | O192: 2222 | P192: 88.88 | Q192: 155.54 | R192: 0 | S192: 244.42 | T192: 2222 | U192: 2466.42 | W192: 0 | X192: 0 | Y192: -37.079488 | Z192: 0 | AA192: 37.07 | AB192: 2503.49 | AE192: 2269.54
A193: 111 | D193: MARTINEZ CRUZ JUAN | H193: JARDINERO | I193: 15 | J193: TARJETA | L193: 0 | M193: 0 | N193: 148.1333333 | O193: 2222 | P193: 88.88 | Q193: 155.54 | R193: 0 | S193: 244.42 | T193: 2222 | U193: 2466.42 | W193: 0 | X193: 0 | Y193: -37.079488 | Z193: 0 | AA193: 37.07 | AB193: 2503.49 | AE193: 2269.54
A194: 112 | D194: ACOSTA MURILLO JOAQUIN | H194: JARDINERO | I194: 15 | J194: TARJETA | L194: 0 | M194: 0 | N194: 148.1333333 | O194: 2222 | P194: 88.88 | Q194: 155.54 | R194: 0 | S194: 244.42 | T194: 2222 | U194: 2466.42 | X194: 0 | Y194: -37.079488 | Z194: 0 | AA194: 37.07 | AB194: 2503.49
A195: 0 | D195: VACANTE BARRENDERO | H195: BARRENDERO | I195: 0 | L195: 0 | M195: 0 | N195: 148.1333333 | O195: =TRUNC(N195*I195,2) -> 0 | P195: =TRUNC(N195*I195*0.04,2) -> 0 | Q195: =TRUNC(N195*0.07*I195,2) -> 0 | R195: =L195 -> 0 | S195: =TRUNC(Q195+P195+(IF(R195>519,519,R195))+IF(K195=0,0,K195*N195),2) -> 0 | T195: =TRUNC((IF(K195=0,I195*N195,(I195-K195)*N195))+(IF(R195<519,0,R195-519)),2)+M195 -> 0 | U195: =S195+T195 -> 0 | Z195: 0 | AA195: 0 | AB195: =U195-W195-X195-Z195+AA195 -> 0
A196: 0 | D196: VACANTE BARRENDERO | H196: BARRENDERO | I196: 0 | L196: 0 | M196: 0 | N196: 148.1333333 | O196: =TRUNC(N196*I196,2) -> 0 | P196: =TRUNC(N196*I196*0.04,2) -> 0 | Q196: =TRUNC(N196*0.07*I196,2) -> 0 | R196: =L196 -> 0 | S196: =TRUNC(Q196+P196+(IF(R196>519,519,R196))+IF(K196=0,0,K196*N196),2) -> 0 | T196: =TRUNC((IF(K196=0,I196*N196,(I196-K196)*N196))+(IF(R196<519,0,R196-519)),2)+M196 -> 0 | U196: =S196+T196 -> 0 | Z196: 0 | AA196: 0 | AB196: =U196-W196-X196-Z196+AA196 -> 0
A197: 0 | D197: VACANTE BARRENDERO | H197: BARRENDERO | I197: 0 | L197: 0 | M197: 0 | N197: 148.1333333 | O197: =TRUNC(N197*I197,2) -> 0 | P197: =TRUNC(N197*I197*0.04,2) -> 0 | Q197: =TRUNC(N197*0.07*I197,2) -> 0 | R197: =L197 -> 0 | S197: =TRUNC(Q197+P197+(IF(R197>519,519,R197))+IF(K197=0,0,K197*N197),2) -> 0 | T197: =TRUNC((IF(K197=0,I197*N197,(I197-K197)*N197))+(IF(R197<519,0,R197-519)),2)+M197 -> 0 | U197: =S197+T197 -> 0 | Z197: 0 | AA197: 0 | AB197: =U197-W197-X197-Z197+AA197 -> 0
A198: 113 | B198: 5 | C198: 8 | D198: REGALADO BAÑUELOS FRANCISCO | E198: REBF441211 | F198: REBF441211HJCGXR05 | G198: 2005-01-01 | H198: BARRENDERO | I198: 15 | J198: TARJETA | L198: 0 | M198: 0 | N198: 148.1333333 | O198: 2222 | P198: 88.88 | Q198: 155.54 | R198: 0 | S198: 244.42 | T198: 2222 | U198: 2466.42 | X198: 0 | Y198: -37.079488 | Z198: =TRUNC(IF(Y198>0.01,Y198,0),2) -> 0 | AA198: 37.07 | AB198: 2503.49 | AC198: =PORTADA!$D$10 -> 1
A199: 114 | D199: RUIZ MUÑOZ LUIS | E199: RUML530529GL7 | F199: RUML530529HJCZXS03 | G199: 2006-01-01 | H199: VIGILANTE | I199: 15 | J199: TARJETA | L199: 0 | M199: 0 | N199: =2118/15 -> 141.2 | O199: =TRUNC(N199*I199,2) -> 2118 | P199: =TRUNC(N199*I199*0.04,2) -> 84.72 | Q199: =TRUNC(N199*0.07*I199,2) -> 148.26 | R199: =L199 -> 0 | S199: =TRUNC(Q199+P199+(IF(R199>519,519,R199))+IF(K199=0,0,K199*N199),2) -> 232.98 | T199: =TRUNC((IF(K199=0,I199*N199,(I199-K199)*N199))+(IF(R199<519,0,R199-519)),2)+M199 -> 2118 | U199: =S199+T199 -> 2350.98 | W199: 0 | X199: 0 | Y199: =IF(N199>0.01,(T199-VLOOKUP(T199,quincenal,1))*VLOOKUP(T199,quincenal,3)+VLOOKUP(T199,quincenal,2)-VLOOKUP(T199,subquincenal,2),0) -> -62.344688 | Z199: =TRUNC(IF(Y199>0.01,Y199,0),2) -> 0 | AA199: =TRUNC(IF(Y199<0.01,-Y199,0),2) -> 62.34 | AB199: =U199-W199-X199-Z199+AA199 -> 2413.32
A200: 115 | B200: 5 | C200: 8 | D200: AYALA RODRIGUEZ MIGUEL ANGEL | E200: AARM690504 | F200: AARM690504HJCYDG04 | G200: 2004-01-01 | H200: PODADOR | I200: 15 | J200: TARJETA | L200: 0 | M200: 0 | N200: =2758/15 -> 183.8666667 | O200: 2758 | P200: 110.32 | Q200: 193.06 | R200: 0 | S200: 303.38 | T200: 2758 | U200: 3061.38 | X200: 0 | Y200: 50.637312 | Z200: =TRUNC(IF(Y200>0.01,Y200,0),2) -> 50.63 | AA200: 0 | AB200: 3010.75 | AC200: =PORTADA!$D$10 -> 1 | AE200: =SUM(AE190:AE198) -> 6808.62
D201: DEPARTAMENTO DE PARQUES Y JARDINES | O201: =SUM(O189:O200) -> 20515 | P201: =SUM(P189:P200) -> 820.6 | Q201: 1436.05 | R201: 0 | S201: 2256.65 | T201: 20515 | U201: 22771.65 | V201: 0 | W201: 0 | X201: 0 | Y201: -262.015792 | Z201: 50.63 | AA201: 312.59 | AB201: 23033.61
D203: VERTEDERO MUNICIPAL
A204: 116 | B204: 5 | C204: 9 | E204: RUML530529GL7 | F204: RUML530529HJCZXS03 | G204: 2006-01-01 | J204: TARJETA | L204: 0 | M204: 0 | O204: =TRUNC(N204*I204,2) -> 0 | P204: =TRUNC(N204*I204*0.04,2) -> 0 | Q204: =TRUNC(N204*0.07*I204,2) -> 0 | R204: =L204 -> 0 | S204: =TRUNC(Q204+P204+(IF(R204>519,519,R204))+IF(K204=0,0,K204*N204),2) -> 0 | T204: =TRUNC((IF(K204=0,I204*N204,(I204-K204)*N204))+(IF(R204<519,0,R204-519)),2)+M204 -> 0 | U204: =S204+T204 -> 0 | W204: 0 | X204: 0 | Y204: =IF(N204>0.01,(T204-VLOOKUP(T204,quincenal,1))*VLOOKUP(T204,quincenal,3)+VLOOKUP(T204,quincenal,2)-VLOOKUP(T204,subquincenal,2),0) -> 0 | Z204: =TRUNC(IF(Y204>0.01,Y204,0),2) -> 0 | AA204: =TRUNC(IF(Y204<0.01,-Y204,0),2) -> 0 | AB204: =U204-W204-X204-Z204+AA204 -> 0 | AC204: =PORTADA!$D$10 -> 1
D205: VERTEDERO MUNICIPAL | O205: =SUM(O204) -> 0 | P205: 0 | Q205: 0 | R205: 0 | S205: 0 | T205: 0 | U205: 0 | V205: 0 | W205: 0 | X205: 0 | Y205: 0 | Z205: 0 | AA205: 0 | AB205: 0
D207: DEPARTAMENTO DE ALUMBRADO PUBLICO
A208: 117 | B208: 5 | C208: 10 | D208: RUIZ HERNANDEZ CELESTINO | E208: RUHC540519 | F208: RUHC540519HJCZRL03 | G208: 2004-01-01 | H208: JEFE DE ALUMBRADO PUBLICO | I208: 15 | J208: TARJETA | L208: 0 | M208: 0 | N208: =3428/15 -> 228.5333333 | O208: =TRUNC(N208*I208,2) -> 3428 | P208: =TRUNC(N208*I208*0.04,2) -> 137.12 | Q208: =TRUNC(N208*0.07*I208,2) -> 239.96 | R208: =L208 -> 0 | S208: =TRUNC(Q208+P208+(IF(R208>519,519,R208))+IF(K208=0,0,K208*N208),2) -> 377.08 | T208: =TRUNC((IF(K208=0,I208*N208,(I208-K208)*N208))+(IF(R208<519,0,R208-519)),2)+M208 -> 3428 | U208: =S208+T208 -> 3805.08 | X208: 0 | Y208: =IF(N208>0.01,(T208-VLOOKUP(T208,quincenal,1))*VLOOKUP(T208,quincenal,3)+VLOOKUP(T208,quincenal,2)-VLOOKUP(T208,subquincenal,2),0) -> 143.783312 | Z208: =TRUNC(IF(Y208>0.01,Y208,0),2) -> 143.78 | AA208: =TRUNC(IF(Y208<0.01,-Y208,0),2) -> 0 | AB208: =U208-W208-X208-Z208+AA208 -> 3661.3 | AC208: =PORTADA!$D$10 -> 1
A209: 118 | B209: 5 | C209: 10 | D209: ROJAS HUERTA CARLOS ALFREDO | H209: AUXILIARDE ALUMBRADO PUBLICO | I209: 15 | J209: TARJETA | L209: 0 | M209: 0 | N209: =2222/15 -> 148.1333333 | O209: =TRUNC(N209*I209,2) -> 2222 | P209: =TRUNC(N209*I209*0.04,2) -> 88.88 | Q209: =TRUNC(N209*0.07*I209,2) -> 155.54 | R209: =L209 -> 0 | S209: =TRUNC(Q209+P209+(IF(R209>519,519,R209))+IF(K209=0,0,K209*N209),2) -> 244.42 | T209: =TRUNC((IF(K209=0,I209*N209,(I209-K209)*N209))+(IF(R209<519,0,R209-519)),2)+M209 -> 2222 | U209: =S209+T209 -> 2466.42 | X209: 0 | Y209: =IF(N209>0.01,(T209-VLOOKUP(T209,quincenal,1))*VLOOKUP(T209,quincenal,3)+VLOOKUP(T209,quincenal,2)-VLOOKUP(T209,subquincenal,2),0) -> -37.079488 | Z209: =TRUNC(IF(Y209>0.01,Y209,0),2) -> 0 | AA209: =TRUNC(IF(Y209<0.01,-Y209,0),2) -> 37.07 | AB209: =U209-W209-X209-Z209+AA209 -> 2503.49
D210: DEPARTAMENTO DE ALUMBRADO PUBLICO | O210: =SUM(O208:O209) -> 5650 | P210: =SUM(P208:P209) -> 226 | Q210: 395.5 | R210: 0 | S210: 621.5 | T210: 5650 | U210: 6271.5 | V210: 0 | W210: 0 | X210: 0 | Y210: 106.703824 | Z210: 143.78 | AA210: 37.07 | AB210: 6164.79
D212: DEPARTAMENTO DE DEPORTES
A213: 119 | B213: 5 | C213: 14 | D213: NAVARRO MARTINEZ JUAN CARLOS | E213: NAMJ640808 | F213: NAMJ640808HJCVRN01 | G213: 2004-01-01 | H213: DIRECTOR DE DEPORTES | I213: 15 | J213: TARJETA | L213: 0 | M213: 0 | N213: =3428/15 -> 228.5333333 | O213: =TRUNC(N213*I213,2) -> 3428 | P213: =TRUNC(N213*I213*0.04,2) -> 137.12 | Q213: =TRUNC(N213*0.07*I213,2) -> 239.96 | R213: =L213 -> 0 | S213: =TRUNC(Q213+P213+(IF(R213>519,519,R213))+IF(K213=0,0,K213*N213),2) -> 377.08 | T213: =TRUNC((IF(K213=0,I213*N213,(I213-K213)*N213))+(IF(R213<519,0,R213-519)),2)+M213 -> 3428 | U213: =S213+T213 -> 3805.08 | X213: 0 | Y213: =IF(N213>0.01,(T213-VLOOKUP(T213,quincenal,1))*VLOOKUP(T213,quincenal,3)+VLOOKUP(T213,quincenal,2)-VLOOKUP(T213,subquincenal,2),0) -> 143.783312 | Z213: =TRUNC(IF(Y213>0.01,Y213,0),2) -> 143.78 | AA213: =TRUNC(IF(Y213<0.01,-Y213,0),2) -> 0 | AB213: =U213-W213-X213-Z213+AA213 -> 3661.3 | AC213: =PORTADA!$D$10 -> 1
A214: 120 | B214: 5 | C214: 14 | D214: ARANA ZAMORANO SALVADOR | H214: AUXILIAR DE MANTENIMIENTO DEL DEPTO. DE DEPORTES | I214: 15 | J214: TARJETA | L214: 0 | M214: 0 | N214: =1989/15 -> 132.6 | O214: 1989 | P214: 79.56 | Q214: 139.23 | R214: 0 | S214: 218.79 | T214: 1989 | U214: 2207.79 | X214: 0 | Y214: -72.42184 | Z214: 0 | AA214: 72.42 | AB214: 2280.21
A215: 121 | D215: ENRIQUEZ MARTINEZ CARLOS | H215: AUXILIAR DE MANTENIMIENTO DEL DEPTO. DE DEPORTES | I215: 15 | J215: TARJETA | L215: 0 | M215: 0 | N215: =1989/15 -> 132.6 | O215: 1989 | P215: 79.56 | Q215: 139.23 | R215: 0 | S215: 218.79 | T215: 1989 | U215: 2207.79 | X215: 0 | Y215: -72.42184 | Z215: 0 | AA215: 72.42 | AB215: 2280.21
A216: 122 | D216: OCHOA FLORES RAMON | H216: AUXILIAR DE MANTENIMIENTO DEL DEPTO. DE DEPORTES | I216: 15 | J216: TARJETA | L216: 0 | M216: 0 | N216: 132.6 | O216: 1989 | P216: 79.56 | Q216: 139.23 | R216: 0 | S216: 218.79 | T216: 1989 | U216: 2207.79 | X216: 0 | Y216: -72.42184 | Z216: 0 | AA216: 72.42 | AB216: 2280.21
A217: 123 | D217: GODINA ENRIQUEZ SILVIA | E217: GOES781103IAA | F217: GOES781103MJCDNL05 | G217: 2009-01-01 | H217: CONSERJE DOMO POLIDEPORTIVO | I217: 15 | J217: TARJETA | L217: 0 | M217: 0 | N217: =2106/15 -> 140.4 | O217: 2106 | P217: 84.24 | Q217: 147.42 | R217: 0 | S217: 231.66 | T217: 2106 | U217: 2337.66 | X217: 0 | Y217: -63.650288 | Z217: 0 | AA217: 63.65 | AB217: 2401.31 | AC217: =PORTADA!$D$10 -> 1
D218: MELCHOR PEREZ GRISELDA | H218: CONSERJE DOMO POLIDEPORTIVO | I218: 15 | J218: TARJETA | L218: 0 | M218: 0 | N218: =1550/15 -> 103.3333333 | O218: =TRUNC(N218*I218,2) -> 1550 | P218: =TRUNC(N218*I218*0.04,2) -> 62 | Q218: =TRUNC(N218*0.07*I218,2) -> 108.5 | R218: =L218 -> 0 | S218: =TRUNC(Q218+P218+(IF(R218>519,519,R218))+IF(K218=0,0,K218*N218),2) -> 170.5 | T218: =TRUNC((IF(K218=0,I218*N218,(I218-K218)*N218))+(IF(R218<519,0,R218-519)),2)+M218 -> 1550 | U218: =S218+T218 -> 1720.5 | X218: 0 | Y218: =IF(N218>0.01,(T218-VLOOKUP(T218,quincenal,1))*VLOOKUP(T218,quincenal,3)+VLOOKUP(T218,quincenal,2)-VLOOKUP(T218,subquincenal,2),0) -> -112.51784 | Z218: 0 | AA218: 112.51 | AB218: =U218-W218-X218-Z218+AA218 -> 1833.01
A219: 125 | B219: 5 | C219: 14 | D219: TRINIDAD ESQUIVEL ROCIO | H219: SECRETARIA DOMO POLIDEPORTIVO | I219: 15 | J219: TARJETA | L219: 0 | M219: 0 | N219: =2155/15 -> 143.6666667 | O219: 2155 | P219: 86.2 | Q219: 150.85 | R219: 0 | S219: 237.05 | T219: 2155 | U219: 2392.05 | Y219: -58.319088 | Z219: =TRUNC(IF(Y219>0.01,Y219,0),2) -> 0 | AA219: =TRUNC(IF(Y219<0.01,-Y219,0),2) -> 58.31 | AB219: 2450.36 | AC219: =PORTADA!$D$10 -> 1
A220: 126 | D220: GOMEZ ESTEVEZ JOSE DE JESUS | E220: FEGC520708TD3 | F220: FEGC520708HJCRMR08 | H220: VIGILANTE | I220: 15 | J220: TARJETA | L220: 0 | M220: 0 | N220: =2377/15 -> 158.4666667 | O220: 2377 | P220: 95.08 | Q220: 166.39 | R220: 0 | S220: 261.47 | T220: 2377 | U220: 2638.47 | Y220: -5.815488 | Z220: =TRUNC(IF(Y220>0.01,Y220,0),2) -> 0 | AA220: =TRUNC(IF(Y220<0.01,-Y220,0),2) -> 5.81 | AB220: 2644.28
D221: DEPARTAMENTO DE DEPORTES | O221: =SUM(O213:O220) -> 17583 | P221: =SUM(P213:P220) -> 703.32 | Q221: 1230.81 | R221: 0 | S221: 1934.13 | T221: 17583 | U221: 19517.13 | V221: 0 | W221: 0 | X221: 0 | Y221: -313.784912 | Z221: 143.78 | AA221: 457.54 | AB221: 19830.89
D223: SERVICIOS MEDICOS
A224: 127 | B224: 5 | C224: 15 | D224: MARTINEZ VALDIVIA FRANCISCO | E224: MAVF520525 | F224: MAVF520525HJCRLR02 | G224: 2004-01-01 | H224: MEDICO MUNICIPAL | I224: 15 | J224: TARJETA | L224: 0 | M224: 0 | N224: =3634/15 -> 242.2666667 | O224: =TRUNC(N224*I224,2) -> 3634 | P224: =TRUNC(N224*I224*0.04,2) -> 145.36 | Q224: =TRUNC(N224*0.07*I224,2) -> 254.38 | R224: =L224 -> 0 | S224: =TRUNC(Q224+P224+(IF(R224>519,519,R224))+IF(K224=0,0,K224*N224),2) -> 399.74 | T224: =TRUNC((IF(K224=0,I224*N224,(I224-K224)*N224))+(IF(R224<519,0,R224-519)),2)+M224 -> 3634 | U224: =S224+T224 -> 4033.74 | X224: 0 | Y224: =IF(N224>0.01,(T224-VLOOKUP(T224,quincenal,1))*VLOOKUP(T224,quincenal,3)+VLOOKUP(T224,quincenal,2)-VLOOKUP(T224,subquincenal,2),0) -> 183.896112 | Z224: =TRUNC(IF(Y224>0.01,Y224,0),2) -> 183.89 | AA224: =TRUNC(IF(Y224<0.01,-Y224,0),2) -> 0 | AB224: =U224-W224-X224-Z224+AA224 -> 3849.85 | AC224: =PORTADA!$D$10 -> 1
D225: SERVICIOS MEDICOS | O225: =SUM(O224) -> 3634 | P225: 145.36 | Q225: 254.38 | R225: 0 | S225: 399.74 | T225: 3634 | U225: 4033.74 | V225: 0 | W225: 0 | X225: 0 | Y225: 183.896112 | Z225: 183.89 | AA225: 0 | AB225: 3849.85
D227: INSPECCION AGRICOLA Y GANADERA
... 92 more rows
